Workbook

Sheet チラシシート

Sheet 基本設定シート
A2: ① | B2: 期間指定（開始時期） | C2: 期間指定（開始時期） | D2: ③ | E2: グラフ表示 | F2: グラフ表示品目等 | G2: データコード
B3: 令和2年(2020)1月 | C3: =VLOOKUP($B$3,開始時期リスト[#All],2,FALSE) -> 2020-01-01 | E3: グラフ1 | F3: 米 | G3: PR01'PRCG20_2202040001
E4: グラフ2 | F4: 砂糖 | G4: PR01'PRCG20_2200150036
A5: ④ | B5: 業種名(最大10文字) | C5: 先頭10文字 | E5: グラフ3 | F5: 動植物油脂 | G5: PR01'PRCG20_2200140014
B6: 食料品製造業 | C6: =LEFT(B6,10) -> 食料品製造業 | E6: グラフ4 | F6: 調味料 | G6: PR01'PRCG20_2200140015
E7: グラフ5 | F7: 原乳 | G7: PR01'PRCG20_2202050005
A8: ② | B8: 参考業種 | E8: グラフ6 | F8: 鶏卵 | G8: PR01'PRCG20_2202050006
B9: 建設業 | E9: グラフ7 | F9: 食肉 | G9: PR01'PRCG20_2202040007
B10: 食料品製造業 | E10: グラフ8 | F10: 事業用電力 | G10: PR01'PRCG20_2202250001
B11: 繊維工業 | E11: グラフ9 | F11: 道路貨物輸送 | G11: PR02'PRCS20_5200630002
B12: 印刷・同関連業 | E12: グラフ10 | F12: 人件費 | G12: PR02'PRLC00_9999999999
B13: プラスチック製品製造 | D13: ※1
B14: 金属製品製造業
B15: 生産用機械器具製造業
B16: 輸送用機械器具製造業
B17: 道路貨物運送業
B18: 繊維・衣服等卸売業
B19: 飲食料品卸売業
B20: 建築材料等卸売業 | D20: ※2
B21: 機械器具卸売業
B23: ※1 プラスチック製品製造業を指す
B24: ※2 建築材料、鉱物・金属材料等卸売業を指す

Sheet 品目等選択シート
H2: 入れ替えたい品目をクリックすると、入力されている品目が自動削除されます。新たに追加したい品目を選択してください。
H3: グラフ1 | I3: グラフ2 | J3: グラフ3 | K3: グラフ4 | L3: グラフ5
H4: 米 | I4: 砂糖 | J4: 動植物油脂 | K4: 調味料 | L4: 原乳
H6: 1 | I6: 2 | J6: 3 | K6: 4 | L6: 5
H7: グラフ6 | I7: グラフ7 | J7: グラフ8 | K7: グラフ9 | L7: グラフ10
H8: 鶏卵 | I8: 食肉 | J8: 事業用電力 | K8: 道路貨物輸送 | L8: 人件費
H10: 6 | I10: 7 | J10: 8 | K10: 9 | L10: 10
I11: 検索をしたい場合は、 キーと キーを押した後、検索したい品目を入力してください
A13: 目次 | F13: データコード | G13: 種別 | H13: 類別（サービスは大類別） | I13: 小類別（サービスは類別） | J13: 商品群（サービスは小類別） | K13: 品目
A14: クリックした類別にカーソルが移動 | F14: PR01'PRCG20_2200120001 | G14: 国内 | H14: 飲食料品 | I14: _ | J14: _ | K14: _
A15: 国内 | F15: PR01'PRCG20_2200130001 | G15: 国内 | H15: 飲食料品 | I15: 食料品 | J15: _ | K15: _
A16: 輸入 | F16: PR01'PRCG20_2200140001 | G16: 国内 | H16: 飲食料品 | I16: 食料品 | J16: 酪農品 | K16: _
A17: サービス | F17: PR01'PRCG20_2200150001 | G17: 国内 | H17: 飲食料品 | I17: 食料品 | J17: 酪農品 | K17: 処理牛乳
A18: 人件費 | F18: PR01'PRCG20_2200150002 | G18: 国内 | H18: 飲食料品 | I18: 食料品 | J18: 酪農品 | K18: 乳飲料・乳酸菌飲料
F19: PR01'PRCG20_2200150003 | G19: 国内 | H19: 飲食料品 | I19: 食料品 | J19: 酪農品 | K19: 粉乳
A20: 国内 | F20: PR01'PRCG20_2200150004 | G20: 国内 | H20: 飲食料品 | I20: 食料品 | J20: 酪農品 | K20: バター
A21: 飲食料品 | F21: PR01'PRCG20_2200150005 | G21: 国内 | H21: 飲食料品 | I21: 食料品 | J21: 酪農品 | K21: チーズ
A22: 繊維製品 | F22: PR01'PRCG20_2200150006 | G22: 国内 | H22: 飲食料品 | I22: 食料品 | J22: 酪農品 | K22: 生クリーム
A23: 木材・木製品 | F23: PR01'PRCG20_2200150007 | G23: 国内 | H23: 飲食料品 | I23: 食料品 | J23: 酪農品 | K23: アイスクリーム
A24: パルプ・紙・同製品 | F24: PR01'PRCG20_2200150008 | G24: 国内 | H24: 飲食料品 | I24: 食料品 | J24: 酪農品 | K24: ヨーグルト
A25: 化学製品 | F25: PR01'PRCG20_2200140002 | G25: 国内 | H25: 飲食料品 | I25: 食料品 | J25: その他の畜産食料品 | K25: _
A26: 石油・石炭製品 | F26: PR01'PRCG20_2200150009 | G26: 国内 | H26: 飲食料品 | I26: 食料品 | J26: その他の畜産食料品 | K26: 肉製品
A27: プラスチック製品 | F27: PR01'PRCG20_2200140003 | G27: 国内 | H27: 飲食料品 | I27: 食料品 | J27: 水産びん・かん詰 | K27: _
A28: 窯業・土石製品 | F28: PR01'PRCG20_2200150010 | G28: 国内 | H28: 飲食料品 | I28: 食料品 | J28: 水産びん・かん詰 | K28: 水産びん・かん詰
A29: 鉄鋼 | F29: PR01'PRCG20_2200140004 | G29: 国内 | H29: 飲食料品 | I29: 食料品 | J29: ねり製品 | K29: _
A30: 非鉄金属 | F30: PR01'PRCG20_2200150011 | G30: 国内 | H30: 飲食料品 | I30: 食料品 | J30: ねり製品 | K30: ねり製品
A31: 金属製品 | F31: PR01'PRCG20_2200140005 | G31: 国内 | H31: 飲食料品 | I31: 食料品 | J31: その他の水産食料品 | K31: _
A32: はん用機器 | F32: PR01'PRCG20_2200150012 | G32: 国内 | H32: 飲食料品 | I32: 食料品 | J32: その他の水産食料品 | K32: かつおパック
A33: 生産用機器 | F33: PR01'PRCG20_2200150013 | G33: 国内 | H33: 飲食料品 | I33: 食料品 | J33: その他の水産食料品 | K33: 水産物漬物
A34: 業務用機器 | F34: PR01'PRCG20_2200150014 | G34: 国内 | H34: 飲食料品 | I34: 食料品 | J34: その他の水産食料品 | K34: つくだ煮
A35: 電子部品・デバイス | F35: PR01'PRCG20_2200140006 | G35: 国内 | H35: 飲食料品 | I35: 食料品 | J35: 製粉 | K35: _
A36: 電気機器 | F36: PR01'PRCG20_2200150015 | G36: 国内 | H36: 飲食料品 | I36: 食料品 | J36: 製粉 | K36: 小麦粉
A37: 情報通信機器 | F37: PR01'PRCG20_2200140007 | G37: 国内 | H37: 飲食料品 | I37: 食料品 | J37: めん類 | K37: _
A38: 輸送用機器 | F38: PR01'PRCG20_2200150016 | G38: 国内 | H38: 飲食料品 | I38: 食料品 | J38: めん類 | K38: 即席めん
A39: その他工業製品 | F39: PR01'PRCG20_2200150017 | G39: 国内 | H39: 飲食料品 | I39: 食料品 | J39: めん類 | K39: 和風めん
A40: 農林水産物 | F40: PR01'PRCG20_2200150018 | G40: 国内 | H40: 飲食料品 | I40: 食料品 | J40: めん類 | K40: 中華めん
A41: 鉱産物 | F41: PR01'PRCG20_2200150019 | G41: 国内 | H41: 飲食料品 | I41: 食料品 | J41: めん類 | K41: 洋風めん
A42: 電力・都市ガス・水道 | F42: PR01'PRCG20_2200140008 | G42: 国内 | H42: 飲食料品 | I42: 食料品 | J42: パン類 | K42: _
A43: スクラップ類 | F43: PR01'PRCG20_2200150020 | G43: 国内 | H43: 飲食料品 | I43: 食料品 | J43: パン類 | K43: 食パン
F44: PR01'PRCG20_2200150021 | G44: 国内 | H44: 飲食料品 | I44: 食料品 | J44: パン類 | K44: 菓子パン
A45: 輸入 | F45: PR01'PRCG20_2200150022 | G45: 国内 | H45: 飲食料品 | I45: 食料品 | J45: パン類 | K45: 調理パン・サンドイッチ
A46: 飲食料品・食料用農水産物 | F46: PR01'PRCG20_2200140009 | G46: 国内 | H46: 飲食料品 | I46: 食料品 | J46: 菓子類 | K46: _
A47: 繊維品 | F47: PR01'PRCG20_2200150023 | G47: 国内 | H47: 飲食料品 | I47: 食料品 | J47: 菓子類 | K47: 洋生菓子
A48: 金属・同製品 | F48: PR01'PRCG20_2200150024 | G48: 国内 | H48: 飲食料品 | I48: 食料品 | J48: 菓子類 | K48: 和生菓子
A49: 木材・木製品・林産物 | F49: PR01'PRCG20_2200150025 | G49: 国内 | H49: 飲食料品 | I49: 食料品 | J49: 菓子類 | K49: ビスケット類
A50: 石油・石炭・天然ガス | F50: PR01'PRCG20_2200150026 | G50: 国内 | H50: 飲食料品 | I50: 食料品 | J50: 菓子類 | K50: 米菓
A51: 化学製品 | F51: PR01'PRCG20_2200150027 | G51: 国内 | H51: 飲食料品 | I51: 食料品 | J51: 菓子類 | K51: キャンデー
A52: はん用・生産用・業務用機器 | F52: PR01'PRCG20_2200150028 | G52: 国内 | H52: 飲食料品 | I52: 食料品 | J52: 菓子類 | K52: チョコレート
A53: 電気・電子機器 | F53: PR01'PRCG20_2200150029 | G53: 国内 | H53: 飲食料品 | I53: 食料品 | J53: 菓子類 | K53: チューインガム
A54: 輸送用機器 | F54: PR01'PRCG20_2200150030 | G54: 国内 | H54: 飲食料品 | I54: 食料品 | J54: 菓子類 | K54: スナック菓子
A55: その他産品・製品 | F55: PR01'PRCG20_2200150031 | G55: 国内 | H55: 飲食料品 | I55: 食料品 | J55: 菓子類 | K55: 氷菓
F56: PR01'PRCG20_2200150032 | G56: 国内 | H56: 飲食料品 | I56: 食料品 | J56: 菓子類 | K56: 豆菓子
A57: サービス | F57: PR01'PRCG20_2200150033 | G57: 国内 | H57: 飲食料品 | I57: 食料品 | J57: 菓子類 | K57: シリアル
A58: 金融 | F58: PR01'PRCG20_2200140010 | G58: 国内 | H58: 飲食料品 | I58: 食料品 | J58: 農産保存食料品 | K58: _
A59: 保険 | F59: PR01'PRCG20_2200150034 | G59: 国内 | H59: 飲食料品 | I59: 食料品 | J59: 農産保存食料品 | K59: 果実・野菜缶詰
A60: 不動産仲介・管理 | F60: PR01'PRCG20_2200150035 | G60: 国内 | H60: 飲食料品 | I60: 食料品 | J60: 農産保存食料品 | K60: 漬物
A61: 不動産賃貸 | F61: PR01'PRCG20_2200140011 | G61: 国内 | H61: 飲食料品 | I61: 食料品 | J61: 砂糖 | K61: _
A62: 旅客輸送 | F62: PR01'PRCG20_2200150036 | G62: 国内 | H62: 飲食料品 | I62: 食料品 | J62: 砂糖 | K62: 砂糖
A63: 陸上貨物輸送 | F63: PR01'PRCG20_2200140012 | G63: 国内 | H63: 飲食料品 | I63: 食料品 | J63: でん粉 | K63: _
A64: 海上貨物輸送 | F64: PR01'PRCG20_2200150037 | G64: 国内 | H64: 飲食料品 | I64: 食料品 | J64: でん粉 | K64: でん粉
A65: 航空貨物輸送 | F65: PR01'PRCG20_2200140013 | G65: 国内 | H65: 飲食料品 | I65: 食料品 | J65: ぶどう糖・水あめ・異性化糖 | K65: _
A66: 倉庫・運輸附帯サービス | F66: PR01'PRCG20_2200150038 | G66: 国内 | H66: 飲食料品 | I66: 食料品 | J66: ぶどう糖・水あめ・異性化糖 | K66: ぶどう糖・水あめ
A67: 郵便・親書便 | F67: PR01'PRCG20_2200150039 | G67: 国内 | H67: 飲食料品 | I67: 食料品 | J67: ぶどう糖・水あめ・異性化糖 | K67: 異性化糖
A68: 通信 | F68: PR01'PRCG20_2200140014 | G68: 国内 | H68: 飲食料品 | I68: 食料品 | J68: 動植物油脂 | K68: _
A69: 放送 | F69: PR01'PRCG20_2200150040 | G69: 国内 | H69: 飲食料品 | I69: 食料品 | J69: 動植物油脂 | K69: 植物油脂（除混合植物油脂）
A70: 情報サービス | F70: PR01'PRCG20_2200150041 | G70: 国内 | H70: 飲食料品 | I70: 食料品 | J70: 動植物油脂 | K70: 混合植物油脂
A71: インターネット附随サービス | F71: PR01'PRCG20_2200150042 | G71: 国内 | H71: 飲食料品 | I71: 食料品 | J71: 動植物油脂 | K71: 植物油搾かす
A72: 映像・文字情報制作 | F72: PR01'PRCG20_2200150043 | G72: 国内 | H72: 飲食料品 | I72: 食料品 | J72: 動植物油脂 | K72: ショートニング
A73: リース | F73: PR01'PRCG20_2200150044 | G73: 国内 | H73: 飲食料品 | I73: 食料品 | J73: 動植物油脂 | K73: マーガリン
A74: レンタル | F74: PR01'PRCG20_2200140015 | G74: 国内 | H74: 飲食料品 | I74: 食料品 | J74: 調味料 | K74: _
A75: 広告 | F75: PR01'PRCG20_2200150045 | G75: 国内 | H75: 飲食料品 | I75: 食料品 | J75: 調味料 | K75: みそ
A76: 下水道・廃棄物処理 | F76: PR01'PRCG20_2200150046 | G76: 国内 | H76: 飲食料品 | I76: 食料品 | J76: 調味料 | K76: しょう油
A77: 自動車整備・機械修理 | F77: PR01'PRCG20_2200150047 | G77: 国内 | H77: 飲食料品 | I77: 食料品 | J77: 調味料 | K77: ソース
A78: 専門サービス | F78: PR01'PRCG20_2200150048 | G78: 国内 | H78: 飲食料品 | I78: 食料品 | J78: 調味料 | K78: 食酢
A79: 技術サービス | F79: PR01'PRCG20_2200150049 | G79: 国内 | H79: 飲食料品 | I79: 食料品 | J79: 調味料 | K79: 香辛料
A80: 職業紹介・労働者派遣サービス | F80: PR01'PRCG20_2200150050 | G80: 国内 | H80: 飲食料品 | I80: 食料品 | J80: 調味料 | K80: ルウ
A81: その他諸サービス | F81: PR01'PRCG20_2200150051 | G81: 国内 | H81: 飲食料品 | I81: 食料品 | J81: 調味料 | K81: うま味・風味調味料
F82: PR01'PRCG20_2200150052 | G82: 国内 | H82: 飲食料品 | I82: 食料品 | J82: 調味料 | K82: たれ・めんつゆ
F83: PR01'PRCG20_2200140016 | G83: 国内 | H83: 飲食料品 | I83: 食料品 | J83: 冷凍調理食品 | K83: _
F84: PR01'PRCG20_2200150053 | G84: 国内 | H84: 飲食料品 | I84: 食料品 | J84: 冷凍調理食品 | K84: 冷凍調理食品
F85: PR01'PRCG20_2200140017 | G85: 国内 | H85: 飲食料品 | I85: 食料品 | J85: レトルト食品 | K85: _
F86: PR01'PRCG20_2200150054 | G86: 国内 | H86: 飲食料品 | I86: 食料品 | J86: レトルト食品 | K86: レトルト食品
F87: PR01'PRCG20_2200140018 | G87: 国内 | H87: 飲食料品 | I87: 食料品 | J87: そう菜・すし・弁当 | K87: _
F88: PR01'PRCG20_2200150055 | G88: 国内 | H88: 飲食料品 | I88: 食料品 | J88: そう菜・すし・弁当 | K88: そう菜
F89: PR01'PRCG20_2200150056 | G89: 国内 | H89: 飲食料品 | I89: 食料品 | J89: そう菜・すし・弁当 | K89: すし・弁当・おにぎり
F90: PR01'PRCG20_2200140019 | G90: 国内 | H90: 飲食料品 | I90: 食料品 | J90: その他の食料品 | K90: _
F91: PR01'PRCG20_2200150057 | G91: 国内 | H91: 飲食料品 | I91: 食料品 | J91: その他の食料品 | K91: 豆腐・しみ豆腐・油揚げ類
F92: PR01'PRCG20_2200150058 | G92: 国内 | H92: 飲食料品 | I92: 食料品 | J92: その他の食料品 | K92: あん
F93: PR01'PRCG20_2200150059 | G93: 国内 | H93: 飲食料品 | I93: 食料品 | J93: その他の食料品 | K93: サプリメント
F94: PR01'PRCG20_2200150060 | G94: 国内 | H94: 飲食料品 | I94: 食料品 | J94: その他の食料品 | K94: こんにゃく
F95: PR01'PRCG20_2200150061 | G95: 国内 | H95: 飲食料品 | I95: 食料品 | J95: その他の食料品 | K95: 即席みそ汁・インスタントスープ
F96: PR01'PRCG20_2200150062 | G96: 国内 | H96: 飲食料品 | I96: 食料品 | J96: その他の食料品 | K96: 茶づけ・ふりかけ
F97: PR01'PRCG20_2200150063 | G97: 国内 | H97: 飲食料品 | I97: 食料品 | J97: その他の食料品 | K97: 納豆
F98: PR01'PRCG20_2200150064 | G98: 国内 | H98: 飲食料品 | I98: 食料品 | J98: その他の食料品 | K98: パン粉
F99: PR01'PRCG20_2200130002 | G99: 国内 | H99: 飲食料品 | I99: 飲料 | J99: _ | K99: _
F100: PR01'PRCG20_2200140020 | G100: 国内 | H100: 飲食料品 | I100: 飲料 | J100: 清酒 | K100: _
F101: PR01'PRCG20_2200150065 | G101: 国内 | H101: 飲食料品 | I101: 飲料 | J101: 清酒 | K101: 清酒
F102: PR01'PRCG20_2200140021 | G102: 国内 | H102: 飲食料品 | I102: 飲料 | J102: ビール類 | K102: _
F103: PR01'PRCG20_2200150066 | G103: 国内 | H103: 飲食料品 | I103: 飲料 | J103: ビール類 | K103: ビール
F104: PR01'PRCG20_2200150067 | G104: 国内 | H104: 飲食料品 | I104: 飲料 | J104: ビール類 | K104: 発泡酒・新ジャンル
F105: PR01'PRCG20_2200140022 | G105: 国内 | H105: 飲食料品 | I105: 飲料 | J105: ウイスキー類 | K105: _
F106: PR01'PRCG20_2200150068 | G106: 国内 | H106: 飲食料品 | I106: 飲料 | J106: ウイスキー類 | K106: ウイスキー
F107: PR01'PRCG20_2200140023 | G107: 国内 | H107: 飲食料品 | I107: 飲料 | J107: その他の酒類 | K107: _
F108: PR01'PRCG20_2200150069 | G108: 国内 | H108: 飲食料品 | I108: 飲料 | J108: その他の酒類 | K108: 果実酒・チューハイ
F109: PR01'PRCG20_2200150070 | G109: 国内 | H109: 飲食料品 | I109: 飲料 | J109: その他の酒類 | K109: 焼ちゅう
F110: PR01'PRCG20_2200140024 | G110: 国内 | H110: 飲食料品 | I110: 飲料 | J110: 茶・コーヒー | K110: _
F111: PR01'PRCG20_2200150071 | G111: 国内 | H111: 飲食料品 | I111: 飲料 | J111: 茶・コーヒー | K111: 荒茶
F112: PR01'PRCG20_2200150072 | G112: 国内 | H112: 飲食料品 | I112: 飲料 | J112: 茶・コーヒー | K112: 緑茶
F113: PR01'PRCG20_2200150073 | G113: 国内 | H113: 飲食料品 | I113: 飲料 | J113: 茶・コーヒー | K113: コーヒー
F114: PR01'PRCG20_2200140025 | G114: 国内 | H114: 飲食料品 | I114: 飲料 | J114: 清涼飲料 | K114: _
F115: PR01'PRCG20_2200150074 | G115: 国内 | H115: 飲食料品 | I115: 飲料 | J115: 清涼飲料 | K115: 炭酸飲料
F116: PR01'PRCG20_2200150075 | G116: 国内 | H116: 飲食料品 | I116: 飲料 | J116: 清涼飲料 | K116: ジュース
F117: PR01'PRCG20_2200150076 | G117: 国内 | H117: 飲食料品 | I117: 飲料 | J117: 清涼飲料 | K117: コーヒー飲料
F118: PR01'PRCG20_2200150077 | G118: 国内 | H118: 飲食料品 | I118: 飲料 | J118: 清涼飲料 | K118: 茶飲料
F119: PR01'PRCG20_2200150078 | G119: 国内 | H119: 飲食料品 | I119: 飲料 | J119: 清涼飲料 | K119: ミネラルウォーター
F120: PR01'PRCG20_2200150079 | G120: 国内 | H120: 飲食料品 | I120: 飲料 | J120: 清涼飲料 | K120: スポーツドリンク
F121: PR01'PRCG20_2200150080 | G121: 国内 | H121: 飲食料品 | I121: 飲料 | J121: 清涼飲料 | K121: 豆乳飲料
F122: PR01'PRCG20_2200150081 | G122: 国内 | H122: 飲食料品 | I122: 飲料 | J122: 清涼飲料 | K122: ノンアルコール飲料
F123: PR01'PRCG20_2200140026 | G123: 国内 | H123: 飲食料品 | I123: 飲料 | J123: 製氷 | K123: _
F124: PR01'PRCG20_2200150082 | G124: 国内 | H124: 飲食料品 | I124: 飲料 | J124: 製氷 | K124: 人造氷
F125: PR01'PRCG20_2200130003 | G125: 国内 | H125: 飲食料品 | I125: 飼料・有機質肥料 | J125: _ | K125: _
F126: PR01'PRCG20_2200140027 | G126: 国内 | H126: 飲食料品 | I126: 飼料・有機質肥料 | J126: 飼料 | K126: _
F127: PR01'PRCG20_2200150083 | G127: 国内 | H127: 飲食料品 | I127: 飼料・有機質肥料 | J127: 飼料 | K127: 配合飼料
F128: PR01'PRCG20_2200150084 | G128: 国内 | H128: 飲食料品 | I128: 飼料・有機質肥料 | J128: 飼料 | K128: ペットフード
F129: PR01'PRCG20_2200130004 | G129: 国内 | H129: 飲食料品 | I129: たばこ | J129: _ | K129: _
F130: PR01'PRCG20_2200140028 | G130: 国内 | H130: 飲食料品 | I130: たばこ | J130: たばこ | K130: _
F131: PR01'PRCG20_2200150085 | G131: 国内 | H131: 飲食料品 | I131: たばこ | J131: たばこ | K131: たばこ
F132: PR01'PRCG20_2200220001 | G132: 国内 | H132: 繊維製品 | I132: _ | J132: _ | K132: _
F133: PR01'PRCG20_2200230001 | G133: 国内 | H133: 繊維製品 | I133: 繊維工業製品 | J133: _ | K133: _
F134: PR01'PRCG20_2200240001 | G134: 国内 | H134: 繊維製品 | I134: 繊維工業製品 | J134: 紡績糸 | K134: _
F135: PR01'PRCG20_2200250001 | G135: 国内 | H135: 繊維製品 | I135: 繊維工業製品 | J135: 紡績糸 | K135: 紡績糸
F136: PR01'PRCG20_2200240002 | G136: 国内 | H136: 繊維製品 | I136: 繊維工業製品 | J136: 織物 | K136: _
F137: PR01'PRCG20_2200250002 | G137: 国内 | H137: 繊維製品 | I137: 繊維工業製品 | J137: 織物 | K137: 織物
F138: PR01'PRCG20_2200240003 | G138: 国内 | H138: 繊維製品 | I138: 繊維工業製品 | J138: その他の繊維工業製品 | K138: _
F139: PR01'PRCG20_2200250003 | G139: 国内 | H139: 繊維製品 | I139: 繊維工業製品 | J139: その他の繊維工業製品 | K139: フェルト生地・不織布
F140: PR01'PRCG20_2200230002 | G140: 国内 | H140: 繊維製品 | I140: 衣服・その他繊維既製品 | J140: _ | K140: _
F141: PR01'PRCG20_2200240004 | G141: 国内 | H141: 繊維製品 | I141: 衣服・その他繊維既製品 | J141: 織物製・ニット製衣服 | K141: _
F142: PR01'PRCG20_2200250004 | G142: 国内 | H142: 繊維製品 | I142: 衣服・その他繊維既製品 | J142: 織物製・ニット製衣服 | K142: 外衣・シャツ
F143: PR01'PRCG20_2200250005 | G143: 国内 | H143: 繊維製品 | I143: 衣服・その他繊維既製品 | J143: 織物製・ニット製衣服 | K143: 下着類
F144: PR01'PRCG20_2200240005 | G144: 国内 | H144: 繊維製品 | I144: 衣服・その他繊維既製品 | J144: その他の衣服・身の回り品 | K144: _
F145: PR01'PRCG20_2200250006 | G145: 国内 | H145: 繊維製品 | I145: 衣服・その他繊維既製品 | J145: その他の衣服・身の回り品 | K145: 繊維製身の回り品
F146: PR01'PRCG20_2200240006 | G146: 国内 | H146: 繊維製品 | I146: 衣服・その他繊維既製品 | J146: その他の繊維既製品 | K146: _
F147: PR01'PRCG20_2200250007 | G147: 国内 | H147: 繊維製品 | I147: 衣服・その他繊維既製品 | J147: その他の繊維既製品 | K147: 寝具
F148: PR01'PRCG20_2200250008 | G148: 国内 | H148: 繊維製品 | I148: 衣服・その他繊維既製品 | J148: その他の繊維既製品 | K148: 敷物
F149: PR01'PRCG20_2200250009 | G149: 国内 | H149: 繊維製品 | I149: 衣服・その他繊維既製品 | J149: その他の繊維既製品 | K149: 繊維製帆布
F150: PR01'PRCG20_2200250010 | G150: 国内 | H150: 繊維製品 | I150: 衣服・その他繊維既製品 | J150: その他の繊維既製品 | K150: タオル
F151: PR01'PRCG20_2200250011 | G151: 国内 | H151: 繊維製品 | I151: 衣服・その他繊維既製品 | J151: その他の繊維既製品 | K151: 衛生材料
F152: PR01'PRCG20_2200320001 | G152: 国内 | H152: 木材・木製品 | I152: _ | J152: _ | K152: _
F153: PR01'PRCG20_2200330001 | G153: 国内 | H153: 木材・木製品 | I153: 木材・木製品 | J153: _ | K153: _
F154: PR01'PRCG20_2200340001 | G154: 国内 | H154: 木材・木製品 | I154: 木材・木製品 | J154: 製材 | K154: _
F155: PR01'PRCG20_2200350001 | G155: 国内 | H155: 木材・木製品 | I155: 木材・木製品 | J155: 製材 | K155: 板
F156: PR01'PRCG20_2200350002 | G156: 国内 | H156: 木材・木製品 | I156: 木材・木製品 | J156: 製材 | K156: ひき割
F157: PR01'PRCG20_2200350003 | G157: 国内 | H157: 木材・木製品 | I157: 木材・木製品 | J157: 製材 | K157: ひき角
F158: PR01'PRCG20_2200350004 | G158: 国内 | H158: 木材・木製品 | I158: 木材・木製品 | J158: 製材 | K158: 梱包用材
F159: PR01'PRCG20_2200340002 | G159: 国内 | H159: 木材・木製品 | I159: 木材・木製品 | J159: 合板・集成材 | K159: _
F160: PR01'PRCG20_2200350005 | G160: 国内 | H160: 木材・木製品 | I160: 木材・木製品 | J160: 合板・集成材 | K160: 普通合板
F161: PR01'PRCG20_2200350006 | G161: 国内 | H161: 木材・木製品 | I161: 木材・木製品 | J161: 合板・集成材 | K161: 特殊合板
F162: PR01'PRCG20_2200350007 | G162: 国内 | H162: 木材・木製品 | I162: 木材・木製品 | J162: 合板・集成材 | K162: 集成材
F163: PR01'PRCG20_2200340003 | G163: 国内 | H163: 木材・木製品 | I163: 木材・木製品 | J163: 木材チップ | K163: _
F164: PR01'PRCG20_2200350008 | G164: 国内 | H164: 木材・木製品 | I164: 木材・木製品 | J164: 木材チップ | K164: 木材チップ
F165: PR01'PRCG20_2200340004 | G165: 国内 | H165: 木材・木製品 | I165: 木材・木製品 | J165: その他の木製品 | K165: _
F166: PR01'PRCG20_2200350009 | G166: 国内 | H166: 木材・木製品 | I166: 木材・木製品 | J166: その他の木製品 | K166: 造作材
F167: PR01'PRCG20_2200350010 | G167: 国内 | H167: 木材・木製品 | I167: 木材・木製品 | J167: その他の木製品 | K167: 住宅建築用木製組立材料
F168: PR01'PRCG20_2200350011 | G168: 国内 | H168: 木材・木製品 | I168: 木材・木製品 | J168: その他の木製品 | K168: 床板
F169: PR01'PRCG20_2200350012 | G169: 国内 | H169: 木材・木製品 | I169: 木材・木製品 | J169: その他の木製品 | K169: 木箱
F170: PR01'PRCG20_2200420001 | G170: 国内 | H170: パルプ・紙・同製品 | I170: _ | J170: _ | K170: _
F171: PR01'PRCG20_2200430001 | G171: 国内 | H171: パルプ・紙・同製品 | I171: パルプ・紙・板紙・加工紙 | J171: _ | K171: _
F172: PR01'PRCG20_2200440001 | G172: 国内 | H172: パルプ・紙・同製品 | I172: パルプ・紙・板紙・加工紙 | J172: 洋紙・和紙 | K172: _
F173: PR01'PRCG20_2200450001 | G173: 国内 | H173: パルプ・紙・同製品 | I173: パルプ・紙・板紙・加工紙 | J173: 洋紙・和紙 | K173: 新聞用紙
F174: PR01'PRCG20_2200450002 | G174: 国内 | H174: パルプ・紙・同製品 | I174: パルプ・紙・板紙・加工紙 | J174: 洋紙・和紙 | K174: 非塗工印刷用紙
F175: PR01'PRCG20_2200450003 | G175: 国内 | H175: パルプ・紙・同製品 | I175: パルプ・紙・板紙・加工紙 | J175: 洋紙・和紙 | K175: 塗工印刷用紙
F176: PR01'PRCG20_2200450004 | G176: 国内 | H176: パルプ・紙・同製品 | I176: パルプ・紙・板紙・加工紙 | J176: 洋紙・和紙 | K176: 情報用紙
F177: PR01'PRCG20_2200450005 | G177: 国内 | H177: パルプ・紙・同製品 | I177: パルプ・紙・板紙・加工紙 | J177: 洋紙・和紙 | K177: クラフト紙
F178: PR01'PRCG20_2200450006 | G178: 国内 | H178: パルプ・紙・同製品 | I178: パルプ・紙・板紙・加工紙 | J178: 洋紙・和紙 | K178: 加工原紙
F179: PR01'PRCG20_2200440002 | G179: 国内 | H179: パルプ・紙・同製品 | I179: パルプ・紙・板紙・加工紙 | J179: 板紙 | K179: _
F180: PR01'PRCG20_2200450007 | G180: 国内 | H180: パルプ・紙・同製品 | I180: パルプ・紙・板紙・加工紙 | J180: 板紙 | K180: ライナー
F181: PR01'PRCG20_2200450008 | G181: 国内 | H181: パルプ・紙・同製品 | I181: パルプ・紙・板紙・加工紙 | J181: 板紙 | K181: 中しん原紙
F182: PR01'PRCG20_2200450009 | G182: 国内 | H182: パルプ・紙・同製品 | I182: パルプ・紙・板紙・加工紙 | J182: 板紙 | K182: 白板紙
F183: PR01'PRCG20_2200440003 | G183: 国内 | H183: パルプ・紙・同製品 | I183: パルプ・紙・板紙・加工紙 | J183: 段ボール | K183: _
F184: PR01'PRCG20_2200450010 | G184: 国内 | H184: パルプ・紙・同製品 | I184: パルプ・紙・板紙・加工紙 | J184: 段ボール | K184: 段ボール
F185: PR01'PRCG20_2200440004 | G185: 国内 | H185: パルプ・紙・同製品 | I185: パルプ・紙・板紙・加工紙 | J185: 塗工紙・建設用加工紙 | K185: _
F186: PR01'PRCG20_2200450011 | G186: 国内 | H186: パルプ・紙・同製品 | I186: パルプ・紙・板紙・加工紙 | J186: 塗工紙・建設用加工紙 | K186: アスファルト塗工紙
F187: PR01'PRCG20_2200450012 | G187: 国内 | H187: パルプ・紙・同製品 | I187: パルプ・紙・板紙・加工紙 | J187: 塗工紙・建設用加工紙 | K187: ノーカーボン紙・粘着紙
F188: PR01'PRCG20_2200450013 | G188: 国内 | H188: パルプ・紙・同製品 | I188: パルプ・紙・板紙・加工紙 | J188: 塗工紙・建設用加工紙 | K188: 壁紙・ふすま紙
F189: PR01'PRCG20_2200430002 | G189: 国内 | H189: パルプ・紙・同製品 | I189: 紙加工品 | J189: _ | K189: _
F190: PR01'PRCG20_2200440005 | G190: 国内 | H190: パルプ・紙・同製品 | I190: 紙加工品 | J190: 段ボール箱 | K190: _
F191: PR01'PRCG20_2200450014 | G191: 国内 | H191: パルプ・紙・同製品 | I191: 紙加工品 | J191: 段ボール箱 | K191: 段ボール箱
F192: PR01'PRCG20_2200440006 | G192: 国内 | H192: パルプ・紙・同製品 | I192: 紙加工品 | J192: その他の紙製容器 | K192: _
F193: PR01'PRCG20_2200450015 | G193: 国内 | H193: パルプ・紙・同製品 | I193: 紙加工品 | J193: その他の紙製容器 | K193: 重包装紙袋
F194: PR01'PRCG20_2200450016 | G194: 国内 | H194: パルプ・紙・同製品 | I194: 紙加工品 | J194: その他の紙製容器 | K194: 軽包装紙袋
F195: PR01'PRCG20_2200450017 | G195: 国内 | H195: パルプ・紙・同製品 | I195: 紙加工品 | J195: その他の紙製容器 | K195: 紙箱
F196: PR01'PRCG20_2200440007 | G196: 国内 | H196: パルプ・紙・同製品 | I196: 紙加工品 | J196: 紙製衛生材料・用品 | K196: _
F197: PR01'PRCG20_2200450018 | G197: 国内 | H197: パルプ・紙・同製品 | I197: 紙加工品 | J197: 紙製衛生材料・用品 | K197: 大人用紙おむつ
F198: PR01'PRCG20_2200450019 | G198: 国内 | H198: パルプ・紙・同製品 | I198: 紙加工品 | J198: 紙製衛生材料・用品 | K198: 子供用紙おむつ
F199: PR01'PRCG20_2200450020 | G199: 国内 | H199: パルプ・紙・同製品 | I199: 紙加工品 | J199: 紙製衛生材料・用品 | K199: ティッシュペーパー
F200: PR01'PRCG20_2200450021 | G200: 国内 | H200: パルプ・紙・同製品 | I200: 紙加工品 | J200: 紙製衛生材料・用品 | K200: トイレットペーパー
F201: PR01'PRCG20_2200450022 | G201: 国内 | H201: パルプ・紙・同製品 | I201: 紙加工品 | J201: 紙製衛生材料・用品 | K201: 生理用品
F202: PR01'PRCG20_2200440008 | G202: 国内 | H202: パルプ・紙・同製品 | I202: 紙加工品 | J202: その他のパルプ・紙・紙加工品 | K202: _
F203: PR01'PRCG20_2200450023 | G203: 国内 | H203: パルプ・紙・同製品 | I203: 紙加工品 | J203: その他のパルプ・紙・紙加工品 | K203: 封筒
F204: PR01'PRCG20_2200450024 | G204: 国内 | H204: パルプ・紙・同製品 | I204: 紙加工品 | J204: その他のパルプ・紙・紙加工品 | K204: 日用紙製品
... 1231 more rows

Sheet 参考業種設定シート
A1: 建設業 | C1: 食料品製造業 | E1: 繊維工業 | G1: 印刷・同関連業 | I1: プラスチック製品製造 | K1: 金属製品製造業 | M1: 生産用機械器具製造業 | O1: 輸送用機械器具製造業 | Q1: 道路貨物運送業 | S1: 繊維・衣服等卸売業 | U1: 飲食料品卸売業 | W1: 建築材料等卸売業 | Y1: 機械器具卸売業
A2: データコード | B2: 系列名称 | C2: データコード | D2: 系列名称 | E2: データコード | F2: 系列名称 | G2: データコード | H2: 系列名称 | I2: データコード | J2: 系列名称 | K2: データコード | L2: 系列名称 | M2: データコード | N2: 系列名称 | O2: データコード | P2: 系列名称 | Q2: データコード | R2: 系列名称 | S2: データコード | T2: 系列名称 | U2: データコード | V2: 系列名称 | W2: データコード | X2: 系列名称 | Y2: データコード | Z2: 系列名称
A3: PR01'PRCG20_2200650005 | B3: 品目/____軽油 | C3: PR01'PRCG20_2200150015 | D3: 品目/____小麦粉 | E3: PR01'PRCG20_2200250001 | F3: 品目/____紡績糸 | G3: PR01'PRCG20_2200450001 | H3: 品目/____新聞用紙 | I3: PR01'PRCG20_2200550021 | J3: 品目/____熱硬化性樹脂 | K3: PR01'PRCG20_2200940002 | L3: 商品群/___熱間圧延鋼材 | M3: PR01'PRCG20_2200740001 | N3: 商品群/___プラスチック製品 | O3: PR01'PRCG20_2200750009 | P3: 品目/____輸送機械用プラスチック製品 | Q3: PR01'PRCG20_2200650001 | R3: 品目/____ガソリン | S3: PR01'PRCG20_2200250003 | T3: 品目/____フェルト生地・不織布 | U3: PR01'PRCG20_2200140001 | V3: 商品群/___酪農品 | W3: PR01'PRCG20_2200820001 | X3: 類別/_窯業・土石製品 | Y3: PR01'PRCG20_2201330001 | Z3: 小類別/__生産用機器
A4: PR01'PRCG20_2200850010 | B4: 品目/____生コンクリート | C4: PR01'PRCG20_2200150036 | D4: 品目/____砂糖 | E4: PR01'PRCG20_2200250002 | F4: 品目/____織物 | G4: PR01'PRCG20_2200450002 | H4: 品目/____非塗工印刷用紙 | I4: PR01'PRCG20_2200550022 | J4: 品目/____ポリエチレン | K4: PR01'PRCG20_2200940004 | L4: 商品群/___冷間仕上鋼材 | M4: PR01'PRCG20_2200830001 | N4: 小類別/__ガラス・ガラス製品 | O4: PR01'PRCG20_2200840001 | P4: 商品群/___板ガラス・安全ガラス | Q4: PR01'PRCG20_2200650005 | R4: 品目/____軽油 | S4: PR01'PRCG20_2200250004 | T4: 品目/____外衣・シャツ | U4: PR01'PRCG20_2200140008 | V4: 商品群/___パン類 | W4: PR01'PRCG20_2201120001 | X4: 類別/_金属製品 | Y4: PR01'PRCG20_2201430001 | Z4: 小類別/__業務用機器
A5: PR01'PRCG20_2200950005 | B5: 品目/____厚中板 | C5: PR01'PRCG20_2200140014 | D5: 商品群/___動植物油脂 | E5: PR01'PRCG20_2200250003 | F5: 品目/____フェルト生地・不織布 | G5: PR01'PRCG20_2200450003 | H5: 品目/____塗工印刷用紙 | I5: PR01'PRCG20_2200550023 | J5: 品目/____ポリスチレン | K5: PR01'PRCG20_2200940005 | L5: 商品群/___めっき鋼材 | M5: PR01'PRCG20_2200930002 | N5: 小類別/__鋼材 | O5: PR01'PRCG20_2200920001 | P5: 類別/_鉄鋼 | Q5: PR01'PRCG20_2201950014 | R5: 品目/____自動車タイヤ | S5: PR01'PRCG20_2200250005 | T5: 品目/____下着類 | U5: PR01'PRCG20_2200140009 | V5: 商品群/___菓子類 | W5: PR01'PRCG20_2200740001 | X5: 商品群/___プラスチック製品 | Y5: PR01'PRCG20_2201630002 | Z5: 小類別/__民生用電気機器
A6: PR01'PRCG20_2200940003 | B6: 商品群/___鋼管 | C6: PR01'PRCG20_2200140015 | D6: 商品群/___調味料 | E6: PR01'PRCG20_2200550019 | F6: 品目/____合成染料 | G6: PR01'PRCG20_2200450004 | H6: 品目/____情報用紙 | I6: PR01'PRCG20_2200550024 | J6: 品目/____ポリプロピレン | K6: PR01'PRCG20_2200940006 | L6: 商品群/___鋳鍛鋼・鋳鉄品・鍛工品 | M6: PR01'PRCG20_2201040005 | N6: 商品群/___電線・ケーブル | O6: PR01'PRCG20_2201020001 | P6: 類別/_非鉄金属 | Q6: PR02'PRCS20_5200250003 | R6: 品目/___自動車保険（任意） | S6: PR01'PRCG20_2200250006 | T6: 品目/____繊維製身の回り品 | U6: PR01'PRCG20_2200140018 | V6: 商品群/___そう菜・すし・弁当 | W6: PR01'PRCG20_2200520001 | X6: 類別/_化学製品 | Y6: PR01'PRCG20_2201730001 | Z6: 小類別/__通信・映像・音響機器
A7: PR01'PRCG20_2200950019 | B7: 品目/____亜鉛めっき鋼板 | C7: PR01'PRCG20_2202050005 | D7: 品目/____原乳 | E7: PR01'PRCG20_2200550026 | F7: 品目/____ポリアミド樹脂 | G7: PR01'PRCG20_2200450005 | H7: 品目/____クラフト紙 | I7: PR01'PRCG20_2200550025 | J7: 品目/____塩化ビニル樹脂 | K7: PR01'PRCG20_2200950024 | L7: 品目/____鉄鋼シャースリット | M7: PR01'PRCG20_2201140004 | N7: 商品群/___ボルト・ナット・リベット・スプリング | O7: PR01'PRCG20_2201140004 | P7: 商品群/___ボルト・ナット・リベット・スプリング | Q7: PR02'PRCS20_5200930001 | R7: 小類別/__倉庫 | S7: PR01'PRCG20_2200250007 | T7: 品目/____寝具 | U7: PR01'PRCG20_2200140025 | V7: 商品群/___清涼飲料 | W7: PR01'PRCG20_2200620001 | X7: 類別/_石油・石炭製品 | Y7: PR01'PRCG20_2201730002 | Z7: 小類別/__電子計算機・同附属装置
A8: PR01'PRCG20_2201050008 | B8: 品目/____プラスチック被覆銅線 | C8: PR01'PRCG20_2202050006 | D8: 品目/____鶏卵 | E8: PR01'PRCG20_2200550027 | F8: 品目/____飽和ポリエステル樹脂 | G8: PR01'PRCG20_2200450006 | H8: 品目/____加工原紙 | I8: PR01'PRCG20_2200550027 | J8: 品目/____飽和ポリエステル樹脂 | K8: PR01'PRCG20_2201040005 | L8: 商品群/___電線・ケーブル | M8: PR01'PRCG20_2201350027 | N8: 品目/____金型 | O8: PR01'PRCG20_2201350027 | P8: 品目/____金型 | Q8: PR02'PRCS20_5201750009 | R8: 品目/___自動車リース | S8: PR01'PRCG20_2200250008 | T8: 品目/____敷物 | U8: PR01'PRCG20_2202040002 | V8: 商品群/___精穀 | W8: PR01'PRCG20_2200920001 | X8: 類別/_鉄鋼 | Y8: PR01'PRCG20_2201830001 | Z8: 小類別/__乗用車
A9: PR01'PRCG20_2202350002 | B9: 品目/____鉄屑 | C9: PR01'PRCG20_2202040007 | D9: 商品群/___食肉 | E9: PR01'PRCG20_2200550032 | F9: 品目/____化学繊維 | G9: PR01'PRCG20_2200550044 | H9: 品目/____印刷インキ | I9: PR01'PRCG20_2200650002 | J9: 品目/____ナフサ | K9: PR01'PRCG20_2201350027 | L9: 品目/____金型 | M9: PR01'PRCG20_2201520001 | N9: 類別/_電子部品・デバイス | O9: PR01'PRCG20_2201930003 | P9: 小類別/__ゴム製品 | Q9: PR02'PRCS20_5202130001 | R9: 小類別/__自動車整備 | S9: PR01'PRCG20_2201950023 | T9: 品目/____革製履物 | U9: PR01'PRCG20_2202040007 | V9: 商品群/___食肉 | W9: PR01'PRCG20_2201020001 | X9: 類別/_非鉄金属 | Y9: PR01'PRCG20_2201840002 | Z9: 商品群/___トラック・バス・その他の自動車
A10: PR01'PRCG20_2202250001 | B10: 品目/____事業用電力 | C10: PR01'PRCG20_2202250001 | D10: 品目/____事業用電力 | E10: PR01'PRCG20_2202250001 | F10: 品目/____事業用電力 | G10: PR01'PRCG20_2202250001 | H10: 品目/____事業用電力 | I10: PR01'PRCG20_2202250001 | J10: 品目/____事業用電力 | K10: PR01'PRCG20_2202250001 | L10: 品目/____事業用電力 | M10: PR01'PRCG20_2202250001 | N10: 品目/____事業用電力 | O10: PR01'PRCG20_2202250001 | P10: 品目/____事業用電力 | Q10: PR01'PRCG20_2202250001 | R10: 品目/____事業用電力 | S10: PR01'PRCG20_2202250001 | T10: 品目/____事業用電力 | U10: PR01'PRCG20_2202250001 | V10: 品目/____事業用電力 | W10: PR01'PRCG20_2202250001 | X10: 品目/____事業用電力 | Y10: PR01'PRCG20_2202250001 | Z10: 品目/____事業用電力
A11: PR02'PRCS20_5200630002 | B11: 小類別/__道路貨物輸送 | C11: PR02'PRCS20_5200630002 | D11: 小類別/__道路貨物輸送 | E11: PR02'PRCS20_5200630002 | F11: 小類別/__道路貨物輸送 | G11: PR02'PRCS20_5200630002 | H11: 小類別/__道路貨物輸送 | I11: PR02'PRCS20_5200630002 | J11: 小類別/__道路貨物輸送 | K11: PR02'PRCS20_5200630002 | L11: 小類別/__道路貨物輸送 | M11: PR02'PRCS20_5200630002 | N11: 小類別/__道路貨物輸送 | O11: PR02'PRCS20_5200630002 | P11: 小類別/__道路貨物輸送 | Q11: PR02'PRCS20_5200630002 | R11: 小類別/__道路貨物輸送 | S11: PR02'PRCS20_5200630002 | T11: 小類別/__道路貨物輸送 | U11: PR02'PRCS20_5200630002 | V11: 小類別/__道路貨物輸送 | W11: PR02'PRCS20_5200630002 | X11: 小類別/__道路貨物輸送 | Y11: PR02'PRCS20_5200630002 | Z11: 小類別/__道路貨物輸送
A12: PR02'PRLC00_9999999999 | B12: 人件費 | C12: PR02'PRLC00_9999999999 | D12: 人件費 | E12: PR02'PRLC00_9999999999 | F12: 人件費 | G12: PR02'PRLC00_9999999999 | H12: 人件費 | I12: PR02'PRLC00_9999999999 | J12: 人件費 | K12: PR02'PRLC00_9999999999 | L12: 人件費 | M12: PR02'PRLC00_9999999999 | N12: 人件費 | O12: PR02'PRLC00_9999999999 | P12: 人件費 | Q12: PR02'PRLC00_9999999999 | R12: 人件費 | S12: PR02'PRLC00_9999999999 | T12: 人件費 | U12: PR02'PRLC00_9999999999 | V12: 人件費 | W12: PR02'PRLC00_9999999999 | X12: 人件費 | Y12: PR02'PRLC00_9999999999 | Z12: 人件費

Sheet グラフ・増減率作成シート (hidden)
A1: 期間指定
A2: 開始時期 | B2: 開始列 | C2: 終了列 | D2: 本日の日付 | E2: チラシシート日付
A3: =Reiwa漢字(基本設定シート!$C$3)&" からの増減" -> 令和2年1月 からの増減 | B3: $J$16 | C3: $CA$16 | D3: =メンテナンス!$C$2 -> 2025-11-13 | E3: =Reiwa漢字(D3) &" 現在" -> 令和7年11月 現在
A5: グラフ表示 | B5: データコード | C5: 種別 | D5: 終了時期 | E5: 終了時期 （令和） | F5: 品目 | G5: 小数点第2位 四捨五入 | H5: 正負 | I5: 増減率 | J5: R2.1 | K5: R2.2 | L5: R2.3 | M5: R2.4 | N5: R2.5 | O5: R2.6 | P5: R2.7 | Q5: R2.8 | R5: R2.9 | S5: R2.10 | T5: R2.11 | U5: R2.12 | V5: R3.1 | W5: R3.2 | X5: R3.3 | Y5: R3.4 | Z5: R3.5 | AA5: R3.6 | AB5: R3.7 | AC5: R3.8 | AD5: R3.9 | AE5: R3.10 | AF5: R3.11 | AG5: R3.12 | AH5: R4.1 | AI5: R4.2 | AJ5: R4.3 | AK5: R4.4 | AL5: R4.5 | AM5: R4.6 | AN5: R4.7 | AO5: R4.8 | AP5: R4.9 | AQ5: R4.10 | AR5: R4.11 | AS5: R4.12 | AT5: R5.1 | AU5: R5.2 | AV5: R5.3 | AW5: R5.4 | AX5: R5.5 | AY5: R5.6 | AZ5: R5.7 | BA5: R5.8 | BB5: R5.9 | BC5: R5.10 | BD5: R5.11 | BE5: R5.12 | BF5: R6.1 | BG5: R6.2 | BH5: R6.3 | BI5: R6.4 | BJ5: R6.5 | BK5: R6.6 | BL5: R6.7 | BM5: R6.8 | BN5: R6.9 | BO5: R6.10 | BP5: R6.11 | BQ5: R6.12 | BR5: R7.1 | BS5: R7.2 | BT5: R7.3 | BU5: R7.4 | BV5: R7.5 | BW5: R7.6 | BX5: R7.7 | BY5: R7.8 | BZ5: R7.9 | CA5: R7.10
A6: グラフ1 | B6: PR01'PRCG20_2202040001 | C6: 国内 | D6: $CA$16 | E6: =IF(D6="","",(Reiwa漢字(INDIRECT(D6,TRUE))&" 時点")) -> 令和7年10月 時点 | F6: 米 | G6: =IF(ISERROR(I6),"",IF(I6=0,"",ABS(ROUND(I6,1)))) -> 137 | H6: =IF(ISERROR(I6),"",IF(I6>0,"％ｕｐ",IF(I6<0,"％ｄｏｗｎ",""))) -> ％ｕｐ | I6: =($CA$6-$J$6) /$J$6* 100 -> 137.0009737 | J6: 102.7 | K6: 102.3 | L6: 102.3 | M6: 102 | N6: 101.8 | O6: 100.9 | P6: 100.3 | Q6: 100 | R6: 97.2 | S6: 97.4 | T6: 96.9 | U6: 96 | V6: 96.6 | W6: 95.1 | X6: 95.2 | Y6: 94.6 | Z6: 94.3 | AA6: 91.6 | AB6: 89.6 | AC6: 88.1 | AD6: 85.8 | AE6: 83.9 | AF6: 83.7 | AG6: 83 | AH6: 82.4 | AI6: 83.5 | AJ6: 81.5 | AK6: 81.8 | AL6: 80.9 | AM6: 81.1 | AN6: 81.6 | AO6: 82.2 | AP6: 89.3 | AQ6: 90.4 | AR6: 90.3 | AS6: 90.3 | AT6: 90.8 | AU6: 90.5 | AV6: 90 | AW6: 89.9 | AX6: 90 | AY6: 90.1 | AZ6: 89.2 | BA6: 89.2 | BB6: 98 | BC6: 98.1 | BD6: 98.6 | BE6: 99.5 | BF6: 99.1 | BG6: 99.3 | BH6: 99.6 | BI6: 100.8 | BJ6: 101.3 | BK6: 102.1 | BL6: 101.4 | BM6: 102.9 | BN6: 143.7 | BO6: 157.8 | BP6: 156.3 | BQ6: 162.5 | BR6: 172 | BS6: 175.3 | BT6: 169 | BU6: 179.9 | BV6: 182.3 | BW6: 177.4 | BX6: 173.2 | BY6: 178.5 | BZ6: 229.8 | CA6: 243.4
A7: グラフ2 | B7: PR01'PRCG20_2200150036 | C7: 国内 | D7: $CA$16 | E7: =IF(D7="","",(Reiwa漢字(INDIRECT(D7,TRUE))&" 時点")) -> 令和7年10月 時点 | F7: 砂糖 | G7: =IF(ISERROR(I7),"",IF(I7=0,"",ABS(ROUND(I7,1)))) -> 38.1 | H7: =IF(ISERROR(I7),"",IF(I7>0,"％ｕｐ",IF(I7<0,"％ｄｏｗｎ",""))) -> ％ｕｐ | I7: =($CA$7-$J$7) /$J$7* 100 -> 38.1237525 | J7: 100.2 | K7: 100.6 | L7: 99.6 | M7: 99.6 | N7: 100.7 | O7: 99.9 | P7: 99.8 | Q7: 99.1 | R7: 99.6 | S7: 100.5 | T7: 99.8 | U7: 100.7 | V7: 100.6 | W7: 101.5 | X7: 102.9 | Y7: 103 | Z7: 103.3 | AA7: 103.7 | AB7: 104.5 | AC7: 105.3 | AD7: 105.3 | AE7: 106 | AF7: 105.9 | AG7: 111.3 | AH7: 112.1 | AI7: 111.9 | AJ7: 112.1 | AK7: 112 | AL7: 111.3 | AM7: 111.9 | AN7: 114.5 | AO7: 116.7 | AP7: 117.8 | AQ7: 117.2 | AR7: 117.5 | AS7: 123.5 | AT7: 125.6 | AU7: 125.9 | AV7: 126.8 | AW7: 126.1 | AX7: 126.5 | AY7: 126.1 | AZ7: 129.4 | BA7: 132.6 | BB7: 132.5 | BC7: 132.7 | BD7: 135.9 | BE7: 136.1 | BF7: 142.1 | BG7: 141.9 | BH7: 142.8 | BI7: 140.7 | BJ7: 141.3 | BK7: 140.7 | BL7: 139.5 | BM7: 139.1 | BN7: 140 | BO7: 141.1 | BP7: 139.2 | BQ7: 139.1 | BR7: 140.9 | BS7: 141 | BT7: 141.3 | BU7: 140 | BV7: 139.3 | BW7: 139.7 | BX7: 138.4 | BY7: 138.4 | BZ7: 138.4 | CA7: 138.4
A8: グラフ3 | B8: PR01'PRCG20_2200140014 | C8: 国内 | D8: $CA$16 | E8: =IF(D8="","",(Reiwa漢字(INDIRECT(D8,TRUE))&" 時点")) -> 令和7年10月 時点 | F8: 動植物油脂 | G8: 44.8 | H8: ％ｕｐ | I8: =($CA$8-$J$8) /$J$8* 100 -> 44.80712166 | J8: 101.1 | K8: 100.1 | L8: 99.1 | M8: 100.1 | N8: 99.8 | O8: 100.1 | P8: 99.6 | Q8: 99.2 | R8: 98.3 | S8: 100.3 | T8: 101.2 | U8: 101.2 | V8: 102.5 | W8: 103.6 | X8: 103.7 | Y8: 106.9 | Z8: 110.4 | AA8: 109.8 | AB8: 115.1 | AC8: 122.5 | AD8: 122.5 | AE8: 123.9 | AF8: 128.7 | AG8: 127.9 | AH8: 132 | AI8: 133.2 | AJ8: 136.4 | AK8: 139.9 | AL8: 145.9 | AM8: 146.4 | AN8: 155.6 | AO8: 158.9 | AP8: 165.5 | AQ8: 167.4 | AR8: 166.3 | AS8: 167.3 | AT8: 164.2 | AU8: 162.8 | AV8: 161.5 | AW8: 160.3 | AX8: 159.3 | AY8: 157.7 | AZ8: 152.2 | BA8: 151.1 | BB8: 150 | BC8: 150.4 | BD8: 152.9 | BE8: 153.5 | BF8: 153.1 | BG8: 153.8 | BH8: 153.4 | BI8: 147 | BJ8: 147.2 | BK8: 147.4 | BL8: 147.7 | BM8: 145.9 | BN8: 146.7 | BO8: 144.1 | BP8: 145.7 | BQ8: 146.9 | BR8: 146.2 | BS8: 146.3 | BT8: 146.8 | BU8: 146.9 | BV8: 147.9 | BW8: 149.1 | BX8: 148.2 | BY8: 146.7 | BZ8: 147.3 | CA8: 146.4
A9: グラフ4 | B9: PR01'PRCG20_2200140015 | C9: 国内 | D9: $CA$16 | E9: =IF(D9="","",(Reiwa漢字(INDIRECT(D9,TRUE))&" 時点")) -> 令和7年10月 時点 | F9: 調味料 | G9: 19 | H9: ％ｕｐ | I9: =($CA$9-$J$9) /$J$9* 100 -> 18.9516129 | J9: 99.2 | K9: 100 | L9: 100.1 | M9: 100.6 | N9: 99.6 | O9: 100.1 | P9: 100.5 | Q9: 99.7 | R9: 99.9 | S9: 100.3 | T9: 99.8 | U9: 100.2 | V9: 98.4 | W9: 100 | X9: 99.3 | Y9: 100.7 | Z9: 98.7 | AA9: 99.7 | AB9: 100.7 | AC9: 100 | AD9: 100.7 | AE9: 100.3 | AF9: 100.6 | AG9: 100.7 | AH9: 98.6 | AI9: 100 | AJ9: 101.4 | AK9: 103.4 | AL9: 101.6 | AM9: 103.2 | AN9: 103.5 | AO9: 104.1 | AP9: 104.1 | AQ9: 104.9 | AR9: 105.3 | AS9: 106.4 | AT9: 104.6 | AU9: 107.4 | AV9: 106.9 | AW9: 111.3 | AX9: 110.7 | AY9: 112.4 | AZ9: 113.2 | BA9: 113 | BB9: 113.2 | BC9: 114.8 | BD9: 115.4 | BE9: 115.7 | BF9: 115.2 | BG9: 115.8 | BH9: 114.7 | BI9: 117.7 | BJ9: 117.2 | BK9: 117.1 | BL9: 117.1 | BM9: 116.8 | BN9: 116.3 | BO9: 117.7 | BP9: 117 | BQ9: 117.3 | BR9: 114.7 | BS9: 116.3 | BT9: 115.6 | BU9: 116.8 | BV9: 117.5 | BW9: 117.7 | BX9: 118 | BY9: 117.4 | BZ9: 117.8 | CA9: 118
A10: グラフ5 | B10: PR01'PRCG20_2202050005 | C10: 国内 | D10: $CA$16 | E10: =IF(D10="","",(Reiwa漢字(INDIRECT(D10,TRUE))&" 時点")) -> 令和7年10月 時点 | F10: 原乳 | G10: 22.2 | H10: ％ｕｐ | I10: =($CA$10-$J$10) /$J$10* 100 -> 22.1664995 | J10: 99.7 | K10: 99.8 | L10: 99.1 | M10: 99.3 | N10: 99.5 | O10: 100.5 | P10: 100.6 | Q10: 100.2 | R10: 100.5 | S10: 100.6 | T10: 100.5 | U10: 99.7 | V10: 99.6 | W10: 99.8 | X10: 99.6 | Y10: 99.7 | Z10: 99.8 | AA10: 100.5 | AB10: 100.3 | AC10: 100 | AD10: 100.4 | AE10: 100.4 | AF10: 100.4 | AG10: 99.7 | AH10: 99.6 | AI10: 99.7 | AJ10: 99.6 | AK10: 99.7 | AL10: 99.8 | AM10: 100.6 | AN10: 100.3 | AO10: 100 | AP10: 100.4 | AQ10: 100.4 | AR10: 105.2 | AS10: 104.6 | AT10: 104.7 | AU10: 104.7 | AV10: 104.5 | AW10: 109.6 | AX10: 109.8 | AY10: 110.6 | AZ10: 110.3 | BA10: 115.4 | BB10: 115.4 | BC10: 115.4 | BD10: 115.4 | BE10: 115.9 | BF10: 116 | BG10: 116 | BH10: 115.9 | BI10: 116.7 | BJ10: 116.7 | BK10: 117.2 | BL10: 117 | BM10: 116.7 | BN10: 117.3 | BO10: 117.3 | BP10: 117.2 | BQ10: 116.4 | BR10: 116.5 | BS10: 116.7 | BT10: 116.3 | BU10: 116.2 | BV10: 116.4 | BW10: 119.8 | BX10: 119.7 | BY10: 121.5 | BZ10: 121.8 | CA10: 121.8
A11: グラフ6 | B11: PR01'PRCG20_2202050006 | C11: 国内 | D11: $CA$16 | E11: =IF(D11="","",(Reiwa漢字(INDIRECT(D11,TRUE))&" 時点")) -> 令和7年10月 時点 | F11: 鶏卵 | G11: 94.4 | H11: ％ｕｐ | I11: =($CA$11-$J$11) /$J$11* 100 -> 94.43319838 | J11: 98.8 | K11: 107 | L11: 114.5 | M11: 117.7 | N11: 97.2 | O11: 92.3 | P11: 89.1 | Q11: 85.9 | R11: 91.1 | S11: 97.9 | T11: 101.4 | U11: 107.1 | V11: 83.1 | W11: 108.4 | X11: 130 | Y11: 141.6 | Z11: 150.1 | AA11: 150.5 | AB11: 142.2 | AC11: 125.3 | AD11: 124.8 | AE11: 124.9 | AF11: 121.5 | AG11: 122.7 | AH11: 87.9 | AI11: 102.2 | AJ11: 113.6 | AK11: 123.9 | AL11: 128.5 | AM11: 123.5 | AN11: 119.8 | AO11: 121 | AP11: 132.2 | AQ11: 140.9 | AR11: 152.5 | AS11: 167.1 | AT11: 163.7 | AU11: 191 | AV11: 198.6 | AW11: 201.5 | AX11: 201.5 | AY11: 200.8 | AZ11: 185.3 | BA11: 167.3 | BB11: 172.2 | BC11: 168.1 | BD11: 150.7 | BE11: 142.5 | BF11: 103.3 | BG11: 109.6 | BH11: 121 | BI11: 126.9 | BJ11: 118.1 | BK11: 117.2 | BL11: 121.3 | BM11: 133.5 | BN11: 153.6 | BO11: 160.7 | BP11: 162 | BQ11: 167.2 | BR11: 149.7 | BS11: 180 | BT11: 185.4 | BU11: 190.4 | BV11: 195.7 | BW11: 195.7 | BX11: 192.8 | BY11: 186 | BZ11: 189.9 | CA11: 192.1
A12: グラフ7 | B12: PR01'PRCG20_2202040007 | C12: 国内 | D12: $CA$16 | E12: =IF(D12="","",(Reiwa漢字(INDIRECT(D12,TRUE))&" 時点")) -> 令和7年10月 時点 | F12: 食肉 | G12: 15.8 | H12: ％ｕｐ | I12: =($CA$12-$J$12) /$J$12* 100 -> 15.77350859 | J12: 98.9 | K12: 94.8 | L12: 91.8 | M12: 95 | N12: 97.3 | O12: 97.4 | P12: 101.1 | Q12: 102.9 | R12: 103.3 | S12: 102.3 | T12: 105.1 | U12: 110.3 | V12: 107 | W12: 104.2 | X12: 105.9 | Y12: 108.4 | Z12: 105.4 | AA12: 108.1 | AB12: 109 | AC12: 105.3 | AD12: 104 | AE12: 101.5 | AF12: 100.1 | AG12: 109.1 | AH12: 100.3 | AI12: 99.6 | AJ12: 101.3 | AK12: 104 | AL12: 109.2 | AM12: 108.6 | AN12: 111.6 | AO12: 108.2 | AP12: 109.9 | AQ12: 110.7 | AR12: 110.1 | AS12: 111.7 | AT12: 110 | AU12: 110.3 | AV12: 111.1 | AW12: 112.1 | AX12: 114 | AY12: 114.6 | AZ12: 114.1 | BA12: 113.1 | BB12: 111.2 | BC12: 104.1 | BD12: 105 | BE12: 109.6 | BF12: 103 | BG12: 105.1 | BH12: 105.9 | BI12: 107.8 | BJ12: 112.8 | BK12: 114.6 | BL12: 116.7 | BM12: 114.8 | BN12: 110.8 | BO12: 106.9 | BP12: 108.7 | BQ12: 113.9 | BR12: 109.1 | BS12: 111.3 | BT12: 112.4 | BU12: 115.5 | BV12: 120.3 | BW12: 125.4 | BX12: 131.4 | BY12: 123.4 | BZ12: 118 | CA12: 114.5
A13: グラフ8 | B13: PR01'PRCG20_2202250001 | C13: 国内 | D13: $CA$16 | E13: =IF(D13="","",(Reiwa漢字(INDIRECT(D13,TRUE))&" 時点")) -> 令和7年10月 時点 | F13: 事業用電力 | G13: 25 | H13: ％ｕｐ | I13: =($CA$13-$J$13) /$J$13* 100 -> 25.02453386 | J13: 101.9 | K13: 101.4 | L13: 101.5 | M13: 101.6 | N13: 101.8 | O13: 101.5 | P13: 105.2 | Q13: 103.8 | R13: 101.6 | S13: 94.8 | T13: 93.1 | U13: 91.8 | V13: 91.1 | W13: 91.1 | X13: 92.2 | Y13: 94 | Z13: 98.1 | AA13: 99.3 | AB13: 104.9 | AC13: 104.9 | AD13: 106.8 | AE13: 104.2 | AF13: 106.2 | AG13: 108 | AH13: 110.2 | AI13: 114.9 | AJ13: 118.9 | AK13: 120.6 | AL13: 122.5 | AM13: 123.4 | AN13: 132.3 | AO13: 138.2 | AP13: 144.5 | AQ13: 146.5 | AR13: 154.6 | AS13: 162 | AT13: 165.7 | AU13: 155 | AV13: 150.8 | AW13: 153.4 | AX13: 139 | AY13: 131.5 | AZ13: 129.7 | BA13: 123.9 | BB13: 120.2 | BC13: 119.9 | BD13: 119.3 | BE13: 118.8 | BF13: 119.5 | BG13: 119.8 | BH13: 120.1 | BI13: 119 | BJ13: 127.4 | BK13: 129.7 | BL13: 136.1 | BM13: 135.6 | BN13: 129.3 | BO13: 127.2 | BP13: 131.3 | BQ13: 135.4 | BR13: 134.1 | BS13: 128.7 | BT13: 129 | BU13: 133.5 | BV13: 136.8 | BW13: 134.9 | BX13: 137.3 | BY13: 132.5 | BZ13: 131.4 | CA13: 127.4
A14: グラフ9 | B14: PR02'PRCS20_5200630002 | C14: サービス | D14: $BZ$16 | E14: =IF(D14="","",(Reiwa漢字(INDIRECT(D14,TRUE))&" 時点")) -> 令和7年9月 時点 | F14: 道路貨物輸送 | G14: 7.8 | H14: ％ｕｐ | I14: =($BZ$14-$J$14) /$J$14* 100 -> 7.784431138 | J14: 100.2 | K14: 100.3 | L14: 100.3 | M14: 99.9 | N14: 99.7 | O14: 99.4 | P14: 99.6 | Q14: 100.1 | R14: 99.9 | S14: 99.9 | T14: 100 | U14: 100.6 | V14: 100.1 | W14: 100.1 | X14: 100.4 | Y14: 100.5 | Z14: 100.1 | AA14: 99.9 | AB14: 100.2 | AC14: 100.6 | AD14: 100.2 | AE14: 100.3 | AF14: 100.4 | AG14: 101 | AH14: 100.4 | AI14: 100.4 | AJ14: 100.8 | AK14: 100.6 | AL14: 100.3 | AM14: 100.2 | AN14: 100.5 | AO14: 101 | AP14: 100.9 | AQ14: 101 | AR14: 101.1 | AS14: 101.7 | AT14: 101.2 | AU14: 101.1 | AV14: 101.6 | AW14: 101.8 | AX14: 101.5 | AY14: 101.4 | AZ14: 101.7 | BA14: 102 | BB14: 101.9 | BC14: 102.2 | BD14: 102.5 | BE14: 103.1 | BF14: 102.8 | BG14: 102.9 | BH14: 103.4 | BI14: 104.9 | BJ14: 104.5 | BK14: 104.4 | BL14: 104.7 | BM14: 105.3 | BN14: 105.2 | BO14: 105.2 | BP14: 105.2 | BQ14: 105.9 | BR14: 106 | BS14: 106.3 | BT14: 106.6 | BU14: 108 | BV14: 107.8 | BW14: 107.7 | BX14: 108 | BY14: 108.4 | BZ14: 108
A15: グラフ10 | B15: PR02'PRLC00_9999999999 | C15: 人件費 | D15: $BZ$16 | E15: =IF(D15="","",(Reiwa漢字(INDIRECT(D15,TRUE))&" 時点")) -> 令和7年9月 時点 | F15: 人件費 | G15: 8.4 | H15: ％ｕｐ | I15: =($BZ$15-$J$15) /$J$15* 100 -> 8.4 | J15: 100 | K15: 101.1 | L15: 100.5 | M15: 99.9 | N15: 98.7 | O15: 100.3 | P15: 99.7 | Q15: 100 | R15: 100.4 | S15: 100.5 | T15: 99.9 | U15: 98.8 | V15: 100.3 | W15: 100.6 | X15: 100.8 | Y15: 101.1 | Z15: 100.8 | AA15: 100.2 | AB15: 100.6 | AC15: 100.6 | AD15: 100.8 | AE15: 100.8 | AF15: 100.8 | AG15: 98.6 | AH15: 101.3 | AI15: 101.8 | AJ15: 102.3 | AK15: 102.3 | AL15: 101.8 | AM15: 102.2 | AN15: 102 | AO15: 102.4 | AP15: 102.7 | AQ15: 102.2 | AR15: 102.8 | AS15: 102.7 | AT15: 102.3 | AU15: 103 | AV15: 103.8 | AW15: 103.3 | AX15: 103.8 | AY15: 103.8 | AZ15: 102.9 | BA15: 103.5 | BB15: 103.6 | BC15: 104 | BD15: 103.5 | BE15: 103.7 | BF15: 104.3 | BG15: 104.5 | BH15: 104.7 | BI15: 104.8 | BJ15: 105.8 | BK15: 108.6 | BL15: 106.5 | BM15: 106.3 | BN15: 106.3 | BO15: 106.7 | BP15: 107.4 | BQ15: 108 | BR15: 106.3 | BS15: 107.4 | BT15: 106.9 | BU15: 107.4 | BV15: 107 | BW15: 111.7 | BX15: 110.2 | BY15: 107.8 | BZ15: 108.4
J16: 2020-01-01 | K16: 2020-02-01 | L16: 2020-03-01 | M16: 2020-04-01 | N16: 2020-05-01 | O16: 2020-06-01 | P16: 2020-07-01 | Q16: 2020-08-01 | R16: 2020-09-01 | S16: 2020-10-01 | T16: 2020-11-01 | U16: 2020-12-01 | V16: 2021-01-01 | W16: 2021-02-01 | X16: 2021-03-01 | Y16: 2021-04-01 | Z16: 2021-05-01 | AA16: 2021-06-01 | AB16: 2021-07-01 | AC16: 2021-08-01 | AD16: 2021-09-01 | AE16: 2021-10-01 | AF16: 2021-11-01 | AG16: 2021-12-01 | AH16: 2022-01-01 | AI16: 2022-02-01 | AJ16: 2022-03-01 | AK16: 2022-04-01 | AL16: 2022-05-01 | AM16: 2022-06-01 | AN16: 2022-07-01 | AO16: 2022-08-01 | AP16: 2022-09-01 | AQ16: 2022-10-01 | AR16: 2022-11-01 | AS16: 2022-12-01 | AT16: 2023-01-01 | AU16: 2023-02-01 | AV16: 2023-03-01 | AW16: 2023-04-01 | AX16: 2023-05-01 | AY16: 2023-06-01 | AZ16: 2023-07-01 | BA16: 2023-08-01 | BB16: 2023-09-01 | BC16: 2023-10-01 | BD16: 2023-11-01 | BE16: 2023-12-01 | BF16: 2024-01-01 | BG16: 2024-02-01 | BH16: 2024-03-01 | BI16: 2024-04-01 | BJ16: 2024-05-01 | BK16: 2024-06-01 | BL16: 2024-07-01 | BM16: 2024-08-01 | BN16: 2024-09-01 | BO16: 2024-10-01 | BP16: 2024-11-01 | BQ16: 2024-12-01 | BR16: 2025-01-01 | BS16: 2025-02-01 | BT16: 2025-03-01 | BU16: 2025-04-01 | BV16: 2025-05-01 | BW16: 2025-06-01 | BX16: 2025-07-01 | BY16: 2025-08-01 | BZ16: 2025-09-01 | CA16: 2025-10-01
J375: 105.6 | K375: 105.6 | L375: 105.6 | M375: 98.6 | N375: 98.6 | O375: 98.6 | P375: 96.7 | Q375: 96.7 | R375: 96.7 | S375: 99.1 | T375: 99.1 | U375: 99.1 | V375: 95.4 | W375: 95.4 | X375: 96.8 | Y375: 104.7 | Z375: 104.7 | AA375: 104.7 | AB375: 123.9 | AC375: 123.9 | AD375: 123.9 | AE375: 142.4 | AF375: 142.4 | AG375: 142.4 | AH375: 169.5 | AI375: 169.5 | AJ375: 169.5 | AK375: 209.9 | AL375: 209.9 | AM375: 209.9 | AN375: 231.7 | AO375: 231.7 | AP375: 231.7 | AQ375: 202.2 | AR375: 202.2 | AS375: 202.2
J376: 105.6 | K376: 105.6 | L376: 105.6 | M376: 98.6 | N376: 98.6 | O376: 98.6 | P376: 96.7 | Q376: 96.7 | R376: 96.7 | S376: 99.1 | T376: 99.1 | U376: 99.1 | V376: 95.4 | W376: 95.4 | X376: 96.8 | Y376: 104.7 | Z376: 104.7 | AA376: 104.7 | AB376: 123.9 | AC376: 123.9 | AD376: 123.9 | AE376: 142.4 | AF376: 142.4 | AG376: 142.4 | AH376: 169.5 | AI376: 169.5 | AJ376: 169.5 | AK376: 209.9 | AL376: 209.9 | AM376: 209.9 | AN376: 231.7 | AO376: 231.7 | AP376: 231.7 | AQ376: 202.2 | AR376: 202.2 | AS376: 202.2
J377: 105.6 | K377: 105.6 | L377: 105.6 | M377: 98.6 | N377: 98.6 | O377: 98.6 | P377: 96.7 | Q377: 96.7 | R377: 96.7 | S377: 99.1 | T377: 99.1 | U377: 99.1 | V377: 95.4 | W377: 95.4 | X377: 96.8 | Y377: 104.7 | Z377: 104.7 | AA377: 104.7 | AB377: 123.9 | AC377: 123.9 | AD377: 123.9 | AE377: 142.4 | AF377: 142.4 | AG377: 142.4 | AH377: 169.5 | AI377: 169.5 | AJ377: 169.5 | AK377: 209.9 | AL377: 209.9 | AM377: 209.9 | AN377: 231.7 | AO377: 231.7 | AP377: 231.7 | AQ377: 202.2 | AR377: 202.2 | AS377: 202.2
J378: 102.1 | K378: 101.9 | L378: 101.5 | M378: 100 | N378: 99.5 | O378: 99.2 | P378: 99.1 | Q378: 99.1 | R378: 99.1 | S378: 99.2 | T378: 99.4 | U378: 99.8 | V378: 101.5 | W378: 102.3 | X378: 103.1 | Y378: 107.9 | Z378: 109.7 | AA378: 112 | AB378: 115 | AC378: 117 | AD378: 118.7 | AE378: 128.3 | AF378: 131.1 | AG378: 132 | AH378: 134.5 | AI378: 135.2 | AJ378: 136.2 | AK378: 141.1 | AL378: 143.5 | AM378: 145.5 | AN378: 151 | AO378: 152.6 | AP378: 153.9 | AQ378: 161.4 | AR378: 161.7 | AS378: 161.4
J379: 102.9 | K379: 102.7 | L379: 102.2 | M379: 100 | N379: 99.2 | O379: 99 | P379: 98.9 | Q379: 98.9 | R379: 98.8 | S379: 98.7 | T379: 99.1 | U379: 99.7 | V379: 102 | W379: 103.2 | X379: 104.3 | Y379: 108.8 | Z379: 111.4 | AA379: 114.5 | AB379: 117.9 | AC379: 120.3 | AD379: 122.2 | AE379: 131 | AF379: 134.5 | AG379: 135.7 | AH379: 138.3 | AI379: 139 | AJ379: 140.3 | AK379: 145.4 | AL379: 147.8 | AM379: 149.5 | AN379: 156 | AO379: 157.9 | AP379: 159.4 | AQ379: 165.7 | AR379: 166.1 | AS379: 165.9
J380: 105 | K380: 104.3 | L380: 103.3 | M380: 99.9 | N380: 97.4 | O380: 98 | P380: 98.5 | Q380: 97.8 | R380: 97.7 | S380: 98.4 | T380: 99 | U380: 100.7 | V380: 107.7 | W380: 108.9 | X380: 110.3 | Y380: 113.4 | Z380: 115.5 | AA380: 123.2 | AB380: 125.8 | AC380: 129.6 | AD380: 131.6 | AE380: 133.6 | AF380: 137.4 | AG380: 138.5 | AH380: 139.7 | AI380: 140.2 | AJ380: 142.6 | AK380: 150.4 | AL380: 155.1 | AM380: 157.1 | AN380: 159.4 | AO380: 160.3 | AP380: 160.4 | AQ380: 160.4 | AR380: 159.9 | AS380: 159.9
J381: 104.7 | K381: 103.7 | L381: 102.3 | M381: 101.1 | N381: 98.7 | O381: 97.3 | P381: 97.4 | Q381: 98 | R381: 98 | S381: 98 | T381: 99.5 | U381: 101.2 | V381: 103.8 | W381: 106.3 | X381: 108.8 | Y381: 111.7 | Z381: 115.4 | AA381: 119.1 | AB381: 123.1 | AC381: 126.4 | AD381: 128.2 | AE381: 130.3 | AF381: 133.7 | AG381: 136.6 | AH381: 138 | AI381: 140 | AJ381: 145.2 | AK381: 148.9 | AL381: 153.9 | AM381: 158.3 | AN381: 159.8 | AO381: 160.6 | AP381: 161.9 | AQ381: 159.7 | AR381: 161.8 | AS381: 161.4
J382: 102.2 | K382: 102.2 | L382: 102.2 | M382: 99.6 | N382: 99.6 | O382: 99.6 | P382: 99.6 | Q382: 99.6 | R382: 99.6 | S382: 98.7 | T382: 98.7 | U382: 98.7 | V382: 99.9 | W382: 99.9 | X382: 101 | Y382: 104.5 | Z382: 107.3 | AA382: 110 | AB382: 114.5 | AC382: 116 | AD382: 117.2 | AE382: 124.8 | AF382: 128.2 | AG382: 129.1 | AH382: 130.6 | AI382: 130.6 | AJ382: 132 | AK382: 133.9 | AL382: 136.6 | AM382: 138.1 | AN382: 138.9 | AO382: 144.1 | AP382: 144.6 | AQ382: 144.1 | AR382: 151.3 | AS382: 149.5
J383: 103.8 | K383: 103.9 | L383: 103.8 | M383: 99.5 | N383: 99.4 | O383: 99.4 | P383: 99.1 | Q383: 99.1 | R383: 98.7 | S383: 97.7 | T383: 97.7 | U383: 97.7 | V383: 99.9 | W383: 99.9 | X383: 100.5 | Y383: 105.4 | Z383: 109.5 | AA383: 112.6 | AB383: 115.3 | AC383: 122.1 | AD383: 125.3 | AE383: 133.7 | AF383: 147.2 | AG383: 150.1 | AH383: 156.1 | AI383: 156.1 | AJ383: 156.1 | AK383: 157.2 | AL383: 158.9 | AM383: 159 | AN383: 168.8 | AO383: 175.7 | AP383: 183.2 | AQ383: 182 | AR383: 181.4 | AS383: 181.4
J384: 102.5 | K384: 102.5 | L384: 102.5 | M384: 99.7 | N384: 99.6 | O384: 99.4 | P384: 98.8 | Q384: 98.8 | R384: 98.8 | S384: 98.9 | T384: 99 | U384: 99.3 | V384: 101.8 | W384: 104.3 | X384: 105.6 | Y384: 113.2 | Z384: 117.5 | AA384: 121.8 | AB384: 127.1 | AC384: 128 | AD384: 129.4 | AE384: 144.8 | AF384: 144.8 | AG384: 144.8 | AH384: 147.5 | AI384: 147.5 | AJ384: 147.5 | AK384: 153.9 | AL384: 154.7 | AM384: 155.9 | AN384: 168.3 | AO384: 168.3 | AP384: 169 | AQ384: 183 | AR384: 183 | AS384: 183
J385: 98.9 | K385: 101.5 | L385: 100.4 | M385: 101.5 | N385: 101.5 | O385: 100.3 | P385: 100.5 | Q385: 101.3 | R385: 101.1 | S385: 98.1 | T385: 97.8 | U385: 97.2 | V385: 95.9 | W385: 98.1 | X385: 96.9 | Y385: 100.1 | Z385: 98.8 | AA385: 99.3 | AB385: 102 | AC385: 102.5 | AD385: 102.1 | AE385: 106.1 | AF385: 107.7 | AG385: 107.3 | AH385: 109 | AI385: 109.1 | AJ385: 109.1 | AK385: 111.3 | AL385: 112.2 | AM385: 112.2 | AN385: 119.4 | AO385: 119.9 | AP385: 119.9 | AQ385: 117.4 | AR385: 117.4 | AS385: 117.4
J386: 100.8 | K386: 100.8 | L386: 100.8 | M386: 99.9 | N386: 99.9 | O386: 99.9 | P386: 99.9 | Q386: 99.9 | R386: 99.6 | S386: 99.5 | T386: 99.5 | U386: 99.5 | V386: 99.9 | W386: 99.9 | X386: 100.3 | Y386: 102.5 | Z386: 102.9 | AA386: 102.9 | AB386: 104.8 | AC386: 104.8 | AD386: 108.3 | AE386: 118.1 | AF386: 118.5 | AG386: 118.5 | AH386: 120.7 | AI386: 120.7 | AJ386: 120.7 | AK386: 126.9 | AL386: 126.9 | AM386: 126.9 | AN386: 131.7 | AO386: 132.6 | AP386: 132.6 | AQ386: 148.2 | AR386: 148.2 | AS386: 148.2
J387: 100.6 | K387: 100.6 | L387: 100.6 | M387: 99.9 | N387: 99.9 | O387: 99.9 | P387: 99.9 | Q387: 99.9 | R387: 99.6 | S387: 99.7 | T387: 99.7 | U387: 99.7 | V387: 100.2 | W387: 100.2 | X387: 100.2 | Y387: 101.1 | Z387: 101.4 | AA387: 101.4 | AB387: 103.7 | AC387: 104.2 | AD387: 106.7 | AE387: 114.5 | AF387: 114.5 | AG387: 114.9 | AH387: 118.2 | AI387: 118.2 | AJ387: 118.6 | AK387: 127.9 | AL387: 127.9 | AM387: 127.6 | AN387: 134 | AO387: 134 | AP387: 134.9 | AQ387: 148 | AR387: 147.9 | AS387: 147.5
J388: 101.9 | K388: 101.5 | L388: 100.9 | M388: 99.8 | N388: 99.5 | O388: 99.1 | P388: 98.9 | Q388: 98.9 | R388: 99 | S388: 99.8 | T388: 100.1 | U388: 100.5 | V388: 101.3 | W388: 101.7 | X388: 102.5 | Y388: 107.8 | Z388: 108.3 | AA388: 109.1 | AB388: 110.9 | AC388: 112 | AD388: 113 | AE388: 125.1 | AF388: 127.3 | AG388: 128.2 | AH388: 129.6 | AI388: 132.4 | AJ388: 133.5 | AK388: 138.4 | AL388: 141.6 | AM388: 145.2 | AN388: 150.5 | AO388: 152.7 | AP388: 152.6 | AQ388: 163.4 | AR388: 163 | AS388: 163
J389: 101.1 | K389: 101 | L389: 100.5 | M389: 100.3 | N389: 99.7 | O389: 99.7 | P389: 99.7 | Q389: 99.8 | R389: 99.8 | S389: 99.4 | T389: 99.5 | U389: 99.5 | V389: 99.7 | W389: 101 | X389: 101 | Y389: 107 | Z389: 107.4 | AA389: 108.6 | AB389: 111.8 | AC389: 114.4 | AD389: 115.7 | AE389: 121.4 | AF389: 123.1 | AG389: 123.6 | AH389: 124.5 | AI389: 124.6 | AJ389: 125.1 | AK389: 128 | AL389: 130.9 | AM389: 133.5 | AN389: 136.9 | AO389: 139.6 | AP389: 140.3 | AQ389: 139.9 | AR389: 139.9 | AS389: 140
J390: 101.2 | K390: 101.2 | L390: 100.6 | M390: 100.6 | N390: 99.9 | O390: 99.8 | P390: 99.8 | Q390: 99.8 | R390: 99.8 | S390: 99.1 | T390: 99.1 | U390: 99.1 | V390: 99.3 | W390: 100.8 | X390: 100.8 | Y390: 108.2 | Z390: 108.7 | AA390: 110.4 | AB390: 114.6 | AC390: 118 | AD390: 119.6 | AE390: 126.3 | AF390: 128.3 | AG390: 129 | AH390: 130.2 | AI390: 130.2 | AJ390: 130.6 | AK390: 133 | AL390: 136.4 | AM390: 139.7 | AN390: 145.3 | AO390: 149.2 | AP390: 150.4 | AQ390: 149.2 | AR390: 149.2 | AS390: 149.2
J391: 100.7 | K391: 100.5 | L391: 100.2 | M391: 99.3 | N391: 99.3 | O391: 99.3 | P391: 99.3 | Q391: 99.6 | R391: 99.9 | S391: 100.4 | T391: 100.7 | U391: 100.7 | V391: 101 | W391: 101.5 | X391: 101.8 | Y391: 103.5 | Z391: 103.5 | AA391: 103.2 | AB391: 103.5 | AC391: 103.7 | AD391: 104 | AE391: 106.5 | AF391: 107.2 | AG391: 107.2 | AH391: 107.2 | AI391: 107.8 | AJ391: 108.4 | AK391: 113 | AL391: 114.5 | AM391: 115.1 | AN391: 111.7 | AO391: 111 | AP391: 110.1 | AQ391: 112.2 | AR391: 112.2 | AS391: 112.5
J392: 101 | K392: 100.7 | L392: 100.6 | M392: 100 | N392: 99.8 | O392: 99.5 | P392: 99.3 | Q392: 99.3 | R392: 99.4 | S392: 99.8 | T392: 100.2 | U392: 100.3 | V392: 101 | W392: 101.5 | X392: 101.8 | Y392: 105.5 | Z392: 106.4 | AA392: 107.5 | AB392: 109.7 | AC392: 111.3 | AD392: 112.9 | AE392: 121.3 | AF392: 124 | AG392: 125.1 | AH392: 127.7 | AI392: 128.5 | AJ392: 128.8 | AK392: 132.7 | AL392: 136.4 | AM392: 139.4 | AN392: 143.5 | AO392: 144.7 | AP392: 146.3 | AQ392: 155.4 | AR392: 155.2 | AS392: 154.3
J393: 101.2 | K393: 101.2 | L393: 101.2 | M393: 99.6 | N393: 99.6 | O393: 99.6 | P393: 99.2 | Q393: 99.2 | R393: 99.2 | S393: 100 | T393: 100.1 | U393: 100.1 | V393: 101.2 | W393: 101.2 | X393: 101.2 | Y393: 111.8 | Z393: 111.8 | AA393: 111.8 | AB393: 112.9 | AC393: 112.9 | AD393: 112.9 | AE393: 132.4 | AF393: 132.4 | AG393: 132.4 | AH393: 134.7 | AI393: 134.7 | AJ393: 135.3 | AK393: 142 | AL393: 142 | AM393: 142 | AN393: 148.8 | AO393: 148.8 | AP393: 148.8 | AQ393: 167.8 | AR393: 167.8 | AS393: 167.8
J394: 101.5 | K394: 101.5 | L394: 101.5 | M394: 100.3 | N394: 100.3 | O394: 99.7 | P394: 99.2 | Q394: 99.2 | R394: 99.2 | S394: 99.3 | T394: 99.3 | U394: 99.3 | V394: 100.6 | W394: 100.6 | X394: 100.6 | Y394: 101.3 | Z394: 101.5 | AA394: 102.5 | AB394: 103.1 | AC394: 103.2 | AD394: 103.2 | AE394: 118 | AF394: 118 | AG394: 118 | AH394: 123.2 | AI394: 123.2 | AJ394: 123.2 | AK394: 127.8 | AL394: 133.9 | AM394: 133.9 | AN394: 141.8 | AO394: 141.8 | AP394: 141.8 | AQ394: 162.7 | AR394: 160 | AS394: 160
J395: 102.1 | K395: 102.1 | L395: 101.5 | M395: 100.8 | N395: 100.1 | O395: 99.3 | P395: 99.1 | Q395: 98.9 | R395: 98.9 | S395: 98.9 | T395: 99 | U395: 99.4 | V395: 101.5 | W395: 102.3 | X395: 103.1 | Y395: 108.1 | Z395: 112.4 | AA395: 119.3 | AB395: 128.2 | AC395: 139.1 | AD395: 148.1 | AE395: 151.6 | AF395: 153.3 | AG395: 154.3 | AH395: 154.3 | AI395: 154.3 | AJ395: 154.3 | AK395: 154.3 | AL395: 158.5 | AM395: 166.3 | AN395: 170.4 | AO395: 177.4 | AP395: 177.8 | AQ395: 178.6 | AR395: 178.6 | AS395: 178.6
J396: 101.8 | K396: 101 | L396: 100.4 | M396: 99.4 | N396: 98.7 | O396: 99.1 | P396: 98.8 | Q396: 99 | R396: 99.6 | S396: 100.1 | T396: 100.8 | U396: 101.3 | V396: 101.8 | W396: 102.7 | X396: 104.4 | Y396: 104.8 | Z396: 105.4 | AA396: 108 | AB396: 111.5 | AC396: 112.7 | AD396: 115.6 | AE396: 119.2 | AF396: 122.6 | AG396: 125 | AH396: 126.2 | AI396: 128.4 | AJ396: 130.3 | AK396: 137.1 | AL396: 147.3 | AM396: 152.9 | AN396: 153.7 | AO396: 154.4 | AP396: 153.8 | AQ396: 162.7 | AR396: 162.7 | AS396: 158.5
J397: 100.5 | K397: 99.4 | L397: 99.5 | M397: 101 | N397: 101.1 | O397: 99.3 | P397: 99.3 | Q397: 99.1 | R397: 99.2 | S397: 99.8 | T397: 101 | U397: 100.9 | V397: 100.9 | W397: 101.1 | X397: 100.4 | Y397: 102.2 | Z397: 103.5 | AA397: 103.1 | AB397: 104.2 | AC397: 105.4 | AD397: 105.8 | AE397: 109 | AF397: 112.4 | AG397: 112.6 | AH397: 114.1 | AI397: 114.8 | AJ397: 112.2 | AK397: 114.2 | AL397: 116.8 | AM397: 117 | AN397: 118.8 | AO397: 123.5 | AP397: 128.1 | AQ397: 131.9 | AR397: 132 | AS397: 132
J398: 100.1 | K398: 100.1 | L398: 100.1 | M398: 100.1 | N398: 100.1 | O398: 99.9 | P398: 99.9 | Q398: 99.9 | R398: 99.9 | S398: 99.9 | T398: 99.9 | U398: 99.9 | V398: 99.9 | W398: 100.9 | X398: 100.9 | Y398: 102.2 | Z398: 103.1 | AA398: 103.5 | AB398: 105 | AC398: 106.7 | AD398: 107.7 | AE398: 111.1 | AF398: 116.8 | AG398: 118.5 | AH398: 123.2 | AI398: 124.1 | AJ398: 124.6 | AK398: 125.1 | AL398: 126.2 | AM398: 131.5 | AN398: 135.5 | AO398: 135.5 | AP398: 140 | AQ398: 140 | AR398: 140 | AS398: 140
J399: 100.9 | K399: 100.9 | L399: 100.9 | M399: 99.9 | N399: 99.8 | O399: 99.7 | P399: 99.5 | Q399: 99.7 | R399: 99.7 | S399: 99.7 | T399: 99.7 | U399: 99.8 | V399: 100.9 | W399: 100.9 | X399: 101.4 | Y399: 108.6 | Z399: 109.1 | AA399: 110.6 | AB399: 113.2 | AC399: 113.6 | AD399: 114.7 | AE399: 131.6 | AF399: 132.4 | AG399: 132.4 | AH399: 135.6 | AI399: 135.6 | AJ399: 136.8 | AK399: 143.9 | AL399: 144.4 | AM399: 145.7 | AN399: 150.4 | AO399: 150.4 | AP399: 150.4 | AQ399: 165.3 | AR399: 166.1 | AS399: 166.1
J400: 101 | K400: 101 | L400: 101 | M400: 99.9 | N400: 99.9 | O400: 99.8 | P400: 99.6 | Q400: 99.6 | R400: 99.6 | S400: 99.5 | T400: 99.6 | U400: 99.7 | V400: 101 | W400: 101 | X400: 101.5 | Y400: 109.4 | Z400: 110 | AA400: 111.1 | AB400: 114 | AC400: 114.6 | AD400: 115.6 | AE400: 134.3 | AF400: 135.2 | AG400: 135.2 | AH400: 138.8 | AI400: 138.8 | AJ400: 139.6 | AK400: 147.3 | AL400: 147.9 | AM400: 149.1 | AN400: 152.8 | AO400: 152.8 | AP400: 152.8 | AQ400: 169.6 | AR400: 169.6 | AS400: 169.6
J401: 100.1 | K401: 100.1 | L401: 100.1 | M401: 99.3 | N401: 99.3 | O401: 99.3 | P401: 99.3 | Q401: 100.6 | R401: 100.6 | S401: 100.6 | T401: 100.6 | U401: 100.6 | V401: 100.6 | W401: 100.6 | X401: 100.6 | Y401: 102.9 | Z401: 102.9 | AA401: 106.7 | AB401: 106.7 | AC401: 106.7 | AD401: 108 | AE401: 111.9 | AF401: 111.9 | AG401: 111.9 | AH401: 111.9 | AI401: 111.9 | AJ401: 116.5 | AK401: 118.4 | AL401: 118.4 | AM401: 120.3 | AN401: 133.3 | AO401: 133.3 | AP401: 133.3 | AQ401: 133.3 | AR401: 139.8 | AS401: 139.8
J402: 100.4 | K402: 100.8 | L402: 100.8 | M402: 100.4 | N402: 100.3 | O402: 100.1 | P402: 99.6 | Q402: 99.4 | R402: 99.5 | S402: 99.7 | T402: 99.5 | U402: 99.5 | V402: 100 | W402: 100.2 | X402: 100.3 | Y402: 102.6 | Z402: 102.9 | AA402: 103.1 | AB402: 103.7 | AC402: 104.9 | AD402: 105.1 | AE402: 108.2 | AF402: 109.5 | AG402: 109.6 | AH402: 110.4 | AI402: 111.2 | AJ402: 111.3 | AK402: 114.5 | AL402: 115.8 | AM402: 116.8 | AN402: 118.9 | AO402: 120.7 | AP402: 121.5 | AQ402: 122.5 | AR402: 122.7 | AS402: 123.1
J403: 100.5 | K403: 100.9 | L403: 100.9 | M403: 100.5 | N403: 100.2 | O403: 100.2 | P403: 99.6 | Q403: 99.3 | R403: 99.3 | S403: 99.7 | T403: 99.4 | U403: 99.4 | V403: 100 | W403: 100.2 | X403: 100.3 | Y403: 102.7 | Z403: 103.1 | AA403: 103.3 | AB403: 103.9 | AC403: 104.1 | AD403: 104.6 | AE403: 108 | AF403: 109.4 | AG403: 109.4 | AH403: 109.8 | AI403: 110.5 | AJ403: 110.6 | AK403: 114.1 | AL403: 115.4 | AM403: 116.5 | AN403: 118.7 | AO403: 120.6 | AP403: 121.6 | AQ403: 122.8 | AR403: 122.6 | AS403: 122.9
J404: 100 | K404: 100.8 | L404: 100.8 | M404: 100.5 | N404: 100.2 | O404: 100.1 | P404: 100.1 | Q404: 99.8 | R404: 99.8 | S404: 99.6 | T404: 99.2 | U404: 99.1 | V404: 99.1 | W404: 99.2 | X404: 99.3 | Y404: 99.9 | Z404: 100.1 | AA404: 100.4 | AB404: 100.5 | AC404: 100.6 | AD404: 101.5 | AE404: 103.6 | AF404: 105.6 | AG404: 105.6 | AH404: 105.7 | AI404: 106.2 | AJ404: 106.2 | AK404: 109.1 | AL404: 110.5 | AM404: 112.5 | AN404: 113.5 | AO404: 115.7 | AP404: 117.2 | AQ404: 119.4 | AR404: 120.2 | AS404: 120.7
J405: 101.1 | K405: 101 | L405: 101 | M405: 100.4 | N405: 100.4 | O405: 100.4 | P405: 98.8 | Q405: 98.7 | R405: 98.7 | S405: 99.7 | T405: 99.8 | U405: 99.9 | V405: 101.3 | W405: 101.7 | X405: 101.7 | Y405: 106.7 | Z405: 107.4 | AA405: 107.4 | AB405: 108.8 | AC405: 109.1 | AD405: 109.1 | AE405: 114.3 | AF405: 114.8 | AG405: 114.8 | AH405: 115.6 | AI405: 116.5 | AJ405: 116.8 | AK405: 121.2 | AL405: 122.2 | AM405: 122.2 | AN405: 126 | AO405: 127.5 | AP405: 127.8 | AQ405: 127.5 | AR405: 125.9 | AS405: 125.9
J406: 99.1 | K406: 99.8 | L406: 100 | M406: 99.1 | N406: 101.1 | O406: 99.4 | P406: 99.9 | Q406: 99.7 | R406: 100.8 | S406: 100.2 | T406: 99.9 | U406: 100.9 | V406: 100.1 | W406: 100 | X406: 100.4 | Y406: 101.9 | Z406: 100.8 | AA406: 100.3 | AB406: 101.1 | AC406: 112.8 | AD406: 109.7 | AE406: 109.8 | AF406: 110.5 | AG406: 111.6 | AH406: 117 | AI406: 119 | AJ406: 118.4 | AK406: 118.6 | AL406: 120.3 | AM406: 119.9 | AN406: 121.6 | AO406: 121.5 | AP406: 120.7 | AQ406: 119.9 | AR406: 123.8 | AS406: 125.2
J407: 99.1 | K407: 99.8 | L407: 100 | M407: 99.1 | N407: 101.1 | O407: 99.4 | P407: 99.9 | Q407: 99.7 | R407: 100.8 | S407: 100.2 | T407: 99.9 | U407: 100.9 | V407: 100.1 | W407: 100 | X407: 100.4 | Y407: 101.9 | Z407: 100.8 | AA407: 100.3 | AB407: 101.1 | AC407: 112.8 | AD407: 109.7 | AE407: 109.8 | AF407: 110.5 | AG407: 111.6 | AH407: 117 | AI407: 119 | AJ407: 118.4 | AK407: 118.6 | AL407: 120.3 | AM407: 119.9 | AN407: 121.6 | AO407: 121.5 | AP407: 120.7 | AQ407: 119.9 | AR407: 123.8 | AS407: 125.2
J408: 100.7 | K408: 100.7 | L408: 100.4 | M408: 100.3 | N408: 100.2 | O408: 99.9 | P408: 99.6 | Q408: 99.6 | R408: 99 | S408: 99.3 | T408: 99.5 | U408: 100.8 | V408: 105.4 | W408: 108 | X408: 109 | Y408: 111.3 | Z408: 116.1 | AA408: 119.6 | AB408: 122.7 | AC408: 124.5 | AD408: 127.3 | AE408: 133.8 | AF408: 135.2 | AG408: 136.3 | AH408: 137.1 | AI408: 137.3 | AJ408: 138.7 | AK408: 144.9 | AL408: 146.4 | AM408: 147.8 | AN408: 149.4 | AO408: 154.7 | AP408: 154.7 | AQ408: 164.5 | AR408: 163.1 | AS408: 162.8
J409: 100.7 | K409: 100.7 | L409: 100.4 | M409: 100.3 | N409: 100.2 | O409: 99.9 | P409: 99.6 | Q409: 99.6 | R409: 99 | S409: 99.3 | T409: 99.5 | U409: 100.8 | V409: 105.4 | W409: 108 | X409: 109 | Y409: 111.3 | Z409: 116.1 | AA409: 119.6 | AB409: 122.7 | AC409: 124.5 | AD409: 127.3 | AE409: 133.8 | AF409: 135.2 | AG409: 136.3 | AH409: 137.1 | AI409: 137.3 | AJ409: 138.7 | AK409: 144.9 | AL409: 146.4 | AM409: 147.8 | AN409: 149.4 | AO409: 154.7 | AP409: 154.7 | AQ409: 164.5 | AR409: 163.1 | AS409: 162.8
J410: 100.7 | K410: 100.7 | L410: 100.4 | M410: 100.3 | N410: 100.2 | O410: 99.9 | P410: 99.6 | Q410: 99.6 | R410: 99 | S410: 99.3 | T410: 99.5 | U410: 100.8 | V410: 105.4 | W410: 108 | X410: 109 | Y410: 111.3 | Z410: 116.1 | AA410: 119.6 | AB410: 122.7 | AC410: 124.5 | AD410: 127.3 | AE410: 133.8 | AF410: 135.2 | AG410: 136.3 | AH410: 137.1 | AI410: 137.3 | AJ410: 138.7 | AK410: 144.9 | AL410: 146.4 | AM410: 147.8 | AN410: 149.4 | AO410: 154.7 | AP410: 154.7 | AQ410: 164.5 | AR410: 163.1 | AS410: 162.8
J411: 100.5 | K411: 99.1 | L411: 95.2 | M411: 93.4 | N411: 93.8 | O411: 96.4 | P411: 99.7 | Q411: 101.6 | R411: 102.6 | S411: 103.7 | T411: 104.9 | U411: 109.2 | V411: 112.4 | W411: 115.5 | X411: 121.4 | Y411: 125 | Z411: 131.7 | AA411: 131.1 | AB411: 130.9 | AC411: 130.4 | AD411: 130.7 | AE411: 136.4 | AF411: 139.6 | AG411: 138.6 | AH411: 142.1 | AI411: 144.4 | AJ411: 149 | AK411: 155.7 | AL411: 153 | AM411: 152.4 | AN411: 144.3 | AO411: 144 | AP411: 146.5 | AQ411: 148 | AR411: 149 | AS411: 149
J412: 100 | K412: 97.8 | L412: 92.1 | M412: 89.7 | N412: 90.3 | O412: 94.3 | P412: 99.5 | Q412: 103.1 | R412: 105.1 | S412: 105.6 | T412: 108.2 | U412: 114.5 | V412: 118.9 | W412: 123.4 | X412: 130.4 | Y412: 134 | Z412: 144.4 | AA412: 142.9 | AB412: 143 | AC412: 142.6 | AD412: 144 | AE412: 153.2 | AF412: 157.3 | AG412: 155.3 | AH412: 160.3 | AI412: 162.7 | AJ412: 170.8 | AK412: 179.2 | AL412: 173 | AM412: 171 | AN412: 156.2 | AO412: 156.8 | AP412: 159.9 | AQ412: 161.4 | AR412: 163.9 | AS412: 163.4
J413: 100.8 | K413: 95.2 | L413: 85.9 | M413: 83.2 | N413: 86 | O413: 94 | P413: 103.1 | Q413: 104.3 | R413: 107.4 | S413: 107.4 | T413: 111.3 | U413: 121.5 | V413: 124.7 | W413: 132.6 | X413: 146.9 | Y413: 150 | Z413: 166.5 | AA413: 159.4 | AB413: 156.3 | AC413: 154.4 | AD413: 154.8 | AE413: 165.8 | AF413: 167.4 | AG413: 162.5 | AH413: 169.2 | AI413: 171.4 | AJ413: 181.8 | AK413: 192.2 | AL413: 180.2 | AM413: 182.2 | AN413: 155.6 | AO413: 162.1 | AP413: 166.4 | AQ413: 169.1 | AR413: 172.4 | AS413: 170.1
J414: 100.8 | K414: 95.2 | L414: 85.9 | M414: 83.2 | N414: 86 | O414: 94 | P414: 103.1 | Q414: 104.3 | R414: 107.4 | S414: 107.4 | T414: 111.3 | U414: 121.5 | V414: 124.7 | W414: 132.6 | X414: 146.9 | Y414: 150 | Z414: 166.5 | AA414: 159.4 | AB414: 156.3 | AC414: 154.4 | AD414: 154.8 | AE414: 165.8 | AF414: 167.4 | AG414: 162.5 | AH414: 169.2 | AI414: 171.4 | AJ414: 181.8 | AK414: 192.2 | AL414: 180.2 | AM414: 182.2 | AN414: 155.6 | AO414: 162.1 | AP414: 166.4 | AQ414: 169.1 | AR414: 172.4 | AS414: 170.1
J415: 102.7 | K415: 102 | L415: 95.9 | M415: 91.6 | N415: 90.2 | O415: 94.8 | P415: 98.4 | Q415: 105.5 | R415: 106.3 | S415: 101.9 | T415: 104 | U415: 106.6 | V415: 109.2 | W415: 115.6 | X415: 119.4 | Y415: 121.5 | Z415: 127.9 | AA415: 133.9 | AB415: 139.1 | AC415: 141.8 | AD415: 140.8 | AE415: 141.5 | AF415: 145 | AG415: 148.7 | AH415: 151 | AI415: 154.1 | AJ415: 161.2 | AK415: 167.6 | AL415: 165.4 | AM415: 157.2 | AN415: 146.4 | AO415: 140.7 | AP415: 136.3 | AQ415: 138.8 | AR415: 139.9 | AS415: 141.7
J416: 102.7 | K416: 102 | L416: 95.9 | M416: 91.6 | N416: 90.2 | O416: 94.8 | P416: 98.4 | Q416: 105.5 | R416: 106.3 | S416: 101.9 | T416: 104 | U416: 106.6 | V416: 109.2 | W416: 115.6 | X416: 119.4 | Y416: 121.5 | Z416: 127.9 | AA416: 133.9 | AB416: 139.1 | AC416: 141.8 | AD416: 140.8 | AE416: 141.5 | AF416: 145 | AG416: 148.7 | AH416: 151 | AI416: 154.1 | AJ416: 161.2 | AK416: 167.6 | AL416: 165.4 | AM416: 157.2 | AN416: 146.4 | AO416: 140.7 | AP416: 136.3 | AQ416: 138.8 | AR416: 139.9 | AS416: 141.7
J417: 102.4 | K417: 102.3 | L417: 101 | M417: 96.9 | N417: 94.2 | O417: 94 | P417: 94.2 | Q417: 95.9 | R417: 99.1 | S417: 102.8 | T417: 106 | U417: 111.1 | V417: 118.4 | W417: 119.6 | X417: 122.3 | Y417: 127.8 | Z417: 132.9 | AA417: 136.1 | AB417: 140.4 | AC417: 142.2 | AD417: 146.3 | AE417: 158.1 | AF417: 165.2 | AG417: 166.3 | AH417: 170.6 | AI417: 173.1 | AJ417: 177.6 | AK417: 184.8 | AL417: 184.9 | AM417: 176.9 | AN417: 172.2 | AO417: 166.8 | AP417: 170.9 | AQ417: 169.9 | AR417: 172 | AS417: 172.5
J418: 102.4 | K418: 102.3 | L418: 101 | M418: 96.9 | N418: 94.2 | O418: 94 | P418: 94.2 | Q418: 95.9 | R418: 99.1 | S418: 102.8 | T418: 106 | U418: 111.1 | V418: 118.4 | W418: 119.6 | X418: 122.3 | Y418: 127.8 | Z418: 132.9 | AA418: 136.1 | AB418: 140.4 | AC418: 142.2 | AD418: 146.3 | AE418: 158.1 | AF418: 165.2 | AG418: 166.3 | AH418: 170.6 | AI418: 173.1 | AJ418: 177.6 | AK418: 184.8 | AL418: 184.9 | AM418: 176.9 | AN418: 172.2 | AO418: 166.8 | AP418: 170.9 | AQ418: 169.9 | AR418: 172 | AS418: 172.5
J419: 90.3 | K419: 92.1 | L419: 86.7 | M419: 90.1 | N419: 93.2 | O419: 95.6 | P419: 102.3 | Q419: 115.8 | R419: 112.6 | S419: 108.8 | T419: 106.4 | U419: 106.1 | V419: 107.9 | W419: 109.4 | X419: 106.7 | Y419: 108.3 | Z419: 115.3 | AA419: 114.8 | AB419: 111.9 | AC419: 108.5 | AD419: 107.7 | AE419: 110 | AF419: 114.3 | AG419: 110 | AH419: 113.4 | AI419: 115.7 | AJ419: 125.9 | AK419: 132.6 | AL419: 126.3 | AM419: 130.5 | AN419: 124 | AO419: 124.8 | AP419: 126 | AQ419: 129.6 | AR419: 131.5 | AS419: 132.5
J420: 90.5 | K420: 92.8 | L420: 91 | M420: 95.9 | N420: 97.9 | O420: 98.8 | P420: 103.7 | Q420: 110.5 | R420: 107.8 | S420: 105.9 | T420: 103.3 | U420: 101.9 | V420: 102.6 | W420: 101.2 | X420: 99.1 | Y420: 101.3 | Z420: 107.2 | AA420: 107.1 | AB420: 105.4 | AC420: 104 | AD420: 104 | AE420: 106.2 | AF420: 110 | AG420: 107.6 | AH420: 110.4 | AI420: 113 | AJ420: 122.1 | AK420: 129.2 | AL420: 125.8 | AM420: 130.1 | AN420: 125.8 | AO420: 126.1 | AP420: 127.4 | AQ420: 129.6 | AR420: 129.8 | AS420: 128.4
J421: 89.9 | K421: 90.1 | L421: 75.2 | M421: 74.7 | N421: 80.8 | O421: 87.2 | P421: 98.4 | Q421: 129.9 | R421: 125.2 | S421: 116.6 | T421: 114.5 | U421: 117.4 | V421: 122 | W421: 131.1 | X421: 127 | Y421: 126.8 | Z421: 136.8 | AA421: 135.3 | AB421: 129.3 | AC421: 120.4 | AD421: 117.5 | AE421: 120 | AF421: 125.9 | AG421: 116.3 | AH421: 121.3 | AI421: 122.9 | AJ421: 136.1 | AK421: 141.7 | AL421: 127.7 | AM421: 131.4 | AN421: 119.2 | AO421: 121.2 | AP421: 122.5 | AQ421: 129.8 | AR421: 136 | AS421: 143.4
J422: 100.7 | K422: 99.6 | L422: 96.4 | M422: 94.9 | N422: 95.3 | O422: 97.2 | P422: 99.7 | Q422: 100.9 | R422: 101.6 | S422: 102.9 | T422: 103.6 | U422: 107 | V422: 109.8 | W422: 112.2 | X422: 117.7 | Y422: 121.3 | Z422: 126.6 | AA422: 126.3 | AB422: 126 | AC422: 125.5 | AD422: 125.4 | AE422: 129.5 | AF422: 132.4 | AG422: 131.9 | AH422: 134.8 | AI422: 137 | AJ422: 140.1 | AK422: 146.2 | AL422: 144.9 | AM422: 144.8 | AN422: 139.5 | AO422: 138.8 | AP422: 141.1 | AQ422: 142.6 | AR422: 142.9 | AS422: 143.2
J423: 100 | K423: 96.9 | L423: 91.5 | M423: 89.2 | N423: 90.7 | O423: 95.6 | P423: 101.7 | Q423: 102.9 | R423: 104.8 | S423: 105.6 | T423: 107.3 | U423: 113.9 | V423: 116.6 | W423: 120.7 | X423: 131.3 | Y423: 134.5 | Z423: 145.5 | AA423: 143.4 | AB423: 139.9 | AC423: 139 | AD423: 138.7 | AE423: 145.3 | AF423: 149.1 | AG423: 145.9 | AH423: 149.9 | AI423: 151.3 | AJ423: 157.1 | AK423: 167.3 | AL423: 161.3 | AM423: 161.5 | AN423: 145.3 | AO423: 146.7 | AP423: 149.8 | AQ423: 154.8 | AR423: 157.1 | AS423: 156.6
J424: 101.4 | K424: 97.9 | L424: 90.4 | M424: 85.4 | N424: 86.2 | O424: 92.2 | P424: 100.5 | Q424: 104.2 | R424: 106.5 | S424: 107.7 | T424: 110 | U424: 117.6 | V424: 123.2 | W424: 128.6 | X424: 140.4 | Y424: 147.5 | Z424: 158.8 | AA424: 160.2 | AB424: 155.8 | AC424: 153.5 | AD424: 153.2 | AE424: 160.1 | AF424: 164.9 | AG424: 162.1 | AH424: 164.9 | AI424: 168.5 | AJ424: 175.6 | AK424: 185.8 | AL424: 181.6 | AM424: 179.2 | AN424: 163.4 | AO424: 158.4 | AP424: 163.2 | AQ424: 166.4 | AR424: 169.5 | AS424: 169.1
J425: 101.4 | K425: 97.5 | L425: 90.1 | M425: 86.1 | N425: 87.2 | O425: 93.1 | P425: 100.9 | Q425: 103.8 | R425: 106.2 | S425: 107.3 | T425: 109.4 | U425: 117.1 | V425: 121.8 | W425: 127.1 | X425: 138.8 | Y425: 144.6 | Z425: 156 | AA425: 155.8 | AB425: 151.8 | AC425: 149.8 | AD425: 149.4 | AE425: 156.9 | AF425: 160.7 | AG425: 157.6 | AH425: 161.1 | AI425: 164 | AJ425: 171.2 | AK425: 180.9 | AL425: 175.4 | AM425: 174.1 | AN425: 157.4 | AO425: 154.9 | AP425: 159.2 | AQ425: 162.2 | AR425: 165.1 | AS425: 164.3
J426: 98.8 | K426: 96.2 | L426: 91.8 | M426: 90.1 | N426: 92 | O426: 96.6 | P426: 102.2 | Q426: 102.6 | R426: 104.4 | S426: 105.2 | T426: 106.9 | U426: 113.2 | V426: 115 | W426: 118.7 | X426: 129.8 | Y426: 131.4 | Z426: 143.2 | AA426: 140.2 | AB426: 136.4 | AC426: 136.3 | AD426: 135.9 | AE426: 143.2 | AF426: 147.8 | AG426: 144.3 | AH426: 148.9 | AI426: 149.5 | AJ426: 154.7 | AK426: 164.3 | AL426: 158.1 | AM426: 158.8 | AN426: 141.8 | AO426: 144.9 | AP426: 147.7 | AQ426: 155.1 | AR426: 157.2 | AS426: 157
J427: 100.7 | K427: 97.8 | L427: 93.4 | M427: 92.2 | N427: 93.5 | O427: 97.1 | P427: 101.4 | Q427: 101.8 | R427: 103.3 | S427: 103.6 | T427: 105 | U427: 110 | V427: 111.5 | W427: 114.7 | X427: 121.9 | Y427: 126.7 | Z427: 134.3 | AA427: 131.2 | AB427: 129.6 | AC427: 128.7 | AD427: 128.6 | AE427: 134.1 | AF427: 134.9 | AG427: 132.4 | AH427: 135.8 | AI427: 136.6 | AJ427: 141.5 | AK427: 163 | AL427: 157.2 | AM427: 158.5 | AN427: 146 | AO427: 149 | AP427: 150.9 | AQ427: 152.3 | AR427: 153.9 | AS427: 152.7
J428: 100.2 | K428: 96.8 | L428: 91.8 | M428: 90.3 | N428: 92.1 | O428: 96.6 | P428: 102 | Q428: 102.4 | R428: 104.2 | S428: 104.7 | T428: 106.4 | U428: 112.6 | V428: 114.3 | W428: 118.3 | X428: 128.2 | Y428: 129.8 | Z428: 140.3 | AA428: 136.9 | AB428: 134 | AC428: 133.4 | AD428: 133 | AE428: 138.2 | AF428: 140.9 | AG428: 137.5 | AH428: 142 | AI428: 142.6 | AJ428: 148.3 | AK428: 156 | AL428: 149.2 | AM428: 150.4 | AN428: 134.3 | AO428: 137.9 | AP428: 140.4 | AQ428: 144.4 | AR428: 146.6 | AS428: 145.7
J429: 101.7 | K429: 100.8 | L429: 95.8 | M429: 90.9 | N429: 89.7 | O429: 91.5 | P429: 98.1 | Q429: 102.8 | R429: 104.2 | S429: 106.3 | T429: 106.9 | U429: 111.4 | V429: 117.1 | W429: 119.7 | X429: 126.1 | Y429: 134.3 | Z429: 139.5 | AA429: 144.9 | AB429: 142.5 | AC429: 140.5 | AD429: 140.5 | AE429: 142.5 | AF429: 148.7 | AG429: 149.1 | AH429: 148.7 | AI429: 152.4 | AJ429: 156.8 | AK429: 164.2 | AL429: 169.3 | AM429: 164.3 | AN429: 159 | AO429: 148.8 | AP429: 152.1 | AQ429: 155.5 | AR429: 156.2 | AS429: 158.5
J430: 101.3 | K430: 100 | L430: 95.9 | M430: 91.4 | N430: 90.9 | O430: 91.6 | P430: 99.1 | Q430: 102.9 | R430: 103.7 | S430: 105.9 | T430: 106.6 | U430: 110.7 | V430: 115.7 | W430: 118.6 | X430: 124.8 | Y430: 132 | Z430: 137.1 | AA430: 142.1 | AB430: 139.3 | AC430: 137.9 | AD430: 137.1 | AE430: 139.8 | AF430: 144.9 | AG430: 144.3 | AH430: 144 | AI430: 147.5 | AJ430: 150.9 | AK430: 158.5 | AL430: 160.9 | AM430: 156.8 | AN430: 151.8 | AO430: 142.9 | AP430: 146.7 | AQ430: 148.3 | AR430: 150.3 | AS430: 152.7
J431: 102.1 | K431: 101.8 | L431: 95.7 | M431: 90.2 | N431: 88.3 | O431: 91.4 | P431: 97 | Q431: 102.6 | R431: 104.7 | S431: 106.8 | T431: 107.2 | U431: 112.2 | V431: 118.8 | W431: 121 | X431: 127.6 | Y431: 137.1 | Z431: 142.3 | AA431: 148.4 | AB431: 146.4 | AC431: 143.6 | AD431: 144.6 | AE431: 145.8 | AF431: 153.3 | AG431: 154.8 | AH431: 154.4 | AI431: 158.4 | AJ431: 163.9 | AK431: 171.1 | AL431: 179.5 | AM431: 173.2 | AN431: 167.6 | AO431: 155.9 | AP431: 158.5 | AQ431: 164 | AR431: 163.3 | AS431: 165.5
J432: 101.6 | K432: 101.6 | L432: 101.6 | M432: 101.6 | N432: 101.6 | O432: 101.6 | P432: 97.8 | Q432: 97.3 | R432: 97.5 | S432: 99.3 | T432: 99.1 | U432: 99.3 | V432: 100.8 | W432: 100.8 | X432: 101 | Y432: 105.2 | Z432: 105.5 | AA432: 105.5 | AB432: 110.3 | AC432: 110.4 | AD432: 110.9 | AE432: 114 | AF432: 115.7 | AG432: 117 | AH432: 120.4 | AI432: 122.6 | AJ432: 123.3 | AK432: 128.1 | AL432: 130.2 | AM432: 130.9 | AN432: 135.6 | AO432: 136.2 | AP432: 139.5 | AQ432: 138.3 | AR432: 134.9 | AS432: 136.4
J433: 101.6 | K433: 101.6 | L433: 101.6 | M433: 101.6 | N433: 101.6 | O433: 101.6 | P433: 97.8 | Q433: 97.3 | R433: 97.5 | S433: 99.3 | T433: 99.1 | U433: 99.3 | V433: 100.8 | W433: 100.8 | X433: 101 | Y433: 105.2 | Z433: 105.5 | AA433: 105.5 | AB433: 110.3 | AC433: 110.4 | AD433: 110.9 | AE433: 114 | AF433: 115.7 | AG433: 117 | AH433: 120.4 | AI433: 122.6 | AJ433: 123.3 | AK433: 128.1 | AL433: 130.2 | AM433: 130.9 | AN433: 135.6 | AO433: 136.2 | AP433: 139.5 | AQ433: 138.3 | AR433: 134.9 | AS433: 136.4
J434: 100.8 | K434: 101 | L434: 101.1 | M434: 100.8 | N434: 100 | O434: 99.3 | P434: 99 | Q434: 99 | R434: 98.6 | S434: 99.7 | T434: 100 | U434: 100.7 | V434: 102.9 | W434: 104 | X434: 106.1 | Y434: 107.7 | Z434: 109.4 | AA434: 110 | AB434: 111.5 | AC434: 112.3 | AD434: 112.9 | AE434: 115.2 | AF434: 116.4 | AG434: 118.5 | AH434: 120.4 | AI434: 122.4 | AJ434: 122.4 | AK434: 123.2 | AL434: 124.1 | AM434: 124.8 | AN434: 127.2 | AO434: 126.2 | AP434: 125.8 | AQ434: 122.7 | AR434: 123.2 | AS434: 123.1
J435: 101 | K435: 101 | L435: 102 | M435: 101.4 | N435: 99.4 | O435: 97.8 | P435: 97.2 | Q435: 96.8 | R435: 98 | S435: 100.4 | T435: 101 | U435: 104 | V435: 105.3 | W435: 107.3 | X435: 113.9 | Y435: 117.5 | Z435: 120.4 | AA435: 122 | AB435: 126.8 | AC435: 127.5 | AD435: 127.2 | AE435: 131.9 | AF435: 133.2 | AG435: 136 | AH435: 139.2 | AI435: 137.6 | AJ435: 138.7 | AK435: 139.4 | AL435: 141.8 | AM435: 144.8 | AN435: 149.4 | AO435: 147.4 | AP435: 146.4 | AQ435: 140.5 | AR435: 141.6 | AS435: 141.6
J436: 100.8 | K436: 101.1 | L436: 100.8 | M436: 100.6 | N436: 100.3 | O436: 99.7 | P436: 99.8 | Q436: 99.9 | R436: 98.7 | S436: 99.3 | T436: 99.5 | U436: 99.5 | V436: 102.3 | W436: 103.3 | X436: 103.9 | Y436: 105.2 | Z436: 106.7 | AA436: 107.1 | AB436: 107.2 | AC436: 108 | AD436: 109.2 | AE436: 110.8 | AF436: 112.1 | AG436: 114.2 | AH436: 115.8 | AI436: 119.4 | AJ436: 119 | AK436: 118.4 | AL436: 118.8 | AM436: 118.7 | AN436: 120.6 | AO436: 119.8 | AP436: 119.4 | AQ436: 117.3 | AR436: 117.7 | AS436: 117.6
J437: 100.6 | K437: 100.6 | L437: 100.6 | M437: 100.3 | N437: 100.3 | O437: 100.3 | P437: 99.1 | Q437: 99.1 | R437: 99.1 | S437: 100 | T437: 100 | U437: 100 | V437: 100.8 | W437: 100.8 | X437: 100.8 | Y437: 99 | Z437: 99 | AA437: 99 | AB437: 100.9 | AC437: 100.9 | AD437: 100.9 | AE437: 101.9 | AF437: 102.3 | AG437: 102.3 | AH437: 103.1 | AI437: 103.6 | AJ437: 103.6 | AK437: 113.2 | AL437: 113.6 | AM437: 113.6 | AN437: 113.6 | AO437: 113.6 | AP437: 114.4 | AQ437: 113 | AR437: 112.2 | AS437: 112.2
J438: 98.8 | K438: 102.8 | L438: 86.6 | M438: 86 | N438: 89.6 | O438: 92.4 | P438: 100.6 | Q438: 109.7 | R438: 106.7 | S438: 108 | T438: 106.8 | U438: 111.9 | V438: 116.6 | W438: 125.5 | X438: 129.4 | Y438: 133 | Z438: 133.4 | AA438: 127.7 | AB438: 123 | AC438: 117.8 | AD438: 111.4 | AE438: 114.9 | AF438: 117.1 | AG438: 112.3 | AH438: 117.1 | AI438: 126.1 | AJ438: 133.7 | AK438: 135 | AL438: 127.8 | AM438: 129.6 | AN438: 125.3 | AO438: 126.3 | AP438: 128.8 | AQ438: 135.2 | AR438: 134.5 | AS438: 132.5
J439: 98.8 | K439: 102.8 | L439: 86.6 | M439: 86 | N439: 89.6 | O439: 92.4 | P439: 100.6 | Q439: 109.7 | R439: 106.7 | S439: 108 | T439: 106.8 | U439: 111.9 | V439: 116.6 | W439: 125.5 | X439: 129.4 | Y439: 133 | Z439: 133.4 | AA439: 127.7 | AB439: 123 | AC439: 117.8 | AD439: 111.4 | AE439: 114.9 | AF439: 117.1 | AG439: 112.3 | AH439: 117.1 | AI439: 126.1 | AJ439: 133.7 | AK439: 135 | AL439: 127.8 | AM439: 129.6 | AN439: 125.3 | AO439: 126.3 | AP439: 128.8 | AQ439: 135.2 | AR439: 134.5 | AS439: 132.5
J440: 99.8 | K440: 100 | L440: 100.5 | M440: 100.5 | N440: 99.9 | O440: 100.1 | P440: 100.3 | Q440: 100.1 | R440: 99.8 | S440: 99.9 | T440: 99.8 | U440: 99.4 | V440: 99.8 | W440: 100 | X440: 100 | Y440: 100.1 | Z440: 99.9 | AA440: 100.1 | AB440: 101.5 | AC440: 101.8 | AD440: 102.4 | AE440: 103.4 | AF440: 104.5 | AG440: 105 | AH440: 106.2 | AI440: 106.7 | AJ440: 107.5 | AK440: 108.5 | AL440: 109.5 | AM440: 111.2 | AN440: 114 | AO440: 114.6 | AP440: 115.5 | AQ440: 117.3 | AR440: 118.1 | AS440: 118.4
J441: 99.5 | K441: 100 | L441: 101.1 | M441: 101.1 | N441: 99.8 | O441: 99.9 | P441: 100.8 | Q441: 100.4 | R441: 99.5 | S441: 99.9 | T441: 99.4 | U441: 98.5 | V441: 99.4 | W441: 99.7 | X441: 99 | Y441: 98.9 | Z441: 98.4 | AA441: 98.7 | AB441: 100.5 | AC441: 100.5 | AD441: 101.9 | AE441: 103.5 | AF441: 105 | AG441: 105.2 | AH441: 106.7 | AI441: 107 | AJ441: 108.5 | AK441: 109.1 | AL441: 110.5 | AM441: 110.9 | AN441: 112 | AO441: 112.8 | AP441: 113.3 | AQ441: 115.5 | AR441: 116.2 | AS441: 116.5
J442: 99.8 | K442: 100.2 | L442: 101.8 | M442: 101.1 | N442: 99.5 | O442: 100.2 | P442: 101.6 | Q442: 100.5 | R442: 99 | S442: 99.7 | T442: 98.9 | U442: 97.6 | V442: 99.3 | W442: 99.6 | X442: 98 | Y442: 97.8 | Z442: 97.2 | AA442: 97.9 | AB442: 100.3 | AC442: 99.9 | AD442: 102.3 | AE442: 104.2 | AF442: 105.9 | AG442: 107.9 | AH442: 109.3 | AI442: 110 | AJ442: 112.4 | AK442: 112.1 | AL442: 113.3 | AM442: 114.3 | AN442: 115.3 | AO442: 116.8 | AP442: 117.3 | AQ442: 119.2 | AR442: 120.3 | AS442: 121.2
J443: 99.5 | K443: 99.9 | L443: 101.9 | M443: 101.2 | N443: 99.2 | O443: 100.3 | P443: 102.1 | Q443: 100.8 | R443: 99 | S443: 99.6 | T443: 99.2 | U443: 97.5 | V443: 99.7 | W443: 99.8 | X443: 97.8 | Y443: 97.5 | Z443: 96.6 | AA443: 97.4 | AB443: 100 | AC443: 99.2 | AD443: 102 | AE443: 104.4 | AF443: 106.1 | AG443: 108.8 | AH443: 110.9 | AI443: 111.2 | AJ443: 114.1 | AK443: 113.9 | AL443: 115.4 | AM443: 116.9 | AN443: 118.2 | AO443: 120.2 | AP443: 120.5 | AQ443: 123.1 | AR443: 124.4 | AS443: 125.5
J444: 100.8 | K444: 101.6 | L444: 101.7 | M444: 100.7 | N444: 101.1 | O444: 100.1 | P444: 99.8 | Q444: 99 | R444: 98.9 | S444: 100.5 | T444: 97.8 | U444: 97.9 | V444: 97.8 | W444: 98.8 | X444: 98.9 | Y444: 99 | Z444: 99.8 | AA444: 100.3 | AB444: 101.8 | AC444: 103.1 | AD444: 103.6 | AE444: 102.9 | AF444: 105.1 | AG444: 104.1 | AH444: 102.6 | AI444: 105 | AJ444: 104.9 | AK444: 104 | AL444: 104.2 | AM444: 102.6 | AN444: 102.4 | AO444: 102.2 | AP444: 103.4 | AQ444: 102.1 | AR444: 102.4 | AS444: 102.3
J445: 99.1 | K445: 99.8 | L445: 100 | M445: 101.1 | N445: 100.3 | O445: 99.3 | P445: 99.5 | Q445: 100.4 | R445: 100.3 | S445: 100.1 | T445: 100.2 | U445: 100 | V445: 99.6 | W445: 99.8 | X445: 100.6 | Y445: 100.5 | Z445: 100.2 | AA445: 100 | AB445: 100.8 | AC445: 101.5 | AD445: 101.2 | AE445: 102.4 | AF445: 103.6 | AG445: 101.1 | AH445: 102.6 | AI445: 102.4 | AJ445: 102.7 | AK445: 104.6 | AL445: 106.3 | AM445: 105.8 | AN445: 107.1 | AO445: 106.6 | AP445: 107.2 | AQ445: 109.9 | AR445: 109.9 | AS445: 109.4
J446: 99.1 | K446: 99.6 | L446: 99.6 | M446: 100.7 | N446: 99.5 | O446: 99.3 | P446: 99.5 | Q446: 100 | R446: 101 | S446: 101.2 | T446: 100.7 | U446: 99.9 | V446: 99 | W446: 99.2 | X446: 99.7 | Y446: 100.3 | Z446: 100.4 | AA446: 100.2 | AB446: 100.4 | AC446: 100.6 | AD446: 100.9 | AE446: 101.2 | AF446: 101.8 | AG446: 100.7 | AH446: 100.3 | AI446: 100.3 | AJ446: 101.6 | AK446: 103.2 | AL446: 104.4 | AM446: 106.4 | AN446: 106.5 | AO446: 106.1 | AP446: 106.5 | AQ446: 107.3 | AR446: 107.5 | AS446: 106.9
J447: 99.4 | K447: 99.2 | L447: 101 | M447: 103.1 | N447: 102.4 | O447: 99.2 | P447: 98.9 | Q447: 101 | R447: 98.9 | S447: 98.9 | T447: 99.2 | U447: 98.7 | V447: 98.8 | W447: 100.4 | X447: 102.1 | Y447: 101.1 | Z447: 99.8 | AA447: 99.9 | AB447: 103 | AC447: 102.5 | AD447: 100.6 | AE447: 105.2 | AF447: 105.8 | AG447: 100.3 | AH447: 104 | AI447: 103.2 | AJ447: 99.6 | AK447: 103.7 | AL447: 106.6 | AM447: 102.4 | AN447: 103.1 | AO447: 104.1 | AP447: 104.6 | AQ447: 107.4 | AR447: 110.3 | AS447: 107.3
J448: 97.5 | K448: 101.7 | L448: 100.7 | M448: 99.3 | N448: 99.2 | O448: 99.1 | P448: 100.4 | Q448: 100.4 | R448: 100.7 | S448: 98.1 | T448: 100 | U448: 102.9 | V448: 103.1 | W448: 99.9 | X448: 102.4 | Y448: 100.1 | Z448: 99.9 | AA448: 98.9 | AB448: 96.8 | AC448: 101.8 | AD448: 101.2 | AE448: 96.8 | AF448: 102.4 | AG448: 98.8 | AH448: 106.7 | AI448: 107 | AJ448: 109.8 | AK448: 109 | AL448: 108.3 | AM448: 106.3 | AN448: 114.9 | AO448: 109.3 | AP448: 110.9 | AQ448: 118.7 | AR448: 110.4 | AS448: 115.8
J449: 99.4 | K449: 100.1 | L449: 98.9 | M449: 99.8 | N449: 99.3 | O449: 99.5 | P449: 100 | Q449: 100.3 | R449: 100.7 | S449: 100.7 | T449: 100.7 | U449: 100.5 | V449: 100.5 | W449: 100.4 | X449: 99.4 | Y449: 100.5 | Z449: 100.5 | AA449: 100.5 | AB449: 100.6 | AC449: 101.8 | AD449: 103.4 | AE449: 104.5 | AF449: 105.6 | AG449: 104.8 | AH449: 103.5 | AI449: 103.8 | AJ449: 106.1 | AK449: 107.2 | AL449: 109.5 | AM449: 109.4 | AN449: 110.1 | AO449: 110.5 | AP449: 111.1 | AQ449: 115.4 | AR449: 115.6 | AS449: 115.8
J450: 100.1 | K450: 100 | L450: 100 | M450: 100.1 | N450: 100 | O450: 100.2 | P450: 99.9 | Q450: 99.9 | R450: 100 | S450: 99.9 | T450: 100 | U450: 100 | V450: 100.1 | W450: 100.3 | X450: 100.6 | Y450: 101 | Z450: 101 | AA450: 101.2 | AB450: 102.3 | AC450: 102.8 | AD450: 102.7 | AE450: 103.3 | AF450: 104.1 | AG450: 104.8 | AH450: 105.9 | AI450: 106.4 | AJ450: 106.7 | AK450: 108.1 | AL450: 108.8 | AM450: 111.5 | AN450: 115.4 | AO450: 116.1 | AP450: 117.1 | AQ450: 118.7 | AR450: 119.5 | AS450: 119.9
J451: 99.6 | K451: 99.5 | L451: 99.8 | M451: 100.2 | N451: 100.2 | O451: 99.6 | P451: 99.9 | Q451: 100.3 | R451: 100.2 | S451: 100.2 | T451: 100.2 | U451: 100.3 | V451: 100.1 | W451: 100 | X451: 100 | Y451: 101 | Z451: 100.9 | AA451: 100.9 | AB451: 101 | AC451: 101.4 | AD451: 100.7 | AE451: 100.9 | AF451: 101.3 | AG451: 101.2 | AH451: 100.9 | AI451: 101.2 | AJ451: 101.5 | AK451: 102.7 | AL451: 102.6 | AM451: 103 | AN451: 104.6 | AO451: 105.9 | AP451: 107.7 | AQ451: 110.4 | AR451: 109.7 | AS451: 109.7
J452: 99.7 | K452: 99.5 | L452: 100 | M452: 100.2 | N452: 100.3 | O452: 99.7 | P452: 99.8 | Q452: 100.2 | R452: 100.2 | S452: 100 | T452: 100.1 | U452: 100.4 | V452: 100 | W452: 99.9 | X452: 99.7 | Y452: 101 | Z452: 101 | AA452: 101 | AB452: 101 | AC452: 101.3 | AD452: 100.8 | AE452: 100.6 | AF452: 101.6 | AG452: 101.2 | AH452: 100.9 | AI452: 101.6 | AJ452: 101.7 | AK452: 103.2 | AL452: 103 | AM452: 103.5 | AN452: 105.5 | AO452: 105.5 | AP452: 106.6 | AQ452: 109.9 | AR452: 109.1 | AS452: 109.2
J453: 99.2 | K453: 99.4 | L453: 99.4 | M453: 100.1 | N453: 100.1 | O453: 99.2 | P453: 100.3 | Q453: 100.8 | R453: 100.3 | S453: 101 | T453: 100.3 | U453: 100 | V453: 100.4 | W453: 100.5 | X453: 100.9 | Y453: 101.2 | Z453: 100.7 | AA453: 100.4 | AB453: 100.8 | AC453: 101.8 | AD453: 100.2 | AE453: 101.6 | AF453: 100.5 | AG453: 101 | AH453: 101 | AI453: 99.9 | AJ453: 101.1 | AK453: 101 | AL453: 101.5 | AM453: 101.4 | AN453: 101.7 | AO453: 107 | AP453: 111 | AQ453: 111.9 | AR453: 111.4 | AS453: 111
J454: 99.7 | K454: 99.7 | L454: 99.7 | M454: 100.1 | N454: 100.1 | O454: 100.1 | P454: 100.2 | Q454: 100.1 | R454: 100.1 | S454: 100 | T454: 100 | U454: 100 | V454: 100 | W454: 99.9 | X454: 100.1 | Y454: 100.7 | Z454: 100.7 | AA454: 100.7 | AB454: 100.8 | AC454: 101 | AD454: 101 | AE454: 102.3 | AF454: 102.9 | AG454: 103.5 | AH454: 104.3 | AI454: 104.9 | AJ454: 105.4 | AK454: 106.7 | AL454: 107.4 | AM454: 108.3 | AN454: 110.2 | AO454: 111.3 | AP454: 111.8 | AQ454: 113.7 | AR454: 116.1 | AS454: 116.2
J455: 99.8 | K455: 99.8 | L455: 99.9 | M455: 100.1 | N455: 100.1 | O455: 100 | P455: 100.1 | Q455: 100.1 | R455: 100.1 | S455: 100 | T455: 100 | U455: 100 | V455: 100 | W455: 100 | X455: 100 | Y455: 100 | Z455: 100 | AA455: 100 | AB455: 100 | AC455: 100 | AD455: 99.7 | AE455: 99.5 | AF455: 100 | AG455: 100 | AH455: 100 | AI455: 100.2 | AJ455: 101.2 | AK455: 101.9 | AL455: 102.1 | AM455: 102.1 | AN455: 102.2 | AO455: 102.2 | AP455: 102.9 | AQ455: 105 | AR455: 105.2 | AS455: 105.7
J456: 99.7 | K456: 99.7 | L456: 99.6 | M456: 100.2 | N456: 100.1 | O456: 100.2 | P456: 100.3 | Q456: 100.2 | R456: 100.1 | S456: 100 | T456: 100 | U456: 100 | V456: 99.9 | W456: 99.9 | X456: 100.2 | Y456: 101.2 | Z456: 101.2 | AA456: 101.3 | AB456: 101.4 | AC456: 101.7 | AD456: 101.9 | AE456: 104.3 | AF456: 105.1 | AG456: 106.2 | AH456: 107.5 | AI456: 108.3 | AJ456: 108.5 | AK456: 110.2 | AL456: 111.3 | AM456: 112.8 | AN456: 116 | AO456: 118 | AP456: 118.4 | AQ456: 120.1 | AR456: 124.2 | AS456: 123.9
J457: 99.9 | K457: 99.9 | L457: 99.9 | M457: 100 | N457: 100 | O457: 99.9 | P457: 99.9 | Q457: 99.9 | R457: 99.8 | S457: 99.9 | T457: 100.4 | U457: 100.5 | V457: 100.5 | W457: 100.5 | X457: 100.5 | Y457: 100.2 | Z457: 100.1 | AA457: 101.8 | AB457: 102 | AC457: 101.1 | AD457: 101.6 | AE457: 101.6 | AF457: 102.1 | AG457: 106.5 | AH457: 107.5 | AI457: 107.6 | AJ457: 107.8 | AK457: 109.1 | AL457: 109.1 | AM457: 109.3 | AN457: 110.5 | AO457: 112.3 | AP457: 113.3 | AQ457: 116.5 | AR457: 116.7 | AS457: 117.1
J458: 99.5 | K458: 99.6 | L458: 99.6 | M458: 99.9 | N458: 100 | O458: 99.7 | P458: 99.7 | Q458: 99.4 | R458: 99.3 | S458: 99.7 | T458: 101.7 | U458: 102 | V458: 102.4 | W458: 102.3 | X458: 102.3 | Y458: 102.5 | Z458: 102.3 | AA458: 102.3 | AB458: 102.3 | AC458: 98.4 | AD458: 98.4 | AE458: 98.3 | AF458: 98.3 | AG458: 98.4 | AH458: 98.5 | AI458: 99 | AJ458: 99.8 | AK458: 103.7 | AL458: 103.6 | AM458: 103.7 | AN458: 103.8 | AO458: 103.9 | AP458: 104.3 | AQ458: 106.6 | AR458: 106.8 | AS458: 106.8
J459: 100 | K459: 100 | L459: 100 | M459: 100 | N459: 100 | O459: 100 | P459: 100 | Q459: 100 | R459: 100 | S459: 100 | T459: 100 | U459: 100 | V459: 100 | W459: 100 | X459: 100 | Y459: 99 | Z459: 99 | AA459: 99 | AB459: 99 | AC459: 99 | AD459: 99 | AE459: 99 | AF459: 99 | AG459: 99 | AH459: 100.5 | AI459: 100.5 | AJ459: 100.5 | AK459: 100.5 | AL459: 100.5 | AM459: 100.5 | AN459: 100.5 | AO459: 100.5 | AP459: 100.5 | AQ459: 102.2 | AR459: 102.2 | AS459: 102.2
J460: 100 | K460: 100 | L460: 100 | M460: 100 | N460: 100 | O460: 100 | P460: 100 | Q460: 100 | R460: 100 | S460: 100 | T460: 100 | U460: 100 | V460: 100 | W460: 100 | X460: 100 | Y460: 100 | Z460: 100 | AA460: 100 | AB460: 100 | AC460: 100 | AD460: 103.5 | AE460: 103.5 | AF460: 103.5 | AG460: 103.5 | AH460: 103.5 | AI460: 103.5 | AJ460: 103.5 | AK460: 106.5 | AL460: 106.5 | AM460: 106.5 | AN460: 114.8 | AO460: 114.8 | AP460: 114.8 | AQ460: 128.9 | AR460: 128.9 | AS460: 132.3
J461: 100 | K461: 100 | L461: 100 | M461: 100 | N461: 100 | O461: 100 | P461: 100 | Q461: 100 | R461: 100 | S461: 100 | T461: 100 | U461: 100 | V461: 100 | W461: 100 | X461: 100 | Y461: 100 | Z461: 100 | AA461: 107.5 | AB461: 108.4 | AC461: 108.4 | AD461: 108.4 | AE461: 108.4 | AF461: 110.8 | AG461: 130.1 | AH461: 131.4 | AI461: 131.4 | AJ461: 131.6 | AK461: 131.6 | AL461: 131.8 | AM461: 132.5 | AN461: 132.5 | AO461: 140.7 | AP461: 144.5 | AQ461: 144.8 | AR461: 145.2 | AS461: 145.2
J462: 100.1 | K462: 99.9 | L462: 99.9 | M462: 100.2 | N462: 100 | O462: 100.4 | P462: 99.9 | Q462: 100 | R462: 100.2 | S462: 99.8 | T462: 99.9 | U462: 99.7 | V462: 100.1 | W462: 99.8 | X462: 100.1 | Y462: 100.1 | Z462: 100 | AA462: 100.2 | AB462: 104.7 | AC462: 104.6 | AD462: 105 | AE462: 104.9 | AF462: 105.8 | AG462: 106.1 | AH462: 106.1 | AI462: 106.1 | AJ462: 106.3 | AK462: 106.8 | AL462: 106.9 | AM462: 115.2 | AN462: 126.6 | AO462: 127 | AP462: 127 | AQ462: 128 | AR462: 128.1 | AS462: 128.9
J463: 99 | K463: 99 | L463: 99 | M463: 100.3 | N463: 100.3 | O463: 100.3 | P463: 100.3 | Q463: 100.3 | R463: 100.3 | S463: 100.3 | T463: 100.3 | U463: 100.3 | V463: 100.3 | W463: 100.3 | X463: 100.3 | Y463: 99.8 | Z463: 99.8 | AA463: 99.8 | AB463: 99.8 | AC463: 99.8 | AD463: 99.8 | AE463: 99.8 | AF463: 99.8 | AG463: 99.8 | AH463: 99.8 | AI463: 100.5 | AJ463: 100.5 | AK463: 100.5 | AL463: 100.5 | AM463: 101.5 | AN463: 103.8 | AO463: 103.8 | AP463: 103.8 | AQ463: 103.8 | AR463: 103.8 | AS463: 103.8
J464: 100 | K464: 100 | L464: 100 | M464: 100 | N464: 100 | O464: 100 | P464: 100 | Q464: 100 | R464: 100 | S464: 100 | T464: 100 | U464: 100 | V464: 100 | W464: 100 | X464: 100 | Y464: 100 | Z464: 100 | AA464: 100 | AB464: 113.1 | AC464: 113.1 | AD464: 113.1 | AE464: 113.1 | AF464: 115.9 | AG464: 115.9 | AH464: 115.9 | AI464: 115.9 | AJ464: 115.9 | AK464: 115.9 | AL464: 115.9 | AM464: 135.1 | AN464: 165.7 | AO464: 165.7 | AP464: 165.7 | AQ464: 165.7 | AR464: 165.7 | AS464: 165.7
J465: 101.5 | K465: 99.9 | L465: 99.7 | M465: 100.6 | N465: 99.1 | O465: 102.5 | P465: 99.1 | Q465: 99.7 | R465: 101.3 | S465: 98.6 | T465: 99.8 | U465: 98.2 | V465: 101.1 | W465: 98.6 | X465: 101.2 | Y465: 100.8 | Z465: 99.9 | AA465: 101.4 | AB465: 101.5 | AC465: 100.5 | AD465: 100.8 | AE465: 98.3 | AF465: 97.4 | AG465: 100.3 | AH465: 99.9 | AI465: 98.3 | AJ465: 97.8 | AK465: 100.8 | AL465: 101.8 | AM465: 114.7 | AN465: 118.8 | AO465: 120.9 | AP465: 119.1 | AQ465: 119.4 | AR465: 116.9 | AS465: 122.6
J466: 100.4 | K466: 100.4 | L466: 100.4 | M466: 100.3 | N466: 100 | O466: 100 | P466: 99.9 | Q466: 100 | R466: 99.9 | S466: 99.7 | T466: 99.6 | U466: 99.6 | V466: 99.5 | W466: 99.5 | X466: 99.5 | Y466: 100.3 | Z466: 100.3 | AA466: 100.3 | AB466: 100.3 | AC466: 100.3 | AD466: 101.6 | AE466: 102.1 | AF466: 102.2 | AG466: 102.2 | AH466: 102.2 | AI466: 102.5 | AJ466: 103.3 | AK466: 103.8 | AL466: 103.8 | AM466: 103.8 | AN466: 103.8 | AO466: 104.2 | AP466: 104.9 | AQ466: 107.6 | AR466: 109.2 | AS466: 109.3
J467: 100.6 | K467: 100.4 | L467: 100.3 | M467: 99.9 | N467: 99.9 | O467: 100.5 | P467: 99.6 | Q467: 99.4 | R467: 99.9 | S467: 99.7 | T467: 99.9 | U467: 99.8 | V467: 100.2 | W467: 100.9 | X467: 101.8 | Y467: 102.1 | Z467: 102.1 | AA467: 102.1 | AB467: 102.7 | AC467: 104.2 | AD467: 104 | AE467: 104.7 | AF467: 105.9 | AG467: 106.1 | AH467: 108.8 | AI467: 109.7 | AJ467: 109.9 | AK467: 112.1 | AL467: 113.5 | AM467: 115.9 | AN467: 118.6 | AO467: 118.3 | AP467: 120.2 | AQ467: 121.1 | AR467: 121.8 | AS467: 122.3
J468: 100.9 | K468: 100.3 | L468: 99.8 | M468: 99.5 | N468: 99.6 | O468: 100.4 | P468: 99.5 | Q468: 101.1 | R468: 100.3 | S468: 99.6 | T468: 99.6 | U468: 99.5 | V468: 100.2 | W468: 100.6 | X468: 100.9 | Y468: 100.5 | Z468: 100.1 | AA468: 100.3 | AB468: 101.5 | AC468: 99.9 | AD468: 99.6 | AE468: 100.4 | AF468: 100.7 | AG468: 100.4 | AH468: 100.6 | AI468: 100.9 | AJ468: 99.6 | AK468: 101.9 | AL468: 103.1 | AM468: 103.2 | AN468: 106.1 | AO468: 106.2 | AP468: 106.7 | AQ468: 107.4 | AR468: 107.1 | AS468: 107.8
J469: 99.7 | K469: 99.7 | L469: 99.7 | M469: 100.1 | N469: 100.1 | O469: 100.1 | P469: 100.1 | Q469: 100.1 | R469: 100.1 | S469: 100.1 | T469: 100.1 | U469: 100.1 | V469: 100.1 | W469: 100.1 | X469: 100.1 | Y469: 99.6 | Z469: 99.6 | AA469: 99.6 | AB469: 99.6 | AC469: 104.2 | AD469: 104.2 | AE469: 106.7 | AF469: 106.7 | AG469: 106.7 | AH469: 110.9 | AI469: 110.9 | AJ469: 110.9 | AK469: 115 | AL469: 115 | AM469: 124.7 | AN469: 124.7 | AO469: 124.7 | AP469: 124.7 | AQ469: 127.7 | AR469: 127.7 | AS469: 127.7
J470: 100 | K470: 100 | L470: 100 | M470: 100 | N470: 100 | O470: 100 | P470: 100 | Q470: 100 | R470: 100 | S470: 100 | T470: 100 | U470: 100 | V470: 101 | W470: 101 | X470: 101 | Y470: 101 | Z470: 101 | AA470: 101 | AB470: 101 | AC470: 101 | AD470: 101 | AE470: 101 | AF470: 101 | AG470: 101 | AH470: 104.6 | AI470: 104.6 | AJ470: 104.6 | AK470: 105.3 | AL470: 105.3 | AM470: 105.3 | AN470: 111.1 | AO470: 110.7 | AP470: 110.7 | AQ470: 110.2 | AR470: 110.6 | AS470: 110.6
J471: 102.9 | K471: 102.9 | L471: 102.9 | M471: 100.5 | N471: 100.8 | O471: 99.6 | P471: 97.6 | Q471: 98.6 | R471: 98.6 | S471: 98.6 | T471: 98.6 | U471: 98.6 | V471: 98.6 | W471: 101.2 | X471: 106.3 | Y471: 108.1 | Z471: 109.6 | AA471: 109.6 | AB471: 115.9 | AC471: 119.3 | AD471: 121.6 | AE471: 123.1 | AF471: 124.1 | AG471: 125.3 | AH471: 133.8 | AI471: 135.5 | AJ471: 139.7 | AK471: 145 | AL471: 146.4 | AM471: 153 | AN471: 153.1 | AO471: 157.8 | AP471: 164.7 | AQ471: 167.1 | AR471: 166.5 | AS471: 166.5
J472: 99.5 | K472: 100.4 | L472: 99.4 | M472: 100.2 | N472: 100.8 | O472: 99.7 | P472: 100.1 | Q472: 99.8 | R472: 99.8 | S472: 99.8 | T472: 100.1 | U472: 100.4 | V472: 100 | W472: 100.9 | X472: 99.1 | Y472: 101.1 | Z472: 101.1 | AA472: 102.7 | AB472: 99.6 | AC472: 105.1 | AD472: 100.2 | AE472: 103.7 | AF472: 106.2 | AG472: 107.5 | AH472: 108.5 | AI472: 110.2 | AJ472: 110.2 | AK472: 112.4 | AL472: 116.5 | AM472: 120.7 | AN472: 120.1 | AO472: 119.4 | AP472: 124.3 | AQ472: 122.7 | AR472: 125.9 | AS472: 130.5
J473: 100 | K473: 100 | L473: 100 | M473: 100 | N473: 100 | O473: 100 | P473: 100 | Q473: 100 | R473: 100 | S473: 100 | T473: 100 | U473: 100 | V473: 100 | W473: 100 | X473: 100 | Y473: 101.3 | Z473: 103.9 | AA473: 103.9 | AB473: 103.9 | AC473: 103.9 | AD473: 106.6 | AE473: 106.6 | AF473: 108.7 | AG473: 108.7 | AH473: 112.7 | AI473: 118.5 | AJ473: 115.1 | AK473: 118.5 | AL473: 118.5 | AM473: 118.5 | AN473: 118.5 | AO473: 115.1 | AP473: 119 | AQ473: 119.3 | AR473: 124.2 | AS473: 123.9
J474: 100.3 | K474: 99.4 | L474: 100.1 | M474: 99.7 | N474: 98.6 | O474: 103.1 | P474: 100.6 | Q474: 95.6 | R474: 100 | S474: 100.3 | T474: 101.6 | U474: 100.8 | V474: 100.6 | W474: 101.4 | X474: 102.7 | Y474: 102.6 | Z474: 100.9 | AA474: 99.9 | AB474: 97.1 | AC474: 101.2 | AD474: 98.7 | AE474: 98.1 | AF474: 102.7 | AG474: 102.4 | AH474: 101.5 | AI474: 102.6 | AJ474: 103 | AK474: 102.6 | AL474: 107 | AM474: 108.6 | AN474: 112.4 | AO474: 107.9 | AP474: 108.8 | AQ474: 111.2 | AR474: 113.3 | AS474: 113.3
J475: 99.9 | K475: 99.4 | L475: 99.6 | M475: 100.3 | N475: 100.5 | O475: 100.2 | P475: 100.2 | Q475: 100.2 | R475: 99.8 | S475: 100.5 | T475: 99.8 | U475: 99.7 | V475: 100.5 | W475: 99.8 | X475: 99.5 | Y475: 100 | Z475: 100.2 | AA475: 100.9 | AB475: 100.5 | AC475: 100.4 | AD475: 100.2 | AE475: 100.9 | AF475: 101.2 | AG475: 101 | AH475: 101.5 | AI475: 101.4 | AJ475: 101.4 | AK475: 102 | AL475: 102.2 | AM475: 102.4 | AN475: 102.9 | AO475: 102.8 | AP475: 102.7 | AQ475: 103.6 | AR475: 104.2 | AS475: 104.2
J476: 99.9 | K476: 99.4 | L476: 99.6 | M476: 100.3 | N476: 100.5 | O476: 100.2 | P476: 100.2 | Q476: 100.2 | R476: 99.8 | S476: 100.5 | T476: 99.8 | U476: 99.7 | V476: 100.5 | W476: 99.8 | X476: 99.5 | Y476: 100 | Z476: 100.2 | AA476: 100.9 | AB476: 100.5 | AC476: 100.4 | AD476: 100.2 | AE476: 100.9 | AF476: 101.2 | AG476: 101 | AH476: 101.5 | AI476: 101.4 | AJ476: 101.4 | AK476: 102 | AL476: 102.2 | AM476: 102.4 | AN476: 102.9 | AO476: 102.8 | AP476: 102.7 | AQ476: 103.6 | AR476: 104.2 | AS476: 104.2
J477: 98.9 | K477: 99.5 | L477: 98.2 | M477: 98.5 | N477: 101.4 | O477: 99.1 | P477: 99 | Q477: 98.5 | R477: 99.8 | S477: 103.1 | T477: 102.4 | U477: 101.6 | V477: 102.8 | W477: 100.4 | X477: 100.4 | Y477: 101.9 | Z477: 101.7 | AA477: 102.1 | AB477: 102.1 | AC477: 101.9 | AD477: 102 | AE477: 100.3 | AF477: 101 | AG477: 100.3 | AH477: 101 | AI477: 100.2 | AJ477: 99.9 | AK477: 100 | AL477: 100.1 | AM477: 99.9 | AN477: 100.1 | AO477: 100.7 | AP477: 99.8 | AQ477: 100.4 | AR477: 100.9 | AS477: 100.9
J478: 98.9 | K478: 99.5 | L478: 98.2 | M478: 98.5 | N478: 101.4 | O478: 99.1 | P478: 99 | Q478: 98.5 | R478: 99.8 | S478: 103.1 | T478: 102.4 | U478: 101.6 | V478: 102.8 | W478: 100.4 | X478: 100.4 | Y478: 101.9 | Z478: 101.7 | AA478: 102.1 | AB478: 102.1 | AC478: 101.9 | AD478: 102 | AE478: 100.3 | AF478: 101 | AG478: 100.3 | AH478: 101 | AI478: 100.2 | AJ478: 99.9 | AK478: 100 | AL478: 100.1 | AM478: 99.9 | AN478: 100.1 | AO478: 100.7 | AP478: 99.8 | AQ478: 100.4 | AR478: 100.9 | AS478: 100.9
J479: 97.8 | K479: 97.8 | L479: 97.8 | M479: 100.5 | N479: 100.5 | O479: 100.5 | P479: 100.5 | Q479: 100.5 | R479: 100.5 | S479: 101.1 | T479: 101.1 | U479: 101.1 | V479: 102.4 | W479: 99.4 | X479: 99.4 | Y479: 99.1 | Z479: 99.1 | AA479: 99.1 | AB479: 99.1 | AC479: 99.1 | AD479: 103.9 | AE479: 103 | AF479: 103 | AG479: 105.2 | AH479: 105.1 | AI479: 105.1 | AJ479: 105.1 | AK479: 105.1 | AL479: 105.1 | AM479: 105.1 | AN479: 105.1 | AO479: 104.5 | AP479: 104.5 | AQ479: 104.5 | AR479: 104.5 | AS479: 100.6
J480: 97.8 | K480: 97.8 | L480: 97.8 | M480: 100.5 | N480: 100.5 | O480: 100.5 | P480: 100.5 | Q480: 100.5 | R480: 100.5 | S480: 101.1 | T480: 101.1 | U480: 101.1 | V480: 102.4 | W480: 99.4 | X480: 99.4 | Y480: 99.1 | Z480: 99.1 | AA480: 99.1 | AB480: 99.1 | AC480: 99.1 | AD480: 103.9 | AE480: 103 | AF480: 103 | AG480: 105.2 | AH480: 105.1 | AI480: 105.1 | AJ480: 105.1 | AK480: 105.1 | AL480: 105.1 | AM480: 105.1 | AN480: 105.1 | AO480: 104.5 | AP480: 104.5 | AQ480: 104.5 | AR480: 104.5 | AS480: 100.6
J481: 100.1 | K481: 100.1 | L481: 100.1 | M481: 100 | N481: 100 | O481: 100 | P481: 100 | Q481: 100 | R481: 100 | S481: 100.1 | T481: 100 | U481: 100 | V481: 101.3 | W481: 101.3 | X481: 101.3 | Y481: 101.3 | Z481: 101.3 | AA481: 101.3 | AB481: 101.9 | AC481: 101.9 | AD481: 101.9 | AE481: 102 | AF481: 102 | AG481: 102 | AH481: 102.3 | AI481: 102.3 | AJ481: 102.3 | AK481: 102.3 | AL481: 102.3 | AM481: 102.3 | AN481: 103.5 | AO481: 102.1 | AP481: 102.1 | AQ481: 102.2 | AR481: 102.2 | AS481: 102.2
J482: 100.1 | K482: 100.1 | L482: 100.1 | M482: 100 | N482: 100 | O482: 100 | P482: 100 | Q482: 100 | R482: 100 | S482: 100.1 | T482: 100 | U482: 100 | V482: 101.3 | W482: 101.3 | X482: 101.3 | Y482: 101.3 | Z482: 101.3 | AA482: 101.3 | AB482: 101.9 | AC482: 101.9 | AD482: 101.9 | AE482: 102 | AF482: 102 | AG482: 102 | AH482: 102.3 | AI482: 102.3 | AJ482: 102.3 | AK482: 102.3 | AL482: 102.3 | AM482: 102.3 | AN482: 103.5 | AO482: 102.1 | AP482: 102.1 | AQ482: 102.2 | AR482: 102.2 | AS482: 102.2
J483: 100.2 | K483: 100 | L483: 98.8 | M483: 100.6 | N483: 100.7 | O483: 100 | P483: 100.6 | Q483: 100.6 | R483: 98 | S483: 101.2 | T483: 100 | U483: 99.2 | V483: 99.6 | W483: 99 | X483: 96.8 | Y483: 99.4 | Z483: 98.2 | AA483: 99.2 | AB483: 98.3 | AC483: 98.4 | AD483: 97.2 | AE483: 100.2 | AF483: 98.9 | AG483: 99 | AH483: 99.9 | AI483: 100.3 | AJ483: 99.5 | AK483: 101.5 | AL483: 101 | AM483: 100.6 | AN483: 101.3 | AO483: 100.3 | AP483: 99.4 | AQ483: 102.8 | AR483: 101.5 | AS483: 102.3
J484: 100.1 | K484: 97.5 | L484: 98.9 | M484: 100.5 | N484: 102.8 | O484: 99 | P484: 101.5 | Q484: 99.8 | R484: 99.4 | S484: 100 | T484: 99.7 | U484: 100.9 | V484: 101.7 | W484: 99.1 | X484: 98.3 | Y484: 99 | Z484: 101.5 | AA484: 100.5 | AB484: 101.6 | AC484: 100.4 | AD484: 100.8 | AE484: 101.1 | AF484: 99.7 | AG484: 98.9 | AH484: 101.2 | AI484: 103 | AJ484: 102.7 | AK484: 105 | AL484: 102.1 | AM484: 100 | AN484: 102.6 | AO484: 103.6 | AP484: 103.2 | AQ484: 103.8 | AR484: 103.5 | AS484: 108.5
J485: 100.7 | K485: 100.6 | L485: 100 | M485: 100.3 | N485: 99.7 | O485: 99.4 | P485: 98.9 | Q485: 100.3 | R485: 101.6 | S485: 99.1 | T485: 99.5 | U485: 99.7 | V485: 99.6 | W485: 100.4 | X485: 100.7 | Y485: 100.4 | Z485: 100.4 | AA485: 100.2 | AB485: 99.9 | AC485: 100.3 | AD485: 100.1 | AE485: 100.1 | AF485: 99.1 | AG485: 99.5 | AH485: 102 | AI485: 104.7 | AJ485: 103.1 | AK485: 103.1 | AL485: 106.5 | AM485: 105.4 | AN485: 106.2 | AO485: 108.1 | AP485: 107.6 | AQ485: 108.6 | AR485: 109.1 | AS485: 109.1
J486: 99.6 | K486: 100.3 | L486: 100.5 | M486: 100.2 | N486: 100.2 | O486: 100.7 | P486: 100.2 | Q486: 99.6 | R486: 100.3 | S486: 99.5 | T486: 99.7 | U486: 99.3 | V486: 99.1 | W486: 99.9 | X486: 100.5 | Y486: 100 | Z486: 99.3 | AA486: 100.1 | AB486: 99.5 | AC486: 99.8 | AD486: 99.9 | AE486: 99.4 | AF486: 101.9 | AG486: 101.3 | AH486: 100.6 | AI486: 101.7 | AJ486: 101 | AK486: 103.2 | AL486: 103.3 | AM486: 103.5 | AN486: 103.2 | AO486: 103.1 | AP486: 102.3 | AQ486: 103.2 | AR486: 103.2 | AS486: 103.6
J487: 100.7 | K487: 99.9 | L487: 99.6 | M487: 100.2 | N487: 100.8 | O487: 100.4 | P487: 100.2 | Q487: 100.1 | R487: 99.8 | S487: 99.7 | T487: 99.6 | U487: 98.9 | V487: 99 | W487: 98.8 | X487: 98.8 | Y487: 98.6 | Z487: 98.6 | AA487: 98.9 | AB487: 98.6 | AC487: 98.9 | AD487: 99.1 | AE487: 98.5 | AF487: 99.5 | AG487: 99.4 | AH487: 99.4 | AI487: 99.1 | AJ487: 99.6 | AK487: 99.6 | AL487: 100.4 | AM487: 100.4 | AN487: 100.7 | AO487: 101 | AP487: 100.8 | AQ487: 101.4 | AR487: 102.5 | AS487: 102.5
J488: 100.7 | K488: 100.7 | L488: 100.7 | M488: 100.6 | N488: 99.9 | O488: 99.9 | P488: 99.9 | Q488: 99.9 | R488: 99.9 | S488: 99.3 | T488: 99.3 | U488: 99.3 | V488: 99.3 | W488: 99.3 | X488: 99.3 | Y488: 99.4 | Z488: 99.4 | AA488: 99.4 | AB488: 99.4 | AC488: 99.4 | AD488: 100.6 | AE488: 100.9 | AF488: 100.9 | AG488: 103.8 | AH488: 103.8 | AI488: 106.7 | AJ488: 109.2 | AK488: 109.2 | AL488: 111 | AM488: 111 | AN488: 111 | AO488: 111.2 | AP488: 110.7 | AQ488: 112.1 | AR488: 113.5 | AS488: 116.2
J489: 98.5 | K489: 99.3 | L489: 101.5 | M489: 97 | N489: 104.5 | O489: 100.5 | P489: 102 | Q489: 98.7 | R489: 95.2 | S489: 101.7 | T489: 104.5 | U489: 96.7 | V489: 97.2 | W489: 96.6 | X489: 92.7 | Y489: 95.1 | Z489: 94.1 | AA489: 100.7 | AB489: 95.5 | AC489: 97.1 | AD489: 96.7 | AE489: 100.5 | AF489: 97.2 | AG489: 97.2 | AH489: 98.6 | AI489: 95.8 | AJ489: 99.7 | AK489: 97.9 | AL489: 100.1 | AM489: 97.3 | AN489: 98.7 | AO489: 93.3 | AP489: 96.8 | AQ489: 102 | AR489: 98.9 | AS489: 98.9
J490: 100.8 | K490: 100.5 | L490: 96.4 | M490: 102.2 | N490: 99.3 | O490: 100 | P490: 100.5 | Q490: 102.2 | R490: 96.6 | S490: 103 | T490: 98.9 | U490: 99.6 | V490: 100.3 | W490: 99.2 | X490: 95.2 | Y490: 100.8 | Z490: 97.8 | AA490: 97.7 | AB490: 97.4 | AC490: 97.2 | AD490: 93.8 | AE490: 100.3 | AF490: 97.8 | AG490: 97.4 | AH490: 98.5 | AI490: 98.6 | AJ490: 94.8 | AK490: 99.3 | AL490: 97 | AM490: 97.4 | AN490: 98 | AO490: 96.8 | AP490: 94.1 | AQ490: 99.7 | AR490: 96.8 | AS490: 96.8
J491: 99.4 | K491: 98.7 | L491: 99.6 | M491: 101.3 | N491: 101.2 | O491: 100.8 | P491: 100.9 | Q491: 100.7 | R491: 100.3 | S491: 99.6 | T491: 98.1 | U491: 99.5 | V491: 99.8 | W491: 98.6 | X491: 100 | Y491: 99.4 | Z491: 99.7 | AA491: 100.9 | AB491: 98.8 | AC491: 99.7 | AD491: 99.7 | AE491: 99.9 | AF491: 100.4 | AG491: 101 | AH491: 99.1 | AI491: 99.7 | AJ491: 98.8 | AK491: 99.6 | AL491: 101 | AM491: 101.9 | AN491: 103 | AO491: 102.6 | AP491: 103.9 | AQ491: 103.1 | AR491: 103.1 | AS491: 102.6
J492: 98 | K492: 97.5 | L492: 98.1 | M492: 99.9 | N492: 102.1 | O492: 99.4 | P492: 101 | Q492: 100.2 | R492: 100.3 | S492: 100.8 | T492: 101.8 | U492: 100.7 | V492: 99.3 | W492: 98.8 | X492: 98.6 | Y492: 99 | Z492: 97.5 | AA492: 99.3 | AB492: 98.5 | AC492: 100.3 | AD492: 98.9 | AE492: 100.5 | AF492: 97.7 | AG492: 100.6 | AH492: 97.1 | AI492: 98.6 | AJ492: 95 | AK492: 95.3 | AL492: 99.6 | AM492: 101.5 | AN492: 98.6 | AO492: 100.8 | AP492: 100.8 | AQ492: 98.5 | AR492: 102.6 | AS492: 99.3
J493: 99.1 | K493: 100.6 | L493: 100.5 | M493: 100.5 | N493: 100.6 | O493: 100.9 | P493: 101.8 | Q493: 101.6 | R493: 101.7 | S493: 99.1 | T493: 97.5 | U493: 96 | V493: 98.9 | W493: 98.5 | X493: 101.4 | Y493: 101.2 | Z493: 101.1 | AA493: 102.2 | AB493: 101.2 | AC493: 98.5 | AD493: 100.1 | AE493: 99.9 | AF493: 99.8 | AG493: 100.6 | AH493: 102.5 | AI493: 101 | AJ493: 101.5 | AK493: 101.7 | AL493: 102 | AM493: 104.6 | AN493: 110.7 | AO493: 110.3 | AP493: 107.9 | AQ493: 107.3 | AR493: 106.9 | AS493: 106.9
J494: 100 | K494: 100 | L494: 100 | M494: 100 | N494: 100 | O494: 100 | P494: 100 | Q494: 100 | R494: 100 | S494: 100 | T494: 100 | U494: 100 | V494: 100 | W494: 100 | X494: 100 | Y494: 100 | Z494: 100 | AA494: 100 | AB494: 100 | AC494: 100 | AD494: 100 | AE494: 100 | AF494: 100 | AG494: 100 | AH494: 100 | AI494: 100 | AJ494: 100 | AK494: 100.8 | AL494: 100.8 | AM494: 100.8 | AN494: 100.8 | AO494: 100.8 | AP494: 109.9 | AQ494: 109.9 | AR494: 109.9 | AS494: 109.9
J495: 99.8 | K495: 98.2 | L495: 99.6 | M495: 102.2 | N495: 101.3 | O495: 101.3 | P495: 100.7 | Q495: 100.6 | R495: 99.8 | S495: 99.4 | T495: 97 | U495: 100.3 | V495: 100.3 | W495: 98.4 | X495: 99.9 | Y495: 98.7 | Z495: 99.8 | AA495: 101.1 | AB495: 97.9 | AC495: 99.9 | AD495: 99.7 | AE495: 99.7 | AF495: 101.5 | AG495: 101.3 | AH495: 98.4 | AI495: 99.5 | AJ495: 98.8 | AK495: 100 | AL495: 101 | AM495: 101.2 | AN495: 101.8 | AO495: 100.7 | AP495: 102.4 | AQ495: 102 | AR495: 101 | AS495: 101
J496: 100.6 | K496: 99 | L496: 100.8 | M496: 99.8 | N496: 100.4 | O496: 100.1 | P496: 100.3 | Q496: 100.3 | R496: 100.1 | S496: 100.3 | T496: 99.3 | U496: 99 | V496: 100.4 | W496: 100.7 | X496: 100.3 | Y496: 100.1 | Z496: 100.4 | AA496: 101 | AB496: 101 | AC496: 100.8 | AD496: 99.9 | AE496: 101.3 | AF496: 101.8 | AG496: 100 | AH496: 102.4 | AI496: 101.2 | AJ496: 102.1 | AK496: 101.5 | AL496: 101.1 | AM496: 101.3 | AN496: 101.6 | AO496: 101.6 | AP496: 101.9 | AQ496: 102.3 | AR496: 102.9 | AS496: 102.9
J497: 100 | K497: 100 | L497: 100 | M497: 100 | N497: 100 | O497: 100 | P497: 100 | Q497: 100 | R497: 100 | S497: 100 | T497: 100 | U497: 100 | V497: 100 | W497: 100 | X497: 100 | Y497: 100 | Z497: 100 | AA497: 100 | AB497: 100 | AC497: 100 | AD497: 100 | AE497: 103.4 | AF497: 103.4 | AG497: 103.4 | AH497: 103.4 | AI497: 103.4 | AJ497: 103.4 | AK497: 103.4 | AL497: 103.4 | AM497: 103.4 | AN497: 103.4 | AO497: 103.4 | AP497: 103.4 | AQ497: 106.1 | AR497: 106.1 | AS497: 106.1
J498: 100.1 | K498: 99 | L498: 100.2 | M498: 99 | N498: 98.8 | O498: 97 | P498: 99.1 | Q498: 102 | R498: 102.7 | S498: 101.4 | T498: 100.3 | U498: 100.4 | V498: 101.3 | W498: 100.6 | X498: 99.6 | Y498: 100.4 | Z498: 99.1 | AA498: 99.9 | AB498: 99.3 | AC498: 100 | AD498: 100.2 | AE498: 99 | AF498: 99.3 | AG498: 99.1 | AH498: 99.4 | AI498: 99.5 | AJ498: 99.2 | AK498: 98 | AL498: 99.1 | AM498: 101.9 | AN498: 101.6 | AO498: 101.9 | AP498: 102.4 | AQ498: 101.8 | AR498: 102.1 | AS498: 102.1
J499: 101 | K499: 98.6 | L499: 101.2 | M499: 99.8 | N499: 100.8 | O499: 100.5 | P499: 100.6 | Q499: 100.2 | R499: 99.8 | S499: 100.2 | T499: 98.9 | U499: 98.3 | V499: 100.4 | W499: 101.1 | X499: 100.5 | Y499: 100 | Z499: 100.9 | AA499: 101.6 | AB499: 101.7 | AC499: 101.2 | AD499: 99.7 | AE499: 100.6 | AF499: 101.3 | AG499: 98.5 | AH499: 102.3 | AI499: 100.5 | AJ499: 101.8 | AK499: 101.2 | AL499: 100.3 | AM499: 100.1 | AN499: 100.7 | AO499: 100.6 | AP499: 101.1 | AQ499: 100.6 | AR499: 101.5 | AS499: 101.5
J500: 99.9 | K500: 100 | L500: 100.1 | M500: 99.9 | N500: 99.9 | O500: 100 | P500: 100 | Q500: 100.1 | R500: 100.1 | S500: 100.1 | T500: 100.1 | U500: 100.1 | V500: 100.1 | W500: 100.1 | X500: 99.7 | Y500: 99.7 | Z500: 99.7 | AA500: 101.3 | AB500: 101.3 | AC500: 101.3 | AD500: 101.3 | AE500: 101.6 | AF500: 101.8 | AG500: 101.8 | AH500: 102 | AI500: 102.2 | AJ500: 103.2 | AK500: 103.5 | AL500: 104.1 | AM500: 104.3 | AN500: 104.5 | AO500: 104.5 | AP500: 105.4 | AQ500: 106.2 | AR500: 106.2 | AS500: 106.8
J501: 100 | K501: 100.1 | L501: 100.1 | M501: 99.9 | N501: 99.9 | O501: 100 | P501: 100 | Q501: 100 | R501: 100 | S501: 100 | T501: 100 | U501: 100 | V501: 100 | W501: 100 | X501: 99.5 | Y501: 99.5 | Z501: 99.5 | AA501: 102 | AB501: 102 | AC501: 102 | AD501: 102 | AE501: 102.5 | AF501: 102.6 | AG501: 102.6 | AH501: 102.7 | AI501: 102.7 | AJ501: 103.7 | AK501: 104 | AL501: 104.5 | AM501: 104.7 | AN501: 104.7 | AO501: 104.7 | AP501: 105.4 | AQ501: 106.4 | AR501: 106.2 | AS501: 106.7
J502: 99.6 | K502: 99.6 | L502: 99.9 | M502: 100 | N502: 100 | O502: 100 | P502: 100 | Q502: 100.2 | R502: 100.2 | S502: 100.2 | T502: 100.2 | U502: 100.2 | V502: 100.2 | W502: 100.2 | X502: 100.1 | Y502: 100.1 | Z502: 100.1 | AA502: 100.1 | AB502: 100 | AC502: 100 | AD502: 100 | AE502: 100.1 | AF502: 100.5 | AG502: 100.5 | AH502: 100.7 | AI502: 101.3 | AJ502: 102.3 | AK502: 102.5 | AL502: 103.6 | AM502: 103.8 | AN502: 104.1 | AO502: 104.1 | AP502: 105.3 | AQ502: 105.9 | AR502: 106.2 | AS502: 106.9
J503: 100 | K503: 99.9 | L503: 100 | M503: 100.7 | N503: 100.1 | O503: 100.5 | P503: 100 | Q503: 100.1 | R503: 100.2 | S503: 99.5 | T503: 99.5 | U503: 99.4 | V503: 100.2 | W503: 99.3 | X503: 99.2 | Y503: 100.2 | Z503: 101.3 | AA503: 101.7 | AB503: 101.9 | AC503: 101 | AD503: 100.5 | AE503: 101.1 | AF503: 102.4 | AG503: 102.3 | AH503: 103 | AI503: 102.8 | AJ503: 103.1 | AK503: 104.5 | AL503: 105.2 | AM503: 105.6 | AN503: 105.8 | AO503: 106.8 | AP503: 105.6 | AQ503: 106.7 | AR503: 110.5 | AS503: 111.1
J504: 99.7 | K504: 99.4 | L504: 99.3 | M504: 101.4 | N504: 101 | O504: 99.6 | P504: 99 | Q504: 100.3 | R504: 100.7 | S504: 100.1 | T504: 100 | U504: 99.5 | V504: 99.8 | W504: 98.1 | X504: 98.9 | Y504: 99.9 | Z504: 102 | AA504: 101.5 | AB504: 100.4 | AC504: 100.3 | AD504: 100.3 | AE504: 104.1 | AF504: 106.6 | AG504: 104.4 | AH504: 106.1 | AI504: 106.1 | AJ504: 106.1 | AK504: 106.1 | AL504: 106.1 | AM504: 106.1 | AN504: 106.4 | AO504: 108.9 | AP504: 104.9 | AQ504: 104.2 | AR504: 113.1 | AS504: 113.1
J505: 100 | K505: 100 | L505: 100 | M505: 100 | N505: 100 | O505: 100 | P505: 100 | Q505: 100 | R505: 100 | S505: 100 | T505: 100 | U505: 100 | V505: 100 | W505: 100 | X505: 100 | Y505: 100 | Z505: 100 | AA505: 100 | AB505: 100 | AC505: 100 | AD505: 100 | AE505: 100 | AF505: 100 | AG505: 100 | AH505: 102.4 | AI505: 102.4 | AJ505: 102.4 | AK505: 103 | AL505: 103 | AM505: 103 | AN505: 103.3 | AO505: 103.3 | AP505: 103.3 | AQ505: 103.9 | AR505: 103.9 | AS505: 110.7
J506: 96.7 | K506: 96.6 | L506: 98.1 | M506: 106 | N506: 101.3 | O506: 106 | P506: 100.9 | Q506: 99.9 | R506: 97.4 | S506: 100.1 | T506: 98.6 | U506: 98.3 | V506: 100.5 | W506: 99 | X506: 98.7 | Y506: 103.4 | Z506: 100.3 | AA506: 101.9 | AB506: 104.7 | AC506: 95.8 | AD506: 93.9 | AE506: 93.7 | AF506: 93.3 | AG506: 100 | AH506: 97.8 | AI506: 95.4 | AJ506: 96.9 | AK506: 97.3 | AL506: 98.4 | AM506: 95.9 | AN506: 98.2 | AO506: 96.4 | AP506: 93.8 | AQ506: 97.1 | AR506: 101 | AS506: 101
J507: 100.4 | K507: 99.4 | L507: 98.6 | M507: 100.2 | N507: 101.1 | O507: 100.2 | P507: 102 | Q507: 100.3 | R507: 101 | S507: 98.2 | T507: 97.5 | U507: 101.2 | V507: 99.5 | W507: 99.5 | X507: 98.1 | Y507: 102.5 | Z507: 96.9 | AA507: 104.4 | AB507: 104 | AC507: 100.3 | AD507: 96.8 | AE507: 92 | AF507: 93.3 | AG507: 93 | AH507: 96.2 | AI507: 104.1 | AJ507: 102.5 | AK507: 106.6 | AL507: 107.5 | AM507: 111.3 | AN507: 113.4 | AO507: 112.5 | AP507: 107.9 | AQ507: 115.1 | AR507: 112.6 | AS507: 114.1
J508: 101 | K508: 101.1 | L508: 101.3 | M508: 99.3 | N508: 99.1 | O508: 100.3 | P508: 100.3 | Q508: 100.1 | R508: 100.5 | S508: 98.7 | T508: 99.3 | U508: 99 | V508: 100.6 | W508: 100 | X508: 99.3 | Y508: 99.4 | Z508: 102.6 | AA508: 102.7 | AB508: 103.3 | AC508: 103.6 | AD508: 103.1 | AE508: 102.5 | AF508: 104.3 | AG508: 104 | AH508: 104.2 | AI508: 103 | AJ508: 103.8 | AK508: 106.8 | AL508: 108.5 | AM508: 109.7 | AN508: 109 | AO508: 110.7 | AP508: 111.7 | AQ508: 112.7 | AR508: 116 | AS508: 115.7
J509: 100 | K509: 100 | L509: 100 | M509: 100 | N509: 100 | O509: 100 | P509: 100 | Q509: 100 | R509: 100 | S509: 100 | T509: 100 | U509: 100 | V509: 100 | W509: 100 | X509: 100 | Y509: 100 | Z509: 100 | AA509: 100 | AB509: 100 | AC509: 100 | AD509: 100.4 | AE509: 100.4 | AF509: 100.4 | AG509: 100.4 | AH509: 100.6 | AI509: 100.7 | AJ509: 100.7 | AK509: 100.7 | AL509: 100.7 | AM509: 100.7 | AN509: 100.7 | AO509: 100.4 | AP509: 100.4 | AQ509: 103.5 | AR509: 103.5 | AS509: 103.5
J510: 100.1 | K510: 100.1 | L510: 100.1 | M510: 100.1 | N510: 100 | O510: 100 | P510: 100 | Q510: 100 | R510: 100 | S510: 100 | T510: 100 | U510: 100 | V510: 100 | W510: 100 | X510: 100 | Y510: 100 | Z510: 100 | AA510: 100 | AB510: 100 | AC510: 100 | AD510: 100 | AE510: 100 | AF510: 100 | AG510: 100 | AH510: 100 | AI510: 100 | AJ510: 100 | AK510: 100 | AL510: 100 | AM510: 100 | AN510: 100 | AO510: 100 | AP510: 100 | AQ510: 100 | AR510: 100 | AS510: 100
J511: 100.9 | K511: 101.1 | L511: 100.5 | M511: 99.5 | N511: 100.2 | O511: 99.6 | P511: 99.4 | Q511: 99.6 | R511: 99.9 | S511: 99.8 | T511: 99.7 | U511: 99.8 | V511: 99 | W511: 99.2 | X511: 99.4 | Y511: 100.4 | Z511: 100.1 | AA511: 99.9 | AB511: 100.5 | AC511: 101 | AD511: 100.4 | AE511: 100.6 | AF511: 100.4 | AG511: 100.8 | AH511: 101.6 | AI511: 102 | AJ511: 102.7 | AK511: 102.3 | AL511: 102.6 | AM511: 103.5 | AN511: 104.8 | AO511: 103.8 | AP511: 104.3 | AQ511: 105.4 | AR511: 105.6 | AS511: 105.3
J512: 100.9 | K512: 101.1 | L512: 100.5 | M512: 99.5 | N512: 100.2 | O512: 99.6 | P512: 99.4 | Q512: 99.6 | R512: 99.9 | S512: 99.8 | T512: 99.7 | U512: 99.8 | V512: 99 | W512: 99.2 | X512: 99.4 | Y512: 100.4 | Z512: 100.1 | AA512: 99.9 | AB512: 100.5 | AC512: 101 | AD512: 100.4 | AE512: 100.6 | AF512: 100.4 | AG512: 100.8 | AH512: 101.6 | AI512: 102 | AJ512: 102.7 | AK512: 102.3 | AL512: 102.6 | AM512: 103.5 | AN512: 104.8 | AO512: 103.8 | AP512: 104.3 | AQ512: 105.4 | AR512: 105.6 | AS512: 105.3
J513: 99.9 | K513: 100 | L513: 98.7 | M513: 99.8 | N513: 99 | O513: 99.1 | P513: 100 | Q513: 100.1 | R513: 100.5 | S513: 100.9 | T513: 100.4 | U513: 101.6 | V513: 101.6 | W513: 101.4 | X513: 100.6 | Y513: 100.8 | Z513: 101.5 | AA513: 98.3 | AB513: 100.7 | AC513: 101.6 | AD513: 100.4 | AE513: 100.7 | AF513: 100 | AG513: 100 | AH513: 100.8 | AI513: 101.3 | AJ513: 101.7 | AK513: 102 | AL513: 100.8 | AM513: 101.4 | AN513: 102.9 | AO513: 103.4 | AP513: 102.7 | AQ513: 103.7 | AR513: 103 | AS513: 102.3
J514: 100.9 | K514: 100.6 | L514: 97.5 | M514: 99.4 | N514: 97.9 | O514: 99.6 | P514: 100.1 | Q514: 100.2 | R514: 100.7 | S514: 100.6 | T514: 99.9 | U514: 102.4 | V514: 101.6 | W514: 102 | X514: 100.5 | Y514: 100.7 | Z514: 102.6 | AA514: 98.1 | AB514: 101.8 | AC514: 102.7 | AD514: 101.7 | AE514: 101.6 | AF514: 101.1 | AG514: 101.2 | AH514: 102.4 | AI514: 101.7 | AJ514: 102 | AK514: 102.8 | AL514: 101.2 | AM514: 101.4 | AN514: 104.1 | AO514: 103.6 | AP514: 103.7 | AQ514: 105.2 | AR514: 104.4 | AS514: 104.1
J515: 100.7 | K515: 100.9 | L515: 101.4 | M515: 102 | N515: 99.1 | O515: 98 | P515: 98.1 | Q515: 98.4 | R515: 98.6 | S515: 100.8 | T515: 101.5 | U515: 100.5 | V515: 103.2 | W515: 102.1 | X515: 102 | Y515: 101.1 | Z515: 98.9 | AA515: 98.2 | AB515: 98.4 | AC515: 98.7 | AD515: 99.8 | AE515: 98.2 | AF515: 100.4 | AG515: 99.7 | AH515: 100.5 | AI515: 101.1 | AJ515: 100.9 | AK515: 101.9 | AL515: 100 | AM515: 98 | AN515: 99.9 | AO515: 102.3 | AP515: 100.6 | AQ515: 101.3 | AR515: 101.3 | AS515: 100.8
J516: 97.2 | K516: 98.1 | L516: 99 | M516: 98.8 | N516: 101.2 | O516: 99 | P516: 101.3 | Q516: 101.1 | R516: 101.3 | S516: 101.5 | T516: 100.7 | U516: 100.9 | V516: 100.6 | W516: 99.6 | X516: 99.8 | Y516: 101 | Z516: 101.4 | AA516: 98.8 | AB516: 100 | AC516: 101.5 | AD516: 98.4 | AE516: 100.6 | AF516: 97.6 | AG516: 97.8 | AH516: 97.7 | AI516: 100.8 | AJ516: 101.7 | AK516: 100.3 | AL516: 100.5 | AM516: 104 | AN516: 102.9 | AO516: 103.8 | AP516: 102.2 | AQ516: 102.3 | AR516: 101.5 | AS516: 99.9
J517: 99.3 | K517: 100.1 | L517: 99 | M517: 98.9 | N517: 99.6 | O517: 100.2 | P517: 99 | Q517: 100.9 | R517: 100.4 | S517: 101 | T517: 100.7 | U517: 100.8 | V517: 100.6 | W517: 101.5 | X517: 101 | Y517: 100.5 | Z517: 99.3 | AA517: 99.8 | AB517: 100.2 | AC517: 100.2 | AD517: 99 | AE517: 99.7 | AF517: 99.5 | AG517: 99.5 | AH517: 101.6 | AI517: 102 | AJ517: 101.6 | AK517: 101 | AL517: 101.8 | AM517: 103.6 | AN517: 104.4 | AO517: 105 | AP517: 105.6 | AQ517: 106 | AR517: 106.2 | AS517: 106
J518: 99.1 | K518: 100.5 | L518: 99.2 | M518: 98.9 | N518: 99 | O518: 100 | P518: 99.2 | Q518: 100.9 | R518: 100.7 | S518: 100.9 | T518: 100.7 | U518: 100.7 | V518: 100.6 | W518: 102.2 | X518: 101.2 | Y518: 100.6 | Z518: 99 | AA518: 99.5 | AB518: 100.1 | AC518: 100.2 | AD518: 98.7 | AE518: 99.5 | AF518: 99.2 | AG518: 99.1 | AH518: 101.6 | AI518: 101.9 | AJ518: 102.5 | AK518: 101 | AL518: 102.2 | AM518: 104.2 | AN518: 105.3 | AO518: 106 | AP518: 106.7 | AQ518: 106.8 | AR518: 106.9 | AS518: 106.6
J519: 99.8 | K519: 99.3 | L519: 98.2 | M519: 98.4 | N519: 102 | O519: 100.8 | P519: 97.6 | Q519: 100.9 | R519: 99.4 | S519: 101.5 | T519: 100.7 | U519: 101.4 | V519: 101.2 | W519: 99.1 | X519: 100.2 | Y519: 99.9 | Z519: 99.3 | AA519: 100.2 | AB519: 99.9 | AC519: 99.5 | AD519: 99 | AE519: 99.5 | AF519: 99.7 | AG519: 100.2 | AH519: 100.8 | AI519: 101.9 | AJ519: 97.9 | AK519: 100.4 | AL519: 99.6 | AM519: 102 | AN519: 102.1 | AO519: 100.5 | AP519: 101.4 | AQ519: 103.5 | AR519: 103.9 | AS519: 103.6
J520: 97.6 | K520: 97.7 | L520: 97.6 | M520: 99 | N520: 99 | O520: 101 | P520: 100 | Q520: 102 | R520: 101.7 | S520: 101.4 | T520: 101.4 | U520: 101.4 | V520: 100.5 | W520: 102.1 | X520: 103.2 | Y520: 103.2 | Z520: 102.5 | AA520: 102.5 | AB520: 101.8 | AC520: 102.7 | AD520: 101.1 | AE520: 101.1 | AF520: 101.1 | AG520: 101.1 | AH520: 103.5 | AI520: 103.9 | AJ520: 101.2 | AK520: 101.2 | AL520: 102.4 | AM520: 102.4 | AN520: 101.8 | AO520: 106.7 | AP520: 104.9 | AQ520: 104.9 | AR520: 108 | AS520: 110.3
J521: 100.1 | K521: 99.7 | L521: 100.2 | M521: 100.1 | N521: 100.2 | O521: 100 | P521: 99.8 | Q521: 100 | R521: 99.7 | S521: 100.1 | T521: 99.7 | U521: 100.4 | V521: 100.5 | W521: 100.5 | X521: 100.3 | Y521: 100.1 | Z521: 100.1 | AA521: 100.2 | AB521: 100.9 | AC521: 100.6 | AD521: 100.9 | AE521: 100.7 | AF521: 100.7 | AG521: 100.9 | AH521: 101.7 | AI521: 101.9 | AJ521: 102 | AK521: 101.7 | AL521: 101.7 | AM521: 101.9 | AN521: 102.6 | AO521: 103.7 | AP521: 103.8 | AQ521: 103.9 | AR521: 104 | AS521: 104.1
J522: 97.4 | K522: 98.3 | L522: 98.7 | M522: 99.6 | N522: 100.3 | O522: 101.6 | P522: 101.7 | Q522: 99.2 | R522: 100 | S522: 100.5 | T522: 101.2 | U522: 101.6 | V522: 99.8 | W522: 99.8 | X522: 99.6 | Y522: 99.1 | Z522: 100.9 | AA522: 100.9 | AB522: 100.4 | AC522: 102.3 | AD522: 103.6 | AE522: 100.2 | AF522: 101.4 | AG522: 101.3 | AH522: 102.8 | AI522: 103.5 | AJ522: 102.2 | AK522: 101.3 | AL522: 101.4 | AM522: 102.6 | AN522: 104.2 | AO522: 102.2 | AP522: 103.4 | AQ522: 105.3 | AR522: 103.9 | AS522: 105.2
J523: 101.1 | K523: 100 | L523: 99.6 | M523: 100.1 | N523: 99.6 | O523: 98.9 | P523: 99.1 | Q523: 100.6 | R523: 98.7 | S523: 99.9 | T523: 100.5 | U523: 102.1 | V523: 102.7 | W523: 101.4 | X523: 102.1 | Y523: 103 | Z523: 102.7 | AA523: 102.8 | AB523: 101.7 | AC523: 102.7 | AD523: 103.2 | AE523: 102.6 | AF523: 101.9 | AG523: 100.2 | AH523: 101.9 | AI523: 101.2 | AJ523: 103 | AK523: 102.3 | AL523: 106 | AM523: 105.1 | AN523: 103.6 | AO523: 104.8 | AP523: 104.3 | AQ523: 106.2 | AR523: 106.3 | AS523: 106.3
J524: 100.1 | K524: 103.5 | L524: 98 | M524: 99 | N524: 96.9 | O524: 99.7 | P524: 101.3 | Q524: 102.6 | R524: 101.2 | S524: 101.2 | T524: 98.7 | U524: 97.8 | V524: 100.5 | W524: 98.1 | X524: 98.8 | Y524: 98.4 | Z524: 106.4 | AA524: 108 | AB524: 95.4 | AC524: 99.9 | AD524: 110.6 | AE524: 94.6 | AF524: 108.4 | AG524: 108.4 | AH524: 106.1 | AI524: 106.1 | AJ524: 106.7 | AK524: 110 | AL524: 109.8 | AM524: 110.1 | AN524: 108.5 | AO524: 104.9 | AP524: 109.4 | AQ524: 111.5 | AR524: 111.4 | AS524: 109.3
J525: 91.9 | K525: 93.3 | L525: 95.2 | M525: 99.4 | N525: 99.9 | O525: 98.3 | P525: 97.3 | Q525: 104.1 | R525: 100.5 | S525: 103.4 | T525: 106 | U525: 110.6 | V525: 105.3 | W525: 113.8 | X525: 106.7 | Y525: 106.4 | Z525: 107.7 | AA525: 108.7 | AB525: 103 | AC525: 107.4 | AD525: 102.5 | AE525: 112.4 | AF525: 101.5 | AG525: 102.5 | AH525: 101 | AI525: 104.5 | AJ525: 104.8 | AK525: 106.3 | AL525: 106.4 | AM525: 108.9 | AN525: 107.8 | AO525: 108 | AP525: 103.8 | AQ525: 108.2 | AR525: 107.9 | AS525: 107.9
J526: 97.7 | K526: 98.5 | L526: 96.5 | M526: 101.6 | N526: 98.1 | O526: 99.2 | P526: 101 | Q526: 100.2 | R526: 102 | S526: 100.6 | T526: 101.9 | U526: 102.6 | V526: 99 | W526: 98.1 | X526: 99.3 | Y526: 98.9 | Z526: 102.3 | AA526: 104.4 | AB526: 105 | AC526: 103 | AD526: 104.9 | AE526: 104.4 | AF526: 105.7 | AG526: 104.7 | AH526: 105.7 | AI526: 106.4 | AJ526: 106.7 | AK526: 108.2 | AL526: 107.4 | AM526: 108.7 | AN526: 109 | AO526: 106.5 | AP526: 105 | AQ526: 109.3 | AR526: 110 | AS526: 108
J527: 97 | K527: 97.8 | L527: 100 | M527: 98.8 | N527: 101.9 | O527: 103.6 | P527: 102.8 | Q527: 97.5 | R527: 99.1 | S527: 100.1 | T527: 100.9 | U527: 100.6 | V527: 99.1 | W527: 99 | X527: 98.7 | Y527: 97.9 | Z527: 98.4 | AA527: 97.2 | AB527: 98.7 | AC527: 101.7 | AD527: 102.1 | AE527: 97.5 | AF527: 98.4 | AG527: 98.8 | AH527: 101.4 | AI527: 102 | AJ527: 99.1 | AK527: 96.3 | AL527: 96.4 | AM527: 97.8 | AN527: 101.2 | AO527: 99.1 | AP527: 101.7 | AQ527: 102.2 | AR527: 99.5 | AS527: 102.9
J528: 100.4 | K528: 97.9 | L528: 101.5 | M528: 97.8 | N528: 100.4 | O528: 98.3 | P528: 101.4 | Q528: 104 | R528: 103.7 | S528: 97.3 | T528: 97.3 | U528: 100 | V528: 98.8 | W528: 98.4 | X528: 98 | Y528: 99.6 | Z528: 97.8 | AA528: 98.9 | AB528: 100.9 | AC528: 100.5 | AD528: 100.9 | AE528: 99.6 | AF528: 97.4 | AG528: 98.4 | AH528: 99.3 | AI528: 98.8 | AJ528: 101.2 | AK528: 102.4 | AL528: 101.9 | AM528: 100.4 | AN528: 106.2 | AO528: 101.1 | AP528: 100.8 | AQ528: 102.5 | AR528: 101.4 | AS528: 101.1
J529: 100.4 | K529: 97.9 | L529: 101.5 | M529: 97.8 | N529: 100.4 | O529: 98.3 | P529: 101.4 | Q529: 104 | R529: 103.7 | S529: 97.3 | T529: 97.3 | U529: 100 | V529: 98.8 | W529: 98.4 | X529: 98 | Y529: 99.6 | Z529: 97.8 | AA529: 98.9 | AB529: 100.9 | AC529: 100.5 | AD529: 100.9 | AE529: 99.6 | AF529: 97.4 | AG529: 98.4 | AH529: 99.3 | AI529: 98.8 | AJ529: 101.2 | AK529: 102.4 | AL529: 101.9 | AM529: 100.4 | AN529: 106.2 | AO529: 101.1 | AP529: 100.8 | AQ529: 102.5 | AR529: 101.4 | AS529: 101.1
J530: 104.4 | K530: 100.6 | L530: 98.8 | M530: 98.7 | N530: 98.3 | O530: 98.7 | P530: 99.4 | Q530: 101.2 | R530: 98.9 | S530: 100.4 | T530: 99 | U530: 101.5 | V530: 100 | W530: 99.8 | X530: 97.9 | Y530: 101.1 | Z530: 101.1 | AA530: 99.3 | AB530: 98.8 | AC530: 103.1 | AD530: 102.4 | AE530: 102.1 | AF530: 104.9 | AG530: 102 | AH530: 101.1 | AI530: 99.9 | AJ530: 100.7 | AK530: 100.2 | AL530: 100.1 | AM530: 100.7 | AN530: 98.3 | AO530: 99.3 | AP530: 101.8 | AQ530: 99.2 | AR530: 99.7 | AS530: 100
J531: 94.8 | K531: 96.8 | L531: 99.2 | M531: 105.1 | N531: 102.9 | O531: 102.6 | P531: 101.2 | Q531: 101.2 | R531: 97.7 | S531: 98.6 | T531: 99.6 | U531: 100.4 | V531: 94.1 | W531: 96 | X531: 94.9 | Y531: 94.1 | Z531: 97.2 | AA531: 92.8 | AB531: 96.6 | AC531: 96.4 | AD531: 95 | AE531: 96.5 | AF531: 98.8 | AG531: 99 | AH531: 101.6 | AI531: 98.4 | AJ531: 101.1 | AK531: 98.7 | AL531: 102.3 | AM531: 103 | AN531: 106.2 | AO531: 99.5 | AP531: 99.8 | AQ531: 104.4 | AR531: 107.9 | AS531: 107.9
J532: 106.3 | K532: 101.4 | L532: 98.7 | M532: 97.4 | N532: 97.3 | O532: 98 | P532: 99.1 | Q532: 101.2 | R532: 99.2 | S532: 100.8 | T532: 98.9 | U532: 101.7 | V532: 101.2 | W532: 100.5 | X532: 98.5 | Y532: 102.5 | Z532: 101.8 | AA532: 100.6 | AB532: 99.3 | AC532: 104.5 | AD532: 103.9 | AE532: 103.2 | AF532: 106.1 | AG532: 102.6 | AH532: 101 | AI532: 100.2 | AJ532: 100.6 | AK532: 100.5 | AL532: 99.7 | AM532: 100.3 | AN532: 96.7 | AO532: 99.3 | AP532: 102.2 | AQ532: 98.2 | AR532: 98 | AS532: 98.4
J533: 102 | K533: 101.9 | L533: 100.3 | M533: 99.6 | N533: 100.2 | O533: 100.3 | P533: 100.4 | Q533: 98.8 | R533: 98.7 | S533: 98.7 | T533: 100.2 | U533: 98.9 | V533: 97.9 | W533: 98 | X533: 99.2 | Y533: 98.9 | Z533: 100.6 | AA533: 99.7 | AB533: 99.9 | AC533: 101.3 | AD533: 100.5 | AE533: 101.5 | AF533: 101.5 | AG533: 101.7 | AH533: 100.7 | AI533: 100 | AJ533: 101.3 | AK533: 102.1 | AL533: 102.9 | AM533: 106.6 | AN533: 106.3 | AO533: 106.9 | AP533: 106.2 | AQ533: 105.5 | AR533: 108.3 | AS533: 108.5
J534: 101.9 | K534: 101.6 | L534: 100.5 | M534: 99.5 | N534: 101 | O534: 101.1 | P534: 100.1 | Q534: 99 | R534: 97.7 | S534: 99 | T534: 100.4 | U534: 98.1 | V534: 96.4 | W534: 97.5 | X534: 98.3 | Y534: 98.7 | Z534: 99.3 | AA534: 98.2 | AB534: 99 | AC534: 101.5 | AD534: 99.6 | AE534: 101.2 | AF534: 101.7 | AG534: 102.2 | AH534: 97.5 | AI534: 97.6 | AJ534: 101.4 | AK534: 99.6 | AL534: 100.7 | AM534: 106.9 | AN534: 108.3 | AO534: 108.2 | AP534: 108.6 | AQ534: 105.6 | AR534: 109.1 | AS534: 109.1
J535: 102.8 | K535: 100.8 | L535: 100.2 | M535: 100.2 | N535: 100.2 | O535: 100 | P535: 100.5 | Q535: 100.2 | R535: 98.9 | S535: 98.9 | T535: 99.5 | U535: 97.8 | V535: 98.4 | W535: 95.6 | X535: 99.2 | Y535: 98.8 | Z535: 98.8 | AA535: 99.6 | AB535: 99.4 | AC535: 101 | AD535: 100.8 | AE535: 100.8 | AF535: 100.5 | AG535: 101.9 | AH535: 101.2 | AI535: 97.5 | AJ535: 101.1 | AK535: 104.9 | AL535: 104.6 | AM535: 105.6 | AN535: 104.3 | AO535: 104.7 | AP535: 104.1 | AQ535: 106.6 | AR535: 107.9 | AS535: 108.8
J536: 101.6 | K536: 103.1 | L536: 99.9 | M536: 99.4 | N536: 99.1 | O536: 99.4 | P536: 100.7 | Q536: 97.4 | R536: 99.8 | S536: 98.3 | T536: 100.6 | U536: 100.7 | V536: 99.7 | W536: 100.5 | X536: 100.4 | Y536: 99.4 | Z536: 103.8 | AA536: 101.8 | AB536: 101.5 | AC536: 101.1 | AD536: 101.6 | AE536: 102.5 | AF536: 101.9 | AG536: 100.8 | AH536: 104.4 | AI536: 105.2 | AJ536: 101.4 | AK536: 103.1 | AL536: 104.4 | AM536: 106.9 | AN536: 105.2 | AO536: 107.1 | AP536: 104.8 | AQ536: 104.6 | AR536: 107.4 | AS536: 107.5
J537: 101 | K537: 100.6 | L537: 102.4 | M537: 101 | N537: 100.8 | O537: 101.4 | P537: 98.2 | Q537: 98.8 | R537: 99.2 | S537: 99.4 | T537: 99.2 | U537: 98.3 | V537: 98.7 | W537: 95.9 | X537: 96.1 | Y537: 96.1 | Z537: 95.4 | AA537: 93.7 | AB537: 95.3 | AC537: 98.5 | AD537: 97 | AE537: 100.9 | AF537: 98 | AG537: 96.5 | AH537: 97.6 | AI537: 98.5 | AJ537: 97.5 | AK537: 102.4 | AL537: 102.2 | AM537: 103 | AN537: 104.4 | AO537: 101.8 | AP537: 103.6 | AQ537: 102.3 | AR537: 106 | AS537: 103.9
J538: 100.3 | K538: 99.4 | L538: 102.9 | M538: 101.2 | N538: 101.2 | O538: 101.6 | P538: 99.3 | Q538: 99.5 | R538: 98.9 | S538: 98.2 | T538: 99.3 | U538: 98 | V538: 99 | W538: 94.1 | X538: 94.2 | Y538: 95.4 | Z538: 93.8 | AA538: 90.6 | AB538: 93.9 | AC538: 100.6 | AD538: 96 | AE538: 103.1 | AF538: 99.2 | AG538: 96.4 | AH538: 96.7 | AI538: 98.1 | AJ538: 97.8 | AK538: 99.9 | AL538: 98.8 | AM538: 101 | AN538: 105 | AO538: 100.7 | AP538: 102.9 | AQ538: 99 | AR538: 103.7 | AS538: 100.1
J539: 100.4 | K539: 101 | L539: 99.8 | M539: 101.8 | N539: 100.9 | O539: 102.7 | P539: 93.9 | Q539: 95.9 | R539: 100 | S539: 104.2 | T539: 100.2 | U539: 99.3 | V539: 98.7 | W539: 99.4 | X539: 100.2 | Y539: 97.9 | Z539: 99 | AA539: 100.5 | AB539: 98.1 | AC539: 94.5 | AD539: 100.5 | AE539: 94.9 | AF539: 92.6 | AG539: 93.3 | AH539: 97.6 | AI539: 97.9 | AJ539: 94.2 | AK539: 102 | AL539: 104.8 | AM539: 102.1 | AN539: 95.6 | AO539: 95.3 | AP539: 97.6 | AQ539: 95.1 | AR539: 96.7 | AS539: 96.6
J540: 103.5 | K540: 103.5 | L540: 103.5 | M540: 99.3 | N540: 99.3 | O540: 99.3 | P540: 99.3 | Q540: 99.3 | R540: 99.3 | S540: 97.9 | T540: 97.9 | U540: 97.9 | V540: 97.9 | W540: 97.9 | X540: 97.9 | Y540: 96.5 | Z540: 96.5 | AA540: 96.5 | AB540: 96.5 | AC540: 96.5 | AD540: 96.5 | AE540: 100.1 | AF540: 100.1 | AG540: 100.1 | AH540: 100.1 | AI540: 100.1 | AJ540: 100.1 | AK540: 110.1 | AL540: 110.1 | AM540: 110.1 | AN540: 111.6 | AO540: 111.6 | AP540: 111.6 | AQ540: 119.4 | AR540: 122.3 | AS540: 122.3
J541: 99.8 | K541: 100.4 | L541: 100.7 | M541: 100.2 | N541: 100.4 | O541: 99.2 | P541: 100 | Q541: 99.3 | R541: 99.9 | S541: 99.7 | T541: 100.2 | U541: 100.2 | V541: 100.5 | W541: 100.1 | X541: 100.4 | Y541: 100.1 | Z541: 100.4 | AA541: 100 | AB541: 100.4 | AC541: 99.9 | AD541: 98.9 | AE541: 99.8 | AF541: 100 | AG541: 99.9 | AH541: 100 | AI541: 100.1 | AJ541: 100.6 | AK541: 100 | AL541: 99.7 | AM541: 100.1 | AN541: 101.2 | AO541: 101.9 | AP541: 101.8 | AQ541: 103.5 | AR541: 105.1 | AS541: 104.5
J542: 99.8 | K542: 100.1 | L542: 101.3 | M542: 99.3 | N542: 100.9 | O542: 100.8 | P542: 99.8 | Q542: 97.7 | R542: 100.4 | S542: 99.9 | T542: 99.9 | U542: 100.1 | V542: 100.8 | W542: 99.6 | X542: 100.8 | Y542: 99.5 | Z542: 99 | AA542: 100.1 | AB542: 99.4 | AC542: 100 | AD542: 99.6 | AE542: 99.4 | AF542: 99.9 | AG542: 99.5 | AH542: 100.8 | AI542: 99 | AJ542: 100.6 | AK542: 99.9 | AL542: 100.1 | AM542: 99.9 | AN542: 99.4 | AO542: 101.7 | AP542: 101.3 | AQ542: 101.3 | AR542: 106 | AS542: 106
J543: 100 | K543: 100 | L543: 100 | M543: 100 | N543: 100 | O543: 100 | P543: 100 | Q543: 100 | R543: 100 | S543: 100 | T543: 100 | U543: 100 | V543: 100 | W543: 100 | X543: 100 | Y543: 100 | Z543: 100 | AA543: 100 | AB543: 100 | AC543: 100 | AD543: 100 | AE543: 100 | AF543: 100 | AG543: 100 | AH543: 100 | AI543: 100 | AJ543: 100 | AK543: 100 | AL543: 100 | AM543: 100 | AN543: 100 | AO543: 100 | AP543: 100 | AQ543: 105.2 | AR543: 105.2 | AS543: 105.2
J544: 102.9 | K544: 103.3 | L544: 102.3 | M544: 102.4 | N544: 100.3 | O544: 95.8 | P544: 97.4 | Q544: 99.8 | R544: 99 | S544: 97.4 | T544: 99 | U544: 100.4 | V544: 102.7 | W544: 100.5 | X544: 101.7 | Y544: 101 | Z544: 103.8 | AA544: 100.9 | AB544: 105.1 | AC544: 100.8 | AD544: 98.3 | AE544: 99.5 | AF544: 99.2 | AG544: 99.7 | AH544: 99.3 | AI544: 102.7 | AJ544: 105.3 | AK544: 104.2 | AL544: 100.3 | AM544: 100.7 | AN544: 101.3 | AO544: 103.3 | AP544: 105.4 | AQ544: 101.9 | AR544: 107.4 | AS544: 100.8
J545: 99 | K545: 100.1 | L545: 100.8 | M545: 100.1 | N545: 100.7 | O545: 98.7 | P545: 100.6 | Q545: 99 | R545: 99.8 | S545: 100 | T545: 100.9 | U545: 100.3 | V545: 100.4 | W545: 100.1 | X545: 100.3 | Y545: 100.2 | Z545: 100.5 | AA545: 99.6 | AB545: 99.9 | AC545: 99.5 | AD545: 98 | AE545: 99.9 | AF545: 100.2 | AG545: 99.9 | AH545: 99.9 | AI545: 100 | AJ545: 100.1 | AK545: 99.1 | AL545: 99.2 | AM545: 100 | AN545: 102.8 | AO545: 103.2 | AP545: 102.7 | AQ545: 103.1 | AR545: 104.2 | AS545: 104.2
J546: 105.2 | K546: 103.6 | L546: 102.4 | M546: 100.4 | N546: 103.7 | O546: 99.2 | P546: 96.5 | Q546: 99.2 | R546: 99.4 | S546: 100.1 | T546: 96 | U546: 94.4 | V546: 93.7 | W546: 95.3 | X546: 92.1 | Y546: 96 | Z546: 91.8 | AA546: 95.9 | AB546: 98.6 | AC546: 100.7 | AD546: 93.4 | AE546: 96.8 | AF546: 99 | AG546: 99.3 | AH546: 99 | AI546: 99.1 | AJ546: 99.7 | AK546: 97.8 | AL546: 97.9 | AM546: 100 | AN546: 99.9 | AO546: 97.1 | AP546: 95.5 | AQ546: 96.2 | AR546: 96.4 | AS546: 96.1
J547: 105.2 | K547: 103.6 | L547: 102.4 | M547: 100.4 | N547: 103.7 | O547: 99.2 | P547: 96.5 | Q547: 99.2 | R547: 99.4 | S547: 100.1 | T547: 96 | U547: 94.4 | V547: 93.7 | W547: 95.3 | X547: 92.1 | Y547: 96 | Z547: 91.8 | AA547: 95.9 | AB547: 98.6 | AC547: 100.7 | AD547: 93.4 | AE547: 96.8 | AF547: 99 | AG547: 99.3 | AH547: 99 | AI547: 99.1 | AJ547: 99.7 | AK547: 97.8 | AL547: 97.9 | AM547: 100 | AN547: 99.9 | AO547: 97.1 | AP547: 95.5 | AQ547: 96.2 | AR547: 96.4 | AS547: 96.1
J548: 103 | K548: 104.7 | L548: 102.2 | M548: 100.1 | N548: 99.1 | O548: 98.3 | P548: 97.1 | Q548: 96.6 | R548: 98.2 | S548: 100.8 | T548: 100.1 | U548: 99.8 | V548: 98.6 | W548: 99.4 | X548: 101.3 | Y548: 104.8 | Z548: 106 | AA548: 104 | AB548: 102.9 | AC548: 102.9 | AD548: 103.4 | AE548: 103 | AF548: 102 | AG548: 105.4 | AH548: 106.8 | AI548: 107 | AJ548: 110 | AK548: 109.8 | AL548: 110.1 | AM548: 111.3 | AN548: 112.6 | AO548: 111.6 | AP548: 112.2 | AQ548: 115.4 | AR548: 114.7 | AS548: 113.7
J549: 103 | K549: 104.7 | L549: 102.2 | M549: 100.1 | N549: 99.1 | O549: 98.3 | P549: 97.1 | Q549: 96.6 | R549: 98.2 | S549: 100.8 | T549: 100.1 | U549: 99.8 | V549: 98.6 | W549: 99.4 | X549: 101.3 | Y549: 104.8 | Z549: 106 | AA549: 104 | AB549: 102.9 | AC549: 102.9 | AD549: 103.4 | AE549: 103 | AF549: 102 | AG549: 105.4 | AH549: 106.8 | AI549: 107 | AJ549: 110 | AK549: 109.8 | AL549: 110.1 | AM549: 111.3 | AN549: 112.6 | AO549: 111.6 | AP549: 112.2 | AQ549: 115.4 | AR549: 114.7 | AS549: 113.7
J550: 100.7 | K550: 99 | L550: 99 | M550: 99.4 | N550: 101.6 | O550: 100.1 | P550: 100.9 | Q550: 99.7 | R550: 99.3 | S550: 98.7 | T550: 100.7 | U550: 100.9 | V550: 101.1 | W550: 98.9 | X550: 98.1 | Y550: 98.4 | Z550: 99.3 | AA550: 98.1 | AB550: 98.6 | AC550: 98.6 | AD550: 99.7 | AE550: 99.4 | AF550: 100.3 | AG550: 100.4 | AH550: 99 | AI550: 99.5 | AJ550: 100.1 | AK550: 99.6 | AL550: 101.3 | AM550: 102.3 | AN550: 100.1 | AO550: 104.4 | AP550: 103.2 | AQ550: 103.5 | AR550: 103.7 | AS550: 102.1
J551: 100.7 | K551: 99 | L551: 99 | M551: 99.4 | N551: 101.6 | O551: 100.1 | P551: 100.9 | Q551: 99.7 | R551: 99.3 | S551: 98.7 | T551: 100.7 | U551: 100.9 | V551: 101.1 | W551: 98.9 | X551: 98.1 | Y551: 98.4 | Z551: 99.3 | AA551: 98.1 | AB551: 98.6 | AC551: 98.6 | AD551: 99.7 | AE551: 99.4 | AF551: 100.3 | AG551: 100.4 | AH551: 99 | AI551: 99.5 | AJ551: 100.1 | AK551: 99.6 | AL551: 101.3 | AM551: 102.3 | AN551: 100.1 | AO551: 104.4 | AP551: 103.2 | AQ551: 103.5 | AR551: 103.7 | AS551: 102.1
J552: 99.2 | K552: 101.2 | L552: 100.2 | M552: 98.9 | N552: 101.1 | O552: 100.9 | P552: 101.3 | Q552: 100.2 | R552: 100 | S552: 97.7 | T552: 99.6 | U552: 99.8 | V552: 98.2 | W552: 98.8 | X552: 100.9 | Y552: 100.1 | Z552: 98.9 | AA552: 97.9 | AB552: 101.2 | AC552: 98.6 | AD552: 100.1 | AE552: 101.4 | AF552: 100.6 | AG552: 98.7 | AH552: 99 | AI552: 101.3 | AJ552: 100.5 | AK552: 98.2 | AL552: 99.2 | AM552: 98.2 | AN552: 99.3 | AO552: 97.9 | AP552: 101.3 | AQ552: 101 | AR552: 102.4 | AS552: 101.2
J553: 99.2 | K553: 101.2 | L553: 100.2 | M553: 98.9 | N553: 101.1 | O553: 100.9 | P553: 101.3 | Q553: 100.2 | R553: 100 | S553: 97.7 | T553: 99.6 | U553: 99.8 | V553: 98.2 | W553: 98.8 | X553: 100.9 | Y553: 100.1 | Z553: 98.9 | AA553: 97.9 | AB553: 101.2 | AC553: 98.6 | AD553: 100.1 | AE553: 101.4 | AF553: 100.6 | AG553: 98.7 | AH553: 99 | AI553: 101.3 | AJ553: 100.5 | AK553: 98.2 | AL553: 99.2 | AM553: 98.2 | AN553: 99.3 | AO553: 97.9 | AP553: 101.3 | AQ553: 101 | AR553: 102.4 | AS553: 101.2
J554: 100.8 | K554: 100.7 | L554: 100.6 | M554: 100.8 | N554: 100.3 | O554: 100.2 | P554: 99.5 | Q554: 99.3 | R554: 99.3 | S554: 99.5 | T554: 99.6 | U554: 99.4 | V554: 100.7 | W554: 100.2 | X554: 100.4 | Y554: 100.5 | Z554: 100.4 | AA554: 101 | AB554: 101.2 | AC554: 101 | AD554: 101 | AE554: 101.2 | AF554: 101.5 | AG554: 101.8 | AH554: 101.4 | AI554: 100.7 | AJ554: 101.2 | AK554: 101.2 | AL554: 101.3 | AM554: 101.5 | AN554: 100.8 | AO554: 101.9 | AP554: 102.4 | AQ554: 102.8 | AR554: 102.8 | AS554: 102.9
J555: 100.8 | K555: 100.7 | L555: 100.6 | M555: 100.8 | N555: 100.3 | O555: 100.2 | P555: 99.5 | Q555: 99.3 | R555: 99.3 | S555: 99.5 | T555: 99.6 | U555: 99.4 | V555: 100.7 | W555: 100.2 | X555: 100.4 | Y555: 100.5 | Z555: 100.4 | AA555: 101 | AB555: 101.2 | AC555: 101 | AD555: 101 | AE555: 101.2 | AF555: 101.5 | AG555: 101.8 | AH555: 101.4 | AI555: 100.7 | AJ555: 101.2 | AK555: 101.2 | AL555: 101.3 | AM555: 101.5 | AN555: 100.8 | AO555: 101.9 | AP555: 102.4 | AQ555: 102.8 | AR555: 102.8 | AS555: 102.9
J556: 101.4 | K556: 99.9 | L556: 100.4 | M556: 100.5 | N556: 100.5 | O556: 100.6 | P556: 99.3 | Q556: 99.1 | R556: 99.7 | S556: 99.7 | T556: 99.5 | U556: 99.4 | V556: 100.3 | W556: 99.8 | X556: 100.3 | Y556: 100.5 | Z556: 100.2 | AA556: 100.8 | AB556: 101.3 | AC556: 101.7 | AD556: 101.8 | AE556: 102.4 | AF556: 101.7 | AG556: 102.3 | AH556: 102.6 | AI556: 101.5 | AJ556: 101.6 | AK556: 102 | AL556: 102 | AM556: 102.7 | AN556: 103.3 | AO556: 103.5 | AP556: 103.5 | AQ556: 104.6 | AR556: 104.7 | AS556: 104.7
J557: 100.2 | K557: 99.5 | L557: 100.1 | M557: 100.1 | N557: 100.6 | O557: 100.7 | P557: 99.7 | Q557: 99.1 | R557: 99.8 | S557: 99.8 | T557: 100 | U557: 100.3 | V557: 100.4 | W557: 98.7 | X557: 100.8 | Y557: 101.3 | Z557: 101.3 | AA557: 100.9 | AB557: 101.3 | AC557: 101.2 | AD557: 101.7 | AE557: 101.1 | AF557: 101.8 | AG557: 103 | AH557: 104.4 | AI557: 104.3 | AJ557: 105.3 | AK557: 109.1 | AL557: 107.4 | AM557: 109.2 | AN557: 110.1 | AO557: 110.7 | AP557: 110.7 | AQ557: 112.5 | AR557: 112.5 | AS557: 112.6
J558: 101.8 | K558: 100 | L558: 100.5 | M558: 100.6 | N558: 100.6 | O558: 100.6 | P558: 99.2 | Q558: 99 | R558: 99.7 | S558: 99.7 | T558: 99.3 | U558: 99.3 | V558: 100.3 | W558: 99.8 | X558: 100.3 | Y558: 100.3 | Z558: 99.9 | AA558: 100.6 | AB558: 101.2 | AC558: 101.8 | AD558: 101.8 | AE558: 102.5 | AF558: 101.7 | AG558: 102.2 | AH558: 102.2 | AI558: 101 | AJ558: 100.9 | AK558: 100.8 | AL558: 101.1 | AM558: 101.7 | AN558: 102.3 | AO558: 102.5 | AP558: 102.5 | AQ558: 103.6 | AR558: 103.8 | AS558: 103.8
J559: 99.1 | K559: 99.1 | L559: 99.1 | M559: 100.3 | N559: 100.3 | O559: 100.3 | P559: 100.3 | Q559: 100.3 | R559: 100.3 | S559: 100.3 | T559: 100.3 | U559: 100.3 | V559: 100.3 | W559: 100.3 | X559: 100.3 | Y559: 102.1 | Z559: 102.1 | AA559: 102.1 | AB559: 102.1 | AC559: 102.1 | AD559: 102.1 | AE559: 102.1 | AF559: 102.1 | AG559: 102.1 | AH559: 104.1 | AI559: 104.1 | AJ559: 104.1 | AK559: 105.8 | AL559: 105.8 | AM559: 105.8 | AN559: 105.8 | AO559: 105.8 | AP559: 105.8 | AQ559: 105.8 | AR559: 105.8 | AS559: 105.8
... 855 more rows

Sheet メンテナンス
A1: 令和表記 | B1: 開始時期 | C1: 現在日付入力欄
A2: =Reiwa漢字西暦(開始時期リスト[[#This Row],[開始時期]]) -> 令和2年(2020)1月 | B2: 2020-01-01 | C2: 2025-11-13
A3: =Reiwa漢字西暦(開始時期リスト[[#This Row],[開始時期]]) -> 令和3年(2021)1月 | B3: 2021-01-01
A4: =Reiwa漢字西暦(開始時期リスト[[#This Row],[開始時期]]) -> 令和4年(2022)1月 | B4: 2022-01-01
A5: =Reiwa漢字西暦(開始時期リスト[[#This Row],[開始時期]]) -> 令和5年(2023)1月 | B5: 2023-01-01
D6: Z:\部共有\【経済対策担当】強い経済の構築に向けた戦略会議\02_価格交渉支援ツール\01_価格交渉支援ツール\01_アップロード用\1113公開用\更新データシート(R7.11)（旧ツール）.xlsx
D8: メンテナンス画面表示 パスワード
D9: 4321
D11: シート保護解除 パスワード
D12: 1234

Sheet 元データ
A1: 項番 | B1: 種別 | C1: データコード | D1: 類別 | E1: 系列名称 | F1: 2020-01-01 | G1: 2020-02-01 | H1: 2020-03-01 | I1: 2020-04-01 | J1: 2020-05-01 | K1: 2020-06-01 | L1: 2020-07-01 | M1: 2020-08-01 | N1: 2020-09-01 | O1: 2020-10-01 | P1: 2020-11-01 | Q1: 2020-12-01 | R1: 2021-01-01 | S1: 2021-02-01 | T1: 2021-03-01 | U1: 2021-04-01 | V1: 2021-05-01 | W1: 2021-06-01 | X1: 2021-07-01 | Y1: 2021-08-01 | Z1: 2021-09-01 | AA1: 2021-10-01 | AB1: 2021-11-01 | AC1: 2021-12-01 | AD1: 2022-01-01 | AE1: 2022-02-01 | AF1: 2022-03-01 | AG1: 2022-04-01 | AH1: 2022-05-01 | AI1: 2022-06-01 | AJ1: 2022-07-01 | AK1: 2022-08-01 | AL1: 2022-09-01 | AM1: 2022-10-01 | AN1: 2022-11-01 | AO1: 2022-12-01 | AP1: 2023-01-01 | AQ1: 2023-02-01 | AR1: 2023-03-01 | AS1: 2023-04-01 | AT1: 2023-05-01 | AU1: 2023-06-01 | AV1: 2023-07-01 | AW1: 2023-08-01 | AX1: 2023-09-01 | AY1: 2023-10-01 | AZ1: 2023-11-01 | BA1: 2023-12-01 | BB1: 2024-01-01 | BC1: 2024-02-01 | BD1: 2024-03-01 | BE1: 2024-04-01 | BF1: 2024-05-01 | BG1: 2024-06-01 | BH1: 2024-07-01 | BI1: 2024-08-01 | BJ1: 2024-09-01 | BK1: 2024-10-01 | BL1: 2024-11-01 | BM1: 2024-12-01 | BN1: 2025-01-01 | BO1: 2025-02-01 | BP1: 2025-03-01 | BQ1: 2025-04-01 | BR1: 2025-05-01 | BS1: 2025-06-01 | BT1: 2025-07-01 | BU1: 2025-08-01 | BV1: 2025-09-01 | BW1: 2025-10-01
A2: 1 | B2: 1国内 | C2: PR01'PRCG20_2200120001 | D2: 国内類別1/_飲食料品 | E2: 類別/_飲食料品 | F2: 99.7 | G2: 99.9 | H2: 99.9 | I2: 99.9 | J2: 99.7 | K2: 100.1 | L2: 100 | M2: 99.6 | N2: 99.8 | O2: 100.6 | P2: 100.3 | Q2: 100.6 | R2: 100.5 | S2: 100.8 | T2: 100.9 | U2: 101.7 | V2: 101.2 | W2: 101.4 | X2: 102.2 | Y2: 102.5 | Z2: 102.5 | AA2: 103 | AB2: 103.2 | AC2: 103.4 | AD2: 103.7 | AE2: 104.1 | AF2: 105 | AG2: 105.8 | AH2: 105.7 | AI2: 106.4 | AJ2: 108.4 | AK2: 108.9 | AL2: 109.7 | AM2: 110.8 | AN2: 111.8 | AO2: 111.9 | AP2: 112.5 | AQ2: 113.4 | AR2: 113.8 | AS2: 115 | AT2: 115 | AU2: 115.7 | AV2: 116 | AW2: 116.3 | AX2: 116.7 | AY2: 117 | AZ2: 117.2 | BA2: 117.4 | BB2: 117.1 | BC2: 117.5 | BD2: 117.7 | BE2: 118 | BF2: 117.9 | BG2: 118.1 | BH2: 118.7 | BI2: 118.7 | BJ2: 119.1 | BK2: 119.4 | BL2: 119.7 | BM2: 120 | BN2: 120.6 | BO2: 121.2 | BP2: 122 | BQ2: 123.2 | BR2: 123.4 | BS2: 123.7 | BT2: 124.5 | BU2: 124.5 | BV2: 124.8 | BW2: 125.1
A3: 2 | B3: 1国内 | C3: PR01'PRCG20_2200130001 | D3: 国内類別1/_飲食料品 | E3: 小類別/__食料品 | F3: 99.7 | G3: 99.9 | H3: 99.9 | I3: 100 | J3: 99.8 | K3: 100.3 | L3: 100.3 | M3: 99.8 | N3: 100 | O3: 100.3 | P3: 99.8 | Q3: 100.2 | R3: 99.7 | S3: 100 | T3: 100.1 | U3: 100.5 | V3: 100 | W3: 100.4 | X3: 100.7 | Y3: 101.1 | Z3: 101.3 | AA3: 101.4 | AB3: 101.5 | AC3: 101.8 | AD3: 101.9 | AE3: 102.5 | AF3: 103.5 | AG3: 104.2 | AH3: 104 | AI3: 105 | AJ3: 106.3 | AK3: 107 | AL3: 108.1 | AM3: 108.7 | AN3: 109.9 | AO3: 109.9 | AP3: 110.8 | AQ3: 111.6 | AR3: 112.1 | AS3: 113.8 | AT3: 113.7 | AU3: 114.6 | AV3: 115.1 | AW3: 115.5 | AX3: 115.9 | AY3: 116.4 | AZ3: 116.6 | BA3: 116.9 | BB3: 116.5 | BC3: 116.9 | BD3: 117.3 | BE3: 117.9 | BF3: 118 | BG3: 118.3 | BH3: 118.9 | BI3: 119 | BJ3: 119.5 | BK3: 120.1 | BL3: 120.3 | BM3: 120.8 | BN3: 121.1 | BO3: 122 | BP3: 123.1 | BQ3: 124.2 | BR3: 124.3 | BS3: 124.6 | BT3: 125.5 | BU3: 125.5 | BV3: 125.8 | BW3: 125.8
A4: 3 | B4: 1国内 | C4: PR01'PRCG20_2200140001 | D4: 国内類別1/_飲食料品 | E4: 商品群/___酪農品 | F4: 99.9 | G4: 100.1 | H4: 99.7 | I4: 99.4 | J4: 100.2 | K4: 100.3 | L4: 100 | M4: 100 | N4: 100.1 | O4: 100.4 | P4: 100 | Q4: 99.9 | R4: 99.8 | S4: 99.9 | T4: 99.7 | U4: 100.1 | V4: 99.8 | W4: 100 | X4: 99.9 | Y4: 99.9 | Z4: 99.8 | AA4: 99.8 | AB4: 99.9 | AC4: 100.1 | AD4: 99.8 | AE4: 99.8 | AF4: 99.7 | AG4: 100.4 | AH4: 100.3 | AI4: 100.7 | AJ4: 101 | AK4: 101.3 | AL4: 101 | AM4: 101.8 | AN4: 105.6 | AO4: 105.7 | AP4: 106.3 | AQ4: 106.1 | AR4: 106.9 | AS4: 109.5 | AT4: 110.2 | AU4: 110.1 | AV4: 110.2 | AW4: 112.2 | AX4: 113.3 | AY4: 113 | AZ4: 113.4 | BA4: 113.8 | BB4: 114.4 | BC4: 114.3 | BD4: 114.5 | BE4: 114.3 | BF4: 114.4 | BG4: 114.5 | BH4: 114.7 | BI4: 114.5 | BJ4: 115.1 | BK4: 115.3 | BL4: 115.4 | BM4: 115.3 | BN4: 115.4 | BO4: 115.2 | BP4: 116 | BQ4: 117.5 | BR4: 117.1 | BS4: 117.9 | BT4: 118.7 | BU4: 121.6 | BV4: 122 | BW4: 122
A5: 4 | B5: 1国内 | C5: PR01'PRCG20_2200150001 | D5: 国内類別1/_飲食料品 | E5: 品目/____処理牛乳 | F5: 100.3 | G5: 100.3 | H5: 100.1 | I5: 99.1 | J5: 100 | K5: 100 | L5: 100.1 | M5: 100 | N5: 100 | O5: 100.1 | P5: 100 | Q5: 100.1 | R5: 100.1 | S5: 100.1 | T5: 100.1 | U5: 100.5 | V5: 100.2 | W5: 100.5 | X5: 100.3 | Y5: 100.3 | Z5: 100.3 | AA5: 100.4 | AB5: 100.5 | AC5: 100.5 | AD5: 100.5 | AE5: 100.5 | AF5: 100.3 | AG5: 100.5 | AH5: 100.4 | AI5: 100.5 | AJ5: 100.4 | AK5: 100.4 | AL5: 100.4 | AM5: 100.5 | AN5: 107.2 | AO5: 107.8 | AP5: 107.8 | AQ5: 107.8 | AR5: 107.9 | AS5: 108 | AT5: 107.6 | AU5: 107.9 | AV5: 107.9 | AW5: 116.8 | AX5: 117.3 | AY5: 117.8 | AZ5: 117.5 | BA5: 117.7 | BB5: 117.7 | BC5: 117.8 | BD5: 117.7 | BE5: 117.3 | BF5: 117.8 | BG5: 118 | BH5: 118.1 | BI5: 117.9 | BJ5: 117.8 | BK5: 117.8 | BL5: 117.8 | BM5: 117.8 | BN5: 117.8 | BO5: 117.8 | BP5: 117.8 | BQ5: 118.9 | BR5: 119.1 | BS5: 119.1 | BT5: 119 | BU5: 127.1 | BV5: 124.9 | BW5: 124.9
A6: 5 | B6: 1国内 | C6: PR01'PRCG20_2200150002 | D6: 国内類別1/_飲食料品 | E6: 品目/____乳飲料・乳酸菌飲料 | F6: 99.5 | G6: 99.7 | H6: 99.4 | I6: 99.7 | J6: 100.3 | K6: 100 | L6: 100.1 | M6: 100.3 | N6: 100.5 | O6: 100.3 | P6: 100.3 | Q6: 99.9 | R6: 100.1 | S6: 100.4 | T6: 100.1 | U6: 100.1 | V6: 99.9 | W6: 100 | X6: 99.8 | Y6: 99.7 | Z6: 100.2 | AA6: 100.3 | AB6: 100.4 | AC6: 100.2 | AD6: 100.2 | AE6: 100.2 | AF6: 100.9 | AG6: 101.2 | AH6: 101.4 | AI6: 101.5 | AJ6: 102.1 | AK6: 101.9 | AL6: 102 | AM6: 102.9 | AN6: 104 | AO6: 104.7 | AP6: 104.9 | AQ6: 105.3 | AR6: 107.4 | AS6: 108.6 | AT6: 107.7 | AU6: 108.4 | AV6: 108 | AW6: 109.5 | AX6: 114.3 | AY6: 114 | AZ6: 113.8 | BA6: 114.1 | BB6: 114.5 | BC6: 114.2 | BD6: 114.9 | BE6: 114.4 | BF6: 114.6 | BG6: 114.3 | BH6: 114.3 | BI6: 114.3 | BJ6: 114.7 | BK6: 115 | BL6: 115 | BM6: 115.1 | BN6: 115.3 | BO6: 114.9 | BP6: 116.5 | BQ6: 117.6 | BR6: 117.7 | BS6: 117.4 | BT6: 118.3 | BU6: 118.8 | BV6: 119 | BW6: 119.5
A7: 6 | B7: 1国内 | C7: PR01'PRCG20_2200150003 | D7: 国内類別1/_飲食料品 | E7: 品目/____粉乳 | F7: 100.6 | G7: 100.5 | H7: 100.1 | I7: 100.7 | J7: 100.1 | K7: 99.9 | L7: 99.9 | M7: 99.8 | N7: 99.8 | O7: 99.6 | P7: 99.4 | Q7: 99.5 | R7: 99.4 | S7: 99.4 | T7: 99.5 | U7: 99.4 | V7: 99.4 | W7: 98.9 | X7: 98.8 | Y7: 98.8 | Z7: 99 | AA7: 99 | AB7: 99 | AC7: 99 | AD7: 99 | AE7: 99 | AF7: 99 | AG7: 98.8 | AH7: 98.8 | AI7: 98.8 | AJ7: 98.8 | AK7: 98.8 | AL7: 98.8 | AM7: 98.8 | AN7: 101 | AO7: 101.1 | AP7: 101.1 | AQ7: 101.1 | AR7: 101.2 | AS7: 107.8 | AT7: 110.5 | AU7: 111.1 | AV7: 111.1 | AW7: 111.5 | AX7: 110.8 | AY7: 111 | AZ7: 111.1 | BA7: 112.1 | BB7: 112.1 | BC7: 112.1 | BD7: 112.2 | BE7: 112.2 | BF7: 112.2 | BG7: 112.1 | BH7: 112.1 | BI7: 112.1 | BJ7: 112.1 | BK7: 113.6 | BL7: 113.8 | BM7: 114 | BN7: 114 | BO7: 114.2 | BP7: 114.4 | BQ7: 114.3 | BR7: 114.4 | BS7: 114.3 | BT7: 115.4 | BU7: 116.1 | BV7: 116 | BW7: 116
A8: 7 | B8: 1国内 | C8: PR01'PRCG20_2200150004 | D8: 国内類別1/_飲食料品 | E8: 品目/____バター | F8: 100.1 | G8: 100.1 | H8: 100.1 | I8: 100 | J8: 100 | K8: 100 | L8: 100 | M8: 100 | N8: 100 | O8: 99.9 | P8: 99.9 | Q8: 99.9 | R8: 100.2 | S8: 100.2 | T8: 100.3 | U8: 100.1 | V8: 100.1 | W8: 100.1 | X8: 100 | Y8: 100 | Z8: 100.1 | AA8: 99.8 | AB8: 99.7 | AC8: 99.8 | AD8: 99.8 | AE8: 99.8 | AF8: 99.9 | AG8: 99.3 | AH8: 99.7 | AI8: 99.9 | AJ8: 99.7 | AK8: 99.6 | AL8: 99.5 | AM8: 99.2 | AN8: 99.2 | AO8: 99 | AP8: 99.5 | AQ8: 99.3 | AR8: 97.8 | AS8: 106.8 | AT8: 107.5 | AU8: 110.8 | AV8: 111 | AW8: 110.4 | AX8: 109.9 | AY8: 110.1 | AZ8: 110.2 | BA8: 114.2 | BB8: 117.2 | BC8: 118.1 | BD8: 118.8 | BE8: 118.4 | BF8: 119.3 | BG8: 118.6 | BH8: 120.2 | BI8: 119.9 | BJ8: 119.8 | BK8: 119.5 | BL8: 119.6 | BM8: 119.3 | BN8: 119.4 | BO8: 119.3 | BP8: 118.3 | BQ8: 122.8 | BR8: 123.4 | BS8: 127.9 | BT8: 134.3 | BU8: 134.6 | BV8: 134.3 | BW8: 134.3
A9: 8 | B9: 1国内 | C9: PR01'PRCG20_2200150005 | D9: 国内類別1/_飲食料品 | E9: 品目/____チーズ | F9: 99.3 | G9: 101 | H9: 99.3 | I9: 99.9 | J9: 99.8 | K9: 101 | L9: 99.6 | M9: 99.4 | N9: 100 | O9: 101.5 | P9: 99.4 | Q9: 99.6 | R9: 99 | S9: 100.6 | T9: 99.4 | U9: 100.7 | V9: 99.3 | W9: 100.4 | X9: 100.4 | Y9: 100.9 | Z9: 100.1 | AA9: 100.5 | AB9: 99.6 | AC9: 100.8 | AD9: 100.2 | AE9: 100.1 | AF9: 99 | AG9: 103.2 | AH9: 102.9 | AI9: 101.9 | AJ9: 103.2 | AK9: 105.8 | AL9: 101.7 | AM9: 107.5 | AN9: 116.3 | AO9: 113.1 | AP9: 115.1 | AQ9: 113.4 | AR9: 113.1 | AS9: 116.4 | AT9: 116.7 | AU9: 117 | AV9: 117.6 | AW9: 112.8 | AX9: 116.1 | AY9: 113.4 | AZ9: 114.5 | BA9: 115.1 | BB9: 114.7 | BC9: 115 | BD9: 117 | BE9: 116.9 | BF9: 116.7 | BG9: 117.1 | BH9: 117.2 | BI9: 116.9 | BJ9: 115.9 | BK9: 115.8 | BL9: 115.9 | BM9: 115 | BN9: 115.8 | BO9: 114.2 | BP9: 117.2 | BQ9: 122.5 | BR9: 118.7 | BS9: 119.1 | BT9: 122.3 | BU9: 122.3 | BV9: 123.1 | BW9: 123.1
A10: 9 | B10: 1国内 | C10: PR01'PRCG20_2200150006 | D10: 国内類別1/_飲食料品 | E10: 品目/____生クリーム | F10: 100.3 | G10: 100.3 | H10: 100.2 | I10: 100.2 | J10: 99.9 | K10: 99.8 | L10: 99.8 | M10: 99.8 | N10: 99.9 | O10: 100 | P10: 99.9 | Q10: 99.8 | R10: 99.6 | S10: 99.7 | T10: 99.6 | U10: 100 | V10: 99.5 | W10: 99.5 | X10: 99.4 | Y10: 99.4 | Z10: 99.6 | AA10: 99.6 | AB10: 99.9 | AC10: 100 | AD10: 99.8 | AE10: 100 | AF10: 100.3 | AG10: 100.3 | AH10: 100.4 | AI10: 100.4 | AJ10: 100.1 | AK10: 100.5 | AL10: 101.3 | AM10: 101.6 | AN10: 101.5 | AO10: 102.1 | AP10: 101.9 | AQ10: 101.9 | AR10: 102 | AS10: 110 | AT10: 110.3 | AU10: 111.3 | AV10: 111.9 | AW10: 111.8 | AX10: 111.7 | AY10: 111.9 | AZ10: 112.4 | BA10: 114.2 | BB10: 117.2 | BC10: 116.6 | BD10: 116.8 | BE10: 116.7 | BF10: 116.7 | BG10: 116.9 | BH10: 116.6 | BI10: 116.6 | BJ10: 116.6 | BK10: 116.5 | BL10: 116.5 | BM10: 116.6 | BN10: 116.8 | BO10: 116.9 | BP10: 116.8 | BQ10: 117.1 | BR10: 117.4 | BS10: 124.5 | BT10: 125.3 | BU10: 125.6 | BV10: 125.6 | BW10: 125.6
A11: 10 | B11: 1国内 | C11: PR01'PRCG20_2200150007 | D11: 国内類別1/_飲食料品 | E11: 品目/____アイスクリーム | F11: 99.2 | G11: 99.2 | H11: 99 | I11: 98.2 | J11: 101 | K11: 101.1 | L11: 100.2 | M11: 100.3 | N11: 100.5 | O11: 101 | P11: 100.4 | Q11: 100.2 | R11: 99.7 | S11: 98.9 | T11: 99.2 | U11: 99.8 | V11: 99.8 | W11: 99.9 | X11: 100.3 | Y11: 100.1 | Z11: 99.3 | AA11: 99.1 | AB11: 99.3 | AC11: 100.3 | AD11: 98.8 | AE11: 98.7 | AF11: 98.8 | AG11: 100.1 | AH11: 99.4 | AI11: 102.1 | AJ11: 103.1 | AK11: 103.3 | AL11: 104 | AM11: 103.9 | AN11: 104.4 | AO11: 104.4 | AP11: 106.4 | AQ11: 106 | AR11: 109 | AS11: 109.2 | AT11: 113.3 | AU11: 109.4 | AV11: 110 | AW11: 109.5 | AX11: 109.5 | AY11: 109.4 | AZ11: 110 | BA11: 109.6 | BB11: 110.7 | BC11: 110.3 | BD11: 110 | BE11: 110.5 | BF11: 110.2 | BG11: 110.4 | BH11: 111.2 | BI11: 110.9 | BJ11: 114.4 | BK11: 115.1 | BL11: 115.7 | BM11: 115.8 | BN11: 115.3 | BO11: 115.2 | BP11: 116.4 | BQ11: 117.4 | BR11: 116.7 | BS11: 117.9 | BT11: 117.7 | BU11: 118 | BV11: 121.5 | BW11: 121.5
A12: 11 | B12: 1国内 | C12: PR01'PRCG20_2200150008 | D12: 国内類別1/_飲食料品 | E12: 品目/____ヨーグルト | F12: 100.3 | G12: 100.1 | H12: 99.8 | I12: 99.8 | J12: 99.9 | K12: 100 | L12: 100.2 | M12: 100 | N12: 99.9 | O12: 100.2 | P12: 100 | Q12: 99.7 | R12: 99.9 | S12: 99.7 | T12: 99.6 | U12: 99.6 | V12: 99.6 | W12: 99.5 | X12: 99.4 | Y12: 99.3 | Z12: 99.2 | AA12: 99.5 | AB12: 99.4 | AC12: 99.4 | AD12: 99.3 | AE12: 99.3 | AF12: 99.3 | AG12: 98.6 | AH12: 98.7 | AI12: 98.7 | AJ12: 98.8 | AK12: 98.7 | AL12: 98.7 | AM12: 98.7 | AN12: 103.1 | AO12: 104.5 | AP12: 104.6 | AQ12: 104.5 | AR12: 104.6 | AS12: 109.5 | AT12: 108.8 | AU12: 109.8 | AV12: 109.6 | AW12: 111 | AX12: 111 | AY12: 110.6 | AZ12: 111.9 | BA12: 111.9 | BB12: 112 | BC12: 112 | BD12: 111.6 | BE12: 110.6 | BF12: 110.7 | BG12: 110.7 | BH12: 110.6 | BI12: 110.6 | BJ12: 110.7 | BK12: 110.5 | BL12: 110.6 | BM12: 110.5 | BN12: 110.7 | BO12: 111.1 | BP12: 111.4 | BQ12: 112 | BR12: 112 | BS12: 112.1 | BT12: 112 | BU12: 116.7 | BV12: 117.7 | BW12: 117.7
A13: 12 | B13: 1国内 | C13: PR01'PRCG20_2200140002 | D13: 国内類別1/_飲食料品 | E13: 商品群/___その他の畜産食料品 | F13: 100.3 | G13: 100.7 | H13: 99.9 | I13: 99.4 | J13: 99.4 | K13: 99.9 | L13: 100.4 | M13: 99.8 | N13: 99.7 | O13: 99.7 | P13: 100.2 | Q13: 100.8 | R13: 99.8 | S13: 100.2 | T13: 99.8 | U13: 99.9 | V13: 99.8 | W13: 100 | X13: 100 | Y13: 99.4 | Z13: 100 | AA13: 99.9 | AB13: 99.6 | AC13: 99.7 | AD13: 99.1 | AE13: 99.5 | AF13: 100.8 | AG13: 101.8 | AH13: 102.1 | AI13: 102.5 | AJ13: 102.6 | AK13: 102.3 | AL13: 102.6 | AM13: 104.7 | AN13: 104.8 | AO13: 105 | AP13: 106.9 | AQ13: 107 | AR13: 107 | AS13: 108.4 | AT13: 109.1 | AU13: 111 | AV13: 111.5 | AW13: 110.9 | AX13: 111.2 | AY13: 111.1 | AZ13: 111.4 | BA13: 111.6 | BB13: 111 | BC13: 111.6 | BD13: 111.6 | BE13: 111.9 | BF13: 116 | BG13: 116.2 | BH13: 116.4 | BI13: 116.7 | BJ13: 117.3 | BK13: 119.6 | BL13: 119.8 | BM13: 121.5 | BN13: 121.4 | BO13: 121.9 | BP13: 121.3 | BQ13: 121.6 | BR13: 121.7 | BS13: 122.1 | BT13: 122.2 | BU13: 122.3 | BV13: 122.2 | BW13: 121.7
A14: 13 | B14: 1国内 | C14: PR01'PRCG20_2200150009 | D14: 国内類別1/_飲食料品 | E14: 品目/____肉製品 | F14: 100.3 | G14: 100.7 | H14: 99.9 | I14: 99.4 | J14: 99.4 | K14: 99.9 | L14: 100.4 | M14: 99.8 | N14: 99.7 | O14: 99.7 | P14: 100.2 | Q14: 100.8 | R14: 99.8 | S14: 100.2 | T14: 99.8 | U14: 99.9 | V14: 99.8 | W14: 100 | X14: 100 | Y14: 99.4 | Z14: 100 | AA14: 99.9 | AB14: 99.6 | AC14: 99.7 | AD14: 99.1 | AE14: 99.5 | AF14: 100.8 | AG14: 101.8 | AH14: 102.1 | AI14: 102.5 | AJ14: 102.6 | AK14: 102.3 | AL14: 102.6 | AM14: 104.7 | AN14: 104.8 | AO14: 105 | AP14: 106.9 | AQ14: 107 | AR14: 107 | AS14: 108.4 | AT14: 109.1 | AU14: 111 | AV14: 111.5 | AW14: 110.9 | AX14: 111.2 | AY14: 111.1 | AZ14: 111.4 | BA14: 111.6 | BB14: 111 | BC14: 111.6 | BD14: 111.6 | BE14: 111.9 | BF14: 116 | BG14: 116.2 | BH14: 116.4 | BI14: 116.7 | BJ14: 117.3 | BK14: 119.6 | BL14: 119.8 | BM14: 121.5 | BN14: 121.4 | BO14: 121.9 | BP14: 121.3 | BQ14: 121.6 | BR14: 121.7 | BS14: 122.1 | BT14: 122.2 | BU14: 122.3 | BV14: 122.2 | BW14: 121.7
A15: 14 | B15: 1国内 | C15: PR01'PRCG20_2200140003 | D15: 国内類別1/_飲食料品 | E15: 商品群/___水産びん・かん詰 | F15: 100.1 | G15: 99.8 | H15: 100.2 | I15: 100.2 | J15: 99 | K15: 99.6 | L15: 101 | M15: 100.4 | N15: 100 | O15: 101.7 | P15: 99.3 | Q15: 98.7 | R15: 99.2 | S15: 100.2 | T15: 99.9 | U15: 98.6 | V15: 97.6 | W15: 96.6 | X15: 98.2 | Y15: 98.7 | Z15: 98.4 | AA15: 99.4 | AB15: 99.9 | AC15: 102 | AD15: 100.8 | AE15: 100.8 | AF15: 100.8 | AG15: 103.2 | AH15: 103.8 | AI15: 103 | AJ15: 105.8 | AK15: 106.2 | AL15: 109.8 | AM15: 108 | AN15: 112.9 | AO15: 110.4 | AP15: 114.9 | AQ15: 120.4 | AR15: 123.2 | AS15: 130.7 | AT15: 131.9 | AU15: 130.9 | AV15: 131 | AW15: 130.9 | AX15: 131.2 | AY15: 134.6 | AZ15: 132.1 | BA15: 134.3 | BB15: 132.1 | BC15: 130.6 | BD15: 132 | BE15: 131 | BF15: 129.2 | BG15: 128.1 | BH15: 128.8 | BI15: 129.3 | BJ15: 128.4 | BK15: 130.2 | BL15: 128.8 | BM15: 131.4 | BN15: 128.9 | BO15: 128.4 | BP15: 130.6 | BQ15: 129.5 | BR15: 130.6 | BS15: 129.3 | BT15: 132.2 | BU15: 131.7 | BV15: 130.3 | BW15: 130.3
A16: 15 | B16: 1国内 | C16: PR01'PRCG20_2200150010 | D16: 国内類別1/_飲食料品 | E16: 品目/____水産びん・かん詰 | F16: 100.1 | G16: 99.8 | H16: 100.2 | I16: 100.2 | J16: 99 | K16: 99.6 | L16: 101 | M16: 100.4 | N16: 100 | O16: 101.7 | P16: 99.3 | Q16: 98.7 | R16: 99.2 | S16: 100.2 | T16: 99.9 | U16: 98.6 | V16: 97.6 | W16: 96.6 | X16: 98.2 | Y16: 98.7 | Z16: 98.4 | AA16: 99.4 | AB16: 99.9 | AC16: 102 | AD16: 100.8 | AE16: 100.8 | AF16: 100.8 | AG16: 103.2 | AH16: 103.8 | AI16: 103 | AJ16: 105.8 | AK16: 106.2 | AL16: 109.8 | AM16: 108 | AN16: 112.9 | AO16: 110.4 | AP16: 114.9 | AQ16: 120.4 | AR16: 123.2 | AS16: 130.7 | AT16: 131.9 | AU16: 130.9 | AV16: 131 | AW16: 130.9 | AX16: 131.2 | AY16: 134.6 | AZ16: 132.1 | BA16: 134.3 | BB16: 132.1 | BC16: 130.6 | BD16: 132 | BE16: 131 | BF16: 129.2 | BG16: 128.1 | BH16: 128.8 | BI16: 129.3 | BJ16: 128.4 | BK16: 130.2 | BL16: 128.8 | BM16: 131.4 | BN16: 128.9 | BO16: 128.4 | BP16: 130.6 | BQ16: 129.5 | BR16: 130.6 | BS16: 129.3 | BT16: 132.2 | BU16: 131.7 | BV16: 130.3 | BW16: 130.3
A17: 16 | B17: 1国内 | C17: PR01'PRCG20_2200140004 | D17: 国内類別1/_飲食料品 | E17: 商品群/___ねり製品 | F17: 99.8 | G17: 99.4 | H17: 100 | I17: 100.5 | J17: 100.5 | K17: 100 | L17: 100 | M17: 99.9 | N17: 100 | O17: 99.8 | P17: 100 | Q17: 100 | R17: 99.8 | S17: 99.8 | T17: 99.8 | U17: 99.2 | V17: 100.2 | W17: 101 | X17: 100.3 | Y17: 100.4 | Z17: 101.2 | AA17: 100.3 | AB17: 100.2 | AC17: 101.1 | AD17: 102 | AE17: 100.9 | AF17: 103.2 | AG17: 106.6 | AH17: 106.4 | AI17: 107.4 | AJ17: 106.1 | AK17: 106.3 | AL17: 111.1 | AM17: 114.3 | AN17: 114.9 | AO17: 114.3 | AP17: 114 | AQ17: 114.3 | AR17: 117.2 | AS17: 121.5 | AT17: 121.9 | AU17: 122.6 | AV17: 122.8 | AW17: 121.9 | AX17: 121 | AY17: 123.5 | AZ17: 122.5 | BA17: 122.9 | BB17: 122.3 | BC17: 120.3 | BD17: 121 | BE17: 121.9 | BF17: 121.9 | BG17: 121 | BH17: 121 | BI17: 121.1 | BJ17: 120.8 | BK17: 121.4 | BL17: 122.3 | BM17: 121.9 | BN17: 119.6 | BO17: 121.3 | BP17: 121.5 | BQ17: 122.2 | BR17: 124.7 | BS17: 123.3 | BT17: 123.7 | BU17: 123.8 | BV17: 123.9 | BW17: 123.9
A18: 17 | B18: 1国内 | C18: PR01'PRCG20_2200150011 | D18: 国内類別1/_飲食料品 | E18: 品目/____ねり製品 | F18: 99.8 | G18: 99.4 | H18: 100 | I18: 100.5 | J18: 100.5 | K18: 100 | L18: 100 | M18: 99.9 | N18: 100 | O18: 99.8 | P18: 100 | Q18: 100 | R18: 99.8 | S18: 99.8 | T18: 99.8 | U18: 99.2 | V18: 100.2 | W18: 101 | X18: 100.3 | Y18: 100.4 | Z18: 101.2 | AA18: 100.3 | AB18: 100.2 | AC18: 101.1 | AD18: 102 | AE18: 100.9 | AF18: 103.2 | AG18: 106.6 | AH18: 106.4 | AI18: 107.4 | AJ18: 106.1 | AK18: 106.3 | AL18: 111.1 | AM18: 114.3 | AN18: 114.9 | AO18: 114.3 | AP18: 114 | AQ18: 114.3 | AR18: 117.2 | AS18: 121.5 | AT18: 121.9 | AU18: 122.6 | AV18: 122.8 | AW18: 121.9 | AX18: 121 | AY18: 123.5 | AZ18: 122.5 | BA18: 122.9 | BB18: 122.3 | BC18: 120.3 | BD18: 121 | BE18: 121.9 | BF18: 121.9 | BG18: 121 | BH18: 121 | BI18: 121.1 | BJ18: 120.8 | BK18: 121.4 | BL18: 122.3 | BM18: 121.9 | BN18: 119.6 | BO18: 121.3 | BP18: 121.5 | BQ18: 122.2 | BR18: 124.7 | BS18: 123.3 | BT18: 123.7 | BU18: 123.8 | BV18: 123.9 | BW18: 123.9
A19: 18 | B19: 1国内 | C19: PR01'PRCG20_2200140005 | D19: 国内類別1/_飲食料品 | E19: 商品群/___その他の水産食料品 | F19: 97.8 | G19: 99.9 | H19: 100 | I19: 100 | J19: 98.9 | K19: 99.4 | L19: 99.7 | M19: 99.6 | N19: 101.3 | O19: 101.3 | P19: 100.8 | Q19: 101.2 | R19: 100.8 | S19: 100.9 | T19: 101.6 | U19: 101.6 | V19: 100.7 | W19: 101.4 | X19: 102 | Y19: 102.9 | Z19: 101.8 | AA19: 102.3 | AB19: 102 | AC19: 102.2 | AD19: 103 | AE19: 103.4 | AF19: 102.6 | AG19: 105.5 | AH19: 107.8 | AI19: 108.3 | AJ19: 108.6 | AK19: 108.9 | AL19: 108.8 | AM19: 109.6 | AN19: 111.4 | AO19: 113.1 | AP19: 112.8 | AQ19: 113.5 | AR19: 115.4 | AS19: 117 | AT19: 116.7 | AU19: 117.4 | AV19: 117.2 | AW19: 118.3 | AX19: 119.1 | AY19: 118.2 | AZ19: 119.1 | BA19: 119.3 | BB19: 118.5 | BC19: 120.4 | BD19: 121.6 | BE19: 122.3 | BF19: 122.2 | BG19: 120.8 | BH19: 121.5 | BI19: 122.3 | BJ19: 122.1 | BK19: 124.3 | BL19: 124.9 | BM19: 125.5 | BN19: 123.5 | BO19: 124.8 | BP19: 125.7 | BQ19: 126.7 | BR19: 126.5 | BS19: 126.3 | BT19: 127.4 | BU19: 128.6 | BV19: 129.4 | BW19: 129.2
A20: 19 | B20: 1国内 | C20: PR01'PRCG20_2200150012 | D20: 国内類別1/_飲食料品 | E20: 品目/____かつおパック | F20: 96.8 | G20: 101.2 | H20: 102.4 | I20: 103.1 | J20: 100.5 | K20: 100.3 | L20: 100.5 | M20: 101 | N20: 99.2 | O20: 98.4 | P20: 97.6 | Q20: 99 | R20: 97.1 | S20: 97.2 | T20: 99.9 | U20: 100.4 | V20: 96.4 | W20: 98.1 | X20: 99.2 | Y20: 103 | Z20: 101.1 | AA20: 101.4 | AB20: 100.6 | AC20: 102.1 | AD20: 103.4 | AE20: 105.1 | AF20: 103.6 | AG20: 107 | AH20: 106 | AI20: 107.8 | AJ20: 109 | AK20: 109.9 | AL20: 110.1 | AM20: 112.2 | AN20: 111.7 | AO20: 117.4 | AP20: 116.6 | AQ20: 119 | AR20: 125.2 | AS20: 129.8 | AT20: 128.4 | AU20: 131.6 | AV20: 130.2 | AW20: 134.3 | AX20: 135.9 | AY20: 138 | AZ20: 137.4 | BA20: 137.2 | BB20: 132.4 | BC20: 139.9 | BD20: 142.7 | BE20: 142.2 | BF20: 139.7 | BG20: 136.7 | BH20: 138.3 | BI20: 141.5 | BJ20: 140.3 | BK20: 140.7 | BL20: 141.6 | BM20: 142.8 | BN20: 137.5 | BO20: 140.1 | BP20: 142.1 | BQ20: 142.7 | BR20: 141.4 | BS20: 141.3 | BT20: 141.6 | BU20: 143.9 | BV20: 145.2 | BW20: 145.2
A21: 20 | B21: 1国内 | C21: PR01'PRCG20_2200150013 | D21: 国内類別1/_飲食料品 | E21: 品目/____水産物漬物 | F21: 99 | G21: 100.6 | H21: 100 | I21: 100.1 | J21: 99.5 | K21: 100.3 | L21: 100.7 | M21: 100.3 | N21: 100.5 | O21: 100.4 | P21: 99.5 | Q21: 98.9 | R21: 100.3 | S21: 100.1 | T21: 99.9 | U21: 99.8 | V21: 100.4 | W21: 100.8 | X21: 101 | Y21: 100.4 | Z21: 99.1 | AA21: 100.6 | AB21: 100.2 | AC21: 99.2 | AD21: 100.8 | AE21: 100.7 | AF21: 99.4 | AG21: 103.5 | AH21: 110.4 | AI21: 110.3 | AJ21: 110.1 | AK21: 110.4 | AL21: 110.2 | AM21: 110.4 | AN21: 114.6 | AO21: 114.9 | AP21: 115.3 | AQ21: 115 | AR21: 115.4 | AS21: 114 | AT21: 113.7 | AU21: 113.2 | AV21: 113.4 | AW21: 113.7 | AX21: 113.3 | AY21: 111 | AZ21: 112.1 | BA21: 112.3 | BB21: 113.7 | BC21: 113.6 | BD21: 113.9 | BE21: 115.5 | BF21: 115.9 | BG21: 115.3 | BH21: 115.2 | BI21: 115.4 | BJ21: 115.9 | BK21: 120.2 | BL21: 120.3 | BM21: 120.6 | BN21: 119.9 | BO21: 120.3 | BP21: 119.8 | BQ21: 119.9 | BR21: 120 | BS21: 120.4 | BT21: 120.2 | BU21: 120.3 | BV21: 120.2 | BW21: 120.2
A22: 21 | B22: 1国内 | C22: PR01'PRCG20_2200150014 | D22: 国内類別1/_飲食料品 | E22: 品目/____つくだ煮 | F22: 97.3 | G22: 97.7 | H22: 97.4 | I22: 96.9 | J22: 96.4 | K22: 97.2 | L22: 97.6 | M22: 97.3 | N22: 104.5 | O22: 105.4 | P22: 105.8 | Q22: 106.5 | R22: 105 | S22: 105.6 | T22: 105.6 | U22: 105.1 | V22: 105.5 | W22: 105.5 | X22: 106.1 | Y22: 106.1 | Z22: 105.9 | AA22: 105.6 | AB22: 105.9 | AC22: 106.3 | AD22: 105.5 | AE22: 105.4 | AF22: 105.8 | AG22: 106.5 | AH22: 106.2 | AI22: 106.2 | AJ22: 106.4 | AK22: 106.1 | AL22: 105.6 | AM22: 106 | AN22: 106.8 | AO22: 106.4 | AP22: 105.8 | AQ22: 106.1 | AR22: 105.6 | AS22: 108.2 | AT22: 109.1 | AU22: 108.8 | AV22: 109.1 | AW22: 108.4 | AX22: 110.1 | AY22: 107.8 | AZ22: 110.3 | BA22: 110.7 | BB22: 111 | BC22: 110 | BD22: 110.7 | BE22: 111.3 | BF22: 113 | BG22: 112.1 | BH22: 113.2 | BI22: 112.4 | BJ22: 112 | BK22: 113.4 | BL22: 114.4 | BM22: 114.7 | BN22: 114.1 | BO22: 115.6 | BP22: 117.1 | BQ22: 119.6 | BR22: 120.1 | BS22: 119.3 | BT22: 122.8 | BU22: 124.3 | BV22: 125.7 | BW22: 125.3
A23: 22 | B23: 1国内 | C23: PR01'PRCG20_2200140006 | D23: 国内類別1/_飲食料品 | E23: 商品群/___製粉 | F23: 99.3 | G23: 98.8 | H23: 99.7 | I23: 97.4 | J23: 97.6 | K23: 98.4 | L23: 101.3 | M23: 100.4 | N23: 102.1 | O23: 104 | P23: 100.4 | Q23: 100.5 | R23: 98.2 | S23: 98.9 | T23: 98.5 | U23: 98.4 | V23: 98.1 | W23: 98.9 | X23: 101.2 | Y23: 101.7 | Z23: 100.8 | AA23: 102.8 | AB23: 103.4 | AC23: 103.5 | AD23: 110 | AE23: 114.4 | AF23: 115 | AG23: 114.3 | AH23: 115.4 | AI23: 114.8 | AJ23: 124.5 | AK23: 128.7 | AL23: 127.3 | AM23: 126.6 | AN23: 127.3 | AO23: 127.7 | AP23: 127 | AQ23: 127.5 | AR23: 130.5 | AS23: 127.4 | AT23: 127.3 | AU23: 127.7 | AV23: 132.5 | AW23: 134.2 | AX23: 135.4 | AY23: 134.3 | AZ23: 134 | BA23: 134.5 | BB23: 126.6 | BC23: 124.5 | BD23: 124.4 | BE23: 124.5 | BF23: 124.2 | BG23: 124.5 | BH23: 125.2 | BI23: 125.1 | BJ23: 126.2 | BK23: 126.4 | BL23: 126 | BM23: 126.2 | BN23: 125.2 | BO23: 125.9 | BP23: 126 | BQ23: 125.6 | BR23: 124.8 | BS23: 124.8 | BT23: 123.2 | BU23: 122.7 | BV23: 123 | BW23: 123
A24: 23 | B24: 1国内 | C24: PR01'PRCG20_2200150015 | D24: 国内類別1/_飲食料品 | E24: 品目/____小麦粉 | F24: 99.3 | G24: 98.8 | H24: 99.7 | I24: 97.4 | J24: 97.6 | K24: 98.4 | L24: 101.3 | M24: 100.4 | N24: 102.1 | O24: 104 | P24: 100.4 | Q24: 100.5 | R24: 98.2 | S24: 98.9 | T24: 98.5 | U24: 98.4 | V24: 98.1 | W24: 98.9 | X24: 101.2 | Y24: 101.7 | Z24: 100.8 | AA24: 102.8 | AB24: 103.4 | AC24: 103.5 | AD24: 110 | AE24: 114.4 | AF24: 115 | AG24: 114.3 | AH24: 115.4 | AI24: 114.8 | AJ24: 124.5 | AK24: 128.7 | AL24: 127.3 | AM24: 126.6 | AN24: 127.3 | AO24: 127.7 | AP24: 127 | AQ24: 127.5 | AR24: 130.5 | AS24: 127.4 | AT24: 127.3 | AU24: 127.7 | AV24: 132.5 | AW24: 134.2 | AX24: 135.4 | AY24: 134.3 | AZ24: 134 | BA24: 134.5 | BB24: 126.6 | BC24: 124.5 | BD24: 124.4 | BE24: 124.5 | BF24: 124.2 | BG24: 124.5 | BH24: 125.2 | BI24: 125.1 | BJ24: 126.2 | BK24: 126.4 | BL24: 126 | BM24: 126.2 | BN24: 125.2 | BO24: 125.9 | BP24: 126 | BQ24: 125.6 | BR24: 124.8 | BS24: 124.8 | BT24: 123.2 | BU24: 122.7 | BV24: 123 | BW24: 123
A25: 24 | B25: 1国内 | C25: PR01'PRCG20_2200140007 | D25: 国内類別1/_飲食料品 | E25: 商品群/___めん類 | F25: 99.8 | G25: 99.5 | H25: 99.5 | I25: 102.6 | J25: 99.8 | K25: 99.8 | L25: 100.5 | M25: 99.8 | N25: 100.2 | O25: 99.6 | P25: 100.1 | Q25: 98.8 | R25: 98.7 | S25: 98.6 | T25: 99.2 | U25: 100.6 | V25: 99.7 | W25: 100.4 | X25: 100.4 | Y25: 100.6 | Z25: 100.6 | AA25: 100 | AB25: 100.5 | AC25: 99.3 | AD25: 100.8 | AE25: 100.5 | AF25: 102.4 | AG25: 105.1 | AH25: 105.4 | AI25: 109.7 | AJ25: 109.8 | AK25: 110.7 | AL25: 111.5 | AM25: 111.1 | AN25: 111 | AO25: 110.6 | AP25: 110.3 | AQ25: 112.4 | AR25: 113.1 | AS25: 115.4 | AT25: 115.3 | AU25: 118.6 | AV25: 119.2 | AW25: 118.9 | AX25: 119 | AY25: 118.8 | AZ25: 120.2 | BA25: 118.6 | BB25: 118.7 | BC25: 120.2 | BD25: 120.4 | BE25: 120 | BF25: 120.6 | BG25: 120.1 | BH25: 120.7 | BI25: 121.2 | BJ25: 121.5 | BK25: 121 | BL25: 121.2 | BM25: 120.5 | BN25: 121.3 | BO25: 122 | BP25: 122.5 | BQ25: 122.9 | BR25: 122.9 | BS25: 123.1 | BT25: 123.4 | BU25: 123 | BV25: 123 | BW25: 123
A26: 25 | B26: 1国内 | C26: PR01'PRCG20_2200150016 | D26: 国内類別1/_飲食料品 | E26: 品目/____即席めん | F26: 99.2 | G26: 98.7 | H26: 98.7 | I26: 107.1 | J26: 100.6 | K26: 99.6 | L26: 100.2 | M26: 98.6 | N26: 100.1 | O26: 99.4 | P26: 100.6 | Q26: 97.4 | R26: 99.1 | S26: 98.2 | T26: 97.7 | U26: 99.8 | V26: 98.8 | W26: 99.9 | X26: 98.9 | Y26: 99.3 | Z26: 99.9 | AA26: 98.8 | AB26: 99.7 | AC26: 96.2 | AD26: 101.4 | AE26: 101.1 | AF26: 99.5 | AG26: 100.3 | AH26: 100.4 | AI26: 110.5 | AJ26: 110.2 | AK26: 109.7 | AL26: 110.9 | AM26: 110.4 | AN26: 110 | AO26: 108.9 | AP26: 108.3 | AQ26: 110 | AR26: 110.6 | AS26: 110.4 | AT26: 111 | AU26: 118.7 | AV26: 118.8 | AW26: 118.6 | AX26: 119.7 | AY26: 117.7 | AZ26: 119.2 | BA26: 115.3 | BB26: 116.4 | BC26: 119.3 | BD26: 120 | BE26: 118.9 | BF26: 120.3 | BG26: 119.2 | BH26: 119.9 | BI26: 120.2 | BJ26: 120.6 | BK26: 118.9 | BL26: 118.9 | BM26: 117.4 | BN26: 118.4 | BO26: 119.4 | BP26: 119.1 | BQ26: 119.6 | BR26: 120.3 | BS26: 120.4 | BT26: 120.7 | BU26: 118.7 | BV26: 118.7 | BW26: 118.7
A27: 26 | B27: 1国内 | C27: PR01'PRCG20_2200150017 | D27: 国内類別1/_飲食料品 | E27: 品目/____和風めん | F27: 99.8 | G27: 99.3 | H27: 100 | I27: 99.2 | J27: 99.4 | K27: 100.1 | L27: 101.6 | M27: 101.6 | N27: 100.7 | O27: 99.5 | P27: 99.7 | Q27: 99.3 | R27: 96.4 | S27: 98.1 | T27: 100.2 | U27: 102.4 | V27: 100.2 | W27: 101 | X27: 102.8 | Y27: 102.6 | Z27: 101.5 | AA27: 100.9 | AB27: 101.6 | AC27: 102.1 | AD27: 99.2 | AE27: 98.8 | AF27: 101.8 | AG27: 107.2 | AH27: 108 | AI27: 108 | AJ27: 109.2 | AK27: 109.1 | AL27: 108.9 | AM27: 108.7 | AN27: 108.7 | AO27: 109 | AP27: 109.2 | AQ27: 111.7 | AR27: 112.3 | AS27: 117.6 | AT27: 116.3 | AU27: 116.4 | AV27: 118.3 | AW27: 118 | AX27: 117.3 | AY27: 118 | AZ27: 118.3 | BA27: 118 | BB27: 116.9 | BC27: 117.9 | BD27: 118.5 | BE27: 117.7 | BF27: 117.3 | BG27: 118 | BH27: 118.4 | BI27: 119.2 | BJ27: 118.7 | BK27: 118.8 | BL27: 118.9 | BM27: 118.6 | BN27: 119.6 | BO27: 120.6 | BP27: 121.2 | BQ27: 121.5 | BR27: 120.4 | BS27: 121.4 | BT27: 121.8 | BU27: 122 | BV27: 121.8 | BW27: 121.8
A28: 27 | B28: 1国内 | C28: PR01'PRCG20_2200150018 | D28: 国内類別1/_飲食料品 | E28: 品目/____中華めん | F28: 100.2 | G28: 100.7 | H28: 100.2 | I28: 99.1 | J28: 99.1 | K28: 100.2 | L28: 100.2 | M28: 100.2 | N28: 100.2 | O28: 100.2 | P28: 99.7 | Q28: 100.2 | R28: 100.2 | S28: 100.2 | T28: 100.7 | U28: 100.2 | V28: 100.7 | W28: 100.7 | X28: 100.7 | Y28: 100.2 | Z28: 100.2 | AA28: 100.2 | AB28: 100.2 | AC28: 100.2 | AD28: 100.2 | AE28: 100.2 | AF28: 106.4 | AG28: 109.2 | AH28: 109.2 | AI28: 109.2 | AJ28: 108.7 | AK28: 109.2 | AL28: 110.2 | AM28: 110.8 | AN28: 110.8 | AO28: 110.2 | AP28: 110.2 | AQ28: 113.9 | AR28: 113.9 | AS28: 119.3 | AT28: 119.3 | AU28: 119.3 | AV28: 119.8 | AW28: 119.3 | AX28: 119.3 | AY28: 121.3 | AZ28: 124.4 | BA28: 124.4 | BB28: 124.9 | BC28: 124.9 | BD28: 124.4 | BE28: 125 | BF28: 126 | BG28: 125.5 | BH28: 126 | BI28: 126 | BJ28: 127.5 | BK28: 128.3 | BL28: 128.3 | BM28: 128.3 | BN28: 128.3 | BO28: 129.4 | BP28: 131.5 | BQ28: 132 | BR28: 132 | BS28: 132.5 | BT28: 133.1 | BU28: 133.1 | BV28: 133.1 | BW28: 133.1
A29: 28 | B29: 1国内 | C29: PR01'PRCG20_2200150019 | D29: 国内類別1/_飲食料品 | E29: 品目/____洋風めん | F29: 101.3 | G29: 101 | H29: 100.6 | I29: 99.4 | J29: 99.1 | K29: 99.4 | L29: 99.4 | M29: 99.5 | N29: 99.3 | O29: 99.5 | P29: 100.3 | Q29: 101.2 | R29: 100.6 | S29: 99 | T29: 99.9 | U29: 100.1 | V29: 100.3 | W29: 99.9 | X29: 99.4 | Y29: 101.4 | Z29: 101.9 | AA29: 102.4 | AB29: 102 | AC29: 103.4 | AD29: 104 | AE29: 104.1 | AF29: 109.2 | AG29: 112.7 | AH29: 112.3 | AI29: 112.3 | AJ29: 112.5 | AK29: 123.4 | AL29: 125.6 | AM29: 122.4 | AN29: 123.4 | AO29: 124.1 | AP29: 123.4 | AQ29: 123.2 | AR29: 125.4 | AS29: 124.3 | AT29: 124.2 | AU29: 123.2 | AV29: 122.5 | AW29: 121.8 | AX29: 120.7 | AY29: 120.9 | AZ29: 121 | BA29: 123.3 | BB29: 121.5 | BC29: 121.4 | BD29: 119.7 | BE29: 121.1 | BF29: 120.8 | BG29: 119.7 | BH29: 120.6 | BI29: 121.3 | BJ29: 121.4 | BK29: 122.4 | BL29: 123.6 | BM29: 124.1 | BN29: 124.9 | BO29: 122.1 | BP29: 123.5 | BQ29: 123.2 | BR29: 123.5 | BS29: 120.8 | BT29: 120.7 | BU29: 124.4 | BV29: 125.3 | BW29: 125.3
A30: 29 | B30: 1国内 | C30: PR01'PRCG20_2200140008 | D30: 国内類別1/_飲食料品 | E30: 商品群/___パン類 | F30: 100.1 | G30: 100 | H30: 100 | I30: 99.9 | J30: 100 | K30: 100.2 | L30: 100.1 | M30: 100.2 | N30: 99.9 | O30: 99.7 | P30: 99.8 | Q30: 100.1 | R30: 99.9 | S30: 99.8 | T30: 99.9 | U30: 99.7 | V30: 99.8 | W30: 100 | X30: 99.9 | Y30: 99.9 | Z30: 99.9 | AA30: 99.8 | AB30: 100.4 | AC30: 100.5 | AD30: 101.6 | AE30: 103.3 | AF30: 103.8 | AG30: 104 | AH30: 104.1 | AI30: 104.4 | AJ30: 105.8 | AK30: 106.1 | AL30: 106.4 | AM30: 106.5 | AN30: 107.2 | AO30: 107.1 | AP30: 109.3 | AQ30: 110.1 | AR30: 110.7 | AS30: 111.8 | AT30: 112.6 | AU30: 113 | AV30: 115 | AW30: 115.7 | AX30: 115.7 | AY30: 117.5 | AZ30: 117.7 | BA30: 117.7 | BB30: 116.4 | BC30: 117.4 | BD30: 117.4 | BE30: 117.9 | BF30: 117.9 | BG30: 117.8 | BH30: 119.2 | BI30: 119.3 | BJ30: 119.1 | BK30: 119.2 | BL30: 119.7 | BM30: 119.7 | BN30: 120.8 | BO30: 121 | BP30: 121.7 | BQ30: 123.8 | BR30: 124 | BS30: 124.1 | BT30: 124.7 | BU30: 124.6 | BV30: 124.2 | BW30: 123.9
A31: 30 | B31: 1国内 | C31: PR01'PRCG20_2200150020 | D31: 国内類別1/_飲食料品 | E31: 品目/____食パン | F31: 100 | G31: 100.2 | H31: 100 | I31: 100 | J31: 100.1 | K31: 100 | L31: 100.1 | M31: 100 | N31: 100 | O31: 100.1 | P31: 99.8 | Q31: 99.8 | R31: 99.9 | S31: 99.7 | T31: 99.7 | U31: 99.8 | V31: 99.8 | W31: 99.7 | X31: 99.4 | Y31: 99.3 | Z31: 99.4 | AA31: 99.5 | AB31: 100.3 | AC31: 100.4 | AD31: 102.1 | AE31: 104.1 | AF31: 104 | AG31: 104.7 | AH31: 104.5 | AI31: 105.1 | AJ31: 108.8 | AK31: 110.5 | AL31: 109.4 | AM31: 109.6 | AN31: 110.6 | AO31: 111.1 | AP31: 112.1 | AQ31: 111.7 | AR31: 111.8 | AS31: 112.4 | AT31: 112.4 | AU31: 112.5 | AV31: 117.4 | AW31: 118.2 | AX31: 117.8 | AY31: 118.2 | AZ31: 118.8 | BA31: 118.7 | BB31: 118 | BC31: 117.8 | BD31: 118.5 | BE31: 118.6 | BF31: 118.6 | BG31: 118.3 | BH31: 119.1 | BI31: 119.2 | BJ31: 118.8 | BK31: 118.6 | BL31: 119.1 | BM31: 119.1 | BN31: 120.9 | BO31: 121.5 | BP31: 121.2 | BQ31: 122.1 | BR31: 122.2 | BS31: 122.3 | BT31: 123 | BU31: 123.2 | BV31: 122.8 | BW31: 123
A32: 31 | B32: 1国内 | C32: PR01'PRCG20_2200150021 | D32: 国内類別1/_飲食料品 | E32: 品目/____菓子パン | F32: 100.2 | G32: 100 | H32: 100 | I32: 100 | J32: 99.9 | K32: 100.3 | L32: 100.2 | M32: 100.3 | N32: 99.8 | O32: 99.5 | P32: 99.8 | Q32: 100.1 | R32: 99.9 | S32: 99.6 | T32: 99.9 | U32: 99.5 | V32: 99.7 | W32: 100 | X32: 99.9 | Y32: 100 | Z32: 100.1 | AA32: 99.9 | AB32: 100.5 | AC32: 100.6 | AD32: 101.8 | AE32: 103.6 | AF32: 104.4 | AG32: 103.9 | AH32: 104.2 | AI32: 104.3 | AJ32: 105.3 | AK32: 105.2 | AL32: 105.3 | AM32: 105.4 | AN32: 106.2 | AO32: 105.9 | AP32: 108.1 | AQ32: 108.7 | AR32: 109.7 | AS32: 110.5 | AT32: 111.3 | AU32: 111.9 | AV32: 113.3 | AW32: 113.8 | AX32: 113.7 | AY32: 116.5 | AZ32: 116.6 | BA32: 116.6 | BB32: 114.6 | BC32: 116.4 | BD32: 116.2 | BE32: 116.7 | BF32: 116.7 | BG32: 116.7 | BH32: 118.3 | BI32: 118.4 | BJ32: 118.3 | BK32: 118.5 | BL32: 119 | BM32: 119 | BN32: 119.9 | BO32: 120 | BP32: 120.6 | BQ32: 123.2 | BR32: 123.6 | BS32: 123.8 | BT32: 124.1 | BU32: 124.1 | BV32: 123.7 | BW32: 123.2
A33: 32 | B33: 1国内 | C33: PR01'PRCG20_2200150022 | D33: 国内類別1/_飲食料品 | E33: 品目/____調理パン・サンドイッチ | F33: 100.1 | G33: 100.1 | H33: 99.9 | I33: 99.6 | J33: 100.2 | K33: 100.3 | L33: 100.1 | M33: 100 | N33: 99.9 | O33: 99.9 | P33: 99.8 | Q33: 100.2 | R33: 100.1 | S33: 100.3 | T33: 100.2 | U33: 100 | V33: 100.1 | W33: 100.1 | X33: 100.3 | Y33: 100.1 | Z33: 100 | AA33: 99.6 | AB33: 100 | AC33: 100.3 | AD33: 100.3 | AE33: 101.1 | AF33: 101.7 | AG33: 103.2 | AH33: 103.3 | AI33: 103.6 | AJ33: 104.1 | AK33: 104.2 | AL33: 106.5 | AM33: 106.4 | AN33: 106.5 | AO33: 106.4 | AP33: 109.9 | AQ33: 112.7 | AR33: 112.9 | AS33: 115.7 | AT33: 116.9 | AU33: 117.3 | AV33: 117.7 | AW33: 119.1 | AX33: 119.5 | AY33: 120.1 | AZ33: 120.1 | BA33: 120.4 | BB33: 120.3 | BC33: 120.3 | BD33: 120.5 | BE33: 121.1 | BF33: 120.9 | BG33: 121 | BH33: 122.5 | BI33: 122.5 | BJ33: 122.3 | BK33: 122.4 | BL33: 122.7 | BM33: 122.8 | BN33: 123.7 | BO33: 123.7 | BP33: 125.9 | BQ33: 127.5 | BR33: 127.7 | BS33: 127.5 | BT33: 128.4 | BU33: 127.8 | BV33: 127.3 | BW33: 127.3
A34: 33 | B34: 1国内 | C34: PR01'PRCG20_2200140009 | D34: 国内類別1/_飲食料品 | E34: 商品群/___菓子類 | F34: 99.4 | G34: 100.4 | H34: 99.8 | I34: 100 | J34: 100.2 | K34: 100 | L34: 100.3 | M34: 100 | N34: 99.8 | O34: 100.2 | P34: 99.5 | Q34: 100.4 | R34: 99.9 | S34: 100.2 | T34: 99.8 | U34: 100.1 | V34: 99.8 | W34: 99.9 | X34: 100.3 | Y34: 100.5 | Z34: 100.1 | AA34: 100.7 | AB34: 100.7 | AC34: 101.1 | AD34: 100.6 | AE34: 101.7 | AF34: 101.6 | AG34: 101.8 | AH34: 101.1 | AI34: 101.6 | AJ34: 103.3 | AK34: 103.7 | AL34: 104.7 | AM34: 105.2 | AN34: 106.5 | AO34: 106.1 | AP34: 106.1 | AQ34: 106.7 | AR34: 107.5 | AS34: 108.7 | AT34: 109.3 | AU34: 109.2 | AV34: 110.1 | AW34: 110.9 | AX34: 111.4 | AY34: 111.6 | AZ34: 111.8 | BA34: 111.8 | BB34: 112.3 | BC34: 112.4 | BD34: 112.1 | BE34: 113.5 | BF34: 113.3 | BG34: 113.5 | BH34: 115.1 | BI34: 116.2 | BJ34: 116.8 | BK34: 117.6 | BL34: 119.5 | BM34: 120.1 | BN34: 121.6 | BO34: 122 | BP34: 122.4 | BQ34: 124.2 | BR34: 124.3 | BS34: 125.4 | BT34: 127.4 | BU34: 127.1 | BV34: 128.8 | BW34: 129.2
A35: 34 | B35: 1国内 | C35: PR01'PRCG20_2200150023 | D35: 国内類別1/_飲食料品 | E35: 品目/____洋生菓子 | F35: 100 | G35: 99.9 | H35: 100.4 | I35: 98.9 | J35: 100.5 | K35: 100.4 | L35: 99.4 | M35: 100.1 | N35: 100.4 | O35: 100.2 | P35: 99.5 | Q35: 100.3 | R35: 99.8 | S35: 99.6 | T35: 99.8 | U35: 100.2 | V35: 99.9 | W35: 99.7 | X35: 100.1 | Y35: 99.8 | Z35: 100.7 | AA35: 102.2 | AB35: 102.3 | AC35: 102 | AD35: 102 | AE35: 102.6 | AF35: 103 | AG35: 102.8 | AH35: 103 | AI35: 103.1 | AJ35: 104.2 | AK35: 104.1 | AL35: 104.5 | AM35: 105 | AN35: 107 | AO35: 107.1 | AP35: 107.1 | AQ35: 107.4 | AR35: 107.4 | AS35: 108.4 | AT35: 108.4 | AU35: 108.5 | AV35: 108.8 | AW35: 109 | AX35: 109 | AY35: 109.5 | AZ35: 109.9 | BA35: 110.5 | BB35: 109.9 | BC35: 110 | BD35: 109.9 | BE35: 110.1 | BF35: 110 | BG35: 110.1 | BH35: 111.1 | BI35: 110.9 | BJ35: 111.2 | BK35: 111 | BL35: 111.6 | BM35: 111.7 | BN35: 113.7 | BO35: 114.2 | BP35: 113.9 | BQ35: 115.7 | BR35: 115.8 | BS35: 115.9 | BT35: 115.9 | BU35: 115.8 | BV35: 115.8 | BW35: 115.9
A36: 35 | B36: 1国内 | C36: PR01'PRCG20_2200150024 | D36: 国内類別1/_飲食料品 | E36: 品目/____和生菓子 | F36: 99.9 | G36: 99.9 | H36: 99.9 | I36: 100 | J36: 100.1 | K36: 100 | L36: 100.1 | M36: 100.1 | N36: 99.9 | O36: 100 | P36: 100 | Q36: 100.1 | R36: 100 | S36: 100 | T36: 100.1 | U36: 100 | V36: 100.1 | W36: 100 | X36: 100.5 | Y36: 100.5 | Z36: 100.4 | AA36: 102.7 | AB36: 102.9 | AC36: 102.9 | AD36: 102.8 | AE36: 103.2 | AF36: 103.2 | AG36: 103.5 | AH36: 103.6 | AI36: 103.5 | AJ36: 105.1 | AK36: 105.1 | AL36: 105.8 | AM36: 105.9 | AN36: 105.9 | AO36: 105.9 | AP36: 108.3 | AQ36: 108.2 | AR36: 109.6 | AS36: 109.7 | AT36: 111.3 | AU36: 111.3 | AV36: 111.8 | AW36: 111.8 | AX36: 111.7 | AY36: 112.4 | AZ36: 112.5 | BA36: 112.5 | BB36: 111.9 | BC36: 111.7 | BD36: 111.8 | BE36: 112.7 | BF36: 112.9 | BG36: 112.9 | BH36: 115.6 | BI36: 115.7 | BJ36: 115.7 | BK36: 116.1 | BL36: 116.2 | BM36: 116.2 | BN36: 118.2 | BO36: 118.5 | BP36: 118.5 | BQ36: 121 | BR36: 121.1 | BS36: 121 | BT36: 121.1 | BU36: 121.1 | BV36: 121 | BW36: 121
A37: 36 | B37: 1国内 | C37: PR01'PRCG20_2200150025 | D37: 国内類別1/_飲食料品 | E37: 品目/____ビスケット類 | F37: 99 | G37: 101 | H37: 101.5 | I37: 100.3 | J37: 100.1 | K37: 100.2 | L37: 100.8 | M37: 99.6 | N37: 98.3 | O37: 99.8 | P37: 99.2 | Q37: 100.3 | R37: 99.7 | S37: 100.9 | T37: 99.2 | U37: 99.8 | V37: 99.9 | W37: 99.2 | X37: 101.2 | Y37: 101.8 | Z37: 97.9 | AA37: 100.1 | AB37: 99.6 | AC37: 99.7 | AD37: 99.8 | AE37: 99.7 | AF37: 99.1 | AG37: 100.5 | AH37: 100 | AI37: 99.8 | AJ37: 101.4 | AK37: 103.9 | AL37: 105.9 | AM37: 104.5 | AN37: 104 | AO37: 102.7 | AP37: 103.7 | AQ37: 105 | AR37: 106.4 | AS37: 105.9 | AT37: 105.7 | AU37: 105.5 | AV37: 105.9 | AW37: 105.2 | AX37: 105.8 | AY37: 105.6 | AZ37: 104.6 | BA37: 105 | BB37: 105.7 | BC37: 107 | BD37: 106.6 | BE37: 109 | BF37: 108.8 | BG37: 108.3 | BH37: 109 | BI37: 109 | BJ37: 110.4 | BK37: 111.4 | BL37: 111.6 | BM37: 110.4 | BN37: 112.2 | BO37: 111.1 | BP37: 111.2 | BQ37: 111.2 | BR37: 112.9 | BS37: 113.6 | BT37: 112.9 | BU37: 112.8 | BV37: 113.1 | BW37: 113.6
A38: 37 | B38: 1国内 | C38: PR01'PRCG20_2200150026 | D38: 国内類別1/_飲食料品 | E38: 品目/____米菓 | F38: 99.1 | G38: 99.8 | H38: 99.8 | I38: 101.1 | J38: 99.5 | K38: 100 | L38: 100.4 | M38: 99.5 | N38: 99.9 | O38: 100.3 | P38: 99.8 | Q38: 100.8 | R38: 99.7 | S38: 101 | T38: 99.6 | U38: 100 | V38: 99.3 | W38: 99.9 | X38: 99.5 | Y38: 98.5 | Z38: 99.6 | AA38: 99 | AB38: 99.1 | AC38: 99.8 | AD38: 98.7 | AE38: 99.4 | AF38: 99.9 | AG38: 100 | AH38: 99.4 | AI38: 100.1 | AJ38: 100.1 | AK38: 99.6 | AL38: 100.2 | AM38: 100.6 | AN38: 103.4 | AO38: 103.2 | AP38: 101.7 | AQ38: 103.1 | AR38: 103.5 | AS38: 103.4 | AT38: 102.9 | AU38: 104 | AV38: 104.2 | AW38: 106.7 | AX38: 107.4 | AY38: 107.3 | AZ38: 108.2 | BA38: 108 | BB38: 110.2 | BC38: 110.8 | BD38: 110.9 | BE38: 110.9 | BF38: 110.3 | BG38: 110.8 | BH38: 109.5 | BI38: 114.6 | BJ38: 114.7 | BK38: 117.4 | BL38: 118.2 | BM38: 117.2 | BN38: 117.2 | BO38: 117.6 | BP38: 118.2 | BQ38: 118.3 | BR38: 117.4 | BS38: 118.6 | BT38: 123.8 | BU38: 123.7 | BV38: 126.1 | BW38: 126.1
A39: 38 | B39: 1国内 | C39: PR01'PRCG20_2200150027 | D39: 国内類別1/_飲食料品 | E39: 品目/____キャンデー | F39: 100.4 | G39: 100.4 | H39: 99.9 | I39: 96.8 | J39: 99.5 | K39: 101.3 | L39: 100.8 | M39: 99.4 | N39: 99.9 | O39: 101.2 | P39: 100.6 | Q39: 99.8 | R39: 100 | S39: 100.5 | T39: 100.3 | U39: 100.1 | V39: 100.3 | W39: 100.4 | X39: 100.6 | Y39: 99.5 | Z39: 100 | AA39: 100.9 | AB39: 100.5 | AC39: 100.4 | AD39: 98.8 | AE39: 99.2 | AF39: 100.7 | AG39: 99.8 | AH39: 99.7 | AI39: 99.9 | AJ39: 98.9 | AK39: 100.5 | AL39: 99.4 | AM39: 108.1 | AN39: 105.9 | AO39: 105.7 | AP39: 104.1 | AQ39: 105.6 | AR39: 105.9 | AS39: 107.3 | AT39: 108.5 | AU39: 107.8 | AV39: 108.4 | AW39: 108.2 | AX39: 105.8 | AY39: 111.2 | AZ39: 111.1 | BA39: 111.3 | BB39: 114 | BC39: 111.1 | BD39: 111.8 | BE39: 111.8 | BF39: 111.2 | BG39: 108.2 | BH39: 112.4 | BI39: 116.7 | BJ39: 117.8 | BK39: 116.4 | BL39: 117.9 | BM39: 117.4 | BN39: 117.5 | BO39: 116.6 | BP39: 117.3 | BQ39: 118.2 | BR39: 117.2 | BS39: 116.9 | BT39: 120.9 | BU39: 119.3 | BV39: 121.1 | BW39: 119.8
A40: 39 | B40: 1国内 | C40: PR01'PRCG20_2200150028 | D40: 国内類別1/_飲食料品 | E40: 品目/____チョコレート | F40: 98.2 | G40: 101.7 | H40: 98.8 | I40: 100 | J40: 101.1 | K40: 99.8 | L40: 101.1 | M40: 100.9 | N40: 99.7 | O40: 100.4 | P40: 97.6 | Q40: 100.7 | R40: 99.9 | S40: 100.2 | T40: 100.3 | U40: 99.2 | V40: 99.6 | W40: 100.5 | X40: 99.9 | Y40: 103 | Z40: 100.4 | AA40: 99 | AB40: 98.9 | AC40: 100.4 | AD40: 100.1 | AE40: 101.3 | AF40: 100.8 | AG40: 98.9 | AH40: 97.2 | AI40: 97.3 | AJ40: 103.6 | AK40: 103.7 | AL40: 103.2 | AM40: 104.3 | AN40: 104.9 | AO40: 103.8 | AP40: 103.5 | AQ40: 102.7 | AR40: 105.5 | AS40: 108.1 | AT40: 111 | AU40: 108.7 | AV40: 110.3 | AW40: 114.1 | AX40: 115.1 | AY40: 113.6 | AZ40: 114.5 | BA40: 114.3 | BB40: 115.4 | BC40: 115.2 | BD40: 114.7 | BE40: 118 | BF40: 118.8 | BG40: 118.6 | BH40: 123.5 | BI40: 125.8 | BJ40: 127.2 | BK40: 129.4 | BL40: 138.9 | BM40: 143.9 | BN40: 148.7 | BO40: 149.8 | BP40: 152.1 | BQ40: 155.4 | BR40: 157.2 | BS40: 162.8 | BT40: 167.7 | BU40: 168.1 | BV40: 175.3 | BW40: 177.5
A41: 40 | B41: 1国内 | C41: PR01'PRCG20_2200150029 | D41: 国内類別1/_飲食料品 | E41: 品目/____チューインガム | F41: 100.2 | G41: 99.9 | H41: 99.9 | I41: 99.9 | J41: 100.2 | K41: 100 | L41: 99.8 | M41: 100 | N41: 99.9 | O41: 100 | P41: 100.2 | Q41: 100 | R41: 100 | S41: 99.9 | T41: 100.2 | U41: 100 | V41: 100 | W41: 100 | X41: 100 | Y41: 100 | Z41: 100 | AA41: 100.2 | AB41: 100.2 | AC41: 100 | AD41: 100 | AE41: 99.9 | AF41: 100 | AG41: 100.1 | AH41: 100.1 | AI41: 100.1 | AJ41: 99.9 | AK41: 100.4 | AL41: 103.7 | AM41: 103.9 | AN41: 104.3 | AO41: 104.5 | AP41: 103 | AQ41: 104.6 | AR41: 104.7 | AS41: 104.7 | AT41: 104.7 | AU41: 104.6 | AV41: 108.8 | AW41: 109.3 | AX41: 109.2 | AY41: 108.9 | AZ41: 108.6 | BA41: 104 | BB41: 112.4 | BC41: 108.6 | BD41: 113.1 | BE41: 112.6 | BF41: 112.2 | BG41: 112.9 | BH41: 111.8 | BI41: 112 | BJ41: 112.4 | BK41: 112.6 | BL41: 112.4 | BM41: 112.6 | BN41: 112.9 | BO41: 110.6 | BP41: 111.4 | BQ41: 112.8 | BR41: 112.2 | BS41: 112 | BT41: 123.4 | BU41: 121.3 | BV41: 122.2 | BW41: 122.4
A42: 41 | B42: 1国内 | C42: PR01'PRCG20_2200150030 | D42: 国内類別1/_飲食料品 | E42: 品目/____スナック菓子 | F42: 99.5 | G42: 100.5 | H42: 97.7 | I42: 102.1 | J42: 99.2 | K42: 98.9 | L42: 100.8 | M42: 99.4 | N42: 100.3 | O42: 99.8 | P42: 100.9 | Q42: 101 | R42: 100.1 | S42: 100.1 | T42: 99 | U42: 102.4 | V42: 100.7 | W42: 100.3 | X42: 101.5 | Y42: 100.4 | Z42: 101.4 | AA42: 100.5 | AB42: 100.4 | AC42: 101.3 | AD42: 99.7 | AE42: 105 | AF42: 104.2 | AG42: 107.2 | AH42: 105.1 | AI42: 107.3 | AJ42: 107.3 | AK42: 107.4 | AL42: 112.1 | AM42: 111.1 | AN42: 116.9 | AO42: 116.3 | AP42: 114.7 | AQ42: 116.3 | AR42: 115.1 | AS42: 119.5 | AT42: 117.7 | AU42: 120.4 | AV42: 121.2 | AW42: 121 | AX42: 122.7 | AY42: 123 | AZ42: 122.8 | BA42: 122.8 | BB42: 120.6 | BC42: 122 | BD42: 120.6 | BE42: 124.2 | BF42: 122.2 | BG42: 125.1 | BH42: 126.4 | BI42: 126.2 | BJ42: 126.5 | BK42: 126.7 | BL42: 126.9 | BM42: 126.7 | BN42: 125 | BO42: 126.7 | BP42: 125.9 | BQ42: 129.5 | BR42: 127.2 | BS42: 126.2 | BT42: 129 | BU42: 127.5 | BV42: 128.5 | BW42: 128.5
A43: 42 | B43: 1国内 | C43: PR01'PRCG20_2200150031 | D43: 国内類別1/_飲食料品 | E43: 品目/____氷菓 | F43: 100.1 | G43: 99.9 | H43: 99.9 | I43: 99.7 | J43: 100.2 | K43: 100.1 | L43: 99.2 | M43: 98.8 | N43: 99.8 | O43: 100.7 | P43: 101 | Q43: 100.5 | R43: 101.1 | S43: 100.7 | T43: 101 | U43: 99.5 | V43: 99.7 | W43: 99.8 | X43: 98.5 | Y43: 98.9 | Z43: 100.6 | AA43: 100.6 | AB43: 100.7 | AC43: 100.6 | AD43: 101 | AE43: 100.7 | AF43: 100.9 | AG43: 100.1 | AH43: 99.6 | AI43: 102.4 | AJ43: 103.4 | AK43: 103.4 | AL43: 104.2 | AM43: 105 | AN43: 105.4 | AO43: 105.4 | AP43: 105.5 | AQ43: 105.4 | AR43: 105.8 | AS43: 105.9 | AT43: 112 | AU43: 109.4 | AV43: 112.9 | AW43: 112.3 | AX43: 113.6 | AY43: 113.5 | AZ43: 112.8 | BA43: 112.4 | BB43: 113.5 | BC43: 112.8 | BD43: 112.5 | BE43: 111.4 | BF43: 111.1 | BG43: 112.1 | BH43: 112.9 | BI43: 113.1 | BJ43: 115.4 | BK43: 116.1 | BL43: 115.9 | BM43: 116.3 | BN43: 116.2 | BO43: 116.3 | BP43: 119 | BQ43: 119.1 | BR43: 120.2 | BS43: 118.9 | BT43: 116.6 | BU43: 116.6 | BV43: 118.8 | BW43: 118.5
A44: 43 | B44: 1国内 | C44: PR01'PRCG20_2200150032 | D44: 国内類別1/_飲食料品 | E44: 品目/____豆菓子 | F44: 99.4 | G44: 99.7 | H44: 100.1 | I44: 100.8 | J44: 99.6 | K44: 99.9 | L44: 100.2 | M44: 99.7 | N44: 99.9 | O44: 100.1 | P44: 99.8 | Q44: 100.7 | R44: 99.8 | S44: 99.7 | T44: 99.8 | U44: 99.9 | V44: 99.5 | W44: 99.9 | X44: 99.6 | Y44: 99 | Z44: 99.7 | AA44: 99.3 | AB44: 99.2 | AC44: 99.9 | AD44: 99.3 | AE44: 99.5 | AF44: 100.2 | AG44: 100.2 | AH44: 100.1 | AI44: 100.5 | AJ44: 100.5 | AK44: 101.7 | AL44: 103.5 | AM44: 104.5 | AN44: 105 | AO44: 104.7 | AP44: 103.9 | AQ44: 105.1 | AR44: 105.5 | AS44: 105.4 | AT44: 105.6 | AU44: 106.6 | AV44: 110.2 | AW44: 109.9 | AX44: 111.4 | AY44: 111.3 | AZ44: 111.8 | BA44: 111.7 | BB44: 114.9 | BC44: 115.3 | BD44: 113.4 | BE44: 113.3 | BF44: 112.7 | BG44: 113.2 | BH44: 111.9 | BI44: 113.4 | BJ44: 114.3 | BK44: 114.7 | BL44: 115.1 | BM44: 114.7 | BN44: 114.7 | BO44: 114.9 | BP44: 115.5 | BQ44: 115.4 | BR44: 114.7 | BS44: 119.1 | BT44: 124.9 | BU44: 125 | BV44: 125 | BW44: 125
A45: 44 | B45: 1国内 | C45: PR01'PRCG20_2200150033 | D45: 国内類別1/_飲食料品 | E45: 品目/____シリアル | F45: 97.9 | G45: 101.8 | H45: 98.1 | I45: 102.8 | J45: 99.9 | K45: 99.8 | L45: 101 | M45: 100.7 | N45: 100 | O45: 98.7 | P45: 98.5 | Q45: 100.9 | R45: 97.8 | S45: 99.6 | T45: 98.9 | U45: 102 | V45: 97.1 | W45: 99.6 | X45: 99.8 | Y45: 99 | Z45: 100.6 | AA45: 99 | AB45: 100.5 | AC45: 103 | AD45: 99.2 | AE45: 101.8 | AF45: 99 | AG45: 102 | AH45: 98.6 | AI45: 100.6 | AJ45: 104.2 | AK45: 103.7 | AL45: 104.4 | AM45: 104.7 | AN45: 104.8 | AO45: 104.4 | AP45: 105.8 | AQ45: 108.6 | AR45: 112.9 | AS45: 115.3 | AT45: 112.3 | AU45: 113.8 | AV45: 112.7 | AW45: 115.5 | AX45: 116.5 | AY45: 117.4 | AZ45: 120 | BA45: 119.5 | BB45: 117 | BC45: 119.5 | BD45: 116.4 | BE45: 121 | BF45: 118.5 | BG45: 120.1 | BH45: 118.3 | BI45: 118.9 | BJ45: 117.2 | BK45: 119.4 | BL45: 118.7 | BM45: 120.8 | BN45: 116.4 | BO45: 121.8 | BP45: 117.7 | BQ45: 123.1 | BR45: 120 | BS45: 119.7 | BT45: 119.1 | BU45: 118 | BV45: 119.6 | BW45: 119.6
A46: 45 | B46: 1国内 | C46: PR01'PRCG20_2200140010 | D46: 国内類別1/_飲食料品 | E46: 商品群/___農産保存食料品 | F46: 99.2 | G46: 101.6 | H46: 100.7 | I46: 100.4 | J46: 100.4 | K46: 99.6 | L46: 101.2 | M46: 98.1 | N46: 99.8 | O46: 99 | P46: 99.2 | Q46: 100.7 | R46: 99 | S46: 99.8 | T46: 99.5 | U46: 100.8 | V46: 99.1 | W46: 99.4 | X46: 100.6 | Y46: 100.7 | Z46: 100.3 | AA46: 99.9 | AB46: 99.7 | AC46: 101.3 | AD46: 99.8 | AE46: 100.5 | AF46: 101.2 | AG46: 101.3 | AH46: 100 | AI46: 100.6 | AJ46: 102 | AK46: 103.3 | AL46: 104 | AM46: 105.7 | AN46: 105.9 | AO46: 106.5 | AP46: 105.1 | AQ46: 107 | AR46: 106.3 | AS46: 107.1 | AT46: 106.7 | AU46: 106.7 | AV46: 108.1 | AW46: 107.6 | AX46: 110.4 | AY46: 108.4 | AZ46: 108.7 | BA46: 110.8 | BB46: 109.8 | BC46: 108.5 | BD46: 110.4 | BE46: 111.5 | BF46: 111 | BG46: 112.3 | BH46: 111.6 | BI46: 111 | BJ46: 112.7 | BK46: 115.3 | BL46: 114.1 | BM46: 115.3 | BN46: 114.6 | BO46: 116.2 | BP46: 115.7 | BQ46: 117.2 | BR46: 116.6 | BS46: 117.1 | BT46: 116.9 | BU46: 118.3 | BV46: 121 | BW46: 121
A47: 46 | B47: 1国内 | C47: PR01'PRCG20_2200150034 | D47: 国内類別1/_飲食料品 | E47: 品目/____果実・野菜缶詰 | F47: 100.7 | G47: 100.6 | H47: 100.6 | I47: 100.5 | J47: 99.6 | K47: 99.6 | L47: 100.8 | M47: 99.8 | N47: 99.1 | O47: 99.1 | P47: 99.1 | Q47: 100.6 | R47: 100.6 | S47: 100.7 | T47: 100.5 | U47: 100.3 | V47: 100.6 | W47: 100.5 | X47: 101.4 | Y47: 100.8 | Z47: 100.7 | AA47: 100.7 | AB47: 100.7 | AC47: 101.8 | AD47: 101.8 | AE47: 101.8 | AF47: 107.1 | AG47: 107.3 | AH47: 107.8 | AI47: 107.4 | AJ47: 108 | AK47: 109.2 | AL47: 111.9 | AM47: 113.2 | AN47: 113.9 | AO47: 114 | AP47: 114.1 | AQ47: 114 | AR47: 113.6 | AS47: 117.4 | AT47: 117.5 | AU47: 117.5 | AV47: 117.6 | AW47: 117.5 | AX47: 122.1 | AY47: 123.2 | AZ47: 123.7 | BA47: 123.7 | BB47: 123.7 | BC47: 123.6 | BD47: 123.1 | BE47: 133.1 | BF47: 133.2 | BG47: 134.1 | BH47: 134.2 | BI47: 134.3 | BJ47: 141.8 | BK47: 142.4 | BL47: 142.4 | BM47: 142 | BN47: 142.5 | BO47: 147.1 | BP47: 147 | BQ47: 148.4 | BR47: 148.7 | BS47: 147.3 | BT47: 147.3 | BU47: 147.8 | BV47: 147.8 | BW47: 147.8
A48: 47 | B48: 1国内 | C48: PR01'PRCG20_2200150035 | D48: 国内類別1/_飲食料品 | E48: 品目/____漬物 | F48: 98.9 | G48: 101.8 | H48: 100.8 | I48: 100.4 | J48: 100.6 | K48: 99.6 | L48: 101.3 | M48: 97.7 | N48: 100 | O48: 99 | P48: 99.2 | Q48: 100.7 | R48: 98.7 | S48: 99.6 | T48: 99.2 | U48: 100.9 | V48: 98.8 | W48: 99.1 | X48: 100.4 | Y48: 100.7 | Z48: 100.2 | AA48: 99.7 | AB48: 99.5 | AC48: 101.2 | AD48: 99.4 | AE48: 100.1 | AF48: 99.8 | AG48: 99.8 | AH48: 98.1 | AI48: 99 | AJ48: 100.6 | AK48: 101.9 | AL48: 102.2 | AM48: 103.9 | AN48: 104 | AO48: 104.7 | AP48: 103.1 | AQ48: 105.4 | AR48: 104.6 | AS48: 104.7 | AT48: 104.1 | AU48: 104.2 | AV48: 105.8 | AW48: 105.3 | AX48: 107.6 | AY48: 105 | AZ48: 105.1 | BA48: 107.8 | BB48: 106.5 | BC48: 105 | BD48: 107.4 | BE48: 106.4 | BF48: 105.8 | BG48: 107.2 | BH48: 106.3 | BI48: 105.5 | BJ48: 105.9 | BK48: 108.9 | BL48: 107.5 | BM48: 109 | BN48: 108 | BO48: 108.9 | BP48: 108.4 | BQ48: 109.8 | BR48: 109.1 | BS48: 110 | BT48: 109.7 | BU48: 111.3 | BV48: 114.7 | BW48: 114.7
A49: 48 | B49: 1国内 | C49: PR01'PRCG20_2200140011 | D49: 国内類別1/_飲食料品 | E49: 商品群/___砂糖 | F49: 100.2 | G49: 100.6 | H49: 99.6 | I49: 99.6 | J49: 100.7 | K49: 99.9 | L49: 99.8 | M49: 99.1 | N49: 99.6 | O49: 100.5 | P49: 99.8 | Q49: 100.7 | R49: 100.6 | S49: 101.5 | T49: 102.9 | U49: 103 | V49: 103.3 | W49: 103.7 | X49: 104.5 | Y49: 105.3 | Z49: 105.3 | AA49: 106 | AB49: 105.9 | AC49: 111.3 | AD49: 112.1 | AE49: 111.9 | AF49: 112.1 | AG49: 112 | AH49: 111.3 | AI49: 111.9 | AJ49: 114.5 | AK49: 116.7 | AL49: 117.8 | AM49: 117.2 | AN49: 117.5 | AO49: 123.5 | AP49: 125.6 | AQ49: 125.9 | AR49: 126.8 | AS49: 126.1 | AT49: 126.5 | AU49: 126.1 | AV49: 129.4 | AW49: 132.6 | AX49: 132.5 | AY49: 132.7 | AZ49: 135.9 | BA49: 136.1 | BB49: 142.1 | BC49: 141.9 | BD49: 142.8 | BE49: 140.7 | BF49: 141.3 | BG49: 140.7 | BH49: 139.5 | BI49: 139.1 | BJ49: 140 | BK49: 141.1 | BL49: 139.2 | BM49: 139.1 | BN49: 140.9 | BO49: 141 | BP49: 141.3 | BQ49: 140 | BR49: 139.3 | BS49: 139.7 | BT49: 138.4 | BU49: 138.4 | BV49: 138.4 | BW49: 138.4
A50: 49 | B50: 1国内 | C50: PR01'PRCG20_2200150036 | D50: 国内類別1/_飲食料品 | E50: 品目/____砂糖 | F50: 100.2 | G50: 100.6 | H50: 99.6 | I50: 99.6 | J50: 100.7 | K50: 99.9 | L50: 99.8 | M50: 99.1 | N50: 99.6 | O50: 100.5 | P50: 99.8 | Q50: 100.7 | R50: 100.6 | S50: 101.5 | T50: 102.9 | U50: 103 | V50: 103.3 | W50: 103.7 | X50: 104.5 | Y50: 105.3 | Z50: 105.3 | AA50: 106 | AB50: 105.9 | AC50: 111.3 | AD50: 112.1 | AE50: 111.9 | AF50: 112.1 | AG50: 112 | AH50: 111.3 | AI50: 111.9 | AJ50: 114.5 | AK50: 116.7 | AL50: 117.8 | AM50: 117.2 | AN50: 117.5 | AO50: 123.5 | AP50: 125.6 | AQ50: 125.9 | AR50: 126.8 | AS50: 126.1 | AT50: 126.5 | AU50: 126.1 | AV50: 129.4 | AW50: 132.6 | AX50: 132.5 | AY50: 132.7 | AZ50: 135.9 | BA50: 136.1 | BB50: 142.1 | BC50: 141.9 | BD50: 142.8 | BE50: 140.7 | BF50: 141.3 | BG50: 140.7 | BH50: 139.5 | BI50: 139.1 | BJ50: 140 | BK50: 141.1 | BL50: 139.2 | BM50: 139.1 | BN50: 140.9 | BO50: 141 | BP50: 141.3 | BQ50: 140 | BR50: 139.3 | BS50: 139.7 | BT50: 138.4 | BU50: 138.4 | BV50: 138.4 | BW50: 138.4
A51: 50 | B51: 1国内 | C51: PR01'PRCG20_2200140012 | D51: 国内類別1/_飲食料品 | E51: 商品群/___でん粉 | F51: 100.5 | G51: 100.5 | H51: 100.5 | I51: 100.3 | J51: 100.3 | K51: 99.9 | L51: 99.9 | M51: 99.7 | N51: 99.5 | O51: 99.5 | P51: 99.5 | Q51: 99.9 | R51: 100.7 | S51: 101 | T51: 101.4 | U51: 105.8 | V51: 106.6 | W51: 107 | X51: 107.4 | Y51: 107.8 | Z51: 108.1 | AA51: 108.5 | AB51: 108.5 | AC51: 108.5 | AD51: 117.5 | AE51: 117.5 | AF51: 117.9 | AG51: 118.7 | AH51: 123.4 | AI51: 125.6 | AJ51: 126.3 | AK51: 128.7 | AL51: 129.4 | AM51: 129.8 | AN51: 129.8 | AO51: 130.2 | AP51: 143 | AQ51: 143.3 | AR51: 143.8 | AS51: 144.2 | AT51: 145 | AU51: 145.3 | AV51: 145.7 | AW51: 145.7 | AX51: 145.7 | AY51: 145.7 | AZ51: 145.7 | BA51: 145.7 | BB51: 137.4 | BC51: 137.4 | BD51: 137 | BE51: 137.8 | BF51: 136.6 | BG51: 136.6 | BH51: 137.8 | BI51: 137.8 | BJ51: 137.8 | BK51: 137 | BL51: 137 | BM51: 138.1 | BN51: 138.3 | BO51: 138.3 | BP51: 138.3 | BQ51: 138.3 | BR51: 138.3 | BS51: 138.3 | BT51: 138 | BU51: 137.6 | BV51: 136.8 | BW51: 137.6
A52: 51 | B52: 1国内 | C52: PR01'PRCG20_2200150037 | D52: 国内類別1/_飲食料品 | E52: 品目/____でん粉 | F52: 100.5 | G52: 100.5 | H52: 100.5 | I52: 100.3 | J52: 100.3 | K52: 99.9 | L52: 99.9 | M52: 99.7 | N52: 99.5 | O52: 99.5 | P52: 99.5 | Q52: 99.9 | R52: 100.7 | S52: 101 | T52: 101.4 | U52: 105.8 | V52: 106.6 | W52: 107 | X52: 107.4 | Y52: 107.8 | Z52: 108.1 | AA52: 108.5 | AB52: 108.5 | AC52: 108.5 | AD52: 117.5 | AE52: 117.5 | AF52: 117.9 | AG52: 118.7 | AH52: 123.4 | AI52: 125.6 | AJ52: 126.3 | AK52: 128.7 | AL52: 129.4 | AM52: 129.8 | AN52: 129.8 | AO52: 130.2 | AP52: 143 | AQ52: 143.3 | AR52: 143.8 | AS52: 144.2 | AT52: 145 | AU52: 145.3 | AV52: 145.7 | AW52: 145.7 | AX52: 145.7 | AY52: 145.7 | AZ52: 145.7 | BA52: 145.7 | BB52: 137.4 | BC52: 137.4 | BD52: 137 | BE52: 137.8 | BF52: 136.6 | BG52: 136.6 | BH52: 137.8 | BI52: 137.8 | BJ52: 137.8 | BK52: 137 | BL52: 137 | BM52: 138.1 | BN52: 138.3 | BO52: 138.3 | BP52: 138.3 | BQ52: 138.3 | BR52: 138.3 | BS52: 138.3 | BT52: 138 | BU52: 137.6 | BV52: 136.8 | BW52: 137.6
A53: 52 | B53: 1国内 | C53: PR01'PRCG20_2200140013 | D53: 国内類別1/_飲食料品 | E53: 商品群/___ぶどう糖・水あめ・異性化糖 | F53: 101.6 | G53: 101.6 | H53: 100.7 | I53: 100.2 | J53: 100.2 | K53: 100 | L53: 99.5 | M53: 99 | N53: 98.5 | O53: 98.7 | P53: 99.6 | Q53: 100.3 | R53: 101.2 | S53: 100.9 | T53: 103.8 | U53: 106.3 | V53: 106.9 | W53: 110.1 | X53: 109.6 | Y53: 110.8 | Z53: 114.2 | AA53: 112.8 | AB53: 112.2 | AC53: 112.4 | AD53: 114.3 | AE53: 114.8 | AF53: 114.5 | AG53: 115.1 | AH53: 117.9 | AI53: 121.2 | AJ53: 125.1 | AK53: 128.1 | AL53: 128.3 | AM53: 133.1 | AN53: 132.1 | AO53: 131.5 | AP53: 143.1 | AQ53: 143 | AR53: 142.9 | AS53: 137.9 | AT53: 137.7 | AU53: 137.3 | AV53: 136.7 | AW53: 136.5 | AX53: 136.4 | AY53: 133.3 | AZ53: 132.5 | BA53: 132.2 | BB53: 131.9 | BC53: 132.1 | BD53: 131.2 | BE53: 131 | BF53: 131.2 | BG53: 131 | BH53: 132.9 | BI53: 132 | BJ53: 131.6 | BK53: 130.9 | BL53: 128.1 | BM53: 128.3 | BN53: 131.4 | BO53: 130.8 | BP53: 131.4 | BQ53: 130.8 | BR53: 129.9 | BS53: 131 | BT53: 128.9 | BU53: 129.7 | BV53: 130.8 | BW53: 129.4
A54: 53 | B54: 1国内 | C54: PR01'PRCG20_2200150038 | D54: 国内類別1/_飲食料品 | E54: 品目/____ぶどう糖・水あめ | F54: 101.7 | G54: 101.7 | H54: 101.7 | I54: 100 | J54: 100 | K54: 100 | L54: 99.4 | M54: 98.6 | N54: 98.6 | O54: 98.7 | P54: 99.2 | Q54: 100.4 | R54: 101.3 | S54: 101.3 | T54: 104.7 | U54: 105.9 | V54: 105.9 | W54: 110.1 | X54: 110.1 | Y54: 112.3 | Z54: 112.3 | AA54: 109.8 | AB54: 110.4 | AC54: 112.7 | AD54: 114.4 | AE54: 114.4 | AF54: 114.4 | AG54: 118.2 | AH54: 121 | AI54: 123.1 | AJ54: 129.8 | AK54: 128.8 | AL54: 128.8 | AM54: 137.1 | AN54: 137.1 | AO54: 137.1 | AP54: 137.6 | AQ54: 137.5 | AR54: 137.5 | AS54: 135.4 | AT54: 135.4 | AU54: 135.4 | AV54: 135.2 | AW54: 135.2 | AX54: 135.2 | AY54: 134.3 | AZ54: 134.3 | BA54: 134.3 | BB54: 134.5 | BC54: 134.5 | BD54: 134.5 | BE54: 134 | BF54: 134 | BG54: 134 | BH54: 136.8 | BI54: 136.8 | BJ54: 136.8 | BK54: 134.6 | BL54: 134.6 | BM54: 134.6 | BN54: 136 | BO54: 136 | BP54: 136 | BQ54: 138 | BR54: 138 | BS54: 138 | BT54: 138.7 | BU54: 138.3 | BV54: 138.3 | BW54: 137.9
A55: 54 | B55: 1国内 | C55: PR01'PRCG20_2200150039 | D55: 国内類別1/_飲食料品 | E55: 品目/____異性化糖 | F55: 101.6 | G55: 101.6 | H55: 100.2 | I55: 100.4 | J55: 100.3 | K55: 99.9 | L55: 99.6 | M55: 99.2 | N55: 98.5 | O55: 98.7 | P55: 99.8 | Q55: 100.3 | R55: 101.2 | S55: 100.7 | T55: 103.4 | U55: 106.5 | V55: 107.4 | W55: 110 | X55: 109.4 | Y55: 110.1 | Z55: 115.2 | AA55: 114.2 | AB55: 113 | AC55: 112.2 | AD55: 114.2 | AE55: 115.1 | AF55: 114.6 | AG55: 113.5 | AH55: 116.4 | AI55: 120.2 | AJ55: 122.7 | AK55: 127.8 | AL55: 128.1 | AM55: 131.2 | AN55: 129.6 | AO55: 128.7 | AP55: 145.9 | AQ55: 145.7 | AR55: 145.6 | AS55: 139.2 | AT55: 138.8 | AU55: 138.2 | AV55: 137.4 | AW55: 137.2 | AX55: 137.1 | AY55: 132.8 | AZ55: 131.5 | BA55: 131.1 | BB55: 130.7 | BC55: 130.9 | BD55: 129.6 | BE55: 129.5 | BF55: 129.9 | BG55: 129.6 | BH55: 130.9 | BI55: 129.6 | BJ55: 129 | BK55: 129 | BL55: 124.8 | BM55: 125.1 | BN55: 129.1 | BO55: 128.2 | BP55: 129.1 | BQ55: 127.2 | BR55: 125.8 | BS55: 127.4 | BT55: 124 | BU55: 125.5 | BV55: 127 | BW55: 125.1
A56: 55 | B56: 1国内 | C56: PR01'PRCG20_2200140014 | D56: 国内類別1/_飲食料品 | E56: 商品群/___動植物油脂 | F56: 101.1 | G56: 100.1 | H56: 99.1 | I56: 100.1 | J56: 99.8 | K56: 100.1 | L56: 99.6 | M56: 99.2 | N56: 98.3 | O56: 100.3 | P56: 101.2 | Q56: 101.2 | R56: 102.5 | S56: 103.6 | T56: 103.7 | U56: 106.9 | V56: 110.4 | W56: 109.8 | X56: 115.1 | Y56: 122.5 | Z56: 122.5 | AA56: 123.9 | AB56: 128.7 | AC56: 127.9 | AD56: 132 | AE56: 133.2 | AF56: 136.4 | AG56: 139.9 | AH56: 145.9 | AI56: 146.4 | AJ56: 155.6 | AK56: 158.9 | AL56: 165.5 | AM56: 167.4 | AN56: 166.3 | AO56: 167.3 | AP56: 164.2 | AQ56: 162.8 | AR56: 161.5 | AS56: 160.3 | AT56: 159.3 | AU56: 157.7 | AV56: 152.2 | AW56: 151.1 | AX56: 150 | AY56: 150.4 | AZ56: 152.9 | BA56: 153.5 | BB56: 153.1 | BC56: 153.8 | BD56: 153.4 | BE56: 147 | BF56: 147.2 | BG56: 147.4 | BH56: 147.7 | BI56: 145.9 | BJ56: 146.7 | BK56: 144.1 | BL56: 145.7 | BM56: 146.9 | BN56: 146.2 | BO56: 146.3 | BP56: 146.8 | BQ56: 146.9 | BR56: 147.9 | BS56: 149.1 | BT56: 148.2 | BU56: 146.7 | BV56: 147.3 | BW56: 146.4
A57: 56 | B57: 1国内 | C57: PR01'PRCG20_2200150040 | D57: 国内類別1/_飲食料品 | E57: 品目/____植物油脂（除混合植物油脂） | F57: 100.6 | G57: 100 | H57: 99.9 | I57: 102.7 | J57: 100.1 | K57: 101.4 | L57: 100.6 | M57: 97.7 | N57: 98 | O57: 98.2 | P57: 100.2 | Q57: 100.7 | R57: 99.3 | S57: 100.3 | T57: 100.9 | U57: 101.7 | V57: 109.9 | W57: 108.5 | X57: 115.1 | Y57: 128.3 | Z57: 129.1 | AA57: 130.4 | AB57: 134.4 | AC57: 132.6 | AD57: 139.2 | AE57: 141.5 | AF57: 144.1 | AG57: 146.4 | AH57: 149.1 | AI57: 151.6 | AJ57: 160.4 | AK57: 164.3 | AL57: 172.6 | AM57: 170.4 | AN57: 168.5 | AO57: 169.2 | AP57: 161.9 | AQ57: 160.7 | AR57: 160.2 | AS57: 156.8 | AT57: 153.5 | AU57: 153 | AV57: 144.6 | AW57: 141.6 | AX57: 141.2 | AY57: 141.7 | AZ57: 145.5 | BA57: 147.3 | BB57: 146.8 | BC57: 145.6 | BD57: 145.1 | BE57: 141 | BF57: 139.9 | BG57: 143.8 | BH57: 143.7 | BI57: 137.7 | BJ57: 143.1 | BK57: 146.1 | BL57: 146.5 | BM57: 148.6 | BN57: 144.9 | BO57: 147.2 | BP57: 145.3 | BQ57: 147.3 | BR57: 146.8 | BS57: 147.5 | BT57: 149.2 | BU57: 148.6 | BV57: 150.4 | BW57: 150.4
A58: 57 | B58: 1国内 | C58: PR01'PRCG20_2200150041 | D58: 国内類別1/_飲食料品 | E58: 品目/____混合植物油脂 | F58: 101.5 | G58: 99.5 | H58: 98 | I58: 98.6 | J58: 101.6 | K58: 99.8 | L58: 99.4 | M58: 101 | N58: 99 | O58: 100.2 | P58: 100.9 | Q58: 100.5 | R58: 98.9 | S58: 100.4 | T58: 100.1 | U58: 102.8 | V58: 106.6 | W58: 106.1 | X58: 111.8 | Y58: 120.7 | Z58: 120.3 | AA58: 126.3 | AB58: 137.5 | AC58: 135.5 | AD58: 138.5 | AE58: 137.9 | AF58: 143.8 | AG58: 142.6 | AH58: 152.6 | AI58: 149.7 | AJ58: 156.8 | AK58: 161 | AL58: 170.4 | AM58: 172.6 | AN58: 170.1 | AO58: 171.9 | AP58: 172.6 | AQ58: 169.9 | AR58: 167.2 | AS58: 166.4 | AT58: 165.8 | AU58: 159.6 | AV58: 158.7 | AW58: 158 | AX58: 154.4 | AY58: 150.2 | AZ58: 152.5 | BA58: 152.4 | BB58: 148.5 | BC58: 150.1 | BD58: 150.3 | BE58: 148.3 | BF58: 149.4 | BG58: 147.2 | BH58: 145.2 | BI58: 144.6 | BJ58: 142.2 | BK58: 141 | BL58: 146.3 | BM58: 147.2 | BN58: 149.3 | BO58: 147.6 | BP58: 149.6 | BQ58: 148.6 | BR58: 151.3 | BS58: 152.9 | BT58: 152.3 | BU58: 149.1 | BV58: 146.9 | BW58: 146.9
A59: 58 | B59: 1国内 | C59: PR01'PRCG20_2200150042 | D59: 国内類別1/_飲食料品 | E59: 品目/____植物油搾かす | F59: 100.5 | G59: 100.5 | H59: 100.5 | I59: 97.7 | J59: 97.7 | K59: 97.7 | L59: 97.3 | M59: 97.3 | N59: 97.3 | O59: 104.5 | P59: 104.5 | Q59: 104.5 | R59: 121.5 | S59: 121.5 | T59: 121.5 | U59: 133.1 | V59: 133.1 | W59: 133.1 | X59: 137.6 | Y59: 137.6 | Z59: 137.6 | AA59: 132.5 | AB59: 132.5 | AC59: 132.5 | AD59: 140.8 | AE59: 140.8 | AF59: 140.8 | AG59: 159.4 | AH59: 159.4 | AI59: 159.4 | AJ59: 185 | AK59: 185 | AL59: 185 | AM59: 190.8 | AN59: 190.8 | AO59: 190.8 | AP59: 186 | AQ59: 186 | AR59: 186 | AS59: 185.2 | AT59: 185.2 | AU59: 185.2 | AV59: 169.3 | AW59: 169.3 | AX59: 169.3 | AY59: 177.4 | AZ59: 179.8 | BA59: 179.8 | BB59: 189.1 | BC59: 189.1 | BD59: 189.1 | BE59: 162.7 | BF59: 162.7 | BG59: 162.7 | BH59: 167.6 | BI59: 167.6 | BJ59: 167.6 | BK59: 147 | BL59: 147 | BM59: 147 | BN59: 144.9 | BO59: 144.9 | BP59: 144.9 | BQ59: 138.8 | BR59: 138.8 | BS59: 138.8 | BT59: 129.9 | BU59: 129.9 | BV59: 129.9 | BW59: 125.5
A60: 59 | B60: 1国内 | C60: PR01'PRCG20_2200150043 | D60: 国内類別1/_飲食料品 | E60: 品目/____ショートニング | F60: 101.1 | G60: 100.9 | H60: 98.9 | I60: 99.3 | J60: 96.2 | K60: 102.2 | L60: 98.7 | M60: 101.3 | N60: 98.3 | O60: 100.9 | P60: 101.3 | Q60: 101 | R60: 99.7 | S60: 97.1 | T60: 100.7 | U60: 102.3 | V60: 102.4 | W60: 100.6 | X60: 106.7 | Y60: 112.4 | Z60: 112.4 | AA60: 111.6 | AB60: 113.7 | AC60: 114.2 | AD60: 114.2 | AE60: 117.5 | AF60: 122.7 | AG60: 121.1 | AH60: 134.8 | AI60: 137.9 | AJ60: 136.6 | AK60: 143.9 | AL60: 153.2 | AM60: 155.6 | AN60: 157.4 | AO60: 158.3 | AP60: 152.3 | AQ60: 153.6 | AR60: 152.9 | AS60: 154 | AT60: 153.7 | AU60: 154.2 | AV60: 149.8 | AW60: 151.5 | AX60: 152.9 | AY60: 153.6 | AZ60: 157 | BA60: 158.4 | BB60: 153.7 | BC60: 154.2 | BD60: 154.3 | BE60: 154.6 | BF60: 155.9 | BG60: 154.7 | BH60: 155.8 | BI60: 156.4 | BJ60: 156.9 | BK60: 161.8 | BL60: 158.2 | BM60: 161.1 | BN60: 160 | BO60: 161.7 | BP60: 161.4 | BQ60: 169.8 | BR60: 169.3 | BS60: 171.8 | BT60: 177 | BU60: 173.3 | BV60: 179.6 | BW60: 178
A61: 60 | B61: 1国内 | C61: PR01'PRCG20_2200150044 | D61: 国内類別1/_飲食料品 | E61: 品目/____マーガリン | F61: 101.7 | G61: 101.1 | H61: 98.3 | I61: 101 | J61: 99.9 | K61: 99.4 | L61: 101.4 | M61: 99.1 | N61: 98.4 | O61: 99.5 | P61: 100.1 | Q61: 100.1 | R61: 97.1 | S61: 100.8 | T61: 99.5 | U61: 99.3 | V61: 97.9 | W61: 99.3 | X61: 101 | Y61: 102.1 | Z61: 101.4 | AA61: 100.5 | AB61: 99.4 | AC61: 101.8 | AD61: 100.7 | AE61: 103.7 | AF61: 104.5 | AG61: 107.3 | AH61: 113.1 | AI61: 116.2 | AJ61: 118.6 | AK61: 119.3 | AL61: 122.3 | AM61: 127.4 | AN61: 127.9 | AO61: 129.2 | AP61: 129.9 | AQ61: 128.2 | AR61: 126.3 | AS61: 126.9 | AT61: 128.3 | AU61: 132.7 | AV61: 134.3 | AW61: 133.4 | AX61: 133.8 | AY61: 135.7 | AZ61: 135.5 | BA61: 135.1 | BB61: 134.5 | BC61: 138.1 | BD61: 135.5 | BE61: 133.8 | BF61: 134.3 | BG61: 133.3 | BH61: 133.5 | BI61: 134.7 | BJ61: 134 | BK61: 133.2 | BL61: 133.3 | BM61: 133.5 | BN61: 135.2 | BO61: 133.3 | BP61: 136.7 | BQ61: 137.7 | BR61: 140.1 | BS61: 142.4 | BT61: 141.1 | BU61: 140.8 | BV61: 142.6 | BW61: 142.4
A62: 61 | B62: 1国内 | C62: PR01'PRCG20_2200140015 | D62: 国内類別1/_飲食料品 | E62: 商品群/___調味料 | F62: 99.2 | G62: 100 | H62: 100.1 | I62: 100.6 | J62: 99.6 | K62: 100.1 | L62: 100.5 | M62: 99.7 | N62: 99.9 | O62: 100.3 | P62: 99.8 | Q62: 100.2 | R62: 98.4 | S62: 100 | T62: 99.3 | U62: 100.7 | V62: 98.7 | W62: 99.7 | X62: 100.7 | Y62: 100 | Z62: 100.7 | AA62: 100.3 | AB62: 100.6 | AC62: 100.7 | AD62: 98.6 | AE62: 100 | AF62: 101.4 | AG62: 103.4 | AH62: 101.6 | AI62: 103.2 | AJ62: 103.5 | AK62: 104.1 | AL62: 104.1 | AM62: 104.9 | AN62: 105.3 | AO62: 106.4 | AP62: 104.6 | AQ62: 107.4 | AR62: 106.9 | AS62: 111.3 | AT62: 110.7 | AU62: 112.4 | AV62: 113.2 | AW62: 113 | AX62: 113.2 | AY62: 114.8 | AZ62: 115.4 | BA62: 115.7 | BB62: 115.2 | BC62: 115.8 | BD62: 114.7 | BE62: 117.7 | BF62: 117.2 | BG62: 117.1 | BH62: 117.1 | BI62: 116.8 | BJ62: 116.3 | BK62: 117.7 | BL62: 117 | BM62: 117.3 | BN62: 114.7 | BO62: 116.3 | BP62: 115.6 | BQ62: 116.8 | BR62: 117.5 | BS62: 117.7 | BT62: 118 | BU62: 117.4 | BV62: 117.8 | BW62: 118
A63: 62 | B63: 1国内 | C63: PR01'PRCG20_2200150045 | D63: 国内類別1/_飲食料品 | E63: 品目/____みそ | F63: 92.3 | G63: 99.8 | H63: 101 | I63: 102.2 | J63: 95.3 | K63: 99.7 | L63: 102.8 | M63: 99.3 | N63: 100.7 | O63: 103.2 | P63: 99.3 | Q63: 104.4 | R63: 92.2 | S63: 100.9 | T63: 94.4 | U63: 105.4 | V63: 92.3 | W63: 99.5 | X63: 102.2 | Y63: 99.5 | Z63: 100.9 | AA63: 98.9 | AB63: 100.8 | AC63: 104.1 | AD63: 89.8 | AE63: 99 | AF63: 97.2 | AG63: 105.9 | AH63: 93.3 | AI63: 102.2 | AJ63: 102.3 | AK63: 102.9 | AL63: 102.7 | AM63: 102.3 | AN63: 104.6 | AO63: 110.7 | AP63: 97.7 | AQ63: 106 | AR63: 96.9 | AS63: 113.8 | AT63: 109.8 | AU63: 108.6 | AV63: 111.6 | AW63: 111.5 | AX63: 109.7 | AY63: 119.3 | AZ63: 122.6 | BA63: 124.9 | BB63: 122.1 | BC63: 123.3 | BD63: 118 | BE63: 130.8 | BF63: 126.1 | BG63: 124 | BH63: 124.7 | BI63: 123.4 | BJ63: 119.8 | BK63: 129.1 | BL63: 124.6 | BM63: 127.4 | BN63: 110.4 | BO63: 122.4 | BP63: 118.5 | BQ63: 120.6 | BR63: 117.7 | BS63: 118.6 | BT63: 118.1 | BU63: 118.1 | BV63: 118.1 | BW63: 118.1
A64: 63 | B64: 1国内 | C64: PR01'PRCG20_2200150046 | D64: 国内類別1/_飲食料品 | E64: 品目/____しょう油 | F64: 99.9 | G64: 100.5 | H64: 99.7 | I64: 99.7 | J64: 100.6 | K64: 99.8 | L64: 99.8 | M64: 100.6 | N64: 99.9 | O64: 99.9 | P64: 99.6 | Q64: 100 | R64: 99 | S64: 100.2 | T64: 99.5 | U64: 99.9 | V64: 99.4 | W64: 98.6 | X64: 99.5 | Y64: 99.4 | Z64: 101.6 | AA64: 99.3 | AB64: 100.2 | AC64: 99.6 | AD64: 99.1 | AE64: 99 | AF64: 100.2 | AG64: 104.3 | AH64: 104.8 | AI64: 105.6 | AJ64: 105.3 | AK64: 105.6 | AL64: 105.5 | AM64: 106.6 | AN64: 106.4 | AO64: 106.6 | AP64: 106.6 | AQ64: 108.1 | AR64: 108.6 | AS64: 112.4 | AT64: 112.5 | AU64: 112.7 | AV64: 112.5 | AW64: 113.8 | AX64: 114 | AY64: 115.7 | AZ64: 115.6 | BA64: 115.4 | BB64: 116.4 | BC64: 115.8 | BD64: 116.7 | BE64: 117.6 | BF64: 117.7 | BG64: 117.6 | BH64: 117.7 | BI64: 117.7 | BJ64: 117.5 | BK64: 117.6 | BL64: 117.7 | BM64: 117.4 | BN64: 117.7 | BO64: 117.5 | BP64: 117.9 | BQ64: 117.7 | BR64: 118.1 | BS64: 117.8 | BT64: 117.3 | BU64: 117.7 | BV64: 118 | BW64: 117.8
A65: 64 | B65: 1国内 | C65: PR01'PRCG20_2200150047 | D65: 国内類別1/_飲食料品 | E65: 品目/____ソース | F65: 100.8 | G65: 99.8 | H65: 100.5 | I65: 100.6 | J65: 100.1 | K65: 100 | L65: 100 | M65: 100.1 | N65: 99.8 | O65: 99.4 | P65: 99.9 | Q65: 99 | R65: 99.4 | S65: 99.7 | T65: 99.9 | U65: 99.5 | V65: 98.5 | W65: 99 | X65: 101.6 | Y65: 102.1 | Z65: 102 | AA65: 102.1 | AB65: 102.4 | AC65: 101.5 | AD65: 101.5 | AE65: 102.1 | AF65: 109.2 | AG65: 110 | AH65: 109.7 | AI65: 109.9 | AJ65: 110.9 | AK65: 110.6 | AL65: 110.7 | AM65: 112.4 | AN65: 111.8 | AO65: 113.2 | AP65: 112.1 | AQ65: 118.4 | AR65: 120 | AS65: 123.9 | AT65: 124.5 | AU65: 127.1 | AV65: 127.6 | AW65: 127.7 | AX65: 128 | AY65: 128.3 | AZ65: 128.6 | BA65: 129.1 | BB65: 129.4 | BC65: 129.5 | BD65: 127.3 | BE65: 133 | BF65: 133.3 | BG65: 133.1 | BH65: 133.3 | BI65: 134.2 | BJ65: 133.3 | BK65: 133 | BL65: 132.1 | BM65: 131.8 | BN65: 131 | BO65: 131.6 | BP65: 131.4 | BQ65: 133.4 | BR65: 132.7 | BS65: 132.7 | BT65: 132.9 | BU65: 133.1 | BV65: 134.7 | BW65: 135.3
A66: 65 | B66: 1国内 | C66: PR01'PRCG20_2200150048 | D66: 国内類別1/_飲食料品 | E66: 品目/____食酢 | F66: 99.7 | G66: 96.8 | H66: 100.6 | I66: 101 | J66: 100.3 | K66: 100.2 | L66: 100.2 | M66: 97.5 | N66: 101.2 | O66: 100.4 | P66: 100.6 | Q66: 101.4 | R66: 97.3 | S66: 98.2 | T66: 101.9 | U66: 101.2 | V66: 100.5 | W66: 100.7 | X66: 100.8 | Y66: 97.7 | Z66: 100.4 | AA66: 101.2 | AB66: 100.7 | AC66: 101.1 | AD66: 99.9 | AE66: 97.8 | AF66: 101.8 | AG66: 101.1 | AH66: 100.5 | AI66: 102.9 | AJ66: 103.3 | AK66: 100.7 | AL66: 103.6 | AM66: 103.9 | AN66: 103.7 | AO66: 105 | AP66: 101.3 | AQ66: 101.3 | AR66: 104.9 | AS66: 107.1 | AT66: 107.6 | AU66: 109 | AV66: 108.4 | AW66: 106.6 | AX66: 110 | AY66: 110.2 | AZ66: 109.7 | BA66: 110.5 | BB66: 107.7 | BC66: 107.5 | BD66: 109.8 | BE66: 108.7 | BF66: 110.5 | BG66: 110.9 | BH66: 109.3 | BI66: 107.4 | BJ66: 110.9 | BK66: 111.8 | BL66: 111.9 | BM66: 111.6 | BN66: 110.4 | BO66: 108 | BP66: 109.2 | BQ66: 109.3 | BR66: 110.1 | BS66: 109.8 | BT66: 109.1 | BU66: 108.9 | BV66: 108.3 | BW66: 110.5
A67: 66 | B67: 1国内 | C67: PR01'PRCG20_2200150049 | D67: 国内類別1/_飲食料品 | E67: 品目/____香辛料 | F67: 100.6 | G67: 100.5 | H67: 100.4 | I67: 100.2 | J67: 100.1 | K67: 99.9 | L67: 99.9 | M67: 99.9 | N67: 99.8 | O67: 99.7 | P67: 99.6 | Q67: 99.4 | R67: 99.5 | S67: 99.4 | T67: 99.5 | U67: 99.3 | V67: 99.4 | W67: 99.5 | X67: 99.5 | Y67: 99.9 | Z67: 99.5 | AA67: 99.5 | AB67: 99.2 | AC67: 99.2 | AD67: 99.5 | AE67: 99.3 | AF67: 99.3 | AG67: 99.3 | AH67: 99 | AI67: 98.9 | AJ67: 98.1 | AK67: 98.4 | AL67: 98.5 | AM67: 98.6 | AN67: 98.6 | AO67: 99.1 | AP67: 98.4 | AQ67: 98.4 | AR67: 97.5 | AS67: 99 | AT67: 98.6 | AU67: 97.5 | AV67: 100.4 | AW67: 99.5 | AX67: 100.6 | AY67: 101.3 | AZ67: 101.7 | BA67: 102.5 | BB67: 101.8 | BC67: 102.1 | BD67: 101.3 | BE67: 102.7 | BF67: 102.7 | BG67: 102.4 | BH67: 102 | BI67: 102.3 | BJ67: 102.4 | BK67: 102.3 | BL67: 102.5 | BM67: 103.2 | BN67: 102.5 | BO67: 102.1 | BP67: 101.1 | BQ67: 102.4 | BR67: 102.4 | BS67: 102.5 | BT67: 101.7 | BU67: 101.7 | BV67: 101.7 | BW67: 101.7
A68: 67 | B68: 1国内 | C68: PR01'PRCG20_2200150050 | D68: 国内類別1/_飲食料品 | E68: 品目/____ルウ | F68: 100 | G68: 100.3 | H68: 100.1 | I68: 100.5 | J68: 100.5 | K68: 100.5 | L68: 100.5 | M68: 100 | N68: 99.5 | O68: 99.3 | P68: 99.3 | Q68: 99.4 | R68: 99.3 | S68: 99.5 | T68: 99.1 | U68: 99.9 | V68: 99.8 | W68: 100 | X68: 99.9 | Y68: 99.9 | Z68: 99.2 | AA68: 99.1 | AB68: 99.2 | AC68: 99.2 | AD68: 98.9 | AE68: 99.1 | AF68: 98.9 | AG68: 99.6 | AH68: 99.3 | AI68: 99.5 | AJ68: 99.1 | AK68: 107.5 | AL68: 107.1 | AM68: 106.5 | AN68: 106.5 | AO68: 107.6 | AP68: 106.8 | AQ68: 107.5 | AR68: 106.9 | AS68: 107.7 | AT68: 107.2 | AU68: 119.4 | AV68: 117.8 | AW68: 117.6 | AX68: 117 | AY68: 117.4 | AZ68: 117.7 | BA68: 118.8 | BB68: 118 | BC68: 117.9 | BD68: 117.7 | BE68: 118.7 | BF68: 118.6 | BG68: 118.9 | BH68: 118 | BI68: 118.2 | BJ68: 118 | BK68: 117.7 | BL68: 118.4 | BM68: 118.8 | BN68: 117.6 | BO68: 118.1 | BP68: 117.7 | BQ68: 118.6 | BR68: 131.6 | BS68: 131.6 | BT68: 131.2 | BU68: 130.8 | BV68: 130.8 | BW68: 130.8
A69: 68 | B69: 1国内 | C69: PR01'PRCG20_2200150051 | D69: 国内類別1/_飲食料品 | E69: 品目/____うま味・風味調味料 | F69: 98 | G69: 99.9 | H69: 99 | I69: 101.2 | J69: 99 | K69: 100.4 | L69: 101.6 | M69: 99.3 | N69: 99.6 | O69: 100.6 | P69: 100.8 | Q69: 100.4 | R69: 97.5 | S69: 100.4 | T69: 100.1 | U69: 101.7 | V69: 100.6 | W69: 100.8 | X69: 101.4 | Y69: 99.6 | Z69: 100.3 | AA69: 101.2 | AB69: 100.9 | AC69: 101.4 | AD69: 98.2 | AE69: 100.5 | AF69: 99.8 | AG69: 101.1 | AH69: 100.2 | AI69: 102 | AJ69: 102.8 | AK69: 102.3 | AL69: 101.8 | AM69: 104.6 | AN69: 106.9 | AO69: 106.8 | AP69: 106 | AQ69: 109.3 | AR69: 109.2 | AS69: 110.6 | AT69: 109.8 | AU69: 109.9 | AV69: 111.2 | AW69: 110.5 | AX69: 110.2 | AY69: 110.4 | AZ69: 110.8 | BA69: 110.6 | BB69: 109 | BC69: 110.4 | BD69: 110.4 | BE69: 111.5 | BF69: 111 | BG69: 111.4 | BH69: 111.3 | BI69: 111 | BJ69: 110 | BK69: 111.7 | BL69: 111.8 | BM69: 111.9 | BN69: 109.1 | BO69: 110.7 | BP69: 110 | BQ69: 111.6 | BR69: 110.7 | BS69: 110.8 | BT69: 115.8 | BU69: 112.1 | BV69: 112.8 | BW69: 111.5
A70: 69 | B70: 1国内 | C70: PR01'PRCG20_2200150052 | D70: 国内類別1/_飲食料品 | E70: 品目/____たれ・めんつゆ | F70: 100.6 | G70: 100.2 | H70: 100 | I70: 100.2 | J70: 100.2 | K70: 100.6 | L70: 99.8 | M70: 99.6 | N70: 99.2 | O70: 100.4 | P70: 99.8 | Q70: 99.3 | R70: 100.5 | S70: 100.2 | T70: 100.6 | U70: 100 | V70: 100 | W70: 100.7 | X70: 100.1 | Y70: 99.7 | Z70: 100 | AA70: 100.1 | AB70: 100.4 | AC70: 99.7 | AD70: 100.1 | AE70: 100.2 | AF70: 100.1 | AG70: 100.3 | AH70: 99.6 | AI70: 100 | AJ70: 101.1 | AK70: 99.7 | AL70: 100 | AM70: 100 | AN70: 100.3 | AO70: 99.8 | AP70: 101.6 | AQ70: 101.6 | AR70: 101.9 | AS70: 105.8 | AT70: 105.1 | AU70: 105.8 | AV70: 106.7 | AW70: 106.4 | AX70: 106.6 | AY70: 106.7 | AZ70: 107.2 | BA70: 105.9 | BB70: 106.8 | BC70: 108.5 | BD70: 107.5 | BE70: 107.6 | BF70: 107 | BG70: 107.6 | BH70: 107.9 | BI70: 107 | BJ70: 107.5 | BK70: 108 | BL70: 107.3 | BM70: 107.2 | BN70: 107.6 | BO70: 107.8 | BP70: 107.4 | BQ70: 108.1 | BR70: 107.8 | BS70: 108.5 | BT70: 108.1 | BU70: 107.2 | BV70: 107.2 | BW70: 108
A71: 70 | B71: 1国内 | C71: PR01'PRCG20_2200140016 | D71: 国内類別1/_飲食料品 | E71: 商品群/___冷凍調理食品 | F71: 99.1 | G71: 97 | H71: 101.2 | I71: 99.6 | J71: 96.2 | K71: 103.1 | L71: 101.5 | M71: 98.7 | N71: 101.8 | O71: 102.8 | P71: 98.7 | Q71: 100.1 | R71: 99.3 | S71: 98.2 | T71: 102 | U71: 101.9 | V71: 95.4 | W71: 99.3 | X71: 96.4 | Y71: 97.9 | Z71: 101.7 | AA71: 101.1 | AB71: 97.5 | AC71: 99.2 | AD71: 98.1 | AE71: 97.6 | AF71: 103.8 | AG71: 104 | AH71: 99 | AI71: 102 | AJ71: 101.6 | AK71: 103.4 | AL71: 110.2 | AM71: 108.7 | AN71: 111.5 | AO71: 110.5 | AP71: 116 | AQ71: 119.7 | AR71: 116.4 | AS71: 123 | AT71: 116 | AU71: 120.8 | AV71: 119.7 | AW71: 120 | AX71: 121.2 | AY71: 124.8 | AZ71: 122.1 | BA71: 123.3 | BB71: 119.6 | BC71: 122 | BD71: 127.8 | BE71: 128.4 | BF71: 125.4 | BG71: 125.7 | BH71: 127.1 | BI71: 125.5 | BJ71: 128.8 | BK71: 129.9 | BL71: 125.6 | BM71: 127.6 | BN71: 126 | BO71: 127.2 | BP71: 131.4 | BQ71: 131.3 | BR71: 126.2 | BS71: 129.1 | BT71: 129.6 | BU71: 126.1 | BV71: 129.9 | BW71: 129.9
A72: 71 | B72: 1国内 | C72: PR01'PRCG20_2200150053 | D72: 国内類別1/_飲食料品 | E72: 品目/____冷凍調理食品 | F72: 99.1 | G72: 97 | H72: 101.2 | I72: 99.6 | J72: 96.2 | K72: 103.1 | L72: 101.5 | M72: 98.7 | N72: 101.8 | O72: 102.8 | P72: 98.7 | Q72: 100.1 | R72: 99.3 | S72: 98.2 | T72: 102 | U72: 101.9 | V72: 95.4 | W72: 99.3 | X72: 96.4 | Y72: 97.9 | Z72: 101.7 | AA72: 101.1 | AB72: 97.5 | AC72: 99.2 | AD72: 98.1 | AE72: 97.6 | AF72: 103.8 | AG72: 104 | AH72: 99 | AI72: 102 | AJ72: 101.6 | AK72: 103.4 | AL72: 110.2 | AM72: 108.7 | AN72: 111.5 | AO72: 110.5 | AP72: 116 | AQ72: 119.7 | AR72: 116.4 | AS72: 123 | AT72: 116 | AU72: 120.8 | AV72: 119.7 | AW72: 120 | AX72: 121.2 | AY72: 124.8 | AZ72: 122.1 | BA72: 123.3 | BB72: 119.6 | BC72: 122 | BD72: 127.8 | BE72: 128.4 | BF72: 125.4 | BG72: 125.7 | BH72: 127.1 | BI72: 125.5 | BJ72: 128.8 | BK72: 129.9 | BL72: 125.6 | BM72: 127.6 | BN72: 126 | BO72: 127.2 | BP72: 131.4 | BQ72: 131.3 | BR72: 126.2 | BS72: 129.1 | BT72: 129.6 | BU72: 126.1 | BV72: 129.9 | BW72: 129.9
A73: 72 | B73: 1国内 | C73: PR01'PRCG20_2200140017 | D73: 国内類別1/_飲食料品 | E73: 商品群/___レトルト食品 | F73: 99.4 | G73: 99.7 | H73: 99.4 | I73: 100.1 | J73: 101.3 | K73: 100.7 | L73: 100 | M73: 100 | N73: 99.2 | O73: 99.5 | P73: 100.1 | Q73: 100.9 | R73: 99.4 | S73: 99.2 | T73: 98.9 | U73: 100.1 | V73: 98.1 | W73: 99.7 | X73: 99.4 | Y73: 99.8 | Z73: 100 | AA73: 100.6 | AB73: 103.1 | AC73: 103.1 | AD73: 102.2 | AE73: 102.8 | AF73: 102.3 | AG73: 103 | AH73: 103 | AI73: 102.3 | AJ73: 102.8 | AK73: 104.8 | AL73: 104.1 | AM73: 104.7 | AN73: 105.2 | AO73: 105.6 | AP73: 105.8 | AQ73: 105.6 | AR73: 105.6 | AS73: 105.6 | AT73: 105.2 | AU73: 107.8 | AV73: 108 | AW73: 107.6 | AX73: 108.4 | AY73: 108.7 | AZ73: 108.6 | BA73: 108.8 | BB73: 108 | BC73: 108 | BD73: 108.2 | BE73: 109.4 | BF73: 109.6 | BG73: 107.9 | BH73: 107.8 | BI73: 106.2 | BJ73: 107.6 | BK73: 108.5 | BL73: 108.3 | BM73: 107.9 | BN73: 107.4 | BO73: 108 | BP73: 107.1 | BQ73: 107.6 | BR73: 110.5 | BS73: 111 | BT73: 114.2 | BU73: 113.6 | BV73: 113.7 | BW73: 113.5
A74: 73 | B74: 1国内 | C74: PR01'PRCG20_2200150054 | D74: 国内類別1/_飲食料品 | E74: 品目/____レトルト食品 | F74: 99.4 | G74: 99.7 | H74: 99.4 | I74: 100.1 | J74: 101.3 | K74: 100.7 | L74: 100 | M74: 100 | N74: 99.2 | O74: 99.5 | P74: 100.1 | Q74: 100.9 | R74: 99.4 | S74: 99.2 | T74: 98.9 | U74: 100.1 | V74: 98.1 | W74: 99.7 | X74: 99.4 | Y74: 99.8 | Z74: 100 | AA74: 100.6 | AB74: 103.1 | AC74: 103.1 | AD74: 102.2 | AE74: 102.8 | AF74: 102.3 | AG74: 103 | AH74: 103 | AI74: 102.3 | AJ74: 102.8 | AK74: 104.8 | AL74: 104.1 | AM74: 104.7 | AN74: 105.2 | AO74: 105.6 | AP74: 105.8 | AQ74: 105.6 | AR74: 105.6 | AS74: 105.6 | AT74: 105.2 | AU74: 107.8 | AV74: 108 | AW74: 107.6 | AX74: 108.4 | AY74: 108.7 | AZ74: 108.6 | BA74: 108.8 | BB74: 108 | BC74: 108 | BD74: 108.2 | BE74: 109.4 | BF74: 109.6 | BG74: 107.9 | BH74: 107.8 | BI74: 106.2 | BJ74: 107.6 | BK74: 108.5 | BL74: 108.3 | BM74: 107.9 | BN74: 107.4 | BO74: 108 | BP74: 107.1 | BQ74: 107.6 | BR74: 110.5 | BS74: 111 | BT74: 114.2 | BU74: 113.6 | BV74: 113.7 | BW74: 113.5
A75: 74 | B75: 1国内 | C75: PR01'PRCG20_2200140018 | D75: 国内類別1/_飲食料品 | E75: 商品群/___そう菜・すし・弁当 | F75: 99.7 | G75: 99.9 | H75: 99.9 | I75: 99.7 | J75: 100.1 | K75: 100.4 | L75: 100.1 | M75: 100.2 | N75: 100.1 | O75: 100 | P75: 99.7 | Q75: 100.3 | R75: 99.8 | S75: 100.3 | T75: 100.3 | U75: 99.8 | V75: 99.9 | W75: 100 | X75: 100.1 | Y75: 100.3 | Z75: 100.1 | AA75: 100.2 | AB75: 100.1 | AC75: 100.6 | AD75: 100 | AE75: 100.2 | AF75: 100.9 | AG75: 100.9 | AH75: 101.3 | AI75: 103.3 | AJ75: 103.6 | AK75: 104.3 | AL75: 104.6 | AM75: 105.6 | AN75: 105.9 | AO75: 106 | AP75: 107.6 | AQ75: 108.2 | AR75: 109.1 | AS75: 110.3 | AT75: 110.9 | AU75: 112.1 | AV75: 112.7 | AW75: 112.6 | AX75: 112.4 | AY75: 112.3 | AZ75: 112.3 | BA75: 112.8 | BB75: 113.2 | BC75: 113.6 | BD75: 114 | BE75: 115.6 | BF75: 116.6 | BG75: 118.3 | BH75: 117.9 | BI75: 118.6 | BJ75: 118.3 | BK75: 119 | BL75: 119.5 | BM75: 120.1 | BN75: 120.8 | BO75: 124.4 | BP75: 127.6 | BQ75: 128.9 | BR75: 130.2 | BS75: 128.6 | BT75: 131 | BU75: 130.6 | BV75: 128.1 | BW75: 127.7
A76: 75 | B76: 1国内 | C76: PR01'PRCG20_2200150055 | D76: 国内類別1/_飲食料品 | E76: 品目/____そう菜 | F76: 99.6 | G76: 99.9 | H76: 99.9 | I76: 100 | J76: 100.2 | K76: 100.5 | L76: 100 | M76: 100 | N76: 100.1 | O76: 99.9 | P76: 99.7 | Q76: 100.1 | R76: 99.8 | S76: 100.2 | T76: 100.3 | U76: 100.1 | V76: 100.3 | W76: 100.5 | X76: 100.3 | Y76: 100.4 | Z76: 100.3 | AA76: 100.2 | AB76: 100.2 | AC76: 100.5 | AD76: 100.2 | AE76: 100.4 | AF76: 101.1 | AG76: 101.2 | AH76: 102.5 | AI76: 104.3 | AJ76: 105 | AK76: 106.2 | AL76: 106.2 | AM76: 106 | AN76: 106.3 | AO76: 106.2 | AP76: 106.7 | AQ76: 106.7 | AR76: 106.9 | AS76: 106.5 | AT76: 107.6 | AU76: 108.7 | AV76: 108.9 | AW76: 108.7 | AX76: 108.4 | AY76: 108.2 | AZ76: 108.3 | BA76: 108.9 | BB76: 110.6 | BC76: 110.8 | BD76: 110.9 | BE76: 112.3 | BF76: 112.4 | BG76: 112.4 | BH76: 111.5 | BI76: 112.9 | BJ76: 112.1 | BK76: 112 | BL76: 112.5 | BM76: 113.4 | BN76: 113.9 | BO76: 117.1 | BP76: 119.5 | BQ76: 122.7 | BR76: 123.4 | BS76: 119.5 | BT76: 122.5 | BU76: 121.2 | BV76: 118.7 | BW76: 116.6
A77: 76 | B77: 1国内 | C77: PR01'PRCG20_2200150056 | D77: 国内類別1/_飲食料品 | E77: 品目/____すし・弁当・おにぎり | F77: 99.8 | G77: 99.9 | H77: 99.9 | I77: 99.3 | J77: 100 | K77: 100.2 | L77: 100.2 | M77: 100.3 | N77: 100.2 | O77: 100 | P77: 99.8 | Q77: 100.5 | R77: 99.8 | S77: 100.3 | T77: 100.3 | U77: 99.6 | V77: 99.7 | W77: 99.6 | X77: 100 | Y77: 100.2 | Z77: 99.9 | AA77: 100.2 | AB77: 100.1 | AC77: 100.6 | AD77: 99.9 | AE77: 100.1 | AF77: 100.8 | AG77: 100.6 | AH77: 100.3 | AI77: 102.4 | AJ77: 102.5 | AK77: 102.7 | AL77: 103.3 | AM77: 105.3 | AN77: 105.6 | AO77: 105.7 | AP77: 108.3 | AQ77: 109.4 | AR77: 110.9 | AS77: 113.5 | AT77: 113.7 | AU77: 114.8 | AV77: 115.8 | AW77: 115.8 | AX77: 115.7 | AY77: 115.7 | AZ77: 115.7 | BA77: 116 | BB77: 115.4 | BC77: 116 | BD77: 116.6 | BE77: 118.4 | BF77: 120 | BG77: 123.1 | BH77: 123.1 | BI77: 123.3 | BJ77: 123.5 | BK77: 124.8 | BL77: 125.3 | BM77: 125.7 | BN77: 126.4 | BO77: 130.3 | BP77: 134.2 | BQ77: 134 | BR77: 135.9 | BS77: 136.1 | BT77: 138.1 | BU77: 138.3 | BV77: 135.9 | BW77: 136.8
A78: 77 | B78: 1国内 | C78: PR01'PRCG20_2200140019 | D78: 国内類別1/_飲食料品 | E78: 商品群/___その他の食料品 | F78: 99.4 | G78: 99.4 | H78: 99.4 | I78: 100.4 | J78: 99.9 | K78: 100.3 | L78: 100.3 | M78: 100 | N78: 100.3 | O78: 100.2 | P78: 100.1 | Q78: 100.2 | R78: 99.8 | S78: 99.7 | T78: 99.9 | U78: 100.3 | V78: 99.7 | W78: 99.9 | X78: 100 | Y78: 99.7 | Z78: 99.9 | AA78: 99.9 | AB78: 99.8 | AC78: 100 | AD78: 100 | AE78: 99.7 | AF78: 101.3 | AG78: 101.4 | AH78: 101.1 | AI78: 101.3 | AJ78: 101.7 | AK78: 101 | AL78: 102.3 | AM78: 102.8 | AN78: 104.1 | AO78: 104.3 | AP78: 104 | AQ78: 103.9 | AR78: 106.2 | AS78: 107.4 | AT78: 107.4 | AU78: 108.1 | AV78: 108.4 | AW78: 108.3 | AX78: 108.7 | AY78: 109.1 | AZ78: 109.2 | BA78: 109.9 | BB78: 109.8 | BC78: 109.7 | BD78: 110.4 | BE78: 111.8 | BF78: 111.8 | BG78: 112.2 | BH78: 112.3 | BI78: 111.7 | BJ78: 112.3 | BK78: 112.9 | BL78: 112.8 | BM78: 113 | BN78: 113.4 | BO78: 113.6 | BP78: 115.4 | BQ78: 116.2 | BR78: 117.4 | BS78: 117.6 | BT78: 116.4 | BU78: 116.5 | BV78: 116.2 | BW78: 116.2
A79: 78 | B79: 1国内 | C79: PR01'PRCG20_2200150057 | D79: 国内類別1/_飲食料品 | E79: 品目/____豆腐・しみ豆腐・油揚げ類 | F79: 98.6 | G79: 98.6 | H79: 98.6 | I79: 100.5 | J79: 100.6 | K79: 100.6 | L79: 100.4 | M79: 100.6 | N79: 100.5 | O79: 100.4 | P79: 100.3 | Q79: 100.3 | R79: 100.3 | S79: 100.4 | T79: 100.4 | U79: 100.7 | V79: 100.8 | W79: 100.7 | X79: 100.7 | Y79: 100.7 | Z79: 100.7 | AA79: 100.7 | AB79: 100.6 | AC79: 100.7 | AD79: 100.6 | AE79: 100.7 | AF79: 104.6 | AG79: 104.8 | AH79: 104.8 | AI79: 104.6 | AJ79: 104.9 | AK79: 103.7 | AL79: 104.9 | AM79: 106 | AN79: 106.7 | AO79: 106.7 | AP79: 106.7 | AQ79: 107.8 | AR79: 112.5 | AS79: 112.6 | AT79: 113.8 | AU79: 114 | AV79: 114 | AW79: 114 | AX79: 114 | AY79: 114 | AZ79: 114 | BA79: 114 | BB79: 114 | BC79: 114 | BD79: 114 | BE79: 116.4 | BF79: 116.6 | BG79: 116.5 | BH79: 116.5 | BI79: 116.5 | BJ79: 117.3 | BK79: 117.3 | BL79: 117.2 | BM79: 117.2 | BN79: 117.2 | BO79: 117.1 | BP79: 117.3 | BQ79: 120.8 | BR79: 120.8 | BS79: 120.9 | BT79: 121.1 | BU79: 121 | BV79: 121 | BW79: 121
A80: 79 | B80: 1国内 | C80: PR01'PRCG20_2200150058 | D80: 国内類別1/_飲食料品 | E80: 品目/____あん | F80: 100 | G80: 100 | H80: 100 | I80: 100 | J80: 100 | K80: 100 | L80: 100 | M80: 100 | N80: 100 | O80: 100 | P80: 100 | Q80: 100 | R80: 100 | S80: 100 | T80: 100 | U80: 100 | V80: 100 | W80: 100 | X80: 100 | Y80: 100 | Z80: 100 | AA80: 100 | AB80: 100 | AC80: 100 | AD80: 101.3 | AE80: 101.3 | AF80: 101.3 | AG80: 101.3 | AH80: 101.3 | AI80: 101.3 | AJ80: 101.3 | AK80: 101.3 | AL80: 109.4 | AM80: 109.4 | AN80: 109.4 | AO80: 109.4 | AP80: 109.4 | AQ80: 109.4 | AR80: 109.4 | AS80: 114.5 | AT80: 114.5 | AU80: 114.5 | AV80: 112.9 | AW80: 112.9 | AX80: 111.4 | AY80: 112.9 | AZ80: 113.3 | BA80: 113.3 | BB80: 113.3 | BC80: 113.3 | BD80: 113.3 | BE80: 114.1 | BF80: 114.1 | BG80: 114.1 | BH80: 114.1 | BI80: 114.1 | BJ80: 114.1 | BK80: 114.1 | BL80: 114.1 | BM80: 114.1 | BN80: 114.1 | BO80: 114.1 | BP80: 114.1 | BQ80: 114.1 | BR80: 114.1 | BS80: 114.1 | BT80: 114.1 | BU80: 114.8 | BV80: 114.8 | BW80: 114.8
A81: 80 | B81: 1国内 | C81: PR01'PRCG20_2200150059 | D81: 国内類別1/_飲食料品 | E81: 品目/____サプリメント | F81: 100.2 | G81: 100.2 | H81: 100.2 | I81: 100.2 | J81: 100.2 | K81: 100.1 | L81: 100.1 | M81: 100.1 | N81: 100.1 | O81: 100.1 | P81: 99.4 | Q81: 99.4 | R81: 99.4 | S81: 99.4 | T81: 99.4 | U81: 99.4 | V81: 99.1 | W81: 99.1 | X81: 99.1 | Y81: 99.1 | Z81: 99.1 | AA81: 99.1 | AB81: 99.1 | AC81: 99.1 | AD81: 99.1 | AE81: 99.1 | AF81: 99.1 | AG81: 99.1 | AH81: 99.1 | AI81: 98.8 | AJ81: 98.8 | AK81: 98.8 | AL81: 98.8 | AM81: 98.8 | AN81: 100.8 | AO81: 100.8 | AP81: 100.8 | AQ81: 100.8 | AR81: 100.8 | AS81: 101.3 | AT81: 101.3 | AU81: 101.3 | AV81: 101.1 | AW81: 101.1 | AX81: 101.1 | AY81: 101.1 | AZ81: 101.1 | BA81: 101.9 | BB81: 101.9 | BC81: 101.9 | BD81: 102.2 | BE81: 102.3 | BF81: 102.3 | BG81: 102.3 | BH81: 102.3 | BI81: 102.3 | BJ81: 102.3 | BK81: 103.4 | BL81: 103 | BM81: 103 | BN81: 103 | BO81: 104.7 | BP81: 107.4 | BQ81: 107.4 | BR81: 107.4 | BS81: 107.4 | BT81: 107.4 | BU81: 107.4 | BV81: 107.4 | BW81: 107.4
A82: 81 | B82: 1国内 | C82: PR01'PRCG20_2200150060 | D82: 国内類別1/_飲食料品 | E82: 品目/____こんにゃく | F82: 100 | G82: 100 | H82: 100 | I82: 100 | J82: 100 | K82: 100 | L82: 100 | M82: 100 | N82: 100 | O82: 100 | P82: 100 | Q82: 100 | R82: 100 | S82: 100 | T82: 100 | U82: 100 | V82: 100 | W82: 100 | X82: 100 | Y82: 100 | Z82: 99.3 | AA82: 100 | AB82: 100 | AC82: 98.4 | AD82: 100 | AE82: 98 | AF82: 100 | AG82: 100 | AH82: 100 | AI82: 100 | AJ82: 100 | AK82: 100 | AL82: 100 | AM82: 100 | AN82: 100 | AO82: 100 | AP82: 100 | AQ82: 100 | AR82: 100 | AS82: 100 | AT82: 101.8 | AU82: 103.3 | AV82: 101.9 | AW82: 105.1 | AX82: 106.7 | AY82: 108.6 | AZ82: 110.3 | BA82: 110.9 | BB82: 111.2 | BC82: 111.2 | BD82: 105.7 | BE82: 110 | BF82: 110.2 | BG82: 111.7 | BH82: 111 | BI82: 111.3 | BJ82: 110.3 | BK82: 110.3 | BL82: 110.2 | BM82: 111.4 | BN82: 114.1 | BO82: 113.3 | BP82: 113.9 | BQ82: 117.9 | BR82: 115.1 | BS82: 113.5 | BT82: 110.9 | BU82: 112.5 | BV82: 110.8 | BW82: 112.5
A83: 82 | B83: 1国内 | C83: PR01'PRCG20_2200150061 | D83: 国内類別1/_飲食料品 | E83: 品目/____即席みそ汁・インスタントスープ | F83: 98.8 | G83: 99.9 | H83: 99.9 | I83: 100.1 | J83: 99.2 | K83: 100.7 | L83: 100.7 | M83: 100.6 | N83: 99.9 | O83: 100 | P83: 100 | Q83: 100.4 | R83: 98.7 | S83: 99.5 | T83: 98.9 | U83: 101.4 | V83: 99.7 | W83: 100.9 | X83: 100.6 | Y83: 101 | Z83: 100.7 | AA83: 100.8 | AB83: 100.4 | AC83: 100.4 | AD83: 100.3 | AE83: 100.1 | AF83: 100.8 | AG83: 101.1 | AH83: 100.5 | AI83: 101.4 | AJ83: 102.3 | AK83: 101.8 | AL83: 102.2 | AM83: 101.7 | AN83: 103.5 | AO83: 104 | AP83: 104.4 | AQ83: 104.1 | AR83: 104.8 | AS83: 108.2 | AT83: 108.3 | AU83: 109.9 | AV83: 111.2 | AW83: 111.6 | AX83: 111.8 | AY83: 112.5 | AZ83: 112.6 | BA83: 112.8 | BB83: 113.1 | BC83: 113.4 | BD83: 113 | BE83: 115.9 | BF83: 115.8 | BG83: 116 | BH83: 116 | BI83: 115.5 | BJ83: 115.7 | BK83: 115.9 | BL83: 115.9 | BM83: 115.9 | BN83: 117.1 | BO83: 117.9 | BP83: 121.1 | BQ83: 121.3 | BR83: 121.5 | BS83: 121.5 | BT83: 121.5 | BU83: 121.5 | BV83: 121.5 | BW83: 121.3
A84: 83 | B84: 1国内 | C84: PR01'PRCG20_2200150062 | D84: 国内類別1/_飲食料品 | E84: 品目/____茶づけ・ふりかけ | F84: 97.8 | G84: 101 | H84: 99.6 | I84: 100.8 | J84: 97.4 | K84: 99.9 | L84: 100.7 | M84: 100.2 | N84: 99.9 | O84: 99.8 | P84: 100.1 | Q84: 102.9 | R84: 98.7 | S84: 101.8 | T84: 100.2 | U84: 101.7 | V84: 98.3 | W84: 100.6 | X84: 100.7 | Y84: 100.4 | Z84: 99.5 | AA84: 100.4 | AB84: 100.2 | AC84: 101.9 | AD84: 98.6 | AE84: 101 | AF84: 100.4 | AG84: 101.6 | AH84: 99.9 | AI84: 100.6 | AJ84: 101 | AK84: 101 | AL84: 100.1 | AM84: 99.9 | AN84: 107.8 | AO84: 107.6 | AP84: 104.9 | AQ84: 106 | AR84: 106.4 | AS84: 106.6 | AT84: 104.5 | AU84: 106.3 | AV84: 110.4 | AW84: 110.3 | AX84: 110 | AY84: 110.1 | AZ84: 110.2 | BA84: 111.2 | BB84: 109.4 | BC84: 118 | BD84: 117.2 | BE84: 118.5 | BF84: 116.7 | BG84: 117.6 | BH84: 117.8 | BI84: 117.8 | BJ84: 117.1 | BK84: 119.8 | BL84: 120.6 | BM84: 122.3 | BN84: 118.6 | BO84: 121.2 | BP84: 118.5 | BQ84: 121.4 | BR84: 119 | BS84: 123.8 | BT84: 124.5 | BU84: 124.5 | BV84: 123.4 | BW84: 123.4
A85: 84 | B85: 1国内 | C85: PR01'PRCG20_2200150063 | D85: 国内類別1/_飲食料品 | E85: 品目/____納豆 | F85: 100.3 | G85: 96.4 | H85: 97.4 | I85: 101.7 | J85: 100.3 | K85: 100.5 | L85: 100.5 | M85: 96.9 | N85: 101.2 | O85: 101.3 | P85: 101.3 | Q85: 102.3 | R85: 102.9 | S85: 98.1 | T85: 102.2 | U85: 100.7 | V85: 100.1 | W85: 99.4 | X85: 99.9 | Y85: 96.7 | Z85: 100.5 | AA85: 99.8 | AB85: 99.1 | AC85: 100.3 | AD85: 100.3 | AE85: 96.2 | AF85: 99.9 | AG85: 100.2 | AH85: 99.5 | AI85: 100.8 | AJ85: 99.8 | AK85: 95.4 | AL85: 99.1 | AM85: 102.5 | AN85: 101.3 | AO85: 102.5 | AP85: 101.4 | AQ85: 95.4 | AR85: 105.5 | AS85: 107 | AT85: 102.6 | AU85: 105.5 | AV85: 106.7 | AW85: 101.4 | AX85: 106.2 | AY85: 106.2 | AZ85: 105.8 | BA85: 106.3 | BB85: 106.3 | BC85: 100.9 | BD85: 111.9 | BE85: 111.3 | BF85: 112 | BG85: 114.3 | BH85: 116 | BI85: 109.8 | BJ85: 114.4 | BK85: 116.2 | BL85: 116.6 | BM85: 116.1 | BN85: 119.7 | BO85: 115.1 | BP85: 121.9 | BQ85: 115.3 | BR85: 132.1 | BS85: 131.8 | BT85: 118.6 | BU85: 117.9 | BV85: 117.7 | BW85: 117.7
A86: 85 | B86: 1国内 | C86: PR01'PRCG20_2200150064 | D86: 国内類別1/_飲食料品 | E86: 品目/____パン粉 | F86: 100.1 | G86: 100.3 | H86: 99.9 | I86: 100.1 | J86: 99.7 | K86: 100.1 | L86: 100.1 | M86: 100.3 | N86: 100.4 | O86: 100.3 | P86: 100.6 | Q86: 98.1 | R86: 97.8 | S86: 97.9 | T86: 97.9 | U86: 98.1 | V86: 97.5 | W86: 97.9 | X86: 98.8 | Y86: 98.7 | Z86: 98.3 | AA86: 97.4 | AB86: 98.4 | AC86: 98.7 | AD86: 100.3 | AE86: 100.9 | AF86: 102.1 | AG86: 102 | AH86: 101.1 | AI86: 101.6 | AJ86: 106.6 | AK86: 106.4 | AL86: 108.4 | AM86: 107.8 | AN86: 108.8 | AO86: 108.8 | AP86: 107.5 | AQ86: 110 | AR86: 110.4 | AS86: 110.9 | AT86: 111.6 | AU86: 111.6 | AV86: 112 | AW86: 114.7 | AX86: 115.2 | AY86: 115.5 | AZ86: 115.5 | BA86: 122 | BB86: 120.7 | BC86: 119.4 | BD86: 119.5 | BE86: 120.2 | BF86: 119.6 | BG86: 120.4 | BH86: 119.9 | BI86: 120.1 | BJ86: 120.9 | BK86: 120.1 | BL86: 120 | BM86: 121 | BN86: 119.9 | BO86: 120.4 | BP86: 120.9 | BQ86: 122.9 | BR86: 121.9 | BS86: 120.7 | BT86: 122.2 | BU86: 122.7 | BV86: 120.7 | BW86: 120.7
A87: 86 | B87: 1国内 | C87: PR01'PRCG20_2200130002 | D87: 国内類別1/_飲食料品 | E87: 小類別/__飲料 | F87: 99.9 | G87: 100 | H87: 100.2 | I87: 100 | J87: 99.9 | K87: 100.2 | L87: 100.2 | M87: 100 | N87: 100 | O87: 99.9 | P87: 99.8 | Q87: 100.1 | R87: 99.7 | S87: 100.1 | T87: 100 | U87: 100 | V87: 99.8 | W87: 99.9 | X87: 100.1 | Y87: 100 | Z87: 100.1 | AA87: 100.1 | AB87: 100.3 | AC87: 100.3 | AD87: 100.5 | AE87: 100.5 | AF87: 100.8 | AG87: 101.3 | AH87: 101.3 | AI87: 101.2 | AJ87: 101.3 | AK87: 101.5 | AL87: 101.7 | AM87: 104.9 | AN87: 106 | AO87: 106.3 | AP87: 106.4 | AQ87: 107.8 | AR87: 108 | AS87: 108.8 | AT87: 109.4 | AU87: 109.6 | AV87: 110.1 | AW87: 109.8 | AX87: 110.4 | AY87: 111.8 | AZ87: 112.2 | BA87: 112.1 | BB87: 111.1 | BC87: 111.4 | BD87: 111.6 | BE87: 112 | BF87: 111.6 | BG87: 111.7 | BH87: 111.3 | BI87: 111.2 | BJ87: 111.6 | BK87: 112.6 | BL87: 113.1 | BM87: 113.3 | BN87: 113.9 | BO87: 113.9 | BP87: 114.1 | BQ87: 116.3 | BR87: 117 | BS87: 117.1 | BT87: 117.9 | BU87: 117.9 | BV87: 118.3 | BW87: 120
A88: 87 | B88: 1国内 | C88: PR01'PRCG20_2200140020 | D88: 国内類別1/_飲食料品 | E88: 商品群/___清酒 | F88: 98.4 | G88: 99.5 | H88: 100.1 | I88: 100.1 | J88: 100.3 | K88: 100.5 | L88: 101 | M88: 100.5 | N88: 101 | O88: 100.1 | P88: 99.7 | Q88: 98.8 | R88: 97.9 | S88: 99.4 | T88: 100.3 | U88: 99.7 | V88: 97.8 | W88: 99.2 | X88: 99.6 | Y88: 98.7 | Z88: 98.3 | AA88: 99 | AB88: 99.5 | AC88: 99.1 | AD88: 96.3 | AE88: 99.1 | AF88: 99.7 | AG88: 100.1 | AH88: 98.4 | AI88: 99.4 | AJ88: 101.5 | AK88: 100.4 | AL88: 100.2 | AM88: 107.2 | AN88: 113.7 | AO88: 112.4 | AP88: 106.9 | AQ88: 110.8 | AR88: 110.7 | AS88: 110.5 | AT88: 108.2 | AU88: 110.8 | AV88: 110.6 | AW88: 108.9 | AX88: 109.2 | AY88: 111.4 | AZ88: 111.9 | BA88: 110.7 | BB88: 114.5 | BC88: 116.9 | BD88: 116.5 | BE88: 113.5 | BF88: 112.7 | BG88: 113.2 | BH88: 113.8 | BI88: 113 | BJ88: 113.4 | BK88: 118.7 | BL88: 118.9 | BM88: 117.4 | BN88: 117.1 | BO88: 118.9 | BP88: 119.1 | BQ88: 114.6 | BR88: 113.6 | BS88: 113.1 | BT88: 115.5 | BU88: 113.3 | BV88: 115.6 | BW88: 122.2
A89: 88 | B89: 1国内 | C89: PR01'PRCG20_2200150065 | D89: 国内類別1/_飲食料品 | E89: 品目/____清酒 | F89: 98.4 | G89: 99.5 | H89: 100.1 | I89: 100.1 | J89: 100.3 | K89: 100.5 | L89: 101 | M89: 100.5 | N89: 101 | O89: 100.1 | P89: 99.7 | Q89: 98.8 | R89: 97.9 | S89: 99.4 | T89: 100.3 | U89: 99.7 | V89: 97.8 | W89: 99.2 | X89: 99.6 | Y89: 98.7 | Z89: 98.3 | AA89: 99 | AB89: 99.5 | AC89: 99.1 | AD89: 96.3 | AE89: 99.1 | AF89: 99.7 | AG89: 100.1 | AH89: 98.4 | AI89: 99.4 | AJ89: 101.5 | AK89: 100.4 | AL89: 100.2 | AM89: 107.2 | AN89: 113.7 | AO89: 112.4 | AP89: 106.9 | AQ89: 110.8 | AR89: 110.7 | AS89: 110.5 | AT89: 108.2 | AU89: 110.8 | AV89: 110.6 | AW89: 108.9 | AX89: 109.2 | AY89: 111.4 | AZ89: 111.9 | BA89: 110.7 | BB89: 114.5 | BC89: 116.9 | BD89: 116.5 | BE89: 113.5 | BF89: 112.7 | BG89: 113.2 | BH89: 113.8 | BI89: 113 | BJ89: 113.4 | BK89: 118.7 | BL89: 118.9 | BM89: 117.4 | BN89: 117.1 | BO89: 118.9 | BP89: 119.1 | BQ89: 114.6 | BR89: 113.6 | BS89: 113.1 | BT89: 115.5 | BU89: 113.3 | BV89: 115.6 | BW89: 122.2
A90: 89 | B90: 1国内 | C90: PR01'PRCG20_2200140021 | D90: 国内類別1/_飲食料品 | E90: 商品群/___ビール類 | F90: 99.9 | G90: 99.8 | H90: 99.9 | I90: 99.9 | J90: 99.9 | K90: 100 | L90: 99.9 | M90: 99.9 | N90: 99.9 | O90: 100.2 | P90: 100.4 | Q90: 100.3 | R90: 100.1 | S90: 100 | T90: 100.3 | U90: 100.3 | V90: 100.2 | W90: 100.3 | X90: 100.3 | Y90: 100.2 | Z90: 100.2 | AA90: 100.2 | AB90: 100.4 | AC90: 100.4 | AD90: 100.5 | AE90: 100.1 | AF90: 100.3 | AG90: 100.4 | AH90: 100.4 | AI90: 100.4 | AJ90: 100.3 | AK90: 100.5 | AL90: 100.4 | AM90: 104.3 | AN90: 104.4 | AO90: 104.2 | AP90: 106.7 | AQ90: 106.9 | AR90: 106.9 | AS90: 106.9 | AT90: 106.9 | AU90: 106.9 | AV90: 106.9 | AW90: 106.9 | AX90: 106.9 | AY90: 109.5 | AZ90: 110 | BA90: 109.9 | BB90: 109.9 | BC90: 109.9 | BD90: 110 | BE90: 110 | BF90: 110 | BG90: 110 | BH90: 110 | BI90: 110 | BJ90: 110 | BK90: 110 | BL90: 110 | BM90: 110.2 | BN90: 109.9 | BO90: 109.8 | BP90: 110 | BQ90: 115.6 | BR90: 115.6 | BS90: 115.6 | BT90: 115.6 | BU90: 115.8 | BV90: 115.8 | BW90: 115.8
A91: 90 | B91: 1国内 | C91: PR01'PRCG20_2200150066 | D91: 国内類別1/_飲食料品 | E91: 品目/____ビール | F91: 101.1 | G91: 101 | H91: 101.2 | I91: 101.2 | J91: 101.2 | K91: 101.2 | L91: 101.2 | M91: 101.2 | N91: 101.2 | O91: 96.5 | P91: 96.6 | Q91: 96.5 | R91: 96.4 | S91: 96.4 | T91: 96.5 | U91: 96.6 | V91: 96.6 | W91: 96.5 | X91: 96.6 | Y91: 96.4 | Z91: 96.4 | AA91: 96.4 | AB91: 96.6 | AC91: 96.6 | AD91: 96.7 | AE91: 96.4 | AF91: 96.6 | AG91: 96.6 | AH91: 96.7 | AI91: 96.6 | AJ91: 96.6 | AK91: 96.6 | AL91: 96.5 | AM91: 99.6 | AN91: 99.7 | AO91: 99.6 | AP91: 102.3 | AQ91: 102.4 | AR91: 102.5 | AS91: 102.4 | AT91: 102.5 | AU91: 102.5 | AV91: 102.5 | AW91: 102.5 | AX91: 102.4 | AY91: 102.8 | AZ91: 101.9 | BA91: 101.8 | BB91: 101.7 | BC91: 101.8 | BD91: 101.9 | BE91: 101.9 | BF91: 101.9 | BG91: 101.9 | BH91: 101.9 | BI91: 101.8 | BJ91: 101.8 | BK91: 101.9 | BL91: 101.8 | BM91: 102.1 | BN91: 101.8 | BO91: 101.7 | BP91: 101.8 | BQ91: 106.6 | BR91: 106.6 | BS91: 106.6 | BT91: 106.6 | BU91: 106.5 | BV91: 106.5 | BW91: 106.5
A92: 91 | B92: 1国内 | C92: PR01'PRCG20_2200150067 | D92: 国内類別1/_飲食料品 | E92: 品目/____発泡酒・新ジャンル | F92: 98.3 | G92: 98.1 | H92: 98.2 | I92: 98.2 | J92: 98.2 | K92: 98.3 | L92: 98.3 | M92: 98.3 | N92: 98.2 | O92: 105.2 | P92: 105.4 | Q92: 105.3 | R92: 105 | S92: 104.9 | T92: 105.3 | U92: 105.3 | V92: 105.1 | W92: 105.3 | X92: 105.1 | Y92: 105.2 | Z92: 105.2 | AA92: 105.2 | AB92: 105.3 | AC92: 105.3 | AD92: 105.4 | AE92: 105 | AF92: 105.3 | AG92: 105.3 | AH92: 105.3 | AI92: 105.3 | AJ92: 105.3 | AK92: 105.6 | AL92: 105.5 | AM92: 110.4 | AN92: 110.5 | AO92: 110.4 | AP92: 112.6 | AQ92: 112.8 | AR92: 112.8 | AS92: 112.8 | AT92: 112.8 | AU92: 112.8 | AV92: 112.8 | AW92: 112.7 | AX92: 112.8 | AY92: 118.4 | AZ92: 120.8 | BA92: 120.7 | BB92: 120.7 | BC92: 120.7 | BD92: 120.8 | BE92: 120.8 | BF92: 120.8 | BG92: 120.8 | BH92: 120.8 | BI92: 120.8 | BJ92: 120.8 | BK92: 120.8 | BL92: 120.8 | BM92: 120.8 | BN92: 120.7 | BO92: 120.6 | BP92: 120.8 | BQ92: 127.6 | BR92: 127.6 | BS92: 127.6 | BT92: 127.6 | BU92: 128 | BV92: 128 | BW92: 128
A93: 92 | B93: 1国内 | C93: PR01'PRCG20_2200140022 | D93: 国内類別1/_飲食料品 | E93: 商品群/___ウイスキー類 | F93: 99.8 | G93: 99.8 | H93: 99.8 | I93: 99.8 | J93: 99.8 | K93: 99.8 | L93: 99.8 | M93: 99.8 | N93: 99.8 | O93: 100.6 | P93: 100.6 | Q93: 100.6 | R93: 100.6 | S93: 100.6 | T93: 100.6 | U93: 100.2 | V93: 100.1 | W93: 100.1 | X93: 100.1 | Y93: 100.1 | Z93: 100.1 | AA93: 100.1 | AB93: 100.1 | AC93: 100.1 | AD93: 100.1 | AE93: 100.1 | AF93: 100.1 | AG93: 100.1 | AH93: 100.1 | AI93: 100.1 | AJ93: 100.1 | AK93: 100.1 | AL93: 100.1 | AM93: 100.1 | AN93: 100.1 | AO93: 100.1 | AP93: 100.1 | AQ93: 100.1 | AR93: 100.1 | AS93: 100.1 | AT93: 100.1 | AU93: 100.1 | AV93: 115.1 | AW93: 115.1 | AX93: 115.1 | AY93: 115.4 | AZ93: 115.4 | BA93: 115.4 | BB93: 115.4 | BC93: 115.4 | BD93: 115.4 | BE93: 115.4 | BF93: 115.4 | BG93: 115.4 | BH93: 115.4 | BI93: 114.8 | BJ93: 114.8 | BK93: 114.8 | BL93: 114.8 | BM93: 114.8 | BN93: 115.1 | BO93: 115.1 | BP93: 115.1 | BQ93: 115.1 | BR93: 115.1 | BS93: 115.1 | BT93: 115.1 | BU93: 118.7 | BV93: 118.7 | BW93: 118.7
A94: 93 | B94: 1国内 | C94: PR01'PRCG20_2200150068 | D94: 国内類別1/_飲食料品 | E94: 品目/____ウイスキー | F94: 99.8 | G94: 99.8 | H94: 99.8 | I94: 99.8 | J94: 99.8 | K94: 99.8 | L94: 99.8 | M94: 99.8 | N94: 99.8 | O94: 100.6 | P94: 100.6 | Q94: 100.6 | R94: 100.6 | S94: 100.6 | T94: 100.6 | U94: 100.2 | V94: 100.1 | W94: 100.1 | X94: 100.1 | Y94: 100.1 | Z94: 100.1 | AA94: 100.1 | AB94: 100.1 | AC94: 100.1 | AD94: 100.1 | AE94: 100.1 | AF94: 100.1 | AG94: 100.1 | AH94: 100.1 | AI94: 100.1 | AJ94: 100.1 | AK94: 100.1 | AL94: 100.1 | AM94: 100.1 | AN94: 100.1 | AO94: 100.1 | AP94: 100.1 | AQ94: 100.1 | AR94: 100.1 | AS94: 100.1 | AT94: 100.1 | AU94: 100.1 | AV94: 115.1 | AW94: 115.1 | AX94: 115.1 | AY94: 115.4 | AZ94: 115.4 | BA94: 115.4 | BB94: 115.4 | BC94: 115.4 | BD94: 115.4 | BE94: 115.4 | BF94: 115.4 | BG94: 115.4 | BH94: 115.4 | BI94: 114.8 | BJ94: 114.8 | BK94: 114.8 | BL94: 114.8 | BM94: 114.8 | BN94: 115.1 | BO94: 115.1 | BP94: 115.1 | BQ94: 115.1 | BR94: 115.1 | BS94: 115.1 | BT94: 115.1 | BU94: 118.7 | BV94: 118.7 | BW94: 118.7
A95: 94 | B95: 1国内 | C95: PR01'PRCG20_2200140023 | D95: 国内類別1/_飲食料品 | E95: 商品群/___その他の酒類 | F95: 99.8 | G95: 99.9 | H95: 100.1 | I95: 100.4 | J95: 100.4 | K95: 100.3 | L95: 100.3 | M95: 100.3 | N95: 100.3 | O95: 99.6 | P95: 99.3 | Q95: 99.3 | R95: 99.3 | S95: 99.5 | T95: 99.5 | U95: 99.3 | V95: 99.3 | W95: 99.3 | X95: 99.3 | Y95: 99.3 | Z95: 99.3 | AA95: 99.3 | AB95: 99.3 | AC95: 99.3 | AD95: 99.5 | AE95: 99.4 | AF95: 99.8 | AG95: 99.8 | AH95: 99.8 | AI95: 99.8 | AJ95: 99.8 | AK95: 99.8 | AL95: 100.5 | AM95: 103.3 | AN95: 103.8 | AO95: 104 | AP95: 102.4 | AQ95: 104.5 | AR95: 105.1 | AS95: 105.8 | AT95: 105.8 | AU95: 105.8 | AV95: 106.1 | AW95: 106.1 | AX95: 106.7 | AY95: 107 | AZ95: 107 | BA95: 107 | BB95: 107 | BC95: 107 | BD95: 107.1 | BE95: 107.1 | BF95: 107.1 | BG95: 107.1 | BH95: 107.1 | BI95: 107.1 | BJ95: 106.9 | BK95: 106.9 | BL95: 106.9 | BM95: 106.9 | BN95: 107 | BO95: 107 | BP95: 107.4 | BQ95: 108.8 | BR95: 108.8 | BS95: 108.9 | BT95: 108.8 | BU95: 109.2 | BV95: 109.2 | BW95: 109.2
A96: 95 | B96: 1国内 | C96: PR01'PRCG20_2200150069 | D96: 国内類別1/_飲食料品 | E96: 品目/____果実酒・チューハイ | F96: 99.8 | G96: 99.8 | H96: 99.8 | I96: 99.8 | J96: 99.8 | K96: 99.8 | L96: 99.8 | M96: 99.8 | N96: 99.8 | O96: 100.7 | P96: 100.7 | Q96: 100.7 | R96: 100.7 | S96: 101.2 | T96: 101.2 | U96: 100.7 | V96: 100.7 | W96: 100.7 | X96: 100.7 | Y96: 100.7 | Z96: 100.7 | AA96: 100.7 | AB96: 100.7 | AC96: 100.7 | AD96: 100.9 | AE96: 100.9 | AF96: 101.8 | AG96: 101.8 | AH96: 101.8 | AI96: 101.8 | AJ96: 101.8 | AK96: 101.7 | AL96: 101.7 | AM96: 106.7 | AN96: 106.7 | AO96: 106.7 | AP96: 106.7 | AQ96: 107.6 | AR96: 107.1 | AS96: 107.1 | AT96: 107.1 | AU96: 107.1 | AV96: 107.1 | AW96: 107.1 | AX96: 107.1 | AY96: 108.1 | AZ96: 108.1 | BA96: 108.1 | BB96: 108.1 | BC96: 108.1 | BD96: 108.1 | BE96: 108.1 | BF96: 108.1 | BG96: 108.1 | BH96: 108.1 | BI96: 108.1 | BJ96: 108.1 | BK96: 108.1 | BL96: 108.1 | BM96: 108.1 | BN96: 108.1 | BO96: 108.1 | BP96: 109.5 | BQ96: 113.1 | BR96: 113.1 | BS96: 113.1 | BT96: 113.1 | BU96: 114.1 | BV96: 114.1 | BW96: 114.1
A97: 96 | B97: 1国内 | C97: PR01'PRCG20_2200150070 | D97: 国内類別1/_飲食料品 | E97: 品目/____焼ちゅう | F97: 99.8 | G97: 99.9 | H97: 100.2 | I97: 100.7 | J97: 100.7 | K97: 100.7 | L97: 100.7 | M97: 100.6 | N97: 100.6 | O97: 98.9 | P97: 98.5 | Q97: 98.5 | R97: 98.5 | S97: 98.5 | T97: 98.5 | U97: 98.5 | V97: 98.5 | W97: 98.5 | X97: 98.5 | Y97: 98.5 | Z97: 98.5 | AA97: 98.5 | AB97: 98.5 | AC97: 98.5 | AD97: 98.6 | AE97: 98.5 | AF97: 98.6 | AG97: 98.5 | AH97: 98.7 | AI97: 98.7 | AJ97: 98.6 | AK97: 98.7 | AL97: 99.8 | AM97: 101.2 | AN97: 102 | AO97: 102.4 | AP97: 99.8 | AQ97: 102.5 | AR97: 103.9 | AS97: 104.9 | AT97: 105 | AU97: 105 | AV97: 105.4 | AW97: 105.4 | AX97: 106.4 | AY97: 106.3 | AZ97: 106.3 | BA97: 106.3 | BB97: 106.3 | BC97: 106.4 | BD97: 106.4 | BE97: 106.4 | BF97: 106.4 | BG97: 106.4 | BH97: 106.4 | BI97: 106.4 | BJ97: 106.2 | BK97: 106.2 | BL97: 106.2 | BM97: 106.2 | BN97: 106.3 | BO97: 106.3 | BP97: 106.1 | BQ97: 106.1 | BR97: 106.2 | BS97: 106.3 | BT97: 106.2 | BU97: 106.2 | BV97: 106.2 | BW97: 106.2
A98: 97 | B98: 1国内 | C98: PR01'PRCG20_2200140024 | D98: 国内類別1/_飲食料品 | E98: 商品群/___茶・コーヒー | F98: 100.9 | G98: 100.9 | H98: 100.4 | I98: 99.7 | J98: 100.4 | K98: 100 | L98: 99.7 | M98: 99.1 | N98: 100.2 | O98: 99.8 | P98: 99.4 | Q98: 99.5 | R98: 100.1 | S98: 99.5 | T98: 99.5 | U98: 98.4 | V98: 99.6 | W98: 99.1 | X98: 99.8 | Y98: 100 | Z98: 100.6 | AA98: 102.1 | AB98: 102.8 | AC98: 103.6 | AD98: 107.4 | AE98: 107.9 | AF98: 108.8 | AG98: 108.7 | AH98: 109.8 | AI98: 108.6 | AJ98: 109.7 | AK98: 109.9 | AL98: 110.9 | AM98: 112.3 | AN98: 112.2 | AO98: 112.2 | AP98: 118.7 | AQ98: 119.3 | AR98: 118.3 | AS98: 118 | AT98: 119.1 | AU98: 119 | AV98: 118.1 | AW98: 117.3 | AX98: 118 | AY98: 118.7 | AZ98: 118.6 | BA98: 119.2 | BB98: 118.6 | BC98: 116.8 | BD98: 117.9 | BE98: 117.3 | BF98: 116.4 | BG98: 117 | BH98: 116.3 | BI98: 117.2 | BJ98: 118.7 | BK98: 119 | BL98: 118.7 | BM98: 118.3 | BN98: 120.2 | BO98: 120.4 | BP98: 123 | BQ98: 131.6 | BR98: 133 | BS98: 134 | BT98: 142.2 | BU98: 142.9 | BV98: 143.9 | BW98: 144.7
A99: 98 | B99: 1国内 | C99: PR01'PRCG20_2200150071 | D99: 国内類別1/_飲食料品 | E99: 品目/____荒茶 | F99: 109.5 | G99: 109.5 | H99: 109.5 | I99: 96.8 | J99: 96.8 | K99: 96.8 | L99: 96.8 | M99: 96.8 | N99: 96.8 | O99: 96.8 | P99: 96.8 | Q99: 96.8 | R99: 96.8 | S99: 96.8 | T99: 96.8 | U99: 113.3 | V99: 113.3 | W99: 113.3 | X99: 113.3 | Y99: 113.3 | Z99: 113.3 | AA99: 113.3 | AB99: 113.3 | AC99: 113.3 | AD99: 113.3 | AE99: 113.3 | AF99: 113.3 | AG99: 114.6 | AH99: 114.6 | AI99: 114.6 | AJ99: 114.6 | AK99: 114.6 | AL99: 114.6 | AM99: 114.6 | AN99: 114.6 | AO99: 114.6 | AP99: 114.6 | AQ99: 114.6 | AR99: 114.6 | AS99: 116 | AT99: 116 | AU99: 116 | AV99: 116 | AW99: 116 | AX99: 116 | AY99: 116 | AZ99: 116 | BA99: 116 | BB99: 116 | BC99: 116 | BD99: 116 | BE99: 112.1 | BF99: 112.1 | BG99: 112.1 | BH99: 112.1 | BI99: 112.1 | BJ99: 112.1 | BK99: 112.1 | BL99: 112.1 | BM99: 112.1 | BN99: 112.1 | BO99: 112.1 | BP99: 112.1 | BQ99: 164.1 | BR99: 164.1 | BS99: 164.1 | BT99: 164.1 | BU99: 164.1 | BV99: 164.1 | BW99: 164.1
A100: 99 | B100: 1国内 | C100: PR01'PRCG20_2200150072 | D100: 国内類別1/_飲食料品 | E100: 品目/____緑茶 | F100: 99.7 | G100: 100.2 | H100: 100 | I100: 100.6 | J100: 100.4 | K100: 100.4 | L100: 100 | M100: 99.8 | N100: 99.6 | O100: 99.7 | P100: 99.8 | Q100: 99.7 | R100: 99.3 | S100: 99.5 | T100: 99.3 | U100: 94.9 | V100: 94.5 | W100: 94.3 | X100: 95.1 | Y100: 95.6 | Z100: 94.2 | AA100: 95.9 | AB100: 95.6 | AC100: 95.4 | AD100: 95.5 | AE100: 95.2 | AF100: 95.6 | AG100: 95 | AH100: 95.6 | AI100: 95.3 | AJ100: 95.6 | AK100: 95.2 | AL100: 95.3 | AM100: 99.1 | AN100: 99.7 | AO100: 100 | AP100: 100.4 | AQ100: 99.9 | AR100: 99.8 | AS100: 99.9 | AT100: 100.1 | AU100: 100.1 | AV100: 99.7 | AW100: 99.8 | AX100: 99.7 | AY100: 100.2 | AZ100: 99.6 | BA100: 99.1 | BB100: 98.9 | BC100: 99.1 | BD100: 99.4 | BE100: 99 | BF100: 99 | BG100: 99.1 | BH100: 99.4 | BI100: 99.1 | BJ100: 99 | BK100: 99.4 | BL100: 99 | BM100: 98.9 | BN100: 98.9 | BO100: 98.7 | BP100: 98.7 | BQ100: 99.3 | BR100: 99.2 | BS100: 99 | BT100: 99.4 | BU100: 99 | BV100: 99.3 | BW100: 99.9
A101: 100 | B101: 1国内 | C101: PR01'PRCG20_2200150073 | D101: 国内類別1/_飲食料品 | E101: 品目/____コーヒー | F101: 99.5 | G101: 99.2 | H101: 98.1 | I101: 99.5 | J101: 101.4 | K101: 100.5 | L101: 100.3 | M101: 99 | N101: 101.9 | O101: 100.9 | P101: 99.7 | Q101: 100.1 | R101: 102 | S101: 100.3 | T101: 100.5 | U101: 97.9 | V101: 101 | W101: 100 | X101: 100.8 | Y101: 101 | Z101: 103.8 | AA101: 105.5 | AB101: 107.7 | AC101: 109.7 | AD101: 118.7 | AE101: 120.4 | AF101: 122 | AG101: 122 | AH101: 123.9 | AI101: 121.3 | AJ101: 123.7 | AK101: 124.6 | AL101: 126.8 | AM101: 126.1 | AN101: 125.2 | AO101: 124.9 | AP101: 140.1 | AQ101: 142 | AR101: 139.6 | AS101: 138.7 | AT101: 140.9 | AU101: 140.7 | AV101: 138.9 | AW101: 137 | AX101: 138.8 | AY101: 139.9 | AZ101: 140.3 | BA101: 142.2 | BB101: 141.1 | BC101: 136.5 | BD101: 138.8 | BE101: 139.1 | BF101: 137 | BG101: 138.2 | BH101: 136.3 | BI101: 138.7 | BJ101: 142.3 | BK101: 142.5 | BL101: 142.4 | BM101: 141.6 | BN101: 146.1 | BO101: 146.8 | BP101: 152.9 | BQ101: 157.5 | BR101: 160.8 | BS101: 163.4 | BT101: 182.7 | BU101: 184.9 | BV101: 187 | BW101: 188.3
A102: 101 | B102: 1国内 | C102: PR01'PRCG20_2200140025 | D102: 国内類別1/_飲食料品 | E102: 商品群/___清涼飲料 | F102: 99.9 | G102: 100.1 | H102: 100.4 | I102: 100.1 | J102: 99.5 | K102: 100.3 | L102: 100.2 | M102: 100 | N102: 99.8 | O102: 99.6 | P102: 99.7 | Q102: 100.4 | R102: 99.8 | S102: 100.4 | T102: 100 | U102: 100.3 | V102: 100 | W102: 100.1 | X102: 100.3 | Y102: 100.4 | Z102: 100.5 | AA102: 100 | AB102: 100.1 | AC102: 100.2 | AD102: 100.1 | AE102: 99.7 | AF102: 100 | AG102: 101.1 | AH102: 101.3 | AI102: 101 | AJ102: 100.6 | AK102: 101.2 | AL102: 101.5 | AM102: 104.4 | AN102: 105.8 | AO102: 106.8 | AP102: 105.5 | AQ102: 107.4 | AR102: 107.7 | AS102: 109.6 | AT102: 111.2 | AU102: 111.3 | AV102: 111.8 | AW102: 111.4 | AX102: 112.6 | AY102: 113.6 | AZ102: 114 | BA102: 114.1 | BB102: 111 | BC102: 111.7 | BD102: 111.9 | BE102: 113.5 | BF102: 112.9 | BG102: 113 | BH102: 111.9 | BI102: 111.6 | BJ102: 112.2 | BK102: 113.8 | BL102: 114.9 | BM102: 115.8 | BN102: 117 | BO102: 116.7 | BP102: 116.3 | BQ102: 116.5 | BR102: 118.1 | BS102: 118.1 | BT102: 118 | BU102: 117.8 | BV102: 118 | BW102: 121.2
A103: 102 | B103: 1国内 | C103: PR01'PRCG20_2200150074 | D103: 国内類別1/_飲食料品 | E103: 品目/____炭酸飲料 | F103: 98.9 | G103: 99.8 | H103: 99.2 | I103: 99.8 | J103: 100.7 | K103: 100.2 | L103: 99.9 | M103: 100 | N103: 100.5 | O103: 100.7 | P103: 100.4 | Q103: 99.8 | R103: 99.8 | S103: 100.6 | T103: 100.3 | U103: 100.4 | V103: 100.4 | W103: 100.1 | X103: 99 | Y103: 99.7 | Z103: 100.4 | AA103: 100.3 | AB103: 99.7 | AC103: 98.3 | AD103: 99.2 | AE103: 99.5 | AF103: 99.9 | AG103: 100 | AH103: 98.7 | AI103: 99.2 | AJ103: 97.7 | AK103: 98.3 | AL103: 99.1 | AM103: 104.3 | AN103: 107.2 | AO103: 105.8 | AP103: 107.8 | AQ103: 108.8 | AR103: 109.2 | AS103: 110.1 | AT103: 110.2 | AU103: 110.1 | AV103: 110.3 | AW103: 110.2 | AX103: 110.4 | AY103: 111.2 | AZ103: 112.2 | BA103: 109.8 | BB103: 110.9 | BC103: 112.1 | BD103: 111.7 | BE103: 116.3 | BF103: 113.5 | BG103: 114 | BH103: 113.3 | BI103: 113.4 | BJ103: 113.8 | BK103: 116.8 | BL103: 120.3 | BM103: 120.3 | BN103: 121.5 | BO103: 121.6 | BP103: 121.2 | BQ103: 120.8 | BR103: 120.6 | BS103: 120.8 | BT103: 119.7 | BU103: 119.4 | BV103: 119.7 | BW103: 124.6
A104: 103 | B104: 1国内 | C104: PR01'PRCG20_2200150075 | D104: 国内類別1/_飲食料品 | E104: 品目/____ジュース | F104: 100.8 | G104: 100.7 | H104: 100.8 | I104: 100.1 | J104: 100.2 | K104: 100.1 | L104: 100.3 | M104: 100.4 | N104: 98.4 | O104: 97.9 | P104: 99.7 | Q104: 100.6 | R104: 99.8 | S104: 100.3 | T104: 99.4 | U104: 100.1 | V104: 99.9 | W104: 100.4 | X104: 100.3 | Y104: 99.8 | Z104: 99.7 | AA104: 99.6 | AB104: 100.4 | AC104: 100.2 | AD104: 100 | AE104: 99.8 | AF104: 99.5 | AG104: 102.9 | AH104: 102.8 | AI104: 102.5 | AJ104: 102.5 | AK104: 102.5 | AL104: 102.5 | AM104: 103.6 | AN104: 105.2 | AO104: 105.4 | AP104: 105.7 | AQ104: 109.2 | AR104: 110 | AS104: 117 | AT104: 117 | AU104: 117.8 | AV104: 117.7 | AW104: 117.8 | AX104: 118 | AY104: 117.3 | AZ104: 118 | BA104: 118.4 | BB104: 118.2 | BC104: 119.6 | BD104: 120.1 | BE104: 123.1 | BF104: 126.7 | BG104: 124.4 | BH104: 124.7 | BI104: 124.1 | BJ104: 124.4 | BK104: 126.4 | BL104: 128 | BM104: 127.5 | BN104: 127.9 | BO104: 128.4 | BP104: 128.7 | BQ104: 128.4 | BR104: 139.4 | BS104: 139 | BT104: 139 | BU104: 138.8 | BV104: 139 | BW104: 142.1
A105: 104 | B105: 1国内 | C105: PR01'PRCG20_2200150076 | D105: 国内類別1/_飲食料品 | E105: 品目/____コーヒー飲料 | F105: 100.1 | G105: 100.7 | H105: 101.2 | I105: 100 | J105: 96.5 | K105: 99.8 | L105: 100.2 | M105: 100.4 | N105: 100 | O105: 100.2 | P105: 99.3 | Q105: 101.5 | R105: 100.1 | S105: 100 | T105: 99.4 | U105: 99.5 | V105: 99.2 | W105: 99.3 | X105: 101.8 | Y105: 101.8 | Z105: 101.7 | AA105: 97.9 | AB105: 99.8 | AC105: 100 | AD105: 100.3 | AE105: 99.4 | AF105: 98.7 | AG105: 103.1 | AH105: 102.7 | AI105: 102.4 | AJ105: 100.9 | AK105: 102.2 | AL105: 102.7 | AM105: 100.4 | AN105: 102.3 | AO105: 104.8 | AP105: 101.4 | AQ105: 104.5 | AR105: 104.1 | AS105: 102.6 | AT105: 112.7 | AU105: 114.7 | AV105: 115.5 | AW105: 115.5 | AX105: 116 | AY105: 115.2 | AZ105: 115.6 | BA105: 117.6 | BB105: 109.7 | BC105: 110.3 | BD105: 111.8 | BE105: 115.8 | BF105: 113 | BG105: 116.7 | BH105: 113.8 | BI105: 111.1 | BJ105: 113.8 | BK105: 113.7 | BL105: 113.4 | BM105: 113.1 | BN105: 116.9 | BO105: 114.1 | BP105: 114.5 | BQ105: 114.6 | BR105: 114.5 | BS105: 114.4 | BT105: 114.4 | BU105: 114.4 | BV105: 114.4 | BW105: 118.3
A106: 105 | B106: 1国内 | C106: PR01'PRCG20_2200150077 | D106: 国内類別1/_飲食料品 | E106: 品目/____茶飲料 | F106: 99.8 | G106: 99.7 | H106: 101 | I106: 99.8 | J106: 99.4 | K106: 99.7 | L106: 99.6 | M106: 100.2 | N106: 99.9 | O106: 100.2 | P106: 99.6 | Q106: 101.1 | R106: 100.2 | S106: 100.3 | T106: 99.4 | U106: 100.4 | V106: 99.8 | W106: 100 | X106: 100.5 | Y106: 100.4 | Z106: 99.9 | AA106: 99.8 | AB106: 99.9 | AC106: 100.7 | AD106: 100.1 | AE106: 99.5 | AF106: 100.4 | AG106: 100.3 | AH106: 101.1 | AI106: 100.1 | AJ106: 100.5 | AK106: 100.9 | AL106: 100.6 | AM106: 103.9 | AN106: 104.6 | AO106: 105.4 | AP106: 102.5 | AQ106: 105.4 | AR106: 106.3 | AS106: 107.5 | AT106: 107.3 | AU106: 106.1 | AV106: 107.6 | AW106: 106.1 | AX106: 107.8 | AY106: 110.5 | AZ106: 110.4 | BA106: 110.4 | BB106: 105.5 | BC106: 106.5 | BD106: 106.9 | BE106: 105.4 | BF106: 104.8 | BG106: 104.1 | BH106: 103 | BI106: 102.8 | BJ106: 103.7 | BK106: 104.8 | BL106: 105.4 | BM106: 106.4 | BN106: 108.4 | BO106: 107.9 | BP106: 107.4 | BQ106: 107.7 | BR106: 108 | BS106: 107.9 | BT106: 108.3 | BU106: 107.3 | BV106: 107.5 | BW106: 109.8
A107: 106 | B107: 1国内 | C107: PR01'PRCG20_2200150078 | D107: 国内類別1/_飲食料品 | E107: 品目/____ミネラルウォーター | F107: 100.5 | G107: 100.2 | H107: 100.9 | I107: 101.5 | J107: 101.2 | K107: 101 | L107: 100.6 | M107: 100.5 | N107: 100.4 | O107: 98.1 | P107: 98.3 | Q107: 96.9 | R107: 102 | S107: 101.7 | T107: 101.6 | U107: 100.8 | V107: 100.3 | W107: 101.3 | X107: 100.7 | Y107: 100.4 | Z107: 100.9 | AA107: 102.9 | AB107: 101.8 | AC107: 102.1 | AD107: 102.2 | AE107: 99.3 | AF107: 99.7 | AG107: 101 | AH107: 102.5 | AI107: 101.7 | AJ107: 101.2 | AK107: 101.5 | AL107: 104.8 | AM107: 114.2 | AN107: 115.4 | AO107: 119.5 | AP107: 115.2 | AQ107: 115 | AR107: 114.4 | AS107: 115.8 | AT107: 116.7 | AU107: 117.4 | AV107: 118.1 | AW107: 117.9 | AX107: 120.8 | AY107: 125.7 | AZ107: 124 | BA107: 124.1 | BB107: 116.2 | BC107: 115.9 | BD107: 115.4 | BE107: 113.5 | BF107: 113.8 | BG107: 115.3 | BH107: 115.4 | BI107: 116 | BJ107: 114.7 | BK107: 117.8 | BL107: 118.5 | BM107: 122.9 | BN107: 121.5 | BO107: 122.2 | BP107: 121.7 | BQ107: 121.7 | BR107: 121.5 | BS107: 121.7 | BT107: 122 | BU107: 122 | BV107: 122 | BW107: 127.3
A108: 107 | B108: 1国内 | C108: PR01'PRCG20_2200150079 | D108: 国内類別1/_飲食料品 | E108: 品目/____スポーツドリンク | F108: 99.4 | G108: 99.7 | H108: 98.9 | I108: 99.9 | J108: 100 | K108: 102.3 | L108: 102 | M108: 98.6 | N108: 99.9 | O108: 98.8 | P108: 100 | Q108: 100.5 | R108: 97 | S108: 100.7 | T108: 101.2 | U108: 101.4 | V108: 100.3 | W108: 99.9 | X108: 99.8 | Y108: 100.3 | Z108: 100.9 | AA108: 101.1 | AB108: 100.1 | AC108: 100.7 | AD108: 99.5 | AE108: 100.9 | AF108: 101.2 | AG108: 100 | AH108: 100.3 | AI108: 100.6 | AJ108: 100.2 | AK108: 101.7 | AL108: 101.1 | AM108: 104.2 | AN108: 105.5 | AO108: 107.5 | AP108: 106.8 | AQ108: 107 | AR108: 107.3 | AS108: 108.8 | AT108: 109.2 | AU108: 108.6 | AV108: 108.3 | AW108: 108.4 | AX108: 110.9 | AY108: 111.2 | AZ108: 112.6 | BA108: 113.2 | BB108: 112.2 | BC108: 112.4 | BD108: 111.5 | BE108: 114.3 | BF108: 113.5 | BG108: 112.6 | BH108: 109.8 | BI108: 111.3 | BJ108: 111.8 | BK108: 114.1 | BL108: 115.6 | BM108: 118.3 | BN108: 117.8 | BO108: 118.3 | BP108: 116.9 | BQ108: 116.8 | BR108: 116.5 | BS108: 116 | BT108: 115.3 | BU108: 116.6 | BV108: 117.3 | BW108: 119.3
A109: 108 | B109: 1国内 | C109: PR01'PRCG20_2200150080 | D109: 国内類別1/_飲食料品 | E109: 品目/____豆乳飲料 | F109: 99.5 | G109: 99.7 | H109: 100.2 | I109: 100.2 | J109: 100 | K109: 100.4 | L109: 99.6 | M109: 99.5 | N109: 99.7 | O109: 100.6 | P109: 100.1 | Q109: 100.6 | R109: 100.4 | S109: 100.5 | T109: 101.1 | U109: 100.4 | V109: 100.8 | W109: 100.8 | X109: 100.4 | Y109: 100.7 | Z109: 100.2 | AA109: 100.6 | AB109: 101.2 | AC109: 100.2 | AD109: 101.7 | AE109: 101 | AF109: 101.4 | AG109: 102.4 | AH109: 102.8 | AI109: 104.9 | AJ109: 105.7 | AK109: 105.3 | AL109: 105.7 | AM109: 106 | AN109: 106.1 | AO109: 105.9 | AP109: 106.1 | AQ109: 105.5 | AR109: 105.9 | AS109: 112.9 | AT109: 114.2 | AU109: 113.8 | AV109: 113.1 | AW109: 114.5 | AX109: 113.7 | AY109: 112.3 | AZ109: 115.4 | BA109: 115.6 | BB109: 116.8 | BC109: 116.2 | BD109: 116.2 | BE109: 116 | BF109: 116.4 | BG109: 116.4 | BH109: 116.3 | BI109: 115.8 | BJ109: 114.6 | BK109: 112.9 | BL109: 115 | BM109: 115.8 | BN109: 115.3 | BO109: 115.7 | BP109: 115 | BQ109: 114.4 | BR109: 112.9 | BS109: 113.8 | BT109: 115.8 | BU109: 116.2 | BV109: 115.5 | BW109: 116.5
A110: 109 | B110: 1国内 | C110: PR01'PRCG20_2200150081 | D110: 国内類別1/_飲食料品 | E110: 品目/____ノンアルコール飲料 | F110: 100.1 | G110: 100.1 | H110: 100.1 | I110: 100.1 | J110: 100.1 | K110: 100.1 | L110: 100.1 | M110: 99.9 | N110: 99.9 | O110: 99.9 | P110: 99.9 | Q110: 99.9 | R110: 99.9 | S110: 99.9 | T110: 99.9 | U110: 99.9 | V110: 99.9 | W110: 99.9 | X110: 99.9 | Y110: 99.9 | Z110: 99.9 | AA110: 99.9 | AB110: 99.9 | AC110: 99.9 | AD110: 99.9 | AE110: 99.9 | AF110: 99.9 | AG110: 99.9 | AH110: 99.9 | AI110: 99.9 | AJ110: 99.9 | AK110: 100.1 | AL110: 100.1 | AM110: 105.2 | AN110: 105.2 | AO110: 105.2 | AP110: 107 | AQ110: 107 | AR110: 107 | AS110: 107 | AT110: 107 | AU110: 107 | AV110: 107 | AW110: 107 | AX110: 107 | AY110: 107 | AZ110: 107 | BA110: 107 | BB110: 107 | BC110: 107 | BD110: 107 | BE110: 107 | BF110: 107 | BG110: 107 | BH110: 107 | BI110: 107 | BJ110: 107 | BK110: 107 | BL110: 107 | BM110: 107 | BN110: 107 | BO110: 107 | BP110: 107 | BQ110: 114.4 | BR110: 114.4 | BS110: 114.4 | BT110: 114.4 | BU110: 114.9 | BV110: 114.9 | BW110: 114.9
A111: 110 | B111: 1国内 | C111: PR01'PRCG20_2200140026 | D111: 国内類別1/_飲食料品 | E111: 商品群/___製氷 | F111: 100.3 | G111: 100.4 | H111: 100.3 | I111: 100.4 | J111: 99.9 | K111: 99.9 | L111: 99.5 | M111: 99.8 | N111: 99.9 | O111: 99.9 | P111: 99.9 | Q111: 99.9 | R111: 99.9 | S111: 100 | T111: 99.9 | U111: 99.6 | V111: 100.2 | W111: 99.8 | X111: 99.8 | Y111: 99.7 | Z111: 99.7 | AA111: 99.8 | AB111: 99.7 | AC111: 99.7 | AD111: 99.7 | AE111: 99.6 | AF111: 99.7 | AG111: 99.7 | AH111: 99.7 | AI111: 99.6 | AJ111: 100 | AK111: 99.9 | AL111: 99.8 | AM111: 101.1 | AN111: 100.8 | AO111: 101 | AP111: 100.7 | AQ111: 100.6 | AR111: 101.1 | AS111: 102 | AT111: 102.5 | AU111: 103.4 | AV111: 105.1 | AW111: 106.5 | AX111: 106.3 | AY111: 105.9 | AZ111: 105.9 | BA111: 105.3 | BB111: 105.3 | BC111: 105.3 | BD111: 105.6 | BE111: 105.9 | BF111: 105.9 | BG111: 106 | BH111: 108.7 | BI111: 108.8 | BJ111: 111.4 | BK111: 111.3 | BL111: 109.3 | BM111: 112.7 | BN111: 113.1 | BO111: 112.6 | BP111: 113.2 | BQ111: 113.6 | BR111: 114.2 | BS111: 115 | BT111: 115.1 | BU111: 115 | BV111: 115.2 | BW111: 115.1
A112: 111 | B112: 1国内 | C112: PR01'PRCG20_2200150082 | D112: 国内類別1/_飲食料品 | E112: 品目/____人造氷 | F112: 100.3 | G112: 100.4 | H112: 100.3 | I112: 100.4 | J112: 99.9 | K112: 99.9 | L112: 99.5 | M112: 99.8 | N112: 99.9 | O112: 99.9 | P112: 99.9 | Q112: 99.9 | R112: 99.9 | S112: 100 | T112: 99.9 | U112: 99.6 | V112: 100.2 | W112: 99.8 | X112: 99.8 | Y112: 99.7 | Z112: 99.7 | AA112: 99.8 | AB112: 99.7 | AC112: 99.7 | AD112: 99.7 | AE112: 99.6 | AF112: 99.7 | AG112: 99.7 | AH112: 99.7 | AI112: 99.6 | AJ112: 100 | AK112: 99.9 | AL112: 99.8 | AM112: 101.1 | AN112: 100.8 | AO112: 101 | AP112: 100.7 | AQ112: 100.6 | AR112: 101.1 | AS112: 102 | AT112: 102.5 | AU112: 103.4 | AV112: 105.1 | AW112: 106.5 | AX112: 106.3 | AY112: 105.9 | AZ112: 105.9 | BA112: 105.3 | BB112: 105.3 | BC112: 105.3 | BD112: 105.6 | BE112: 105.9 | BF112: 105.9 | BG112: 106 | BH112: 108.7 | BI112: 108.8 | BJ112: 111.4 | BK112: 111.3 | BL112: 109.3 | BM112: 112.7 | BN112: 113.1 | BO112: 112.6 | BP112: 113.2 | BQ112: 113.6 | BR112: 114.2 | BS112: 115 | BT112: 115.1 | BU112: 115 | BV112: 115.2 | BW112: 115.1
A113: 112 | B113: 1国内 | C113: PR01'PRCG20_2200130003 | D113: 国内類別1/_飲食料品 | E113: 小類別/__飼料・有機質肥料 | F113: 101.7 | G113: 102.3 | H113: 101.8 | I113: 100.2 | J113: 100.1 | K113: 100 | L113: 97.4 | M113: 97.4 | N113: 97.3 | O113: 100.5 | P113: 100.6 | Q113: 100.7 | R113: 108.6 | S113: 109.2 | T113: 109.3 | U113: 122.4 | V113: 121.2 | W113: 118.7 | X113: 133.7 | Y113: 133.5 | Z113: 131.8 | AA113: 129.5 | AB113: 130.4 | AC113: 128.8 | AD113: 135.3 | AE113: 135.5 | AF113: 139.2 | AG113: 145.7 | AH113: 145.7 | AI113: 145.5 | AJ113: 172.8 | AK113: 172.3 | AL113: 172.6 | AM113: 174.2 | AN113: 172.6 | AO113: 173.9 | AP113: 172.7 | AQ113: 173.3 | AR113: 174.7 | AS113: 168.4 | AT113: 168.6 | AU113: 168.9 | AV113: 164.1 | AW113: 166 | AX113: 165.3 | AY113: 158.8 | AZ113: 159 | BA113: 159 | BB113: 162.9 | BC113: 163.7 | BD113: 159.9 | BE113: 154.2 | BF113: 153 | BG113: 151.7 | BH113: 158.3 | BI113: 158.3 | BJ113: 157.5 | BK113: 147.8 | BL113: 148.1 | BM113: 145.8 | BN113: 153.8 | BO113: 154.6 | BP113: 153 | BQ113: 152.5 | BR113: 152.5 | BS113: 151.9 | BT113: 153.2 | BU113: 153.3 | BV113: 152.8 | BW113: 152.3
A114: 113 | B114: 1国内 | C114: PR01'PRCG20_2200140027 | D114: 国内類別1/_飲食料品 | E114: 商品群/___飼料 | F114: 101.7 | G114: 102.3 | H114: 101.8 | I114: 100.2 | J114: 100.1 | K114: 100 | L114: 97.4 | M114: 97.4 | N114: 97.3 | O114: 100.5 | P114: 100.6 | Q114: 100.7 | R114: 108.6 | S114: 109.2 | T114: 109.3 | U114: 122.4 | V114: 121.2 | W114: 118.7 | X114: 133.7 | Y114: 133.5 | Z114: 131.8 | AA114: 129.5 | AB114: 130.4 | AC114: 128.8 | AD114: 135.3 | AE114: 135.5 | AF114: 139.2 | AG114: 145.7 | AH114: 145.7 | AI114: 145.5 | AJ114: 172.8 | AK114: 172.3 | AL114: 172.6 | AM114: 174.2 | AN114: 172.6 | AO114: 173.9 | AP114: 172.7 | AQ114: 173.3 | AR114: 174.7 | AS114: 168.4 | AT114: 168.6 | AU114: 168.9 | AV114: 164.1 | AW114: 166 | AX114: 165.3 | AY114: 158.8 | AZ114: 159 | BA114: 159 | BB114: 162.9 | BC114: 163.7 | BD114: 159.9 | BE114: 154.2 | BF114: 153 | BG114: 151.7 | BH114: 158.3 | BI114: 158.3 | BJ114: 157.5 | BK114: 147.8 | BL114: 148.1 | BM114: 145.8 | BN114: 153.8 | BO114: 154.6 | BP114: 153 | BQ114: 152.5 | BR114: 152.5 | BS114: 151.9 | BT114: 153.2 | BU114: 153.3 | BV114: 152.8 | BW114: 152.3
A115: 114 | B115: 1国内 | C115: PR01'PRCG20_2200150083 | D115: 国内類別1/_飲食料品 | E115: 品目/____配合飼料 | F115: 102.3 | G115: 102.4 | H115: 101.8 | I115: 100.2 | J115: 100.3 | K115: 100.1 | L115: 97.1 | M115: 97.2 | N115: 96.9 | O115: 100.4 | P115: 100.7 | Q115: 100.6 | R115: 110.2 | S115: 110.2 | T115: 110.3 | U115: 124.6 | V115: 124.1 | W115: 120.7 | X115: 137.1 | Y115: 136.9 | Z115: 135 | AA115: 132.7 | AB115: 132.7 | AC115: 131.7 | AD115: 139.2 | AE115: 139.1 | AF115: 142.9 | AG115: 150.2 | AH115: 150.6 | AI115: 150.1 | AJ115: 180.2 | AK115: 179.5 | AL115: 179 | AM115: 180.4 | AN115: 178.7 | AO115: 180.1 | AP115: 178.9 | AQ115: 179.1 | AR115: 179.3 | AS115: 172.7 | AT115: 173.2 | AU115: 172.9 | AV115: 167.7 | AW115: 169.5 | AX115: 168.8 | AY115: 161.7 | AZ115: 161.9 | BA115: 161.9 | BB115: 166.7 | BC115: 167.1 | BD115: 162.8 | BE115: 156.5 | BF115: 155.6 | BG115: 154.5 | BH115: 161.3 | BI115: 161.1 | BJ115: 160.4 | BK115: 149.7 | BL115: 150 | BM115: 147.3 | BN115: 156.7 | BO115: 156.9 | BP115: 155.3 | BQ115: 154.8 | BR115: 155.1 | BS115: 154.3 | BT115: 155.7 | BU115: 155.7 | BV115: 155.1 | BW115: 154.6
A116: 115 | B116: 1国内 | C116: PR01'PRCG20_2200150084 | D116: 国内類別1/_飲食料品 | E116: 品目/____ペットフード | F116: 96.1 | G116: 101.7 | H116: 102 | I116: 99.7 | J116: 98.2 | K116: 98.7 | L116: 101.1 | M116: 99.1 | N116: 101.1 | O116: 101.5 | P116: 99.2 | Q116: 101.6 | R116: 93.2 | S116: 99.9 | T116: 99.9 | U116: 101.2 | V116: 93 | W116: 98.9 | X116: 100 | Y116: 100.3 | Z116: 100.6 | AA116: 98.4 | AB116: 107.9 | AC116: 101.3 | AD116: 97 | AE116: 100.6 | AF116: 102.9 | AG116: 101.5 | AH116: 98.1 | AI116: 100.4 | AJ116: 100.3 | AK116: 101.6 | AL116: 109.9 | AM116: 113.2 | AN116: 112 | AO116: 113.3 | AP116: 111.9 | AQ116: 115.8 | AR116: 129.6 | AS116: 126.6 | AT116: 122.8 | AU116: 129.6 | AV116: 128.9 | AW116: 131.3 | AX116: 130.6 | AY116: 131 | AZ116: 130.9 | BA116: 131.3 | BB116: 125.8 | BC116: 131 | BD116: 131 | BE116: 131.4 | BF116: 127 | BG116: 125 | BH116: 129 | BI116: 130.8 | BJ116: 129.4 | BK116: 129.5 | BL116: 129.2 | BM116: 130.9 | BN116: 125.6 | BO116: 131.5 | BP116: 129.7 | BQ116: 129.8 | BR116: 127 | BS116: 128.5 | BT116: 128.4 | BU116: 128.9 | BV116: 129.9 | BW116: 129.9
A117: 116 | B117: 1国内 | C117: PR01'PRCG20_2200130004 | D117: 国内類別1/_飲食料品 | E117: 小類別/__たばこ | F117: 97.5 | G117: 97.5 | H117: 97.5 | I117: 97.5 | J117: 97.5 | K117: 97.5 | L117: 97.5 | M117: 97.5 | N117: 97.5 | O117: 107.5 | P117: 107.5 | Q117: 107.5 | R117: 107.5 | S117: 107.5 | T117: 107.5 | U117: 107.5 | V117: 107.5 | W117: 107.5 | X117: 107.5 | Y117: 107.5 | Z117: 107.5 | AA117: 115.5 | AB117: 115.5 | AC117: 115.5 | AD117: 115.5 | AE117: 115.5 | AF117: 115.5 | AG117: 115.5 | AH117: 115.5 | AI117: 115.5 | AJ117: 115.5 | AK117: 115.5 | AL117: 115.5 | AM117: 115.5 | AN117: 115.5 | AO117: 115.5 | AP117: 115.5 | AQ117: 115.5 | AR117: 115.5 | AS117: 115.5 | AT117: 115.5 | AU117: 115.5 | AV117: 115.5 | AW117: 115.5 | AX117: 115.5 | AY117: 115.5 | AZ117: 115.5 | BA117: 115.5 | BB117: 115.5 | BC117: 115.5 | BD117: 115.5 | BE117: 115.5 | BF117: 115.5 | BG117: 115.5 | BH117: 115.5 | BI117: 115.5 | BJ117: 115.5 | BK117: 115.5 | BL117: 115.5 | BM117: 115.5 | BN117: 115.5 | BO117: 115.5 | BP117: 115.5 | BQ117: 115.5 | BR117: 116.3 | BS117: 116.3 | BT117: 116.3 | BU117: 116.3 | BV117: 116.7 | BW117: 116.7
A118: 117 | B118: 1国内 | C118: PR01'PRCG20_2200140028 | D118: 国内類別1/_飲食料品 | E118: 商品群/___たばこ | F118: 97.5 | G118: 97.5 | H118: 97.5 | I118: 97.5 | J118: 97.5 | K118: 97.5 | L118: 97.5 | M118: 97.5 | N118: 97.5 | O118: 107.5 | P118: 107.5 | Q118: 107.5 | R118: 107.5 | S118: 107.5 | T118: 107.5 | U118: 107.5 | V118: 107.5 | W118: 107.5 | X118: 107.5 | Y118: 107.5 | Z118: 107.5 | AA118: 115.5 | AB118: 115.5 | AC118: 115.5 | AD118: 115.5 | AE118: 115.5 | AF118: 115.5 | AG118: 115.5 | AH118: 115.5 | AI118: 115.5 | AJ118: 115.5 | AK118: 115.5 | AL118: 115.5 | AM118: 115.5 | AN118: 115.5 | AO118: 115.5 | AP118: 115.5 | AQ118: 115.5 | AR118: 115.5 | AS118: 115.5 | AT118: 115.5 | AU118: 115.5 | AV118: 115.5 | AW118: 115.5 | AX118: 115.5 | AY118: 115.5 | AZ118: 115.5 | BA118: 115.5 | BB118: 115.5 | BC118: 115.5 | BD118: 115.5 | BE118: 115.5 | BF118: 115.5 | BG118: 115.5 | BH118: 115.5 | BI118: 115.5 | BJ118: 115.5 | BK118: 115.5 | BL118: 115.5 | BM118: 115.5 | BN118: 115.5 | BO118: 115.5 | BP118: 115.5 | BQ118: 115.5 | BR118: 116.3 | BS118: 116.3 | BT118: 116.3 | BU118: 116.3 | BV118: 116.7 | BW118: 116.7
A119: 118 | B119: 1国内 | C119: PR01'PRCG20_2200150085 | D119: 国内類別1/_飲食料品 | E119: 品目/____たばこ | F119: 97.5 | G119: 97.5 | H119: 97.5 | I119: 97.5 | J119: 97.5 | K119: 97.5 | L119: 97.5 | M119: 97.5 | N119: 97.5 | O119: 107.5 | P119: 107.5 | Q119: 107.5 | R119: 107.5 | S119: 107.5 | T119: 107.5 | U119: 107.5 | V119: 107.5 | W119: 107.5 | X119: 107.5 | Y119: 107.5 | Z119: 107.5 | AA119: 115.5 | AB119: 115.5 | AC119: 115.5 | AD119: 115.5 | AE119: 115.5 | AF119: 115.5 | AG119: 115.5 | AH119: 115.5 | AI119: 115.5 | AJ119: 115.5 | AK119: 115.5 | AL119: 115.5 | AM119: 115.5 | AN119: 115.5 | AO119: 115.5 | AP119: 115.5 | AQ119: 115.5 | AR119: 115.5 | AS119: 115.5 | AT119: 115.5 | AU119: 115.5 | AV119: 115.5 | AW119: 115.5 | AX119: 115.5 | AY119: 115.5 | AZ119: 115.5 | BA119: 115.5 | BB119: 115.5 | BC119: 115.5 | BD119: 115.5 | BE119: 115.5 | BF119: 115.5 | BG119: 115.5 | BH119: 115.5 | BI119: 115.5 | BJ119: 115.5 | BK119: 115.5 | BL119: 115.5 | BM119: 115.5 | BN119: 115.5 | BO119: 115.5 | BP119: 115.5 | BQ119: 115.5 | BR119: 116.3 | BS119: 116.3 | BT119: 116.3 | BU119: 116.3 | BV119: 116.7 | BW119: 116.7
A120: 119 | B120: 1国内 | C120: PR01'PRCG20_2200220001 | D120: 国内類別2/_繊維製品 | E120: 類別/_繊維製品 | F120: 100.6 | G120: 99.9 | H120: 101.8 | I120: 100.4 | J120: 99.9 | K120: 100.3 | L120: 99 | M120: 98.8 | N120: 99.7 | O120: 99.5 | P120: 100.4 | Q120: 99.7 | R120: 97.6 | S120: 98.5 | T120: 100.1 | U120: 101.6 | V120: 101 | W120: 101 | X120: 99.1 | Y120: 98.8 | Z120: 101 | AA120: 101.7 | AB120: 102.9 | AC120: 102.5 | AD120: 101.2 | AE120: 101.5 | AF120: 103 | AG120: 104 | AH120: 105.5 | AI120: 104.1 | AJ120: 105 | AK120: 105.3 | AL120: 106.1 | AM120: 109.1 | AN120: 108.1 | AO120: 108.2 | AP120: 110.6 | AQ120: 110.7 | AR120: 113.7 | AS120: 115.3 | AT120: 115.1 | AU120: 115.3 | AV120: 114 | AW120: 113.5 | AX120: 115.9 | AY120: 118 | AZ120: 118 | BA120: 116.8 | BB120: 113.8 | BC120: 113.6 | BD120: 116.3 | BE120: 116.1 | BF120: 116.4 | BG120: 114.8 | BH120: 114.3 | BI120: 115.4 | BJ120: 116.7 | BK120: 119.1 | BL120: 118.7 | BM120: 117.8 | BN120: 116.6 | BO120: 116.5 | BP120: 119.5 | BQ120: 119.4 | BR120: 119.4 | BS120: 118.6 | BT120: 117.3 | BU120: 116.8 | BV120: 118.4 | BW120: 120.6
A121: 120 | B121: 1国内 | C121: PR01'PRCG20_2200230001 | D121: 国内類別2/_繊維製品 | E121: 小類別/__繊維工業製品 | F121: 101 | G121: 100.9 | H121: 100.9 | I121: 100.5 | J121: 100.1 | K121: 100 | L121: 99.9 | M121: 100 | N121: 99.4 | O121: 99 | P121: 99.4 | Q121: 98.9 | R121: 99.1 | S121: 99.4 | T121: 100.2 | U121: 100.1 | V121: 100.6 | W121: 101 | X121: 100.9 | Y121: 101.1 | Z121: 100.9 | AA121: 102.1 | AB121: 102.5 | AC121: 102.4 | AD121: 103.8 | AE121: 106.5 | AF121: 106.8 | AG121: 108.5 | AH121: 110.1 | AI121: 112.4 | AJ121: 114.1 | AK121: 114.3 | AL121: 114.6 | AM121: 116.9 | AN121: 116.7 | AO121: 116.3 | AP121: 117.5 | AQ121: 117.2 | AR121: 118.8 | AS121: 118.3 | AT121: 119.4 | AU121: 118.9 | AV121: 119.3 | AW121: 119 | AX121: 119 | AY121: 120.3 | AZ121: 120.4 | BA121: 120.6 | BB121: 120.5 | BC121: 119.5 | BD121: 120.3 | BE121: 120.7 | BF121: 121.1 | BG121: 120.9 | BH121: 121.5 | BI121: 121.1 | BJ121: 120.6 | BK121: 120.5 | BL121: 120.1 | BM121: 120.3 | BN121: 120.2 | BO121: 120.4 | BP121: 120.3 | BQ121: 120.4 | BR121: 120.4 | BS121: 120.2 | BT121: 120.6 | BU121: 120.8 | BV121: 120.8 | BW121: 121
A122: 121 | B122: 1国内 | C122: PR01'PRCG20_2200240001 | D122: 国内類別2/_繊維製品 | E122: 商品群/___紡績糸 | F122: 102.3 | G122: 102.4 | H122: 102.4 | I122: 101.3 | J122: 100 | K122: 100 | L122: 100 | M122: 100 | N122: 97.8 | O122: 97.8 | P122: 97.8 | Q122: 98 | R122: 98.5 | S122: 98.5 | T122: 101.8 | U122: 101.8 | V122: 101.8 | W122: 104.3 | X122: 104.4 | Y122: 104.6 | Z122: 104.9 | AA122: 107.6 | AB122: 108.5 | AC122: 108.5 | AD122: 113.2 | AE122: 121.3 | AF122: 122.1 | AG122: 127.6 | AH122: 131.7 | AI122: 134 | AJ122: 135.6 | AK122: 136.6 | AL122: 136.5 | AM122: 140.1 | AN122: 139.8 | AO122: 139.8 | AP122: 138.7 | AQ122: 138.7 | AR122: 138.7 | AS122: 137.7 | AT122: 137.7 | AU122: 137.7 | AV122: 138.2 | AW122: 138.2 | AX122: 138.2 | AY122: 138.6 | AZ122: 138.6 | BA122: 138.6 | BB122: 138.6 | BC122: 138.6 | BD122: 138.6 | BE122: 138.6 | BF122: 140 | BG122: 140 | BH122: 140 | BI122: 140 | BJ122: 139.7 | BK122: 139.2 | BL122: 139.2 | BM122: 139 | BN122: 139.2 | BO122: 139.2 | BP122: 139.2 | BQ122: 139.2 | BR122: 139.2 | BS122: 139.2 | BT122: 139.2 | BU122: 139.2 | BV122: 139.2 | BW122: 139.2
A123: 122 | B123: 1国内 | C123: PR01'PRCG20_2200250001 | D123: 国内類別2/_繊維製品 | E123: 品目/____紡績糸 | F123: 102.3 | G123: 102.4 | H123: 102.4 | I123: 101.3 | J123: 100 | K123: 100 | L123: 100 | M123: 100 | N123: 97.8 | O123: 97.8 | P123: 97.8 | Q123: 98 | R123: 98.5 | S123: 98.5 | T123: 101.8 | U123: 101.8 | V123: 101.8 | W123: 104.3 | X123: 104.4 | Y123: 104.6 | Z123: 104.9 | AA123: 107.6 | AB123: 108.5 | AC123: 108.5 | AD123: 113.2 | AE123: 121.3 | AF123: 122.1 | AG123: 127.6 | AH123: 131.7 | AI123: 134 | AJ123: 135.6 | AK123: 136.6 | AL123: 136.5 | AM123: 140.1 | AN123: 139.8 | AO123: 139.8 | AP123: 138.7 | AQ123: 138.7 | AR123: 138.7 | AS123: 137.7 | AT123: 137.7 | AU123: 137.7 | AV123: 138.2 | AW123: 138.2 | AX123: 138.2 | AY123: 138.6 | AZ123: 138.6 | BA123: 138.6 | BB123: 138.6 | BC123: 138.6 | BD123: 138.6 | BE123: 138.6 | BF123: 140 | BG123: 140 | BH123: 140 | BI123: 140 | BJ123: 139.7 | BK123: 139.2 | BL123: 139.2 | BM123: 139 | BN123: 139.2 | BO123: 139.2 | BP123: 139.2 | BQ123: 139.2 | BR123: 139.2 | BS123: 139.2 | BT123: 139.2 | BU123: 139.2 | BV123: 139.2 | BW123: 139.2
A124: 123 | B124: 1国内 | C124: PR01'PRCG20_2200240002 | D124: 国内類別2/_繊維製品 | E124: 商品群/___織物 | F124: 100.9 | G124: 100.3 | H124: 100.3 | I124: 100.3 | J124: 100.3 | K124: 99.8 | L124: 99.8 | M124: 99.8 | N124: 99.8 | O124: 99.8 | P124: 99.8 | Q124: 99.2 | R124: 99.2 | S124: 100.4 | T124: 100.4 | U124: 100.4 | V124: 100.4 | W124: 100.4 | X124: 100.4 | Y124: 100.4 | Z124: 100.4 | AA124: 100.4 | AB124: 100.4 | AC124: 100.4 | AD124: 100.4 | AE124: 101.1 | AF124: 101.2 | AG124: 102.6 | AH124: 103.7 | AI124: 104.4 | AJ124: 105.6 | AK124: 106.2 | AL124: 107.3 | AM124: 109.5 | AN124: 109.9 | AO124: 108.7 | AP124: 111.7 | AQ124: 111.7 | AR124: 112.7 | AS124: 112.5 | AT124: 114.7 | AU124: 115.8 | AV124: 116.6 | AW124: 116.3 | AX124: 116.4 | AY124: 116.2 | AZ124: 117.4 | BA124: 117.3 | BB124: 117.1 | BC124: 118.6 | BD124: 118.6 | BE124: 118.9 | BF124: 118.9 | BG124: 119.1 | BH124: 120.3 | BI124: 120.3 | BJ124: 120.2 | BK124: 120.4 | BL124: 120.4 | BM124: 120.4 | BN124: 120.5 | BO124: 120.5 | BP124: 120.5 | BQ124: 120.7 | BR124: 120.7 | BS124: 119.6 | BT124: 119.2 | BU124: 120.5 | BV124: 120.8 | BW124: 121
A125: 124 | B125: 1国内 | C125: PR01'PRCG20_2200250002 | D125: 国内類別2/_繊維製品 | E125: 品目/____織物 | F125: 100.9 | G125: 100.3 | H125: 100.3 | I125: 100.3 | J125: 100.3 | K125: 99.8 | L125: 99.8 | M125: 99.8 | N125: 99.8 | O125: 99.8 | P125: 99.8 | Q125: 99.2 | R125: 99.2 | S125: 100.4 | T125: 100.4 | U125: 100.4 | V125: 100.4 | W125: 100.4 | X125: 100.4 | Y125: 100.4 | Z125: 100.4 | AA125: 100.4 | AB125: 100.4 | AC125: 100.4 | AD125: 100.4 | AE125: 101.1 | AF125: 101.2 | AG125: 102.6 | AH125: 103.7 | AI125: 104.4 | AJ125: 105.6 | AK125: 106.2 | AL125: 107.3 | AM125: 109.5 | AN125: 109.9 | AO125: 108.7 | AP125: 111.7 | AQ125: 111.7 | AR125: 112.7 | AS125: 112.5 | AT125: 114.7 | AU125: 115.8 | AV125: 116.6 | AW125: 116.3 | AX125: 116.4 | AY125: 116.2 | AZ125: 117.4 | BA125: 117.3 | BB125: 117.1 | BC125: 118.6 | BD125: 118.6 | BE125: 118.9 | BF125: 118.9 | BG125: 119.1 | BH125: 120.3 | BI125: 120.3 | BJ125: 120.2 | BK125: 120.4 | BL125: 120.4 | BM125: 120.4 | BN125: 120.5 | BO125: 120.5 | BP125: 120.5 | BQ125: 120.7 | BR125: 120.7 | BS125: 119.6 | BT125: 119.2 | BU125: 120.5 | BV125: 120.8 | BW125: 121
A126: 125 | B126: 1国内 | C126: PR01'PRCG20_2200240003 | D126: 国内類別2/_繊維製品 | E126: 商品群/___その他の繊維工業製品 | F126: 100.4 | G126: 100.4 | H126: 100.4 | I126: 100.1 | J126: 100.1 | K126: 100.1 | L126: 99.9 | M126: 100 | N126: 100.1 | O126: 99.4 | P126: 100.1 | Q126: 99.2 | R126: 99.4 | S126: 99.4 | T126: 99.3 | U126: 99.2 | V126: 100 | W126: 99.5 | X126: 99.4 | Y126: 99.6 | Z126: 99.1 | AA126: 100 | AB126: 100.3 | AC126: 100.1 | AD126: 100.4 | AE126: 101.2 | AF126: 101.3 | AG126: 101.2 | AH126: 101.7 | AI126: 104.7 | AJ126: 106.5 | AK126: 106.2 | AL126: 106.3 | AM126: 108.1 | AN126: 107.7 | AO126: 107.5 | AP126: 109.1 | AQ126: 108.5 | AR126: 111 | AS126: 110.8 | AT126: 111.9 | AU126: 110.6 | AV126: 110.8 | AW126: 110.4 | AX126: 110.4 | AY126: 112.8 | AZ126: 112.4 | BA126: 112.8 | BB126: 112.7 | BC126: 110.2 | BD126: 111.7 | BE126: 112.4 | BF126: 112.4 | BG126: 111.9 | BH126: 112.7 | BI126: 112 | BJ126: 111.2 | BK126: 111.1 | BL126: 110.4 | BM126: 110.8 | BN126: 110.5 | BO126: 110.9 | BP126: 110.8 | BQ126: 110.9 | BR126: 110.9 | BS126: 110.9 | BT126: 111.7 | BU126: 111.7 | BV126: 111.7 | BW126: 111.9
A127: 126 | B127: 1国内 | C127: PR01'PRCG20_2200250003 | D127: 国内類別2/_繊維製品 | E127: 品目/____フェルト生地・不織布 | F127: 100.4 | G127: 100.4 | H127: 100.4 | I127: 100.1 | J127: 100.1 | K127: 100.1 | L127: 99.9 | M127: 100 | N127: 100.1 | O127: 99.4 | P127: 100.1 | Q127: 99.2 | R127: 99.4 | S127: 99.4 | T127: 99.3 | U127: 99.2 | V127: 100 | W127: 99.5 | X127: 99.4 | Y127: 99.6 | Z127: 99.1 | AA127: 100 | AB127: 100.3 | AC127: 100.1 | AD127: 100.4 | AE127: 101.2 | AF127: 101.3 | AG127: 101.2 | AH127: 101.7 | AI127: 104.7 | AJ127: 106.5 | AK127: 106.2 | AL127: 106.3 | AM127: 108.1 | AN127: 107.7 | AO127: 107.5 | AP127: 109.1 | AQ127: 108.5 | AR127: 111 | AS127: 110.8 | AT127: 111.9 | AU127: 110.6 | AV127: 110.8 | AW127: 110.4 | AX127: 110.4 | AY127: 112.8 | AZ127: 112.4 | BA127: 112.8 | BB127: 112.7 | BC127: 110.2 | BD127: 111.7 | BE127: 112.4 | BF127: 112.4 | BG127: 111.9 | BH127: 112.7 | BI127: 112 | BJ127: 111.2 | BK127: 111.1 | BL127: 110.4 | BM127: 110.8 | BN127: 110.5 | BO127: 110.9 | BP127: 110.8 | BQ127: 110.9 | BR127: 110.9 | BS127: 110.9 | BT127: 111.7 | BU127: 111.7 | BV127: 111.7 | BW127: 111.9
A128: 127 | B128: 1国内 | C128: PR01'PRCG20_2200230002 | D128: 国内類別2/_繊維製品 | E128: 小類別/__衣服・その他繊維既製品 | F128: 100.5 | G128: 99.7 | H128: 102 | I128: 100.4 | J128: 99.9 | K128: 100.4 | L128: 98.8 | M128: 98.6 | N128: 99.7 | O128: 99.6 | P128: 100.6 | Q128: 99.8 | R128: 97.3 | S128: 98.4 | T128: 100.1 | U128: 101.9 | V128: 101 | W128: 101 | X128: 98.7 | Y128: 98.3 | Z128: 101 | AA128: 101.6 | AB128: 103 | AC128: 102.5 | AD128: 100.7 | AE128: 100.6 | AF128: 102.3 | AG128: 103.1 | AH128: 104.6 | AI128: 102.5 | AJ128: 103.3 | AK128: 103.6 | AL128: 104.5 | AM128: 107.7 | AN128: 106.5 | AO128: 106.7 | AP128: 109.2 | AQ128: 109.5 | AR128: 112.8 | AS128: 114.7 | AT128: 114.2 | AU128: 114.6 | AV128: 113 | AW128: 112.5 | AX128: 115.3 | AY128: 117.5 | AZ128: 117.6 | BA128: 116.1 | BB128: 112.5 | BC128: 112.5 | BD128: 115.5 | BE128: 115.3 | BF128: 115.5 | BG128: 113.7 | BH128: 113 | BI128: 114.3 | BJ128: 116 | BK128: 118.8 | BL128: 118.5 | BM128: 117.4 | BN128: 116 | BO128: 115.8 | BP128: 119.3 | BQ128: 119.2 | BR128: 119.2 | BS128: 118.3 | BT128: 116.7 | BU128: 116.1 | BV128: 118 | BW128: 120.5
A129: 128 | B129: 1国内 | C129: PR01'PRCG20_2200240004 | D129: 国内類別2/_繊維製品 | E129: 商品群/___織物製・ニット製衣服 | F129: 100.7 | G129: 99.5 | H129: 102.8 | I129: 100.1 | J129: 99.6 | K129: 100.7 | L129: 98.6 | M129: 98.1 | N129: 99.6 | O129: 99.4 | P129: 101 | Q129: 99.9 | R129: 95.8 | S129: 97.6 | T129: 100.4 | U129: 103 | V129: 101.7 | W129: 101.6 | X129: 98.1 | Y129: 97.7 | Z129: 101.3 | AA129: 102.5 | AB129: 104.3 | AC129: 103.3 | AD129: 100.6 | AE129: 100.3 | AF129: 102.7 | AG129: 103.3 | AH129: 105.5 | AI129: 102 | AJ129: 103 | AK129: 103 | AL129: 103.9 | AM129: 108.1 | AN129: 106 | AO129: 106.5 | AP129: 110.6 | AQ129: 110.6 | AR129: 115.1 | AS129: 117.8 | AT129: 117.6 | AU129: 116.7 | AV129: 114.3 | AW129: 112.7 | AX129: 117.5 | AY129: 120.9 | AZ129: 121 | BA129: 118.7 | BB129: 112.4 | BC129: 112.1 | BD129: 117 | BE129: 116.3 | BF129: 116.8 | BG129: 114.1 | BH129: 112.4 | BI129: 114.8 | BJ129: 117 | BK129: 121.5 | BL129: 120.7 | BM129: 118.5 | BN129: 116.4 | BO129: 115.4 | BP129: 121.2 | BQ129: 120.6 | BR129: 121 | BS129: 119.3 | BT129: 116.7 | BU129: 116.1 | BV129: 118.6 | BW129: 122.8
A130: 129 | B130: 1国内 | C130: PR01'PRCG20_2200250004 | D130: 国内類別2/_繊維製品 | E130: 品目/____外衣・シャツ | F130: 100.9 | G130: 99.7 | H130: 103.1 | I130: 100.1 | J130: 99.5 | K130: 100.7 | L130: 98.3 | M130: 97.8 | N130: 99.4 | O130: 99.3 | P130: 101.1 | Q130: 99.9 | R130: 95.2 | S130: 97.3 | T130: 100.4 | U130: 103.3 | V130: 102 | W130: 101.9 | X130: 97.8 | Y130: 97.4 | Z130: 101.4 | AA130: 102.8 | AB130: 104.7 | AC130: 103.7 | AD130: 100.6 | AE130: 100.3 | AF130: 103 | AG130: 103.5 | AH130: 106 | AI130: 102.1 | AJ130: 103.2 | AK130: 103.2 | AL130: 104.1 | AM130: 108.3 | AN130: 106 | AO130: 106.4 | AP130: 110.8 | AQ130: 110.9 | AR130: 115.9 | AS130: 118.7 | AT130: 118.5 | AU130: 117.5 | AV130: 114.9 | AW130: 113.1 | AX130: 118.3 | AY130: 122.2 | AZ130: 122.2 | BA130: 119.8 | BB130: 112.6 | BC130: 112.2 | BD130: 117.8 | BE130: 116.9 | BF130: 117.5 | BG130: 114.5 | BH130: 112.5 | BI130: 115.3 | BJ130: 117.7 | BK130: 122.7 | BL130: 121.8 | BM130: 119.5 | BN130: 117.1 | BO130: 116.1 | BP130: 122.5 | BQ130: 121.9 | BR130: 122.1 | BS130: 120.3 | BT130: 117.4 | BU130: 116.7 | BV130: 119.5 | BW130: 124.3
A131: 130 | B131: 1国内 | C131: PR01'PRCG20_2200250005 | D131: 国内類別2/_繊維製品 | E131: 品目/____下着類 | F131: 98.2 | G131: 97.6 | H131: 99.8 | I131: 100.2 | J131: 100.2 | K131: 100.2 | L131: 100.9 | M131: 100.9 | N131: 101.3 | O131: 100.3 | P131: 100.6 | Q131: 99.8 | R131: 100.6 | S131: 100.6 | T131: 100.6 | U131: 100.1 | V131: 99 | W131: 99.3 | X131: 100.4 | Y131: 100.1 | Z131: 100.4 | AA131: 100.4 | AB131: 100.1 | AC131: 100.1 | AD131: 100.7 | AE131: 100.4 | AF131: 100.1 | AG131: 100.8 | AH131: 101.1 | AI131: 101.1 | AJ131: 101.1 | AK131: 101.5 | AL131: 102.2 | AM131: 105.4 | AN131: 105.4 | AO131: 107 | AP131: 108.2 | AQ131: 107.9 | AR131: 107.9 | AS131: 110 | AT131: 109.7 | AU131: 110 | AV131: 109.7 | AW131: 109.7 | AX131: 109.7 | AY131: 109.9 | AZ131: 110.2 | BA131: 109.3 | BB131: 110.6 | BC131: 110.6 | BD131: 109.9 | BE131: 110.6 | BF131: 110.6 | BG131: 110.9 | BH131: 110.9 | BI131: 110.6 | BJ131: 110.6 | BK131: 110.6 | BL131: 110.9 | BM131: 109.7 | BN131: 109.8 | BO131: 109.2 | BP131: 109.5 | BQ131: 109.8 | BR131: 110.9 | BS131: 110.3 | BT131: 110.3 | BU131: 110.6 | BV131: 109.9 | BW131: 109.9
A132: 131 | B132: 1国内 | C132: PR01'PRCG20_2200240005 | D132: 国内類別2/_繊維製品 | E132: 商品群/___その他の衣服・身の回り品 | F132: 100.2 | G132: 100.2 | H132: 100.2 | I132: 99.5 | J132: 100 | K132: 100.5 | L132: 100.5 | M132: 100 | N132: 99.5 | O132: 99.5 | P132: 99.9 | Q132: 100 | R132: 100 | S132: 98.6 | T132: 99.9 | U132: 99.3 | V132: 99.6 | W132: 99.4 | X132: 99.9 | Y132: 100 | Z132: 99.1 | AA132: 99.4 | AB132: 100.2 | AC132: 99.7 | AD132: 99.8 | AE132: 99.7 | AF132: 99.2 | AG132: 100.3 | AH132: 99.5 | AI132: 100.3 | AJ132: 99.9 | AK132: 100.3 | AL132: 100.8 | AM132: 101.5 | AN132: 101 | AO132: 100.7 | AP132: 101.7 | AQ132: 102.1 | AR132: 104 | AS132: 103.4 | AT132: 103.1 | AU132: 103.9 | AV132: 103.9 | AW132: 105.2 | AX132: 103.7 | AY132: 104.4 | AZ132: 104.7 | BA132: 103.5 | BB132: 106.8 | BC132: 107 | BD132: 107.5 | BE132: 107.8 | BF132: 108.5 | BG132: 107.5 | BH132: 107.5 | BI132: 106.9 | BJ132: 109.6 | BK132: 109.7 | BL132: 109.6 | BM132: 109.9 | BN132: 110.2 | BO132: 113.3 | BP132: 114.6 | BQ132: 114.5 | BR132: 114.6 | BS132: 114.5 | BT132: 114.5 | BU132: 114.5 | BV132: 116.4 | BW132: 116.4
A133: 132 | B133: 1国内 | C133: PR01'PRCG20_2200250006 | D133: 国内類別2/_繊維製品 | E133: 品目/____繊維製身の回り品 | F133: 100.2 | G133: 100.2 | H133: 100.2 | I133: 99.5 | J133: 100 | K133: 100.5 | L133: 100.5 | M133: 100 | N133: 99.5 | O133: 99.5 | P133: 99.9 | Q133: 100 | R133: 100 | S133: 98.6 | T133: 99.9 | U133: 99.3 | V133: 99.6 | W133: 99.4 | X133: 99.9 | Y133: 100 | Z133: 99.1 | AA133: 99.4 | AB133: 100.2 | AC133: 99.7 | AD133: 99.8 | AE133: 99.7 | AF133: 99.2 | AG133: 100.3 | AH133: 99.5 | AI133: 100.3 | AJ133: 99.9 | AK133: 100.3 | AL133: 100.8 | AM133: 101.5 | AN133: 101 | AO133: 100.7 | AP133: 101.7 | AQ133: 102.1 | AR133: 104 | AS133: 103.4 | AT133: 103.1 | AU133: 103.9 | AV133: 103.9 | AW133: 105.2 | AX133: 103.7 | AY133: 104.4 | AZ133: 104.7 | BA133: 103.5 | BB133: 106.8 | BC133: 107 | BD133: 107.5 | BE133: 107.8 | BF133: 108.5 | BG133: 107.5 | BH133: 107.5 | BI133: 106.9 | BJ133: 109.6 | BK133: 109.7 | BL133: 109.6 | BM133: 109.9 | BN133: 110.2 | BO133: 113.3 | BP133: 114.6 | BQ133: 114.5 | BR133: 114.6 | BS133: 114.5 | BT133: 114.5 | BU133: 114.5 | BV133: 116.4 | BW133: 116.4
A134: 133 | B134: 1国内 | C134: PR01'PRCG20_2200240006 | D134: 国内類別2/_繊維製品 | E134: 商品群/___その他の繊維既製品 | F134: 100.1 | G134: 100 | H134: 100.8 | I134: 101 | J134: 100.4 | K134: 99.8 | L134: 98.9 | M134: 99.3 | N134: 100 | O134: 100 | P134: 99.8 | Q134: 99.7 | R134: 99.8 | S134: 99.9 | T134: 99.7 | U134: 100.1 | V134: 99.9 | W134: 100 | X134: 99.8 | Y134: 99.4 | Z134: 100.8 | AA134: 100.2 | AB134: 100.8 | AC134: 101.3 | AD134: 101.2 | AE134: 101.4 | AF134: 102 | AG134: 103.5 | AH134: 103.8 | AI134: 104 | AJ134: 104.6 | AK134: 105.6 | AL134: 106.5 | AM134: 108.1 | AN134: 108.7 | AO134: 108.3 | AP134: 108.1 | AQ134: 108.7 | AR134: 109.7 | AS134: 110.7 | AT134: 109.6 | AU134: 112.3 | AV134: 112.1 | AW134: 113.4 | AX134: 113.2 | AY134: 113.1 | AZ134: 113.1 | BA134: 113.3 | BB134: 113.9 | BC134: 114.5 | BD134: 114.1 | BE134: 114.6 | BF134: 114.3 | BG134: 114 | BH134: 115.4 | BI134: 114.7 | BJ134: 115.4 | BK134: 115.1 | BL134: 115.6 | BM134: 116.5 | BN134: 116.2 | BO134: 117 | BP134: 116.3 | BQ134: 117.1 | BR134: 116.4 | BS134: 116.9 | BT134: 117.1 | BU134: 116.4 | BV134: 117.1 | BW134: 116.6
A135: 134 | B135: 1国内 | C135: PR01'PRCG20_2200250007 | D135: 国内類別2/_繊維製品 | E135: 品目/____寝具 | F135: 100.7 | G135: 99.2 | H135: 103 | I135: 103 | J135: 103 | K135: 98.6 | L135: 93.9 | M135: 95.4 | N135: 102.1 | O135: 100.9 | P135: 100.3 | Q135: 99.9 | R135: 99.8 | S135: 100.3 | T135: 99 | U135: 102.2 | V135: 104.1 | W135: 98.8 | X135: 99.3 | Y135: 98.4 | Z135: 100.7 | AA135: 99.3 | AB135: 100.2 | AC135: 99.2 | AD135: 98.5 | AE135: 99.2 | AF135: 100.7 | AG135: 106.4 | AH135: 105.7 | AI135: 105.6 | AJ135: 104.3 | AK135: 107.3 | AL135: 112.9 | AM135: 113.8 | AN135: 113.3 | AO135: 112.6 | AP135: 113.8 | AQ135: 113.7 | AR135: 112.2 | AS135: 113 | AT135: 112 | AU135: 112.3 | AV135: 111.7 | AW135: 115.9 | AX135: 116.5 | AY135: 116.6 | AZ135: 117.1 | BA135: 118.8 | BB135: 120 | BC135: 119.3 | BD135: 119.3 | BE135: 119.6 | BF135: 121 | BG135: 119.2 | BH135: 117.2 | BI135: 118 | BJ135: 117.6 | BK135: 117.6 | BL135: 116.4 | BM135: 116.4 | BN135: 118 | BO135: 118.4 | BP135: 117.9 | BQ135: 118.8 | BR135: 117.4 | BS135: 117.1 | BT135: 118.7 | BU135: 117.6 | BV135: 117.7 | BW135: 117.7
A136: 135 | B136: 1国内 | C136: PR01'PRCG20_2200250008 | D136: 国内類別2/_繊維製品 | E136: 品目/____敷物 | F136: 100.9 | G136: 100.9 | H136: 100.9 | I136: 100.9 | J136: 100.4 | K136: 100.4 | L136: 100.6 | M136: 100.4 | N136: 98.7 | O136: 98.7 | P136: 98.7 | Q136: 98.7 | R136: 98.7 | S136: 98.7 | T136: 98.7 | U136: 97.4 | V136: 97.4 | W136: 98.8 | X136: 98.8 | Y136: 98.8 | Z136: 98.8 | AA136: 99.1 | AB136: 99.1 | AC136: 99.5 | AD136: 99.8 | AE136: 99.8 | AF136: 100.8 | AG136: 101.3 | AH136: 101.3 | AI136: 104.7 | AJ136: 104.7 | AK136: 104.7 | AL136: 104.8 | AM136: 107.7 | AN136: 107.7 | AO136: 107.8 | AP136: 107.8 | AQ136: 107.8 | AR136: 107.8 | AS136: 109 | AT136: 107.7 | AU136: 109.3 | AV136: 109.3 | AW136: 109.3 | AX136: 109.3 | AY136: 108.1 | AZ136: 108.1 | BA136: 107.8 | BB136: 109.9 | BC136: 109.9 | BD136: 109.9 | BE136: 109.9 | BF136: 109.6 | BG136: 109.9 | BH136: 110.3 | BI136: 109.9 | BJ136: 109.9 | BK136: 110.8 | BL136: 110.8 | BM136: 110.9 | BN136: 111.9 | BO136: 111.9 | BP136: 112.4 | BQ136: 112.4 | BR136: 112.4 | BS136: 112.5 | BT136: 112.5 | BU136: 112.5 | BV136: 112.1 | BW136: 112.1
A137: 136 | B137: 1国内 | C137: PR01'PRCG20_2200250009 | D137: 国内類別2/_繊維製品 | E137: 品目/____繊維製帆布 | F137: 100 | G137: 100 | H137: 100 | I137: 100 | J137: 100 | K137: 100 | L137: 100 | M137: 100 | N137: 100 | O137: 100 | P137: 100 | Q137: 100 | R137: 100 | S137: 100 | T137: 100 | U137: 100 | V137: 100 | W137: 100 | X137: 100 | Y137: 100 | Z137: 100 | AA137: 100 | AB137: 101.3 | AC137: 103.1 | AD137: 103.1 | AE137: 103.1 | AF137: 103.1 | AG137: 103.1 | AH137: 103.1 | AI137: 103.1 | AJ137: 108.3 | AK137: 108.3 | AL137: 108.3 | AM137: 108.3 | AN137: 108.3 | AO137: 108.3 | AP137: 108.3 | AQ137: 108.3 | AR137: 108.3 | AS137: 108.3 | AT137: 108.3 | AU137: 114.6 | AV137: 114.6 | AW137: 114.6 | AX137: 114.6 | AY137: 114.6 | AZ137: 114.6 | BA137: 114.6 | BB137: 114.6 | BC137: 114.6 | BD137: 114.6 | BE137: 114.6 | BF137: 114.6 | BG137: 114.6 | BH137: 118.1 | BI137: 118.1 | BJ137: 118.1 | BK137: 118.1 | BL137: 122.6 | BM137: 122.6 | BN137: 122.6 | BO137: 122.6 | BP137: 122.6 | BQ137: 122.6 | BR137: 122.6 | BS137: 122.6 | BT137: 122.6 | BU137: 122.6 | BV137: 122.6 | BW137: 122.6
A138: 137 | B138: 1国内 | C138: PR01'PRCG20_2200250010 | D138: 国内類別2/_繊維製品 | E138: 品目/____タオル | F138: 100 | G138: 100 | H138: 100 | I138: 100 | J138: 100 | K138: 100 | L138: 100 | M138: 100 | N138: 100 | O138: 100 | P138: 100 | Q138: 100 | R138: 100 | S138: 100 | T138: 100 | U138: 100 | V138: 100 | W138: 100 | X138: 100 | Y138: 100 | Z138: 100 | AA138: 100 | AB138: 100 | AC138: 100 | AD138: 100.1 | AE138: 100.1 | AF138: 100.1 | AG138: 100.1 | AH138: 100.1 | AI138: 100.1 | AJ138: 100.1 | AK138: 102.3 | AL138: 102.3 | AM138: 102.3 | AN138: 102.3 | AO138: 102.3 | AP138: 104.9 | AQ138: 104.9 | AR138: 114 | AS138: 114 | AT138: 114 | AU138: 118.4 | AV138: 118.4 | AW138: 118.4 | AX138: 118.4 | AY138: 118.4 | AZ138: 118.4 | BA138: 118.4 | BB138: 118.4 | BC138: 118.4 | BD138: 118.4 | BE138: 118.4 | BF138: 118.4 | BG138: 118.4 | BH138: 118.4 | BI138: 118.4 | BJ138: 118.4 | BK138: 118.4 | BL138: 118.4 | BM138: 118.4 | BN138: 118.4 | BO138: 118.4 | BP138: 118.4 | BQ138: 118.4 | BR138: 118.4 | BS138: 118.4 | BT138: 118.4 | BU138: 118.4 | BV138: 118.4 | BW138: 118.4
A139: 138 | B139: 1国内 | C139: PR01'PRCG20_2200250011 | D139: 国内類別2/_繊維製品 | E139: 品目/____衛生材料 | F139: 98.7 | G139: 99.4 | H139: 99.7 | I139: 100.6 | J139: 98.5 | K139: 100 | L139: 100.3 | M139: 100.6 | N139: 100 | O139: 100.8 | P139: 100.8 | Q139: 100.7 | R139: 101 | S139: 100.9 | T139: 101.3 | U139: 101.7 | V139: 99.1 | W139: 103 | X139: 101.6 | Y139: 100.2 | Z139: 105 | AA139: 103.1 | AB139: 103.9 | AC139: 105.3 | AD139: 105 | AE139: 105 | AF139: 105.3 | AG139: 105.9 | AH139: 108.1 | AI139: 104.6 | AJ139: 104.5 | AK139: 105 | AL139: 103.7 | AM139: 106.3 | AN139: 109.4 | AO139: 108.2 | AP139: 104.4 | AQ139: 107.4 | AR139: 108.4 | AS139: 110.6 | AT139: 108.2 | AU139: 111.1 | AV139: 110.5 | AW139: 112.7 | AX139: 110.9 | AY139: 112.3 | AZ139: 111.8 | BA139: 111.4 | BB139: 110.3 | BC139: 113.5 | BD139: 111.8 | BE139: 114.1 | BF139: 111.7 | BG139: 111.5 | BH139: 116.7 | BI139: 113.1 | BJ139: 116.8 | BK139: 114.1 | BL139: 114.3 | BM139: 118.5 | BN139: 114.1 | BO139: 117.5 | BP139: 113.8 | BQ139: 116.9 | BR139: 114.9 | BS139: 117.4 | BT139: 117 | BU139: 114.4 | BV139: 118.1 | BW139: 115.9
A140: 139 | B140: 1国内 | C140: PR01'PRCG20_2200320001 | D140: 国内類別3/_木材・木製品 | E140: 類別/_木材・木製品 | F140: 101.3 | G140: 101.1 | H140: 101.1 | I140: 100.7 | J140: 100.6 | K140: 100 | L140: 99.2 | M140: 98.9 | N140: 98.7 | O140: 99.2 | P140: 99.4 | Q140: 99.7 | R140: 100.6 | S140: 101.3 | T140: 102.5 | U140: 105.5 | V140: 112 | W140: 123.6 | X140: 134.5 | Y140: 145.2 | Z140: 156.9 | AA140: 165.6 | AB140: 166.1 | AC140: 168.1 | AD140: 169.7 | AE140: 170.4 | AF140: 171.2 | AG140: 174.9 | AH140: 177.6 | AI140: 178.3 | AJ140: 177.9 | AK140: 175.5 | AL140: 170.2 | AM140: 166.1 | AN140: 163.5 | AO140: 160.5 | AP140: 154.8 | AQ140: 150.6 | AR140: 145.7 | AS140: 141.7 | AT140: 139.7 | AU140: 138.2 | AV140: 136.7 | AW140: 135.5 | AX140: 135.9 | AY140: 136.1 | AZ140: 136.6 | BA140: 135.7 | BB140: 136.8 | BC140: 136.1 | BD140: 135.7 | BE140: 135.4 | BF140: 135.7 | BG140: 135.4 | BH140: 136.2 | BI140: 135.7 | BJ140: 134.7 | BK140: 133.3 | BL140: 132.3 | BM140: 132.2 | BN140: 132 | BO140: 133.1 | BP140: 133.5 | BQ140: 135.2 | BR140: 135.7 | BS140: 136 | BT140: 136.6 | BU140: 136.8 | BV140: 137.2 | BW140: 137.2
A141: 140 | B141: 1国内 | C141: PR01'PRCG20_2200330001 | D141: 国内類別3/_木材・木製品 | E141: 小類別/__木材・木製品 | F141: 101.3 | G141: 101.1 | H141: 101.1 | I141: 100.7 | J141: 100.6 | K141: 100 | L141: 99.2 | M141: 98.9 | N141: 98.7 | O141: 99.2 | P141: 99.4 | Q141: 99.7 | R141: 100.6 | S141: 101.3 | T141: 102.5 | U141: 105.5 | V141: 112 | W141: 123.6 | X141: 134.5 | Y141: 145.2 | Z141: 156.9 | AA141: 165.6 | AB141: 166.1 | AC141: 168.1 | AD141: 169.7 | AE141: 170.4 | AF141: 171.2 | AG141: 174.9 | AH141: 177.6 | AI141: 178.3 | AJ141: 177.9 | AK141: 175.5 | AL141: 170.2 | AM141: 166.1 | AN141: 163.5 | AO141: 160.5 | AP141: 154.8 | AQ141: 150.6 | AR141: 145.7 | AS141: 141.7 | AT141: 139.7 | AU141: 138.2 | AV141: 136.7 | AW141: 135.5 | AX141: 135.9 | AY141: 136.1 | AZ141: 136.6 | BA141: 135.7 | BB141: 136.8 | BC141: 136.1 | BD141: 135.7 | BE141: 135.4 | BF141: 135.7 | BG141: 135.4 | BH141: 136.2 | BI141: 135.7 | BJ141: 134.7 | BK141: 133.3 | BL141: 132.3 | BM141: 132.2 | BN141: 132 | BO141: 133.1 | BP141: 133.5 | BQ141: 135.2 | BR141: 135.7 | BS141: 136 | BT141: 136.6 | BU141: 136.8 | BV141: 137.2 | BW141: 137.2
A142: 141 | B142: 1国内 | C142: PR01'PRCG20_2200340001 | D142: 国内類別3/_木材・木製品 | E142: 商品群/___製材 | F142: 101.9 | G142: 101.4 | H142: 101.4 | I142: 101.1 | J142: 100.3 | K142: 99.1 | L142: 98.7 | M142: 98.7 | N142: 98.5 | O142: 99 | P142: 99.4 | Q142: 100.6 | R142: 101.2 | S142: 102.3 | T142: 104.3 | U142: 110.5 | V142: 124.5 | W142: 143.7 | X142: 157.7 | Y142: 163.6 | Z142: 169.2 | AA142: 171.7 | AB142: 171.4 | AC142: 171 | AD142: 168 | AE142: 167.4 | AF142: 167.9 | AG142: 168.9 | AH142: 169.4 | AI142: 168 | AJ142: 167.1 | AK142: 165.1 | AL142: 162 | AM142: 155.9 | AN142: 155 | AO142: 153.9 | AP142: 149.9 | AQ142: 145.9 | AR142: 142.8 | AS142: 140 | AT142: 137.2 | AU142: 134.7 | AV142: 133.8 | AW142: 131.9 | AX142: 132.7 | AY142: 134.6 | AZ142: 136.4 | BA142: 136.4 | BB142: 136.7 | BC142: 136.1 | BD142: 135.7 | BE142: 134.8 | BF142: 134.4 | BG142: 133.4 | BH142: 133.2 | BI142: 132.7 | BJ142: 131.9 | BK142: 130.9 | BL142: 130.3 | BM142: 130.2 | BN142: 130.6 | BO142: 131.3 | BP142: 132.1 | BQ142: 136.1 | BR142: 136.9 | BS142: 136.9 | BT142: 136.8 | BU142: 136.3 | BV142: 136.3 | BW142: 136.1
A143: 142 | B143: 1国内 | C143: PR01'PRCG20_2200350001 | D143: 国内類別3/_木材・木製品 | E143: 品目/____板 | F143: 100.2 | G143: 100.2 | H143: 100.2 | I143: 100.2 | J143: 100.2 | K143: 99.8 | L143: 99.8 | M143: 99.8 | N143: 99.8 | O143: 99.8 | P143: 99.8 | Q143: 100.2 | R143: 100.2 | S143: 100.6 | T143: 100.6 | U143: 102.6 | V143: 110.3 | W143: 115.7 | X143: 124.7 | Y143: 129.1 | Z143: 129.1 | AA143: 133.5 | AB143: 130.6 | AC143: 129 | AD143: 129 | AE143: 128.7 | AF143: 129.7 | AG143: 129.7 | AH143: 129.7 | AI143: 128.2 | AJ143: 128.2 | AK143: 127.6 | AL143: 125.5 | AM143: 124.4 | AN143: 124.4 | AO143: 124.4 | AP143: 123.2 | AQ143: 120.5 | AR143: 120.1 | AS143: 119.7 | AT143: 116.9 | AU143: 114.9 | AV143: 114.9 | AW143: 114.9 | AX143: 117.2 | AY143: 117.2 | AZ143: 116.8 | BA143: 116.8 | BB143: 116.8 | BC143: 115.6 | BD143: 115.6 | BE143: 114 | BF143: 113.5 | BG143: 112.9 | BH143: 112.9 | BI143: 112.3 | BJ143: 112.3 | BK143: 111.6 | BL143: 111.6 | BM143: 111.6 | BN143: 111.6 | BO143: 112.1 | BP143: 112.1 | BQ143: 116.4 | BR143: 118.3 | BS143: 118.3 | BT143: 118.3 | BU143: 118.3 | BV143: 118.3 | BW143: 118.3
A144: 143 | B144: 1国内 | C144: PR01'PRCG20_2200350002 | D144: 国内類別3/_木材・木製品 | E144: 品目/____ひき割 | F144: 101.5 | G144: 101.4 | H144: 101.4 | I144: 101.4 | J144: 100.1 | K144: 99.3 | L144: 98.8 | M144: 98.6 | N144: 98.4 | O144: 98.6 | P144: 99 | Q144: 101.5 | R144: 102.4 | S144: 103.7 | T144: 108.8 | U144: 116 | V144: 130.6 | W144: 160.9 | X144: 175.4 | Y144: 181.9 | Z144: 187 | AA144: 189.1 | AB144: 188.5 | AC144: 187.4 | AD144: 184.3 | AE144: 183.2 | AF144: 183.7 | AG144: 184.9 | AH144: 184.3 | AI144: 181.4 | AJ144: 179.7 | AK144: 178.6 | AL144: 173.9 | AM144: 169 | AN144: 170.2 | AO144: 167.4 | AP144: 162.6 | AQ144: 156.8 | AR144: 151.7 | AS144: 150.4 | AT144: 148.2 | AU144: 146.4 | AV144: 144.8 | AW144: 142.9 | AX144: 143.6 | AY144: 147.5 | AZ144: 150.7 | BA144: 150.5 | BB144: 150.6 | BC144: 149.6 | BD144: 149.3 | BE144: 148.4 | BF144: 148.3 | BG144: 146.7 | BH144: 146.8 | BI144: 145.8 | BJ144: 144.2 | BK144: 143.9 | BL144: 142.6 | BM144: 142.2 | BN144: 142.5 | BO144: 143 | BP144: 143.2 | BQ144: 149.9 | BR144: 150.4 | BS144: 150 | BT144: 150.1 | BU144: 149.9 | BV144: 149.9 | BW144: 149.9
A145: 144 | B145: 1国内 | C145: PR01'PRCG20_2200350003 | D145: 国内類別3/_木材・木製品 | E145: 品目/____ひき角 | F145: 103.1 | G145: 103.1 | H145: 103 | I145: 102.3 | J145: 100.9 | K145: 98.1 | L145: 97.2 | M145: 97.5 | N145: 97.1 | O145: 98.3 | P145: 99.1 | Q145: 100.3 | R145: 101.5 | S145: 103.1 | T145: 105.1 | U145: 114.2 | V145: 137.2 | W145: 163.3 | X145: 185.1 | Y145: 189.4 | Z145: 201.1 | AA145: 201.8 | AB145: 203.1 | AC145: 201.7 | AD145: 195 | AE145: 194.5 | AF145: 194.8 | AG145: 196 | AH145: 196.1 | AI145: 193.1 | AJ145: 190.5 | AK145: 186.2 | AL145: 181 | AM145: 168.7 | AN145: 165.2 | AO145: 164.1 | AP145: 157.4 | AQ145: 152.4 | AR145: 147.8 | AS145: 143.3 | AT145: 141 | AU145: 135 | AV145: 133.7 | AW145: 130 | AX145: 130.4 | AY145: 132.8 | AZ145: 134.4 | BA145: 134.6 | BB145: 135.3 | BC145: 135.1 | BD145: 134.1 | BE145: 133.1 | BF145: 132.6 | BG145: 131.3 | BH145: 130.6 | BI145: 129.9 | BJ145: 128.9 | BK145: 126.8 | BL145: 126.1 | BM145: 126 | BN145: 126.8 | BO145: 128.2 | BP145: 128.2 | BQ145: 131.7 | BR145: 132.6 | BS145: 132.4 | BT145: 132.2 | BU145: 132.1 | BV145: 132 | BW145: 131.5
A146: 145 | B146: 1国内 | C146: PR01'PRCG20_2200350004 | D146: 国内類別3/_木材・木製品 | E146: 品目/____梱包用材 | F146: 101.8 | G146: 99.1 | H146: 99.1 | I146: 99.1 | J146: 99.1 | K146: 100.4 | L146: 100.4 | M146: 100.4 | N146: 100.4 | O146: 100.4 | P146: 100 | Q146: 100 | R146: 100 | S146: 100 | T146: 100 | U146: 103.2 | V146: 103.9 | W146: 106.5 | X146: 108.6 | Y146: 118.8 | Z146: 118.8 | AA146: 123.5 | AB146: 123.5 | AC146: 128.1 | AD146: 129.5 | AE146: 129.5 | AF146: 129.5 | AG146: 131.5 | AH146: 135.1 | AI146: 140.3 | AJ146: 143.4 | AK146: 143.4 | AL146: 146.3 | AM146: 146.3 | AN146: 146.6 | AO146: 146.6 | AP146: 146.6 | AQ146: 146.6 | AR146: 146.6 | AS146: 142 | AT146: 137.3 | AU146: 140.7 | AV146: 140.7 | AW146: 140.7 | AX146: 140.7 | AY146: 140.7 | AZ146: 143.4 | BA146: 143.4 | BB146: 143.4 | BC146: 143.4 | BD146: 143.4 | BE146: 143.4 | BF146: 143.4 | BG146: 143.4 | BH146: 143.4 | BI146: 144.6 | BJ146: 144.6 | BK146: 144.6 | BL146: 144.6 | BM146: 144.6 | BN146: 144.6 | BO146: 144.6 | BP146: 149.6 | BQ146: 149.6 | BR146: 149.6 | BS146: 150.2 | BT146: 150.2 | BU146: 147.5 | BV146: 147.5 | BW146: 147.5
A147: 146 | B147: 1国内 | C147: PR01'PRCG20_2200340002 | D147: 国内類別3/_木材・木製品 | E147: 商品群/___合板・集成材 | F147: 102.7 | G147: 102.6 | H147: 102.2 | I147: 101.6 | J147: 101.5 | K147: 100.7 | L147: 98.8 | M147: 98.5 | N147: 97.6 | O147: 97.6 | P147: 98 | Q147: 98.3 | R147: 99.3 | S147: 100 | T147: 101.4 | U147: 103.8 | V147: 105.3 | W147: 120.4 | X147: 129.2 | Y147: 141.5 | Z147: 155.1 | AA147: 171.3 | AB147: 173.8 | AC147: 176.4 | AD147: 184.4 | AE147: 186.7 | AF147: 189.9 | AG147: 197 | AH147: 197.5 | AI147: 199.6 | AJ147: 199.2 | AK147: 195.4 | AL147: 191.2 | AM147: 186.3 | AN147: 183 | AO147: 179.4 | AP147: 174.5 | AQ147: 170 | AR147: 162.7 | AS147: 155.7 | AT147: 152.4 | AU147: 151.4 | AV147: 148.3 | AW147: 146 | AX147: 145.8 | AY147: 146.7 | AZ147: 146 | BA147: 143.9 | BB147: 144.8 | BC147: 142.4 | BD147: 141.4 | BE147: 139.8 | BF147: 139.8 | BG147: 139.7 | BH147: 140 | BI147: 139.2 | BJ147: 136.3 | BK147: 133.1 | BL147: 129.6 | BM147: 129.6 | BN147: 129.6 | BO147: 130.3 | BP147: 130.8 | BQ147: 132.3 | BR147: 132.6 | BS147: 132.3 | BT147: 132.8 | BU147: 133.3 | BV147: 133.3 | BW147: 133.4
A148: 147 | B148: 1国内 | C148: PR01'PRCG20_2200350005 | D148: 国内類別3/_木材・木製品 | E148: 品目/____普通合板 | F148: 104.7 | G148: 104.7 | H148: 103.9 | I148: 102.3 | J148: 102.3 | K148: 100.7 | L148: 97.5 | M148: 97.5 | N148: 95.9 | O148: 95.9 | P148: 96.7 | Q148: 97.5 | R148: 98.3 | S148: 98.3 | T148: 98.3 | U148: 99.9 | V148: 101.5 | W148: 103.1 | X148: 106.3 | Y148: 108.7 | Z148: 112.7 | AA148: 119.1 | AB148: 123.1 | AC148: 138.3 | AD148: 151.1 | AE148: 158.3 | AF148: 165.5 | AG148: 173.5 | AH148: 176.7 | AI148: 183.9 | AJ148: 188.7 | AK148: 188.7 | AL148: 187.9 | AM148: 187.1 | AN148: 187.1 | AO148: 185.5 | AP148: 186.3 | AQ148: 183.1 | AR148: 176.7 | AS148: 169.5 | AT148: 163.1 | AU148: 159.1 | AV148: 155.1 | AW148: 151.1 | AX148: 150.3 | AY148: 151.9 | AZ148: 148.7 | BA148: 143.1 | BB148: 143.9 | BC148: 138.3 | BD148: 134.3 | BE148: 130.3 | BF148: 129.5 | BG148: 129.5 | BH148: 127.1 | BI148: 124.7 | BJ148: 119.9 | BK148: 113.5 | BL148: 108.7 | BM148: 108.7 | BN148: 108.7 | BO148: 110.3 | BP148: 108.7 | BQ148: 108.7 | BR148: 109.5 | BS148: 108.7 | BT148: 108.7 | BU148: 108.7 | BV148: 108.7 | BW148: 108.7
A149: 148 | B149: 1国内 | C149: PR01'PRCG20_2200350006 | D149: 国内類別3/_木材・木製品 | E149: 品目/____特殊合板 | F149: 100.3 | G149: 100.2 | H149: 99.9 | I149: 100.5 | J149: 100.4 | K149: 100.3 | L149: 99.7 | M149: 99.6 | N149: 99.7 | O149: 99.7 | P149: 100 | Q149: 99.8 | R149: 99.3 | S149: 99.5 | T149: 99.1 | U149: 99.7 | V149: 99.4 | W149: 100 | X149: 101 | Y149: 106 | Z149: 106.4 | AA149: 106.8 | AB149: 107.6 | AC149: 109.2 | AD149: 119.4 | AE149: 121.3 | AF149: 121.5 | AG149: 139.3 | AH149: 139.5 | AI149: 140.1 | AJ149: 145.4 | AK149: 147.4 | AL149: 147 | AM149: 147.4 | AN149: 147.3 | AO149: 148.7 | AP149: 149.8 | AQ149: 156.2 | AR149: 157.2 | AS149: 156.3 | AT149: 156 | AU149: 159.5 | AV149: 155.7 | AW149: 155.4 | AX149: 155.5 | AY149: 155.2 | AZ149: 155.6 | BA149: 155.4 | BB149: 155.4 | BC149: 154.1 | BD149: 155.2 | BE149: 155.4 | BF149: 155.5 | BG149: 155.3 | BH149: 155.6 | BI149: 154.2 | BJ149: 153.3 | BK149: 153.4 | BL149: 153.9 | BM149: 153.8 | BN149: 153.8 | BO149: 153.8 | BP149: 152.7 | BQ149: 156.2 | BR149: 155.6 | BS149: 155.6 | BT149: 155.6 | BU149: 156.1 | BV149: 156.1 | BW149: 156.1
A150: 149 | B150: 1国内 | C150: PR01'PRCG20_2200350007 | D150: 国内類別3/_木材・木製品 | E150: 品目/____集成材 | F150: 101.5 | G150: 101.3 | H150: 101.3 | I150: 101.3 | J150: 101 | K150: 101 | L150: 99.8 | M150: 99.2 | N150: 98.4 | O150: 98.4 | P150: 98.4 | Q150: 98.4 | R150: 100.6 | S150: 102.3 | T150: 106.4 | U150: 110.8 | V150: 113.1 | W150: 152.8 | X150: 172.9 | Y150: 201.2 | Z150: 234 | AA150: 270.8 | AB150: 272.6 | AC150: 260.2 | AD150: 261.2 | AE150: 257.8 | AF150: 257.8 | AG150: 257.8 | AH150: 255.3 | AI150: 251.9 | AJ150: 242.1 | AK150: 230.3 | AL150: 219.9 | AM150: 206.9 | AN150: 197.9 | AO150: 188.9 | AP150: 173.7 | AQ150: 161.7 | AR150: 148.8 | AS150: 138.4 | AT150: 137.4 | AU150: 137.4 | AV150: 135.9 | AW150: 134.7 | AX150: 135 | AY150: 135.6 | AZ150: 137.4 | BA150: 138.4 | BB150: 139.9 | BC150: 141 | BD150: 142.4 | BE150: 142.7 | BF150: 143.6 | BG150: 143.6 | BH150: 147 | BI150: 148.5 | BJ150: 147 | BK150: 145.8 | BL150: 141.6 | BM150: 141.6 | BN150: 141.6 | BO150: 141.6 | BP150: 145.5 | BQ150: 147.8 | BR150: 148.1 | BS150: 148.1 | BT150: 149.6 | BU150: 150.7 | BV150: 150.7 | BW150: 151
A151: 150 | B151: 1国内 | C151: PR01'PRCG20_2200340003 | D151: 国内類別3/_木材・木製品 | E151: 商品群/___木材チップ | F151: 100.3 | G151: 100.1 | H151: 100 | I151: 99.4 | J151: 99.1 | K151: 100.2 | L151: 100.5 | M151: 100.5 | N151: 100.3 | O151: 99.1 | P151: 100 | Q151: 100.5 | R151: 100.5 | S151: 100 | T151: 99.2 | U151: 99.4 | V151: 99.5 | W151: 99.9 | X151: 101.9 | Y151: 102 | Z151: 102 | AA151: 101.9 | AB151: 101.8 | AC151: 102 | AD151: 102.6 | AE151: 102.4 | AF151: 102.5 | AG151: 102.7 | AH151: 105.1 | AI151: 106.2 | AJ151: 106.1 | AK151: 106.1 | AL151: 105.6 | AM151: 107.8 | AN151: 108.5 | AO151: 108.2 | AP151: 108.1 | AQ151: 107.8 | AR151: 107.7 | AS151: 110.8 | AT151: 111.1 | AU151: 112 | AV151: 113.9 | AW151: 114.3 | AX151: 114.2 | AY151: 113.6 | AZ151: 113.4 | BA151: 113.2 | BB151: 113.4 | BC151: 114.7 | BD151: 114.2 | BE151: 115.2 | BF151: 117.1 | BG151: 116.7 | BH151: 118.4 | BI151: 119.4 | BJ151: 118 | BK151: 118.2 | BL151: 118.9 | BM151: 118.6 | BN151: 118.6 | BO151: 120.8 | BP151: 121.1 | BQ151: 118.7 | BR151: 121.5 | BS151: 123.1 | BT151: 122.2 | BU151: 122.3 | BV151: 126.3 | BW151: 126.7
A152: 151 | B152: 1国内 | C152: PR01'PRCG20_2200350008 | D152: 国内類別3/_木材・木製品 | E152: 品目/____木材チップ | F152: 100.3 | G152: 100.1 | H152: 100 | I152: 99.4 | J152: 99.1 | K152: 100.2 | L152: 100.5 | M152: 100.5 | N152: 100.3 | O152: 99.1 | P152: 100 | Q152: 100.5 | R152: 100.5 | S152: 100 | T152: 99.2 | U152: 99.4 | V152: 99.5 | W152: 99.9 | X152: 101.9 | Y152: 102 | Z152: 102 | AA152: 101.9 | AB152: 101.8 | AC152: 102 | AD152: 102.6 | AE152: 102.4 | AF152: 102.5 | AG152: 102.7 | AH152: 105.1 | AI152: 106.2 | AJ152: 106.1 | AK152: 106.1 | AL152: 105.6 | AM152: 107.8 | AN152: 108.5 | AO152: 108.2 | AP152: 108.1 | AQ152: 107.8 | AR152: 107.7 | AS152: 110.8 | AT152: 111.1 | AU152: 112 | AV152: 113.9 | AW152: 114.3 | AX152: 114.2 | AY152: 113.6 | AZ152: 113.4 | BA152: 113.2 | BB152: 113.4 | BC152: 114.7 | BD152: 114.2 | BE152: 115.2 | BF152: 117.1 | BG152: 116.7 | BH152: 118.4 | BI152: 119.4 | BJ152: 118 | BK152: 118.2 | BL152: 118.9 | BM152: 118.6 | BN152: 118.6 | BO152: 120.8 | BP152: 121.1 | BQ152: 118.7 | BR152: 121.5 | BS152: 123.1 | BT152: 122.2 | BU152: 122.3 | BV152: 126.3 | BW152: 126.7
A153: 152 | B153: 1国内 | C153: PR01'PRCG20_2200340004 | D153: 国内類別3/_木材・木製品 | E153: 商品群/___その他の木製品 | F153: 100.4 | G153: 100.4 | H153: 100.4 | I153: 100.3 | J153: 100.3 | K153: 100 | L153: 99.5 | M153: 99 | N153: 99.3 | O153: 100.2 | P153: 100.1 | Q153: 100.1 | R153: 101 | S153: 101.8 | T153: 102.6 | U153: 105.1 | V153: 111.8 | W153: 119.7 | X153: 131.5 | Y153: 144.3 | Z153: 158.6 | AA153: 167 | AB153: 166.7 | AC153: 169.6 | AD153: 169.7 | AE153: 170.1 | AF153: 170 | AG153: 173.3 | AH153: 178 | AI153: 178.7 | AJ153: 178.6 | AK153: 176.6 | AL153: 169.3 | AM153: 165.6 | AN153: 162.4 | AO153: 158.7 | AP153: 151.3 | AQ153: 146.6 | AR153: 141.9 | AS153: 138.2 | AT153: 136.9 | AU153: 135.4 | AV153: 134.2 | AW153: 133.6 | AX153: 134.1 | AY153: 133.4 | AZ153: 134.1 | BA153: 133.5 | BB153: 135.2 | BC153: 135.1 | BD153: 134.9 | BE153: 135.5 | BF153: 136.1 | BG153: 136 | BH153: 137.3 | BI153: 136.9 | BJ153: 136.7 | BK153: 136.1 | BL153: 135.9 | BM153: 135.8 | BN153: 135.4 | BO153: 136.6 | BP153: 136.8 | BQ153: 138.1 | BR153: 138.3 | BS153: 139 | BT153: 140 | BU153: 140.4 | BV153: 140.7 | BW153: 140.8
A154: 153 | B154: 1国内 | C154: PR01'PRCG20_2200350009 | D154: 国内類別3/_木材・木製品 | E154: 品目/____造作材 | F154: 98.3 | G154: 98.3 | H154: 99 | I154: 99 | J154: 99.8 | K154: 99.8 | L154: 100.1 | M154: 97.8 | N154: 98.5 | O154: 103.6 | P154: 103 | Q154: 102.8 | R154: 102.6 | S154: 102.9 | T154: 103.5 | U154: 104.3 | V154: 104.5 | W154: 104.4 | X154: 103.2 | Y154: 104.6 | Z154: 103.4 | AA154: 104.1 | AB154: 105.5 | AC154: 103.8 | AD154: 105.4 | AE154: 105 | AF154: 105.5 | AG154: 108.1 | AH154: 110.6 | AI154: 110.7 | AJ154: 110.9 | AK154: 112.6 | AL154: 112.4 | AM154: 113.1 | AN154: 113.4 | AO154: 113.4 | AP154: 114.6 | AQ154: 114.7 | AR154: 113.9 | AS154: 120.4 | AT154: 121.1 | AU154: 122.7 | AV154: 121.6 | AW154: 121.6 | AX154: 122.8 | AY154: 122.4 | AZ154: 122.2 | BA154: 122.2 | BB154: 122.2 | BC154: 121.9 | BD154: 121 | BE154: 122 | BF154: 123 | BG154: 122.3 | BH154: 122.5 | BI154: 124 | BJ154: 124.6 | BK154: 123.9 | BL154: 124.6 | BM154: 124.4 | BN154: 124.6 | BO154: 125.1 | BP154: 124.8 | BQ154: 125 | BR154: 124 | BS154: 124.2 | BT154: 126.7 | BU154: 127.2 | BV154: 128.7 | BW154: 128.6
A155: 154 | B155: 1国内 | C155: PR01'PRCG20_2200350010 | D155: 国内類別3/_木材・木製品 | E155: 品目/____住宅建築用木製組立材料 | F155: 100.8 | G155: 101 | H155: 101 | I155: 100.8 | J155: 100.7 | K155: 100.2 | L155: 99.1 | M155: 99 | N155: 99.3 | O155: 99.4 | P155: 99.4 | Q155: 99.3 | R155: 100.9 | S155: 102.1 | T155: 103.5 | U155: 106.7 | V155: 117.3 | W155: 130 | X155: 149.1 | Y155: 169.4 | Z155: 192.5 | AA155: 205.4 | AB155: 204.5 | AC155: 209.7 | AD155: 209.4 | AE155: 210 | AF155: 209.1 | AG155: 212.4 | AH155: 219.3 | AI155: 220.1 | AJ155: 219 | AK155: 214.6 | AL155: 203.1 | AM155: 196.4 | AN155: 191.2 | AO155: 184.9 | AP155: 172.2 | AQ155: 164.8 | AR155: 156.7 | AS155: 148.1 | AT155: 145.8 | AU155: 142.4 | AV155: 140.8 | AW155: 140.1 | AX155: 140.5 | AY155: 139.2 | AZ155: 140.5 | BA155: 139.6 | BB155: 142.1 | BC155: 142.6 | BD155: 142.5 | BE155: 143 | BF155: 143.6 | BG155: 143.7 | BH155: 145.8 | BI155: 144.7 | BJ155: 144.3 | BK155: 143.2 | BL155: 143.3 | BM155: 143 | BN155: 142.2 | BO155: 144 | BP155: 144.6 | BQ155: 146.3 | BR155: 147 | BS155: 147.8 | BT155: 148.7 | BU155: 149.3 | BV155: 149.3 | BW155: 149.5
A156: 155 | B156: 1国内 | C156: PR01'PRCG20_2200350011 | D156: 国内類別3/_木材・木製品 | E156: 品目/____床板 | F156: 101.1 | G156: 100.5 | H156: 99.8 | I156: 99.7 | J156: 99.6 | K156: 99.5 | L156: 100.2 | M156: 99.6 | N156: 99.9 | O156: 99.9 | P156: 100.1 | Q156: 100 | R156: 100 | S156: 100.1 | T156: 99.1 | U156: 101.4 | V156: 102 | W156: 101.8 | X156: 103.1 | Y156: 103.3 | Z156: 103.9 | AA156: 104.3 | AB156: 104.7 | AC156: 104.6 | AD156: 104.4 | AE156: 105.2 | AF156: 107 | AG156: 111.9 | AH156: 111.9 | AI156: 113.3 | AJ156: 115.9 | AK156: 117.8 | AL156: 116.7 | AM156: 119 | AN156: 118.7 | AO156: 119.2 | AP156: 121.1 | AQ156: 120 | AR156: 122.6 | AS156: 124.6 | AT156: 124.8 | AU156: 127 | AV156: 126.4 | AW156: 125.4 | AX156: 126.1 | AY156: 126.9 | AZ156: 126 | BA156: 125.9 | BB156: 126.9 | BC156: 125.4 | BD156: 125.5 | BE156: 125.2 | BF156: 125.5 | BG156: 125.1 | BH156: 125.6 | BI156: 125.5 | BJ156: 125.1 | BK156: 126.3 | BL156: 124.2 | BM156: 124.7 | BN156: 124.8 | BO156: 124.8 | BP156: 124.7 | BQ156: 125.7 | BR156: 125.4 | BS156: 126.3 | BT156: 126.8 | BU156: 126.4 | BV156: 126.8 | BW156: 126.7
A157: 156 | B157: 1国内 | C157: PR01'PRCG20_2200350012 | D157: 国内類別3/_木材・木製品 | E157: 品目/____木箱 | F157: 100 | G157: 100 | H157: 100 | I157: 100 | J157: 100 | K157: 100 | L157: 100 | M157: 100 | N157: 100 | O157: 100 | P157: 100 | Q157: 100 | R157: 100 | S157: 100 | T157: 100 | U157: 100 | V157: 101.7 | W157: 102.4 | X157: 102.4 | Y157: 102.4 | Z157: 106.2 | AA157: 108.8 | AB157: 108.8 | AC157: 109.1 | AD157: 110.2 | AE157: 110.2 | AF157: 110.2 | AG157: 113 | AH157: 113 | AI157: 113 | AJ157: 115.3 | AK157: 116.5 | AL157: 116.5 | AM157: 116.7 | AN157: 116.7 | AO157: 117.7 | AP157: 117.7 | AQ157: 117.7 | AR157: 117.7 | AS157: 122.1 | AT157: 122.1 | AU157: 122.1 | AV157: 122.1 | AW157: 122 | AX157: 122 | AY157: 122 | AZ157: 122 | BA157: 122 | BB157: 122 | BC157: 120.1 | BD157: 120.1 | BE157: 122.5 | BF157: 122.5 | BG157: 122.5 | BH157: 122.5 | BI157: 122.5 | BJ157: 122.5 | BK157: 122.5 | BL157: 122.5 | BM157: 122.5 | BN157: 122.5 | BO157: 122.5 | BP157: 122.5 | BQ157: 122.5 | BR157: 122.5 | BS157: 122.5 | BT157: 122.5 | BU157: 122.5 | BV157: 122.5 | BW157: 122.5
A158: 157 | B158: 1国内 | C158: PR01'PRCG20_2200420001 | D158: 国内類別4/_パルプ・紙・同製品 | E158: 類別/_パルプ・紙・同製品 | F158: 100.2 | G158: 100.2 | H158: 100.2 | I158: 100.1 | J158: 100 | K158: 99.9 | L158: 100 | M158: 99.9 | N158: 99.9 | O158: 99.9 | P158: 100 | Q158: 99.8 | R158: 99.9 | S158: 99.8 | T158: 99.7 | U158: 99.8 | V158: 99.7 | W158: 99.7 | X158: 99.9 | Y158: 99.8 | Z158: 99.7 | AA158: 99.9 | AB158: 99.8 | AC158: 99.9 | AD158: 99.9 | AE158: 100.7 | AF158: 102.5 | AG158: 104.2 | AH158: 104.5 | AI158: 105 | AJ158: 106.1 | AK158: 107 | AL158: 107.6 | AM158: 110.7 | AN158: 112.5 | AO158: 113.6 | AP158: 114.8 | AQ158: 116.7 | AR158: 118.3 | AS158: 120.4 | AT158: 120.8 | AU158: 121.7 | AV158: 121.7 | AW158: 122 | AX158: 122.6 | AY158: 122.4 | AZ158: 122.5 | BA158: 123 | BB158: 122.9 | BC158: 123 | BD158: 122.9 | BE158: 123.4 | BF158: 123.7 | BG158: 123.8 | BH158: 123.8 | BI158: 123.8 | BJ158: 124 | BK158: 124.3 | BL158: 124.8 | BM158: 125.1 | BN158: 125.3 | BO158: 125.2 | BP158: 125.7 | BQ158: 126 | BR158: 126.3 | BS158: 126.1 | BT158: 126.3 | BU158: 126.6 | BV158: 126.4 | BW158: 127.8
